Workbook

Sheet 貸･事業所(合計)
A1: 帳票名：残高試算表(年間推移)
A3: 事業所名：株式会社 弥生トレーディング
A4: 処理日時：平成15年09月30日,04:23:21
A5: 集計期間：平成19年04月01日,平成20年03月31日,決算仕訳を含む
A6: 税抜/税込：税抜
A8: 勘定科目 | B8: 4月度 | C8: 5月度 | D8: 6月度 | E8: 7月度 | F8: 8月度 | G8: 9月度 | H8: 上半期残高(合計) | I8: 10月度 | J8: 11月度 | K8: 12月度 | L8: 1月度 | M8: 2月度 | N8: 3月度 | O8: 下半期残高(合計) | P8: 当期仮残高(合計) | Q8: 決算残高(合計) | R8: 当期残高(合計) | T8: 前期繰越
A9: [現金･預金]
A10: 現金 | B10: 3319228 | C10: 3603771 | D10: 3632381 | E10: 4483780 | F10: 4603382 | G10: 4762654 | H10: 4762654 | I10: 4639171 | J10: 4815418 | K10: 4604083 | L10: 5278046 | M10: 4881392 | N10: 4556569 | O10: 4556569 | P10: 4556569 | Q10: 4556569 | R10: 4556569 | T10: 1282584
A11: 小口現金 | B11: 0 | C11: 0 | D11: 0 | E11: 0 | F11: 0 | G11: 0 | H11: 0 | I11: 0 | J11: 0 | K11: 0 | L11: 0 | M11: 0 | N11: 0 | O11: 0 | P11: 0 | Q11: 0 | R11: 0 | T11: 0
A12: 当座預金 | B12: 20672051 | C12: 21901054 | D12: 18847767 | E12: 22953571 | F12: 18992781 | G12: 30691299 | H12: 30691299 | I12: 37706811 | J12: 32248488 | K12: 30320001 | L12: 30216171 | M12: 42434878 | N12: 24805181 | O12: 24805181 | P12: 24805181 | Q12: 24805181 | R12: 24805181 | T12: 10166397
A13: 普通預金 | B13: 17697524 | C13: 14708154 | D13: 17443797 | E13: 13559901 | F13: 15441885 | G13: 18064829 | H13: 18064829 | I13: 17300106 | J13: 18997377 | K13: 21299901 | L13: 23109186 | M13: 25135280 | N13: 27299975 | O13: 27299975 | P13: 27299975 | Q13: 27299975 | R13: 27299975 | T13: 18166580
A14: 定期預金 | B14: 2004000 | C14: 2004000 | D14: 2004000 | E14: 2004000 | F14: 2004000 | G14: 2008000 | H14: 2008000 | I14: 2008000 | J14: 2008000 | K14: 2008000 | L14: 2008000 | M14: 2008000 | N14: 2012000 | O14: 2012000 | P14: 2012000 | Q14: 2012000 | R14: 2012000 | T14: 2004000
A15: 通知預金 | B15: 0 | C15: 0 | D15: 0 | E15: 0 | F15: 0 | G15: 0 | H15: 0 | I15: 0 | J15: 0 | K15: 0 | L15: 0 | M15: 0 | N15: 0 | O15: 0 | P15: 0 | Q15: 0 | R15: 0 | T15: 0
A16: 定期積金 | B16: 0 | C16: 0 | D16: 0 | E16: 0 | F16: 0 | G16: 0 | H16: 0 | I16: 0 | J16: 0 | K16: 0 | L16: 0 | M16: 0 | N16: 0 | O16: 0 | P16: 0 | Q16: 0 | R16: 0 | T16: 0
A17: 別段預金 | B17: 0 | C17: 0 | D17: 0 | E17: 0 | F17: 0 | G17: 0 | H17: 0 | I17: 0 | J17: 0 | K17: 0 | L17: 0 | M17: 0 | N17: 0 | O17: 0 | P17: 0 | Q17: 0 | R17: 0 | T17: 0
A18: 郵便貯金 | B18: 0 | C18: 0 | D18: 0 | E18: 0 | F18: 0 | G18: 0 | H18: 0 | I18: 0 | J18: 0 | K18: 0 | L18: 0 | M18: 0 | N18: 0 | O18: 0 | P18: 0 | Q18: 0 | R18: 0 | T18: 0
A19: 現金･預金合計 | B19: 43692803 | C19: 42216979 | D19: 41927945 | E19: 43001252 | F19: 41042048 | G19: 55526782 | H19: 55526782 | I19: 61654088 | J19: 58069283 | K19: 58231985 | L19: 60611403 | M19: 74459550 | N19: 58673725 | O19: 58673725 | P19: 58673725 | Q19: 58673725 | R19: 58673725 | T19: 31619561
A20: [売上債権]
A21: 受取手形 | B21: 0 | C21: 2000000 | D21: 5000000 | E21: 5000000 | F21: 3500000 | G21: 0 | H21: 0 | I21: 0 | J21: 0 | K21: 0 | L21: 0 | M21: 0 | N21: 0 | O21: 0 | P21: 0 | Q21: 0 | R21: 0 | T21: 2600000
A22: 不渡手形 | B22: 0 | C22: 0 | D22: 0 | E22: 0 | F22: 0 | G22: 0 | H22: 0 | I22: 0 | J22: 0 | K22: 0 | L22: 0 | M22: 0 | N22: 0 | O22: 0 | P22: 0 | Q22: 0 | R22: 0 | T22: 0
A23: 売掛金 | B23: 32395126 | C23: 36466067 | D23: 38906399 | E23: 40791618 | F23: 34461962 | G23: 37471270 | H23: 37471270 | I23: 40572365 | J23: 41077474 | K23: 43406313 | L23: 55831662 | M23: 37485734 | N23: 33906364 | O23: 33906364 | P23: 33906364 | Q23: 33906364 | R23: 33906364 | T23: 25513425
A24: 貸倒引当金(売) | B24: -280000 | C24: -280000 | D24: -280000 | E24: -280000 | F24: -280000 | G24: -280000 | H24: -280000 | I24: -280000 | J24: -280000 | K24: -280000 | L24: -280000 | M24: -280000 | N24: -280000 | O24: -280000 | P24: -280000 | Q24: -330000 | R24: -330000 | T24: -280000
A25: 売上債権合計 | B25: 32115126 | C25: 38186067 | D25: 43626399 | E25: 45511618 | F25: 37681962 | G25: 37191270 | H25: 37191270 | I25: 40292365 | J25: 40797474 | K25: 43126313 | L25: 55551662 | M25: 37205734 | N25: 33626364 | O25: 33626364 | P25: 33626364 | Q25: 33576364 | R25: 33576364 | T25: 27833425
A26: [有価証券]
A27: 有価証券 | B27: 0 | C27: 0 | D27: 0 | E27: 0 | F27: 0 | G27: 0 | H27: 0 | I27: 0 | J27: 0 | K27: 0 | L27: 0 | M27: 0 | N27: 0 | O27: 0 | P27: 0 | Q27: 0 | R27: 0 | T27: 0
A28: 有価証券合計 | B28: 0 | C28: 0 | D28: 0 | E28: 0 | F28: 0 | G28: 0 | H28: 0 | I28: 0 | J28: 0 | K28: 0 | L28: 0 | M28: 0 | N28: 0 | O28: 0 | P28: 0 | Q28: 0 | R28: 0 | T28: 0
A29: [棚卸資産]
A30: 商品 | B30: 1420830 | C30: 1420830 | D30: 1420830 | E30: 1420830 | F30: 1420830 | G30: 1420830 | H30: 1420830 | I30: 1420830 | J30: 1420830 | K30: 1420830 | L30: 1420830 | M30: 1420830 | N30: 1420830 | O30: 1420830 | P30: 1420830 | Q30: 1301290 | R30: 1301290 | T30: 1420830
A31: 製品 | B31: 0 | C31: 0 | D31: 0 | E31: 0 | F31: 0 | G31: 0 | H31: 0 | I31: 0 | J31: 0 | K31: 0 | L31: 0 | M31: 0 | N31: 0 | O31: 0 | P31: 0 | Q31: 0 | R31: 0 | T31: 0
A32: 副産物作業くず | B32: 0 | C32: 0 | D32: 0 | E32: 0 | F32: 0 | G32: 0 | H32: 0 | I32: 0 | J32: 0 | K32: 0 | L32: 0 | M32: 0 | N32: 0 | O32: 0 | P32: 0 | Q32: 0 | R32: 0 | T32: 0
A33: 半製品 | B33: 301100 | C33: 301100 | D33: 301100 | E33: 301100 | F33: 301100 | G33: 301100 | H33: 301100 | I33: 301100 | J33: 301100 | K33: 301100 | L33: 301100 | M33: 301100 | N33: 301100 | O33: 301100 | P33: 301100 | Q33: 291770 | R33: 291770 | T33: 301100
A34: 原材料 | B34: 447210 | C34: 447210 | D34: 447210 | E34: 447210 | F34: 447210 | G34: 447210 | H34: 447210 | I34: 447210 | J34: 447210 | K34: 447210 | L34: 447210 | M34: 447210 | N34: 447210 | O34: 447210 | P34: 447210 | Q34: 380020 | R34: 380020 | T34: 447210
A35: 仕掛品 | B35: 36000 | C35: 36000 | D35: 36000 | E35: 36000 | F35: 36000 | G35: 36000 | H35: 36000 | I35: 36000 | J35: 36000 | K35: 36000 | L35: 36000 | M35: 36000 | N35: 36000 | O35: 36000 | P35: 36000 | Q35: 32000 | R35: 32000 | T35: 36000
A36: 貯蔵品 | B36: 0 | C36: 0 | D36: 0 | E36: 0 | F36: 0 | G36: 0 | H36: 0 | I36: 0 | J36: 0 | K36: 0 | L36: 0 | M36: 0 | N36: 0 | O36: 0 | P36: 0 | Q36: 0 | R36: 0 | T36: 0
A37: 棚卸資産合計 | B37: 2205140 | C37: 2205140 | D37: 2205140 | E37: 2205140 | F37: 2205140 | G37: 2205140 | H37: 2205140 | I37: 2205140 | J37: 2205140 | K37: 2205140 | L37: 2205140 | M37: 2205140 | N37: 2205140 | O37: 2205140 | P37: 2205140 | Q37: 2005080 | R37: 2005080 | T37: 2205140
A38: [他流動資産]
A39: 前渡金 | B39: 0 | C39: 0 | D39: 0 | E39: 0 | F39: 0 | G39: 0 | H39: 0 | I39: 0 | J39: 0 | K39: 0 | L39: 0 | M39: 0 | N39: 0 | O39: 0 | P39: 0 | Q39: 0 | R39: 0 | T39: 0
A40: 立替金 | B40: 185449 | C40: 175572 | D40: 165695 | E40: 155818 | F40: 145941 | G40: 136064 | H40: 136064 | I40: 126187 | J40: 116310 | K40: 78975 | L40: 69098 | M40: 59221 | N40: 49344 | O40: 49344 | P40: 49344 | Q40: 49344 | R40: 49344 | T40: 19429
A41: 前払費用 | B41: 0 | C41: 0 | D41: 0 | E41: 0 | F41: 0 | G41: 0 | H41: 0 | I41: 0 | J41: 0 | K41: 0 | L41: 0 | M41: 0 | N41: 0 | O41: 0 | P41: 0 | Q41: 0 | R41: 0 | T41: 0
A42: 繰延税金資産(流) | B42: 0 | C42: 0 | D42: 0 | E42: 0 | F42: 0 | G42: 0 | H42: 0 | I42: 0 | J42: 0 | K42: 0 | L42: 0 | M42: 0 | N42: 0 | O42: 0 | P42: 0 | Q42: 0 | R42: 0 | T42: 0
A43: 未収収益 | B43: 300000 | C43: 300000 | D43: 300000 | E43: 300000 | F43: 300000 | G43: 300000 | H43: 300000 | I43: 300000 | J43: 300000 | K43: 300000 | L43: 300000 | M43: 300000 | N43: 300000 | O43: 300000 | P43: 300000 | Q43: 300000 | R43: 300000 | T43: 300000
A44: 短期貸付金 | B44: 0 | C44: 0 | D44: 0 | E44: 0 | F44: 0 | G44: 0 | H44: 0 | I44: 0 | J44: 0 | K44: 0 | L44: 0 | M44: 0 | N44: 0 | O44: 0 | P44: 0 | Q44: 0 | R44: 0 | T44: 0
A45: 未収入金 | B45: 0 | C45: 0 | D45: 0 | E45: 0 | F45: 0 | G45: 0 | H45: 0 | I45: 0 | J45: 0 | K45: 0 | L45: 0 | M45: 0 | N45: 0 | O45: 0 | P45: 0 | Q45: 0 | R45: 0 | T45: 0
A46: 仮払金 | B46: 0 | C46: 0 | D46: 0 | E46: 0 | F46: 150000 | G46: 0 | H46: 0 | I46: 0 | J46: 0 | K46: 0 | L46: 0 | M46: 0 | N46: 0 | O46: 0 | P46: 0 | Q46: 0 | R46: 0 | T46: 0
A47: 預け金 | B47: 0 | C47: 0 | D47: 0 | E47: 0 | F47: 0 | G47: 0 | H47: 0 | I47: 0 | J47: 0 | K47: 0 | L47: 0 | M47: 0 | N47: 0 | O47: 0 | P47: 0 | Q47: 0 | R47: 0 | T47: 0
A48: 仮払消費税 | B48: 943968 | C48: 2205946 | D48: 3317165 | E48: 4393821 | F48: 5461311 | G48: 6528756 | H48: 6528756 | I48: 7920670 | J48: 10273260 | K48: 11163031 | L48: 12056099 | M48: 12862808 | N48: 13656726 | O48: 13656726 | P48: 13656726 | Q48: 0 | R48: 0 | T48: 0
A49: 貸倒引当金(他) | B49: 0 | C49: 0 | D49: 0 | E49: 0 | F49: 0 | G49: 0 | H49: 0 | I49: 0 | J49: 0 | K49: 0 | L49: 0 | M49: 0 | N49: 0 | O49: 0 | P49: 0 | Q49: 0 | R49: 0 | T49: 0
A50: 他流動資産合計 | B50: 1429417 | C50: 2681518 | D50: 3782860 | E50: 4849639 | F50: 6057252 | G50: 6964820 | H50: 6964820 | I50: 8346857 | J50: 10689570 | K50: 11542006 | L50: 12425197 | M50: 13222029 | N50: 14006070 | O50: 14006070 | P50: 14006070 | Q50: 349344 | R50: 349344 | T50: 319429
A51: 流動資産合計 | B51: 79442486 | C51: 85289704 | D51: 91542344 | E51: 95567649 | F51: 86986402 | G51: 101888012 | H51: 101888012 | I51: 112498450 | J51: 111761467 | K51: 115105444 | L51: 130793402 | M51: 127092453 | N51: 108511299 | O51: 108511299 | P51: 108511299 | Q51: 94604513 | R51: 94604513 | T51: 61977555
A52: [有形固定資産]
A53: 建物 | B53: 22671600 | C53: 22671600 | D53: 22671600 | E53: 22671600 | F53: 22671600 | G53: 22671600 | H53: 22671600 | I53: 22671600 | J53: 22671600 | K53: 22671600 | L53: 22671600 | M53: 22671600 | N53: 34671600 | O53: 34671600 | P53: 34671600 | Q53: 34153200 | R53: 34153200 | T53: 22671600
A54: 附属設備 | B54: 822122 | C54: 822122 | D54: 822122 | E54: 822122 | F54: 822122 | G54: 822122 | H54: 822122 | I54: 822122 | J54: 822122 | K54: 822122 | L54: 822122 | M54: 822122 | N54: 822122 | O54: 822122 | P54: 822122 | Q54: 652765 | R54: 652765 | T54: 822122
A55: 構築物 | B55: 0 | C55: 0 | D55: 0 | E55: 0 | F55: 0 | G55: 0 | H55: 0 | I55: 0 | J55: 0 | K55: 0 | L55: 0 | M55: 0 | N55: 0 | O55: 0 | P55: 0 | Q55: 0 | R55: 0 | T55: 0
A56: 機械装置 | B56: 2256085 | C56: 2256085 | D56: 2256085 | E56: 2256085 | F56: 2256085 | G56: 2256085 | H56: 2256085 | I56: 2256085 | J56: 2256085 | K56: 2256085 | L56: 2256085 | M56: 2256085 | N56: 2256085 | O56: 2256085 | P56: 2256085 | Q56: 1536394 | R56: 1536394 | T56: 2256085
A57: 車両運搬具 | B57: 5287476 | C57: 5287476 | D57: 5287476 | E57: 5287476 | F57: 5287476 | G57: 5287476 | H57: 5287476 | I57: 5287476 | J57: 5287476 | K57: 5287476 | L57: 5287476 | M57: 5287476 | N57: 5287476 | O57: 5287476 | P57: 5287476 | Q57: 3193104 | R57: 3193104 | T57: 3287476
A58: 工具器具備品 | B58: 812042 | C58: 812042 | D58: 812042 | E58: 812042 | F58: 812042 | G58: 812042 | H58: 812042 | I58: 812042 | J58: 812042 | K58: 812042 | L58: 812042 | M58: 812042 | N58: 812042 | O58: 812042 | P58: 812042 | Q58: 546392 | R58: 546392 | T58: 812042
A59: 一括償却資産 | B59: 120000 | C59: 120000 | D59: 120000 | E59: 120000 | F59: 120000 | G59: 120000 | H59: 120000 | I59: 120000 | J59: 120000 | K59: 120000 | L59: 120000 | M59: 120000 | N59: 120000 | O59: 120000 | P59: 120000 | Q59: 62857 | R59: 62857 | T59: 120000
A60: 減価償却累計額 | B60: 0 | C60: 0 | D60: 0 | E60: 0 | F60: 0 | G60: 0 | H60: 0 | I60: 0 | J60: 0 | K60: 0 | L60: 0 | M60: 0 | N60: 0 | O60: 0 | P60: 0 | Q60: 0 | R60: 0 | T60: 0
A61: 土地 | B61: 25000000 | C61: 25000000 | D61: 25000000 | E61: 25000000 | F61: 25000000 | G61: 25000000 | H61: 25000000 | I61: 25000000 | J61: 25000000 | K61: 25000000 | L61: 25000000 | M61: 25000000 | N61: 25000000 | O61: 25000000 | P61: 25000000 | Q61: 25000000 | R61: 25000000 | T61: 25000000
A62: 建設仮勘定 | B62: 0 | C62: 0 | D62: 0 | E62: 0 | F62: 0 | G62: 0 | H62: 0 | I62: 0 | J62: 0 | K62: 0 | L62: 0 | M62: 0 | N62: 0 | O62: 0 | P62: 0 | Q62: 0 | R62: 0 | T62: 0
A63: 有形固定資産計 | B63: 56969325 | C63: 56969325 | D63: 56969325 | E63: 56969325 | F63: 56969325 | G63: 56969325 | H63: 56969325 | I63: 56969325 | J63: 56969325 | K63: 56969325 | L63: 56969325 | M63: 56969325 | N63: 68969325 | O63: 68969325 | P63: 68969325 | Q63: 65144712 | R63: 65144712 | T63: 54969325
A64: [無形固定資産]
A65: 電話加入権 | B65: 150000 | C65: 150000 | D65: 150000 | E65: 150000 | F65: 150000 | G65: 150000 | H65: 150000 | I65: 150000 | J65: 150000 | K65: 150000 | L65: 150000 | M65: 150000 | N65: 150000 | O65: 150000 | P65: 150000 | Q65: 150000 | R65: 150000 | T65: 150000
A66: 施設利用権 | B66: 0 | C66: 0 | D66: 0 | E66: 0 | F66: 0 | G66: 0 | H66: 0 | I66: 0 | J66: 0 | K66: 0 | L66: 0 | M66: 0 | N66: 0 | O66: 0 | P66: 0 | Q66: 0 | R66: 0 | T66: 0
A67: 工業所有権 | B67: 0 | C67: 0 | D67: 0 | E67: 0 | F67: 0 | G67: 0 | H67: 0 | I67: 0 | J67: 0 | K67: 0 | L67: 0 | M67: 0 | N67: 0 | O67: 0 | P67: 0 | Q67: 0 | R67: 0 | T67: 0
A68: 営業権 | B68: 0 | C68: 0 | D68: 0 | E68: 0 | F68: 0 | G68: 0 | H68: 0 | I68: 0 | J68: 0 | K68: 0 | L68: 0 | M68: 0 | N68: 0 | O68: 0 | P68: 0 | Q68: 0 | R68: 0 | T68: 0
A69: 借地権 | B69: 0 | C69: 0 | D69: 0 | E69: 0 | F69: 0 | G69: 0 | H69: 0 | I69: 0 | J69: 0 | K69: 0 | L69: 0 | M69: 0 | N69: 0 | O69: 0 | P69: 0 | Q69: 0 | R69: 0 | T69: 0
A70: ソフトウェア | B70: 400000 | C70: 400000 | D70: 400000 | E70: 400000 | F70: 400000 | G70: 400000 | H70: 400000 | I70: 400000 | J70: 400000 | K70: 400000 | L70: 400000 | M70: 400000 | N70: 400000 | O70: 400000 | P70: 400000 | Q70: 300000 | R70: 300000 | T70: 400000
A71: 無形固定資産計 | B71: 550000 | C71: 550000 | D71: 550000 | E71: 550000 | F71: 550000 | G71: 550000 | H71: 550000 | I71: 550000 | J71: 550000 | K71: 550000 | L71: 550000 | M71: 550000 | N71: 550000 | O71: 550000 | P71: 550000 | Q71: 450000 | R71: 450000 | T71: 550000
A72: [投資その他の資産]
A73: 投資有価証券 | B73: 3000000 | C73: 3000000 | D73: 3000000 | E73: 3000000 | F73: 3000000 | G73: 3000000 | H73: 3000000 | I73: 3000000 | J73: 3000000 | K73: 3000000 | L73: 3000000 | M73: 3000000 | N73: 3000000 | O73: 3000000 | P73: 3000000 | Q73: 3000000 | R73: 3000000 | T73: 3000000
A74: 関係会社株式 | B74: 500000 | C74: 500000 | D74: 500000 | E74: 500000 | F74: 500000 | G74: 500000 | H74: 500000 | I74: 500000 | J74: 500000 | K74: 500000 | L74: 500000 | M74: 500000 | N74: 500000 | O74: 500000 | P74: 500000 | Q74: 500000 | R74: 500000 | T74: 500000
A75: 出資金 | B75: 700000 | C75: 700000 | D75: 700000 | E75: 700000 | F75: 700000 | G75: 700000 | H75: 700000 | I75: 700000 | J75: 700000 | K75: 700000 | L75: 700000 | M75: 700000 | N75: 700000 | O75: 700000 | P75: 700000 | Q75: 700000 | R75: 700000 | T75: 700000
A76: 関係会社出資金 | B76: 1200000 | C76: 1200000 | D76: 1200000 | E76: 1200000 | F76: 1200000 | G76: 1200000 | H76: 1200000 | I76: 1200000 | J76: 1200000 | K76: 1200000 | L76: 1200000 | M76: 1200000 | N76: 1200000 | O76: 1200000 | P76: 1200000 | Q76: 1200000 | R76: 1200000 | T76: 1200000
A77: 敷金 | B77: 0 | C77: 0 | D77: 0 | E77: 0 | F77: 0 | G77: 0 | H77: 0 | I77: 0 | J77: 0 | K77: 0 | L77: 0 | M77: 0 | N77: 0 | O77: 0 | P77: 0 | Q77: 0 | R77: 0 | T77: 0
A78: 差入保証金 | B78: 0 | C78: 0 | D78: 0 | E78: 0 | F78: 0 | G78: 0 | H78: 0 | I78: 0 | J78: 0 | K78: 0 | L78: 0 | M78: 0 | N78: 0 | O78: 0 | P78: 0 | Q78: 0 | R78: 0 | T78: 0
A79: 長期貸付金 | B79: 0 | C79: 0 | D79: 0 | E79: 0 | F79: 0 | G79: 0 | H79: 0 | I79: 0 | J79: 0 | K79: 0 | L79: 0 | M79: 0 | N79: 0 | O79: 0 | P79: 0 | Q79: 0 | R79: 0 | T79: 0
A80: 長期固定性預金 | B80: 0 | C80: 0 | D80: 0 | E80: 0 | F80: 0 | G80: 0 | H80: 0 | I80: 0 | J80: 0 | K80: 0 | L80: 0 | M80: 0 | N80: 0 | O80: 0 | P80: 0 | Q80: 0 | R80: 0 | T80: 0
A81: 長期滞留債権 | B81: 0 | C81: 0 | D81: 0 | E81: 0 | F81: 0 | G81: 0 | H81: 0 | I81: 0 | J81: 0 | K81: 0 | L81: 0 | M81: 0 | N81: 0 | O81: 0 | P81: 0 | Q81: 0 | R81: 0 | T81: 0
A82: 長期前払費用 | B82: 0 | C82: 0 | D82: 0 | E82: 0 | F82: 0 | G82: 0 | H82: 0 | I82: 0 | J82: 0 | K82: 0 | L82: 0 | M82: 0 | N82: 0 | O82: 0 | P82: 0 | Q82: 0 | R82: 0 | T82: 0
A83: 繰延税金資産(固) | B83: 0 | C83: 0 | D83: 0 | E83: 0 | F83: 0 | G83: 0 | H83: 0 | I83: 0 | J83: 0 | K83: 0 | L83: 0 | M83: 0 | N83: 0 | O83: 0 | P83: 0 | Q83: 0 | R83: 0 | T83: 0
A84: 貸倒引当金(投) | B84: 0 | C84: 0 | D84: 0 | E84: 0 | F84: 0 | G84: 0 | H84: 0 | I84: 0 | J84: 0 | K84: 0 | L84: 0 | M84: 0 | N84: 0 | O84: 0 | P84: 0 | Q84: 0 | R84: 0 | T84: 0
A85: 投資その他の資産合計 | B85: 5400000 | C85: 5400000 | D85: 5400000 | E85: 5400000 | F85: 5400000 | G85: 5400000 | H85: 5400000 | I85: 5400000 | J85: 5400000 | K85: 5400000 | L85: 5400000 | M85: 5400000 | N85: 5400000 | O85: 5400000 | P85: 5400000 | Q85: 5400000 | R85: 5400000 | T85: 5400000
A86: 固定資産合計 | B86: 62919325 | C86: 62919325 | D86: 62919325 | E86: 62919325 | F86: 62919325 | G86: 62919325 | H86: 62919325 | I86: 62919325 | J86: 62919325 | K86: 62919325 | L86: 62919325 | M86: 62919325 | N86: 74919325 | O86: 74919325 | P86: 74919325 | Q86: 70994712 | R86: 70994712 | T86: 60919325
A87: [繰延資産]
A88: 創立費 | B88: 0 | C88: 0 | D88: 0 | E88: 0 | F88: 0 | G88: 0 | H88: 0 | I88: 0 | J88: 0 | K88: 0 | L88: 0 | M88: 0 | N88: 0 | O88: 0 | P88: 0 | Q88: 0 | R88: 0 | T88: 0
A89: 開業費 | B89: 0 | C89: 0 | D89: 0 | E89: 0 | F89: 0 | G89: 0 | H89: 0 | I89: 0 | J89: 0 | K89: 0 | L89: 0 | M89: 0 | N89: 0 | O89: 0 | P89: 0 | Q89: 0 | R89: 0 | T89: 0
A90: 開発費 | B90: 0 | C90: 0 | D90: 0 | E90: 0 | F90: 0 | G90: 0 | H90: 0 | I90: 0 | J90: 0 | K90: 0 | L90: 0 | M90: 0 | N90: 0 | O90: 0 | P90: 0 | Q90: 0 | R90: 0 | T90: 0
A91: 試験研究費 | B91: 0 | C91: 0 | D91: 0 | E91: 0 | F91: 0 | G91: 0 | H91: 0 | I91: 0 | J91: 0 | K91: 0 | L91: 0 | M91: 0 | N91: 0 | O91: 0 | P91: 0 | Q91: 0 | R91: 0 | T91: 0
A92: 繰延資産合計 | B92: 0 | C92: 0 | D92: 0 | E92: 0 | F92: 0 | G92: 0 | H92: 0 | I92: 0 | J92: 0 | K92: 0 | L92: 0 | M92: 0 | N92: 0 | O92: 0 | P92: 0 | Q92: 0 | R92: 0 | T92: 0
A93: [諸口]
A94: 複合 | B94: 0 | C94: 0 | D94: 0 | E94: 0 | F94: 0 | G94: 0 | H94: 0 | I94: 0 | J94: 0 | K94: 0 | L94: 0 | M94: 0 | N94: 0 | O94: 0 | P94: 0 | Q94: 0 | R94: 0 | T94: 0
A95: 未確定勘定 | B95: 0 | C95: 0 | D95: 0 | E95: 0 | F95: 0 | G95: 0 | H95: 0 | I95: 0 | J95: 0 | K95: 0 | L95: 0 | M95: 0 | N95: 0 | O95: 0 | P95: 0 | Q95: 0 | R95: 0 | T95: 0
A96: 資産合計 | B96: 142361811 | C96: 148209029 | D96: 154461669 | E96: 158486974 | F96: 149905727 | G96: 164807337 | H96: 164807337 | I96: 175417775 | J96: 174680792 | K96: 178024769 | L96: 193712727 | M96: 190011778 | N96: 183430624 | O96: 183430624 | P96: 183430624 | Q96: 165599225 | R96: 165599225 | T96: 122896880
A97: [仕入債務]
A98: 支払手形 | B98: 2000000 | C98: 4000000 | D98: 4000000 | E98: 9000000 | F98: 2000000 | G98: 1500000 | H98: 1500000 | I98: 2500000 | J98: 4000000 | K98: 4000000 | L98: 4000000 | M98: 4000000 | N98: 4000000 | O98: 4000000 | P98: 4000000 | Q98: 4000000 | R98: 4000000 | T98: 0
A99: 買掛金 | B99: 32879591 | C99: 38112098 | D99: 41647799 | E99: 47067747 | F99: 42046671 | G99: 50429228 | H99: 50429228 | I99: 57471286 | J99: 56623555 | K99: 57992625 | L99: 65212974 | M99: 66384681 | N99: 57908481 | O99: 57908481 | P99: 57908481 | Q99: 57908481 | R99: 57908481 | T99: 30089034
A100: 仕入債務合計 | B100: 34879591 | C100: 42112098 | D100: 45647799 | E100: 56067747 | F100: 44046671 | G100: 51929228 | H100: 51929228 | I100: 59971286 | J100: 60623555 | K100: 61992625 | L100: 69212974 | M100: 70384681 | N100: 61908481 | O100: 61908481 | P100: 61908481 | Q100: 61908481 | R100: 61908481 | T100: 30089034
A101: [他流動負債]
A102: 設備支払手形 | B102: 0 | C102: 0 | D102: 0 | E102: 0 | F102: 0 | G102: 0 | H102: 0 | I102: 0 | J102: 0 | K102: 0 | L102: 0 | M102: 0 | N102: 0 | O102: 0 | P102: 0 | Q102: 0 | R102: 0 | T102: 0
A103: 短期借入金 | B103: 2500000 | C103: 2000000 | D103: 2000000 | E103: 1500000 | F103: 1000000 | G103: 1000000 | H103: 1000000 | I103: 1000000 | J103: 1000000 | K103: 1000000 | L103: 1000000 | M103: 1000000 | N103: 1000000 | O103: 1000000 | P103: 1000000 | Q103: 1000000 | R103: 1000000 | T103: 2000000
A104: 未払金 | B104: 0 | C104: 0 | D104: 0 | E104: 0 | F104: 0 | G104: 0 | H104: 0 | I104: 0 | J104: 0 | K104: 0 | L104: 0 | M104: 0 | N104: 0 | O104: 0 | P104: 0 | Q104: 0 | R104: 0 | T104: 0
A105: 未払費用 | B105: 0 | C105: 0 | D105: 0 | E105: 0 | F105: 0 | G105: 0 | H105: 0 | I105: 0 | J105: 0 | K105: 0 | L105: 0 | M105: 0 | N105: 0 | O105: 0 | P105: 0 | Q105: 0 | R105: 0 | T105: 0
A106: 未払配当金 | B106: 0 | C106: 0 | D106: 0 | E106: 0 | F106: 0 | G106: 0 | H106: 0 | I106: 0 | J106: 0 | K106: 0 | L106: 0 | M106: 0 | N106: 0 | O106: 0 | P106: 0 | Q106: 0 | R106: 0 | T106: 0
A107: 未払役員賞与 | B107: 0 | C107: 0 | D107: 0 | E107: 0 | F107: 0 | G107: 0 | H107: 0 | I107: 0 | J107: 0 | K107: 0 | L107: 0 | M107: 0 | N107: 0 | O107: 0 | P107: 0 | Q107: 0 | R107: 0 | T107: 0
A108: 未払法人税等 | B108: 4200000 | C108: 0 | D108: 0 | E108: 0 | F108: 0 | G108: 0 | H108: 0 | I108: 0 | J108: 0 | K108: 0 | L108: 0 | M108: 0 | N108: 0 | O108: 0 | P108: 0 | Q108: 1900000 | R108: 1900000 | T108: 4200000
A109: 未払事業税等 | B109: 0 | C109: 0 | D109: 0 | E109: 0 | F109: 0 | G109: 0 | H109: 0 | I109: 0 | J109: 0 | K109: 0 | L109: 0 | M109: 0 | N109: 0 | O109: 0 | P109: 0 | Q109: 0 | R109: 0 | T109: 0
A110: 未払消費税等 | B110: 1497700 | C110: 351700 | D110: 351700 | E110: 351700 | F110: 351700 | G110: 351700 | H110: 351700 | I110: 351700 | J110: 351700 | K110: 351700 | L110: 351700 | M110: 351700 | N110: 351700 | O110: 351700 | P110: 351700 | Q110: 1078800 | R110: 1078800 | T110: 1497700
A111: 繰延税金負債(流) | B111: 0 | C111: 0 | D111: 0 | E111: 0 | F111: 0 | G111: 0 | H111: 0 | I111: 0 | J111: 0 | K111: 0 | L111: 0 | M111: 0 | N111: 0 | O111: 0 | P111: 0 | Q111: 0 | R111: 0 | T111: 0
A112: 前受金 | B112: 0 | C112: 0 | D112: 0 | E112: 0 | F112: 0 | G112: 0 | H112: 0 | I112: 0 | J112: 0 | K112: 0 | L112: 0 | M112: 0 | N112: 0 | O112: 0 | P112: 0 | Q112: 0 | R112: 0 | T112: 0
A113: 預り金 | B113: 2482890 | C113: 2521508 | D113: 2697418 | E113: 1155548 | F113: 1297698 | G113: 1473608 | H113: 1473608 | I113: 1689418 | J113: 1908328 | K113: 2673463 | L113: 743857 | M113: 962767 | N113: 1181677 | O113: 1181677 | P113: 1181677 | Q113: 1181677 | R113: 1181677 | T113: 2107413
A114: 前受収益 | B114: 0 | C114: 0 | D114: 0 | E114: 0 | F114: 0 | G114: 0 | H114: 0 | I114: 0 | J114: 0 | K114: 0 | L114: 0 | M114: 0 | N114: 0 | O114: 0 | P114: 0 | Q114: 0 | R114: 0 | T114: 0
A115: 仮受金 | B115: 0 | C115: 0 | D115: 0 | E115: 0 | F115: 0 | G115: 0 | H115: 0 | I115: 0 | J115: 0 | K115: 0 | L115: 0 | M115: 0 | N115: 0 | O115: 0 | P115: 0 | Q115: 0 | R115: 0 | T115: 0
A116: 預り保証金 | B116: 0 | C116: 0 | D116: 0 | E116: 0 | F116: 0 | G116: 0 | H116: 0 | I116: 0 | J116: 0 | K116: 0 | L116: 0 | M116: 0 | N116: 0 | O116: 0 | P116: 0 | Q116: 0 | R116: 0 | T116: 0
A117: 割引手形 | B117: 800000 | C117: 800000 | D117: 800000 | E117: 800000 | F117: 800000 | G117: 800000 | H117: 800000 | I117: 800000 | J117: 800000 | K117: 800000 | L117: 800000 | M117: 800000 | N117: 800000 | O117: 800000 | P117: 800000 | Q117: 800000 | R117: 800000 | T117: 800000
A118: 裏書手形 | B118: 0 | C118: 0 | D118: 0 | E118: 0 | F118: 0 | G118: 0 | H118: 0 | I118: 0 | J118: 0 | K118: 0 | L118: 0 | M118: 0 | N118: 0 | O118: 0 | P118: 0 | Q118: 0 | R118: 0 | T118: 0
A119: 仮受消費税 | B119: 1111127 | C119: 2703272 | D119: 4030037 | E119: 5369334 | F119: 6666118 | G119: 8174984 | H119: 8174984 | I119: 9549608 | J119: 10559012 | K119: 11719664 | L119: 13144850 | M119: 13795664 | N119: 14206924 | O119: 14206924 | P119: 14206924 | Q119: 0 | R119: 0 | T119: 0
A120: 他流動負債合計 | B120: 12591717 | C120: 8376480 | D120: 9879155 | E120: 9176582 | F120: 10115516 | G120: 11800292 | H120: 11800292 | I120: 13390726 | J120: 14619040 | K120: 16544827 | L120: 16040407 | M120: 16910131 | N120: 17540301 | O120: 17540301 | P120: 17540301 | Q120: 5960477 | R120: 5960477 | T120: 10605113
A121: 流動負債合計 | B121: 47471308 | C121: 50488578 | D121: 55526954 | E121: 65244329 | F121: 54162187 | G121: 63729520 | H121: 63729520 | I121: 73362012 | J121: 75242595 | K121: 78537452 | L121: 85253381 | M121: 87294812 | N121: 79448782 | O121: 79448782 | P121: 79448782 | Q121: 67868958 | R121: 67868958 | T121: 40694147
A122: [固定負債]
A123: 長期借入金 | B123: 17550000 | C123: 16513215 | D123: 15475767 | E123: 14437897 | F123: 13399604 | G123: 12360888 | H123: 12360888 | I123: 11131754 | J123: 10492187 | K123: 10492187 | L123: 10301766 | M123: 10110917 | N123: 9919639 | O123: 9919639 | P123: 9919639 | Q123: 9919639 | R123: 9919639 | T123: 6400000
A124: 長期未払金 | B124: 0 | C124: 0 | D124: 0 | E124: 0 | F124: 0 | G124: 0 | H124: 0 | I124: 0 | J124: 0 | K124: 0 | L124: 0 | M124: 0 | N124: 0 | O124: 0 | P124: 0 | Q124: 0 | R124: 0 | T124: 0
A125: 繰延税金負債(固) | B125: 0 | C125: 0 | D125: 0 | E125: 0 | F125: 0 | G125: 0 | H125: 0 | I125: 0 | J125: 0 | K125: 0 | L125: 0 | M125: 0 | N125: 0 | O125: 0 | P125: 0 | Q125: 0 | R125: 0 | T125: 0
A126: 退職給付引当金 | B126: 0 | C126: 0 | D126: 0 | E126: 0 | F126: 0 | G126: 0 | H126: 0 | I126: 0 | J126: 0 | K126: 0 | L126: 0 | M126: 0 | N126: 0 | O126: 0 | P126: 0 | Q126: 0 | R126: 0 | T126: 0
A127: 固定負債合計 | B127: 17550000 | C127: 16513215 | D127: 15475767 | E127: 14437897 | F127: 13399604 | G127: 12360888 | H127: 12360888 | I127: 11131754 | J127: 10492187 | K127: 10492187 | L127: 10301766 | M127: 10110917 | N127: 9919639 | O127: 9919639 | P127: 9919639 | Q127: 9919639 | R127: 9919639 | T127: 6400000
A128: 負債合計 | B128: 65021308 | C128: 67001793 | D128: 71002721 | E128: 79682226 | F128: 67561791 | G128: 76090408 | H128: 76090408 | I128: 84493766 | J128: 85734782 | K128: 89029639 | L128: 95555147 | M128: 97405729 | N128: 89368421 | O128: 89368421 | P128: 89368421 | Q128: 77788597 | R128: 77788597 | T128: 47094147
A129: [資本金]
A130: 資本金 | B130: 10000000 | C130: 10000000 | D130: 10000000 | E130: 10000000 | F130: 10000000 | G130: 10000000 | H130: 10000000 | I130: 10000000 | J130: 10000000 | K130: 10000000 | L130: 10000000 | M130: 10000000 | N130: 10000000 | O130: 10000000 | P130: 10000000 | Q130: 10000000 | R130: 10000000 | T130: 10000000
A131: 資本金合計 | B131: 10000000 | C131: 10000000 | D131: 10000000 | E131: 10000000 | F131: 10000000 | G131: 10000000 | H131: 10000000 | I131: 10000000 | J131: 10000000 | K131: 10000000 | L131: 10000000 | M131: 10000000 | N131: 10000000 | O131: 10000000 | P131: 10000000 | Q131: 10000000 | R131: 10000000 | T131: 10000000
A132: [新株式申込証拠金]
A133: 新株式申込証拠金 | B133: 0 | C133: 0 | D133: 0 | E133: 0 | F133: 0 | G133: 0 | H133: 0 | I133: 0 | J133: 0 | K133: 0 | L133: 0 | M133: 0 | N133: 0 | O133: 0 | P133: 0 | Q133: 0 | R133: 0 | T133: 0
A134: 新株式申込証拠金合計 | B134: 0 | C134: 0 | D134: 0 | E134: 0 | F134: 0 | G134: 0 | H134: 0 | I134: 0 | J134: 0 | K134: 0 | L134: 0 | M134: 0 | N134: 0 | O134: 0 | P134: 0 | Q134: 0 | R134: 0 | T134: 0
A135: [資本剰余金]
A136: 資本準備金 | B136: 5000000 | C136: 5000000 | D136: 5000000 | E136: 5000000 | F136: 5000000 | G136: 5000000 | H136: 5000000 | I136: 5000000 | J136: 5000000 | K136: 5000000 | L136: 5000000 | M136: 5000000 | N136: 5000000 | O136: 5000000 | P136: 5000000 | Q136: 5000000 | R136: 5000000 | T136: 5000000
A137: 資本準備金合計 | B137: 5000000 | C137: 5000000 | D137: 5000000 | E137: 5000000 | F137: 5000000 | G137: 5000000 | H137: 5000000 | I137: 5000000 | J137: 5000000 | K137: 5000000 | L137: 5000000 | M137: 5000000 | N137: 5000000 | O137: 5000000 | P137: 5000000 | Q137: 5000000 | R137: 5000000 | T137: 5000000
A138: 資本金及び準備金減少差益 | B138: 0 | C138: 0 | D138: 0 | E138: 0 | F138: 0 | G138: 0 | H138: 0 | I138: 0 | J138: 0 | K138: 0 | L138: 0 | M138: 0 | N138: 0 | O138: 0 | P138: 0 | Q138: 0 | R138: 0 | T138: 0
A139: 自己株処分差益 | B139: 0 | C139: 0 | D139: 0 | E139: 0 | F139: 0 | G139: 0 | H139: 0 | I139: 0 | J139: 0 | K139: 0 | L139: 0 | M139: 0 | N139: 0 | O139: 0 | P139: 0 | Q139: 0 | R139: 0 | T139: 0
A140: その他資本剰余金合計 | B140: 0 | C140: 0 | D140: 0 | E140: 0 | F140: 0 | G140: 0 | H140: 0 | I140: 0 | J140: 0 | K140: 0 | L140: 0 | M140: 0 | N140: 0 | O140: 0 | P140: 0 | Q140: 0 | R140: 0 | T140: 0
A141: 資本剰余金合計 | B141: 5000000 | C141: 5000000 | D141: 5000000 | E141: 5000000 | F141: 5000000 | G141: 5000000 | H141: 5000000 | I141: 5000000 | J141: 5000000 | K141: 5000000 | L141: 5000000 | M141: 5000000 | N141: 5000000 | O141: 5000000 | P141: 5000000 | Q141: 5000000 | R141: 5000000 | T141: 5000000
A142: [利益剰余金]
A143: 利益準備金 | B143: 5000000 | C143: 5000000 | D143: 5000000 | E143: 5000000 | F143: 5000000 | G143: 5000000 | H143: 5000000 | I143: 5000000 | J143: 5000000 | K143: 5000000 | L143: 5000000 | M143: 5000000 | N143: 5000000 | O143: 5000000 | P143: 5000000 | Q143: 5000000 | R143: 5000000 | T143: 5000000
A144: 利益準備金合計 | B144: 5000000 | C144: 5000000 | D144: 5000000 | E144: 5000000 | F144: 5000000 | G144: 5000000 | H144: 5000000 | I144: 5000000 | J144: 5000000 | K144: 5000000 | L144: 5000000 | M144: 5000000 | N144: 5000000 | O144: 5000000 | P144: 5000000 | Q144: 5000000 | R144: 5000000 | T144: 5000000
A145: 別途積立金 | B145: 2000000 | C145: 2000000 | D145: 2000000 | E145: 2000000 | F145: 2000000 | G145: 2000000 | H145: 2000000 | I145: 2000000 | J145: 2000000 | K145: 2000000 | L145: 2000000 | M145: 2000000 | N145: 2000000 | O145: 2000000 | P145: 2000000 | Q145: 2000000 | R145: 2000000 | T145: 2000000
A146: 任意積立金合計 | B146: 2000000 | C146: 2000000 | D146: 2000000 | E146: 2000000 | F146: 2000000 | G146: 2000000 | H146: 2000000 | I146: 2000000 | J146: 2000000 | K146: 2000000 | L146: 2000000 | M146: 2000000 | N146: 2000000 | O146: 2000000 | P146: 2000000 | Q146: 2000000 | R146: 2000000 | T146: 2000000
A147: 繰越利益 | B147: 53802733 | C147: 53802733 | D147: 53802733 | E147: 53802733 | F147: 53802733 | G147: 53802733 | H147: 53802733 | I147: 53802733 | J147: 53802733 | K147: 53802733 | L147: 53802733 | M147: 53802733 | N147: 53802733 | O147: 53802733 | P147: 53802733 | Q147: 53802733 | R147: 53802733 | T147: 53802733
A148: 当期純損益金額 | B148: 1537770 | C148: 5404503 | D148: 7656215 | E148: 3002015 | F148: 6541203 | G148: 12914196 | H148: 12914196 | I148: 15121276 | J148: 13143277 | K148: 13192397 | L148: 22354847 | M148: 16803316 | N148: 18259470 | O148: 18259470 | P148: 18259470 | Q148: 12007895 | R148: 12007895 | T148: 0
A149: 繰越利益剰余金合計 | B149: 55340503 | C149: 59207236 | D149: 61458948 | E149: 56804748 | F149: 60343936 | G149: 66716929 | H149: 66716929 | I149: 68924009 | J149: 66946010 | K149: 66995130 | L149: 76157580 | M149: 70606049 | N149: 72062203 | O149: 72062203 | P149: 72062203 | Q149: 65810628 | R149: 65810628 | T149: 53802733
A150: その他利益剰余金合計 | B150: 57340503 | C150: 61207236 | D150: 63458948 | E150: 58804748 | F150: 62343936 | G150: 68716929 | H150: 68716929 | I150: 70924009 | J150: 68946010 | K150: 68995130 | L150: 78157580 | M150: 72606049 | N150: 74062203 | O150: 74062203 | P150: 74062203 | Q150: 67810628 | R150: 67810628 | T150: 55802733
A151: 利益剰余金合計 | B151: 62340503 | C151: 66207236 | D151: 68458948 | E151: 63804748 | F151: 67343936 | G151: 73716929 | H151: 73716929 | I151: 75924009 | J151: 73946010 | K151: 73995130 | L151: 83157580 | M151: 77606049 | N151: 79062203 | O151: 79062203 | P151: 79062203 | Q151: 72810628 | R151: 72810628 | T151: 60802733
A152: [自己株式]
A153: 自己株式 | B153: 0 | C153: 0 | D153: 0 | E153: 0 | F153: 0 | G153: 0 | H153: 0 | I153: 0 | J153: 0 | K153: 0 | L153: 0 | M153: 0 | N153: 0 | O153: 0 | P153: 0 | Q153: 0 | R153: 0 | T153: 0
A154: 自己株式合計 | B154: 0 | C154: 0 | D154: 0 | E154: 0 | F154: 0 | G154: 0 | H154: 0 | I154: 0 | J154: 0 | K154: 0 | L154: 0 | M154: 0 | N154: 0 | O154: 0 | P154: 0 | Q154: 0 | R154: 0 | T154: 0
A155: [自己株式申込証拠金]
A156: 自己株式申込証拠金 | B156: 0 | C156: 0 | D156: 0 | E156: 0 | F156: 0 | G156: 0 | H156: 0 | I156: 0 | J156: 0 | K156: 0 | L156: 0 | M156: 0 | N156: 0 | O156: 0 | P156: 0 | Q156: 0 | R156: 0 | T156: 0
A157: 自己株式申込証拠金合計 | B157: 0 | C157: 0 | D157: 0 | E157: 0 | F157: 0 | G157: 0 | H157: 0 | I157: 0 | J157: 0 | K157: 0 | L157: 0 | M157: 0 | N157: 0 | O157: 0 | P157: 0 | Q157: 0 | R157: 0 | T157: 0
A158: 株主資本合計 | B158: 77340503 | C158: 81207236 | D158: 83458948 | E158: 78804748 | F158: 82343936 | G158: 88716929 | H158: 88716929 | I158: 90924009 | J158: 88946010 | K158: 88995130 | L158: 98157580 | M158: 92606049 | N158: 94062203 | O158: 94062203 | P158: 94062203 | Q158: 87810628 | R158: 87810628 | T158: 75802733
A159: [評価･換算差額等]
A160: その他有価証券評価差額金 | B160: 0 | C160: 0 | D160: 0 | E160: 0 | F160: 0 | G160: 0 | H160: 0 | I160: 0 | J160: 0 | K160: 0 | L160: 0 | M160: 0 | N160: 0 | O160: 0 | P160: 0 | Q160: 0 | R160: 0 | T160: 0
A161: 繰延ヘッジ損益 | B161: 0 | C161: 0 | D161: 0 | E161: 0 | F161: 0 | G161: 0 | H161: 0 | I161: 0 | J161: 0 | K161: 0 | L161: 0 | M161: 0 | N161: 0 | O161: 0 | P161: 0 | Q161: 0 | R161: 0 | T161: 0
A162: 土地再評価差額金 | B162: 0 | C162: 0 | D162: 0 | E162: 0 | F162: 0 | G162: 0 | H162: 0 | I162: 0 | J162: 0 | K162: 0 | L162: 0 | M162: 0 | N162: 0 | O162: 0 | P162: 0 | Q162: 0 | R162: 0 | T162: 0
A163: 評価･換算差額等合計 | B163: 0 | C163: 0 | D163: 0 | E163: 0 | F163: 0 | G163: 0 | H163: 0 | I163: 0 | J163: 0 | K163: 0 | L163: 0 | M163: 0 | N163: 0 | O163: 0 | P163: 0 | Q163: 0 | R163: 0 | T163: 0
A164: [新株予約権]
A165: 新株予約権 | B165: 0 | C165: 0 | D165: 0 | E165: 0 | F165: 0 | G165: 0 | H165: 0 | I165: 0 | J165: 0 | K165: 0 | L165: 0 | M165: 0 | N165: 0 | O165: 0 | P165: 0 | Q165: 0 | R165: 0 | T165: 0
A166: 新株予約権合計 | B166: 0 | C166: 0 | D166: 0 | E166: 0 | F166: 0 | G166: 0 | H166: 0 | I166: 0 | J166: 0 | K166: 0 | L166: 0 | M166: 0 | N166: 0 | O166: 0 | P166: 0 | Q166: 0 | R166: 0 | T166: 0
A167: 純資産合計 | B167: 77340503 | C167: 81207236 | D167: 83458948 | E167: 78804748 | F167: 82343936 | G167: 88716929 | H167: 88716929 | I167: 90924009 | J167: 88946010 | K167: 88995130 | L167: 98157580 | M167: 92606049 | N167: 94062203 | O167: 94062203 | P167: 94062203 | Q167: 87810628 | R167: 87810628 | T167: 75802733
A168: 負債･純資産合計 | B168: 142361811 | C168: 148209029 | D168: 154461669 | E168: 158486974 | F168: 149905727 | G168: 164807337 | H168: 164807337 | I168: 175417775 | J168: 174680792 | K168: 178024769 | L168: 193712727 | M168: 190011778 | N168: 183430624 | O168: 183430624 | P168: 183430624 | Q168: 165599225 | R168: 165599225 | T168: 122896880

Sheet 損･事業所(合計)
A1: 帳票名：残高試算表(年間推移)
A3: 事業所名：株式会社 弥生トレーディング
A4: 処理日時：平成15年09月30日,04:23:27
A5: 集計期間：平成19年04月01日,平成20年03月31日,決算仕訳を含む
A6: 税抜/税込：税抜
A8: 勘定科目 | B8: 4月度 | C8: 5月度 | D8: 6月度 | E8: 7月度 | F8: 8月度 | G8: 9月度 | H8: 上半期残高(合計) | I8: 10月度 | J8: 11月度 | K8: 12月度 | L8: 1月度 | M8: 2月度 | N8: 3月度 | O8: 下半期残高(合計) | P8: 当期仮残高(合計) | Q8: 決算残高(合計) | R8: 当期残高(合計)
A9: [売上高]
A10: 売上高 | B10: 23730235 | C10: 29370928 | D10: 26360153 | E10: 25751245 | F10: 26527462 | G10: 30242038 | H10: 161982061 | I10: 29274704 | J10: 19625274 | K10: 24076028 | L10: 33236724 | M10: 13016544 | N10: 8225518 | O10: 127454792 | P10: 289436853 | Q10: 0 | R10: 289436853
A11: 売上値引高 | B11: 0 | C11: 0 | D11: 0 | E11: 0 | F11: 0 | G11: 0 | H11: 0 | I11: 0 | J11: 0 | K11: 0 | L11: 0 | M11: 0 | N11: 0 | O11: 0 | P11: 0 | Q11: 0 | R11: 0
A12: 売上戻り高 | B12: 0 | C12: 0 | D12: 0 | E12: 0 | F12: 0 | G12: 0 | H12: 0 | I12: 0 | J12: 0 | K12: 0 | L12: 0 | M12: 0 | N12: 0 | O12: 0 | P12: 0 | Q12: 0 | R12: 0
A13: 売上割戻し高 | B13: 0 | C13: 0 | D13: 0 | E13: 0 | F13: 0 | G13: 0 | H13: 0 | I13: 0 | J13: 0 | K13: 0 | L13: 0 | M13: 0 | N13: 0 | O13: 0 | P13: 0 | Q13: 0 | R13: 0
A14: 役務収益 | B14: 0 | C14: 0 | D14: 0 | E14: 0 | F14: 0 | G14: 0 | H14: 0 | I14: 0 | J14: 0 | K14: 0 | L14: 0 | M14: 0 | N14: 0 | O14: 0 | P14: 0 | Q14: 0 | R14: 0
A15: 売上高合計 | B15: 23730235 | C15: 29370928 | D15: 26360153 | E15: 25751245 | F15: 26527462 | G15: 30242038 | H15: 161982061 | I15: 29274704 | J15: 19625274 | K15: 24076028 | L15: 33236724 | M15: 13016544 | N15: 8225518 | O15: 127454792 | P15: 289436853 | Q15: 0 | R15: 289436853
A16: [売上原価]
A17: 期首商品棚卸高 | B17: 0 | C17: 0 | D17: 0 | E17: 0 | F17: 0 | G17: 0 | H17: 0 | I17: 0 | J17: 0 | K17: 0 | L17: 0 | M17: 0 | N17: 0 | O17: 0 | P17: 0 | Q17: 1420830 | R17: 1420830
A18: 期首商品棚卸高 | B18: 0 | C18: 0 | D18: 0 | E18: 0 | F18: 0 | G18: 0 | H18: 0 | I18: 0 | J18: 0 | K18: 0 | L18: 0 | M18: 0 | N18: 0 | O18: 0 | P18: 0 | Q18: 1420830 | R18: 1420830
A19: 仕入高 | B19: 16518456 | C19: 18740506 | D19: 16439254 | E19: 19131739 | F19: 15889917 | G19: 12885244 | H19: 99605116 | I19: 15493568 | J19: 8773395 | K19: 14149481 | L19: 18853707 | M19: 13030427 | N19: 1578500 | O19: 71879078 | P19: 171484194 | Q19: 0 | R19: 171484194
A20: 仕入値引高 | B20: 0 | C20: 0 | D20: 0 | E20: 0 | F20: 0 | G20: 0 | H20: 0 | I20: 0 | J20: 0 | K20: 0 | L20: 0 | M20: 0 | N20: 0 | O20: 0 | P20: 0 | Q20: 0 | R20: 0
A21: 仕入戻し高 | B21: 0 | C21: 0 | D21: 0 | E21: 0 | F21: 0 | G21: 0 | H21: 0 | I21: 0 | J21: 0 | K21: 0 | L21: 0 | M21: 0 | N21: 0 | O21: 0 | P21: 0 | Q21: 0 | R21: 0
A22: 仕入割戻し高 | B22: 0 | C22: 0 | D22: 0 | E22: 0 | F22: 0 | G22: 0 | H22: 0 | I22: 0 | J22: 0 | K22: 0 | L22: 0 | M22: 0 | N22: 0 | O22: 0 | P22: 0 | Q22: 0 | R22: 0
A23: 当期商品仕入高 | B23: 16518456 | C23: 18740506 | D23: 16439254 | E23: 19131739 | F23: 15889917 | G23: 12885244 | H23: 99605116 | I23: 15493568 | J23: 8773395 | K23: 14149481 | L23: 18853707 | M23: 13030427 | N23: 1578500 | O23: 71879078 | P23: 171484194 | Q23: 0 | R23: 171484194
A24: 合計 | B24: 16518456 | C24: 18740506 | D24: 16439254 | E24: 19131739 | F24: 15889917 | G24: 12885244 | H24: 99605116 | I24: 15493568 | J24: 8773395 | K24: 14149481 | L24: 18853707 | M24: 13030427 | N24: 1578500 | O24: 71879078 | P24: 171484194 | Q24: 1420830 | R24: 172905024
A25: 他勘定振替高(商) | B25: 0 | C25: 0 | D25: 0 | E25: 0 | F25: 0 | G25: 0 | H25: 0 | I25: 0 | J25: 0 | K25: 0 | L25: 0 | M25: 0 | N25: 0 | O25: 0 | P25: 0 | Q25: 0 | R25: 0
A26: 期末商品棚卸高 | B26: 0 | C26: 0 | D26: 0 | E26: 0 | F26: 0 | G26: 0 | H26: 0 | I26: 0 | J26: 0 | K26: 0 | L26: 0 | M26: 0 | N26: 0 | O26: 0 | P26: 0 | Q26: 1301290 | R26: 1301290
A27: 期末商品棚卸高 | B27: 0 | C27: 0 | D27: 0 | E27: 0 | F27: 0 | G27: 0 | H27: 0 | I27: 0 | J27: 0 | K27: 0 | L27: 0 | M27: 0 | N27: 0 | O27: 0 | P27: 0 | Q27: 1301290 | R27: 1301290
A28: 商品売上原価 | B28: 16518456 | C28: 18740506 | D28: 16439254 | E28: 19131739 | F28: 15889917 | G28: 12885244 | H28: 99605116 | I28: 15493568 | J28: 8773395 | K28: 14149481 | L28: 18853707 | M28: 13030427 | N28: 1578500 | O28: 71879078 | P28: 171484194 | Q28: 119540 | R28: 171603734
A29: 期首製品棚卸高 | B29: 0 | C29: 0 | D29: 0 | E29: 0 | F29: 0 | G29: 0 | H29: 0 | I29: 0 | J29: 0 | K29: 0 | L29: 0 | M29: 0 | N29: 0 | O29: 0 | P29: 0 | Q29: 0 | R29: 0
A30: 期首製品棚卸高 | B30: 0 | C30: 0 | D30: 0 | E30: 0 | F30: 0 | G30: 0 | H30: 0 | I30: 0 | J30: 0 | K30: 0 | L30: 0 | M30: 0 | N30: 0 | O30: 0 | P30: 0 | Q30: 0 | R30: 0
A31: 当期製品製造原価 | B31: 2267059 | C31: 3009345 | D31: 2610740 | E31: 4646059 | F31: 2946176 | G31: 7193990 | H31: 22673369 | I31: 4795672 | J31: 5786858 | K31: 1993384 | L31: 989490 | M31: 1215579 | N31: 1132793 | O31: 15913776 | P31: 38587145 | Q31: 1048611 | R31: 39635756
A32: 合計 | B32: 2267059 | C32: 3009345 | D32: 2610740 | E32: 4646059 | F32: 2946176 | G32: 7193990 | H32: 22673369 | I32: 4795672 | J32: 5786858 | K32: 1993384 | L32: 989490 | M32: 1215579 | N32: 1132793 | O32: 15913776 | P32: 38587145 | Q32: 1048611 | R32: 39635756
A33: 他勘定振替高(製) | B33: 0 | C33: 0 | D33: 0 | E33: 0 | F33: 0 | G33: 0 | H33: 0 | I33: 0 | J33: 0 | K33: 0 | L33: 0 | M33: 0 | N33: 0 | O33: 0 | P33: 0 | Q33: 0 | R33: 0
A34: 期末製品棚卸高 | B34: 0 | C34: 0 | D34: 0 | E34: 0 | F34: 0 | G34: 0 | H34: 0 | I34: 0 | J34: 0 | K34: 0 | L34: 0 | M34: 0 | N34: 0 | O34: 0 | P34: 0 | Q34: 0 | R34: 0
A35: 期末製品棚卸高 | B35: 0 | C35: 0 | D35: 0 | E35: 0 | F35: 0 | G35: 0 | H35: 0 | I35: 0 | J35: 0 | K35: 0 | L35: 0 | M35: 0 | N35: 0 | O35: 0 | P35: 0 | Q35: 0 | R35: 0
A36: 製品売上原価 | B36: 2267059 | C36: 3009345 | D36: 2610740 | E36: 4646059 | F36: 2946176 | G36: 7193990 | H36: 22673369 | I36: 4795672 | J36: 5786858 | K36: 1993384 | L36: 989490 | M36: 1215579 | N36: 1132793 | O36: 15913776 | P36: 38587145 | Q36: 1048611 | R36: 39635756
A37: 売上原価 | B37: 18785515 | C37: 21749851 | D37: 19049994 | E37: 23777798 | F37: 18836093 | G37: 20079234 | H37: 122278485 | I37: 20289240 | J37: 14560253 | K37: 16142865 | L37: 19843197 | M37: 14246006 | N37: 2711293 | O37: 87792854 | P37: 210071339 | Q37: 1168151 | R37: 211239490
A38: 売上総損益金額 | B38: 4944720 | C38: 7621077 | D38: 7310159 | E38: 1973447 | F38: 7691369 | G38: 10162804 | H38: 39703576 | I38: 8985464 | J38: 5065021 | K38: 7933163 | L38: 13393527 | M38: -1229462 | N38: 5514225 | O38: 39661938 | P38: 79365514 | Q38: -1168151 | R38: 78197363
A39: [販売管理費]
A40: 役員報酬 | B40: 800000 | C40: 800000 | D40: 800000 | E40: 800000 | F40: 800000 | G40: 800000 | H40: 4800000 | I40: 800000 | J40: 800000 | K40: 800000 | L40: 800000 | M40: 800000 | N40: 800000 | O40: 4800000 | P40: 9600000 | Q40: 0 | R40: 9600000
A41: 役員賞与 | B41: 0 | C41: 0 | D41: 0 | E41: 0 | F41: 0 | G41: 0 | H41: 0 | I41: 0 | J41: 0 | K41: 0 | L41: 0 | M41: 0 | N41: 0 | O41: 0 | P41: 0 | Q41: 0 | R41: 0
A42: 給料手当 | B42: 1010800 | C42: 1078800 | D42: 1076600 | E42: 1076600 | F42: 1067100 | G42: 1056600 | H42: 6366500 | I42: 1082000 | J42: 1086400 | K42: 1079300 | L42: 1089300 | M42: 1064000 | N42: 1096000 | O42: 6497000 | P42: 12863500 | Q42: 0 | R42: 12863500
A43: 雑給 | B43: 0 | C43: 0 | D43: 0 | E43: 0 | F43: 0 | G43: 0 | H43: 0 | I43: 0 | J43: 0 | K43: 0 | L43: 0 | M43: 0 | N43: 0 | O43: 0 | P43: 0 | Q43: 0 | R43: 0
A44: 賞与 | B44: 0 | C44: 0 | D44: 0 | E44: 3245000 | F44: 0 | G44: 0 | H44: 3245000 | I44: 0 | J44: 0 | K44: 4210000 | L44: 0 | M44: 0 | N44: 0 | O44: 4210000 | P44: 7455000 | Q44: 0 | R44: 7455000
A45: 退職金 | B45: 0 | C45: 0 | D45: 0 | E45: 0 | F45: 0 | G45: 0 | H45: 0 | I45: 0 | J45: 0 | K45: 0 | L45: 0 | M45: 0 | N45: 0 | O45: 0 | P45: 0 | Q45: 0 | R45: 0
A46: 法定福利費 | B46: 0 | C46: 381942 | D46: 199567 | E46: 199567 | F46: 229927 | G46: 199567 | H46: 1210570 | I46: 199567 | J46: 199567 | K46: 199567 | L46: 236047 | M46: 199567 | N46: 199567 | O46: 1233882 | P46: 2444452 | Q46: 0 | R46: 2444452
A47: 福利厚生費 | B47: 4000 | C47: 2363 | D47: 10774 | E47: 0 | F47: 114219 | G47: 5292 | H47: 136648 | I47: 7871 | J47: 1830 | K47: 43620 | L47: 103239 | M47: 0 | N47: 4997 | O47: 161557 | P47: 298205 | Q47: 0 | R47: 298205
A48: 退職給付繰入額 | B48: 0 | C48: 0 | D48: 0 | E48: 0 | F48: 0 | G48: 0 | H48: 0 | I48: 0 | J48: 0 | K48: 0 | L48: 0 | M48: 0 | N48: 0 | O48: 0 | P48: 0 | Q48: 0 | R48: 0
A49: 採用教育費 | B49: 0 | C49: 0 | D49: 0 | E49: 0 | F49: 0 | G49: 0 | H49: 0 | I49: 0 | J49: 0 | K49: 0 | L49: 0 | M49: 800000 | N49: 0 | O49: 800000 | P49: 800000 | Q49: 0 | R49: 800000
A50: 外注費 | B50: 0 | C50: 0 | D50: 0 | E50: 0 | F50: 0 | G50: 0 | H50: 0 | I50: 0 | J50: 0 | K50: 0 | L50: 0 | M50: 0 | N50: 0 | O50: 0 | P50: 0 | Q50: 0 | R50: 0
A51: 荷造運賃 | B51: 340953 | C51: 339048 | D51: 370953 | E51: 381905 | F51: 400953 | G51: 496667 | H51: 2330479 | I51: 600763 | J51: 256096 | K51: 340953 | L51: 360000 | M51: 379524 | N51: 347810 | O51: 2285146 | P51: 4615625 | Q51: 0 | R51: 4615625
A52: 広告宣伝費 | B52: 0 | C52: 0 | D52: 1332381 | E52: 0 | F52: 0 | G52: 0 | H52: 1332381 | I52: 2857143 | J52: 0 | K52: 0 | L52: 450000 | M52: 0 | N52: 400000 | O52: 3707143 | P52: 5039524 | Q52: 0 | R52: 5039524
A53: 交際費 | B53: 72648 | C53: 95239 | D53: 88000 | E53: 45715 | F53: 52381 | G53: 0 | H53: 353983 | I53: 158000 | J53: 260001 | K53: 44286 | L53: 102381 | M53: 41620 | N53: 198000 | O53: 804288 | P53: 1158271 | Q53: 0 | R53: 1158271
A54: 会議費 | B54: 0 | C54: 0 | D54: 0 | E54: 0 | F54: 0 | G54: 0 | H54: 0 | I54: 0 | J54: 0 | K54: 0 | L54: 0 | M54: 0 | N54: 0 | O54: 0 | P54: 0 | Q54: 0 | R54: 0
A55: 旅費交通費 | B55: 126135 | C55: 132250 | D55: 131697 | E55: 132250 | F55: 290802 | G55: 293656 | H55: 1106790 | I55: 134307 | J55: 132802 | K55: 131697 | L55: 132802 | M55: 132802 | N55: 131697 | O55: 796107 | P55: 1902897 | Q55: 0 | R55: 1902897
A56: 通信費 | B56: 40411 | C56: 151942 | D56: 172667 | E56: 126727 | F56: 46421 | G56: 153145 | H56: 691313 | I56: 102576 | J56: 84307 | K56: 157177 | L56: 137864 | M56: 126429 | N56: 163418 | O56: 771771 | P56: 1463084 | Q56: 0 | R56: 1463084
A57: 販売手数料 | B57: 0 | C57: 0 | D57: 0 | E57: 0 | F57: 0 | G57: 0 | H57: 0 | I57: 0 | J57: 0 | K57: 0 | L57: 0 | M57: 0 | N57: 0 | O57: 0 | P57: 0 | Q57: 0 | R57: 0
A58: 販売促進費 | B58: 0 | C58: 0 | D58: 0 | E58: 0 | F58: 0 | G58: 0 | H58: 0 | I58: 0 | J58: 0 | K58: 0 | L58: 0 | M58: 0 | N58: 0 | O58: 0 | P58: 0 | Q58: 0 | R58: 0
A59: 消耗品費 | B59: 44572 | C59: 0 | D59: 75675 | E59: 8585 | F59: 0 | G59: 4289 | H59: 133121 | I59: 8000 | J59: 7235 | K59: 46489 | L59: 1072 | M59: 2133 | N59: 0 | O59: 64929 | P59: 198050 | Q59: 0 | R59: 198050
A60: 事務用品費 | B60: 6334 | C60: 0 | D60: 10000 | E60: 11524 | F60: 14300 | G60: 32000 | H60: 74158 | I60: 9798 | J60: 0 | K60: 30000 | L60: 3048 | M60: 36572 | N60: 7172 | O60: 86590 | P60: 160748 | Q60: 0 | R60: 160748
A61: 修繕費 | B61: 80953 | C61: 0 | D61: 0 | E61: 48572 | F61: 0 | G61: 0 | H61: 129525 | I61: 0 | J61: 50477 | K61: 14286 | L61: 0 | M61: 20520 | N61: 0 | O61: 85283 | P61: 214808 | Q61: 0 | R61: 214808
A62: 水道光熱費 | B62: 73379 | C62: 81739 | D62: 121380 | E62: 77604 | F62: 143437 | G62: 78525 | H62: 576064 | I62: 135461 | J62: 96664 | K62: 146957 | L62: 82477 | M62: 72635 | N62: 73913 | O62: 608107 | P62: 1184171 | Q62: 0 | R62: 1184171
A63: 新聞図書費 | B63: 0 | C63: 0 | D63: 0 | E63: 0 | F63: 0 | G63: 0 | H63: 0 | I63: 0 | J63: 0 | K63: 0 | L63: 0 | M63: 0 | N63: 0 | O63: 0 | P63: 0 | Q63: 0 | R63: 0
A64: 諸会費 | B64: 0 | C64: 0 | D64: 0 | E64: 0 | F64: 0 | G64: 0 | H64: 0 | I64: 0 | J64: 0 | K64: 0 | L64: 0 | M64: 0 | N64: 0 | O64: 0 | P64: 0 | Q64: 0 | R64: 0
A65: 支払手数料 | B65: 80120 | C65: 49620 | D65: 49620 | E65: 49620 | F65: 49620 | G65: 49620 | H65: 328220 | I65: 49620 | J65: 57420 | K65: 57520 | L65: 51220 | M65: 49620 | N65: 49620 | O65: 315020 | P65: 643240 | Q65: 0 | R65: 643240
A66: 車両費 | B66: 83765 | C66: 87402 | D66: 88107 | E66: 76049 | F66: 243297 | G66: 98974 | H66: 677594 | I66: 93110 | J66: 96355 | K66: 99851 | L66: 85297 | M66: 93833 | N66: 86537 | O66: 554983 | P66: 1232577 | Q66: 0 | R66: 1232577
A67: 地代家賃 | B67: 425715 | C67: 425715 | D67: 425715 | E67: 245715 | F67: 605715 | G67: 425715 | H67: 2554290 | I67: 425715 | J67: 425715 | K67: 440000 | L67: 440000 | M67: 440000 | N67: 440000 | O67: 2611430 | P67: 5165720 | Q67: 0 | R67: 5165720
A68: 賃借料 | B68: 0 | C68: 0 | D68: 0 | E68: 0 | F68: 0 | G68: 0 | H68: 0 | I68: 0 | J68: 0 | K68: 0 | L68: 0 | M68: 0 | N68: 0 | O68: 0 | P68: 0 | Q68: 0 | R68: 0
A69: リース料 | B69: 16715 | C69: 16715 | D69: 16715 | E69: 16715 | F69: 16715 | G69: 16715 | H69: 100290 | I69: 16715 | J69: 16715 | K69: 16715 | L69: 16715 | M69: 16715 | N69: 16715 | O69: 100290 | P69: 200580 | Q69: 0 | R69: 200580
A70: 保険料 | B70: 46000 | C70: 46000 | D70: 46000 | E70: 46000 | F70: 46000 | G70: 46000 | H70: 276000 | I70: 46000 | J70: 46000 | K70: 23000 | L70: 74258 | M70: 23000 | N70: 23000 | O70: 235258 | P70: 511258 | Q70: 0 | R70: 511258
A71: 租税公課 | B71: 135400 | C71: 25000 | D71: 5000 | E71: 5000 | F71: 0 | G71: 8000 | H71: 178400 | I71: 0 | J71: 0 | K71: 0 | L71: 40000 | M71: 0 | N71: 0 | O71: 40000 | P71: 218400 | Q71: 174045 | R71: 392445
A72: 支払報酬料 | B72: 0 | C72: 0 | D72: 0 | E72: 0 | F72: 0 | G72: 0 | H72: 0 | I72: 0 | J72: 0 | K72: 0 | L72: 0 | M72: 0 | N72: 0 | O72: 0 | P72: 0 | Q72: 0 | R72: 0
A73: 寄付金 | B73: 0 | C73: 0 | D73: 0 | E73: 0 | F73: 0 | G73: 0 | H73: 0 | I73: 0 | J73: 0 | K73: 0 | L73: 0 | M73: 0 | N73: 0 | O73: 0 | P73: 0 | Q73: 0 | R73: 0
A74: 研究開発費 | B74: 0 | C74: 0 | D74: 0 | E74: 0 | F74: 0 | G74: 0 | H74: 0 | I74: 0 | J74: 0 | K74: 0 | L74: 0 | M74: 0 | N74: 0 | O74: 0 | P74: 0 | Q74: 0 | R74: 0
A75: 減価償却費 | B75: 0 | C75: 0 | D75: 0 | E75: 0 | F75: 0 | G75: 0 | H75: 0 | I75: 0 | J75: 0 | K75: 0 | L75: 0 | M75: 0 | N75: 0 | O75: 0 | P75: 0 | Q75: 2959379 | R75: 2959379
A76: 長期前払費用償却 | B76: 0 | C76: 0 | D76: 0 | E76: 0 | F76: 0 | G76: 0 | H76: 0 | I76: 0 | J76: 0 | K76: 0 | L76: 0 | M76: 0 | N76: 0 | O76: 0 | P76: 0 | Q76: 0 | R76: 0
A77: 繰延資産償却(販) | B77: 0 | C77: 0 | D77: 0 | E77: 0 | F77: 0 | G77: 0 | H77: 0 | I77: 0 | J77: 0 | K77: 0 | L77: 0 | M77: 0 | N77: 0 | O77: 0 | P77: 0 | Q77: 0 | R77: 0
A78: 貸倒損失(販) | B78: 0 | C78: 0 | D78: 0 | E78: 0 | F78: 0 | G78: 0 | H78: 0 | I78: 0 | J78: 0 | K78: 0 | L78: 0 | M78: 0 | N78: 0 | O78: 0 | P78: 0 | Q78: 0 | R78: 0
A79: 貸倒繰入額(販) | B79: 0 | C79: 0 | D79: 0 | E79: 0 | F79: 0 | G79: 0 | H79: 0 | I79: 0 | J79: 0 | K79: 0 | L79: 0 | M79: 0 | N79: 0 | O79: 0 | P79: 0 | Q79: 330000 | R79: 330000
A80: 雑費 | B80: 0 | C80: 0 | D80: 0 | E80: 0 | F80: 0 | G80: 0 | H80: 0 | I80: 0 | J80: 0 | K80: 0 | L80: 0 | M80: 0 | N80: 0 | O80: 0 | P80: 0 | Q80: 0 | R80: 0
A81: 販売管理費計 | B81: 3387900 | C81: 3713775 | D81: 5020851 | E81: 6593148 | F81: 4120887 | G81: 3764765 | H81: 26601326 | I81: 6726646 | J81: 3617584 | K81: 7881418 | L81: 4205720 | M81: 4298970 | N81: 4038446 | O81: 30768784 | P81: 57370110 | Q81: 3463424 | R81: 60833534
A82: 営業損益金額 | B82: 1556820 | C82: 3907302 | D82: 2289308 | E82: -4619701 | F82: 3570482 | G82: 6398039 | H82: 13102250 | I82: 2258818 | J82: 1447437 | K82: 51745 | L82: 9187807 | M82: -5528432 | N82: 1475779 | O82: 8893154 | P82: 21995404 | Q82: -4631575 | R82: 17363829
A83: [営業外収益]
A84: 受取利息 | B84: 0 | C84: 0 | D84: 0 | E84: 0 | F84: 1174 | G84: 6154 | H84: 7328 | I84: 0 | J84: 0 | K84: 0 | L84: 0 | M84: 100 | N84: 5000 | O84: 5100 | P84: 12428 | Q84: 0 | R84: 12428
A85: 受取配当金 | B85: 0 | C85: 800 | D85: 0 | E85: 0 | F85: 0 | G85: 0 | H85: 800 | I85: 0 | J85: 0 | K85: 0 | L85: 0 | M85: 0 | N85: 0 | O85: 0 | P85: 800 | Q85: 0 | R85: 800
A86: 仕入割引 | B86: 0 | C86: 0 | D86: 0 | E86: 0 | F86: 0 | G86: 0 | H86: 0 | I86: 0 | J86: 0 | K86: 0 | L86: 0 | M86: 0 | N86: 0 | O86: 0 | P86: 0 | Q86: 0 | R86: 0
A87: 有価証券売却益 | B87: 0 | C87: 0 | D87: 0 | E87: 0 | F87: 0 | G87: 0 | H87: 0 | I87: 0 | J87: 0 | K87: 0 | L87: 0 | M87: 0 | N87: 0 | O87: 0 | P87: 0 | Q87: 0 | R87: 0
A88: 雑収入 | B88: 0 | C88: 0 | D88: 0 | E88: 0 | F88: 0 | G88: 0 | H88: 0 | I88: 0 | J88: 0 | K88: 0 | L88: 0 | M88: 0 | N88: 0 | O88: 0 | P88: 0 | Q88: 0 | R88: 0
A89: 営業外収益合計 | B89: 0 | C89: 800 | D89: 0 | E89: 0 | F89: 1174 | G89: 6154 | H89: 8128 | I89: 0 | J89: 0 | K89: 0 | L89: 0 | M89: 100 | N89: 5000 | O89: 5100 | P89: 13228 | Q89: 0 | R89: 13228
A90: [営業外費用]
A91: 支払利息 | B91: 19050 | C91: 41209 | D91: 37596 | E91: 34499 | F91: 32235 | G91: 29970 | H91: 194559 | I91: 51738 | J91: 25436 | K91: 2625 | L91: 25357 | M91: 23179 | N91: 23625 | O91: 151960 | P91: 346519 | Q91: 0 | R91: 346519
A92: 割引料 | B92: 0 | C92: 0 | D92: 0 | E92: 0 | F92: 0 | G92: 0 | H92: 0 | I92: 0 | J92: 0 | K92: 0 | L92: 0 | M92: 0 | N92: 0 | O92: 0 | P92: 0 | Q92: 0 | R92: 0
A93: 手形売却損 | B93: 0 | C93: 0 | D93: 0 | E93: 0 | F93: 0 | G93: 0 | H93: 0 | I93: 0 | J93: 0 | K93: 0 | L93: 0 | M93: 0 | N93: 0 | O93: 0 | P93: 0 | Q93: 0 | R93: 0
A94: 貸倒損失(外) | B94: 0 | C94: 0 | D94: 0 | E94: 0 | F94: 0 | G94: 0 | H94: 0 | I94: 0 | J94: 0 | K94: 0 | L94: 0 | M94: 0 | N94: 0 | O94: 0 | P94: 0 | Q94: 0 | R94: 0
A95: 売上割引 | B95: 0 | C95: 0 | D95: 0 | E95: 0 | F95: 0 | G95: 0 | H95: 0 | I95: 0 | J95: 0 | K95: 0 | L95: 0 | M95: 0 | N95: 0 | O95: 0 | P95: 0 | Q95: 0 | R95: 0
A96: 有価証券売却損 | B96: 0 | C96: 0 | D96: 0 | E96: 0 | F96: 0 | G96: 0 | H96: 0 | I96: 0 | J96: 0 | K96: 0 | L96: 0 | M96: 0 | N96: 0 | O96: 0 | P96: 0 | Q96: 0 | R96: 0
A97: 繰延資産償却(外) | B97: 0 | C97: 0 | D97: 0 | E97: 0 | F97: 0 | G97: 0 | H97: 0 | I97: 0 | J97: 0 | K97: 0 | L97: 0 | M97: 0 | N97: 0 | O97: 0 | P97: 0 | Q97: 0 | R97: 0
A98: 貸倒繰入額(外) | B98: 0 | C98: 0 | D98: 0 | E98: 0 | F98: 0 | G98: 0 | H98: 0 | I98: 0 | J98: 0 | K98: 0 | L98: 0 | M98: 0 | N98: 0 | O98: 0 | P98: 0 | Q98: 0 | R98: 0
A99: 雑損失 | B99: 0 | C99: 0 | D99: 0 | E99: 0 | F99: 0 | G99: 0 | H99: 0 | I99: 0 | J99: 0 | K99: 0 | L99: 0 | M99: 0 | N99: 0 | O99: 0 | P99: 0 | Q99: 0 | R99: 0
A100: 営業外費用合計 | B100: 19050 | C100: 41209 | D100: 37596 | E100: 34499 | F100: 32235 | G100: 29970 | H100: 194559 | I100: 51738 | J100: 25436 | K100: 2625 | L100: 25357 | M100: 23179 | N100: 23625 | O100: 151960 | P100: 346519 | Q100: 0 | R100: 346519
A101: 経常損益金額 | B101: 1537770 | C101: 3866893 | D101: 2251712 | E101: -4654200 | F101: 3539421 | G101: 6374223 | H101: 12915819 | I101: 2207080 | J101: 1422001 | K101: 49120 | L101: 9162450 | M101: -5551511 | N101: 1457154 | O101: 8746294 | P101: 21662113 | Q101: -4631575 | R101: 17030538
A102: [特別利益]
A103: 前期損益修正益 | B103: 0 | C103: 0 | D103: 0 | E103: 0 | F103: 0 | G103: 0 | H103: 0 | I103: 0 | J103: 0 | K103: 0 | L103: 0 | M103: 0 | N103: 0 | O103: 0 | P103: 0 | Q103: 0 | R103: 0
A104: 固定資産売却益 | B104: 0 | C104: 0 | D104: 0 | E104: 0 | F104: 0 | G104: 0 | H104: 0 | I104: 0 | J104: 0 | K104: 0 | L104: 0 | M104: 0 | N104: 0 | O104: 0 | P104: 0 | Q104: 0 | R104: 0
A105: 投資有価証券売却益 | B105: 0 | C105: 0 | D105: 0 | E105: 0 | F105: 0 | G105: 0 | H105: 0 | I105: 0 | J105: 0 | K105: 0 | L105: 0 | M105: 0 | N105: 0 | O105: 0 | P105: 0 | Q105: 0 | R105: 0
A106: 貸倒引当金戻入 | B106: 0 | C106: 0 | D106: 0 | E106: 0 | F106: 0 | G106: 0 | H106: 0 | I106: 0 | J106: 0 | K106: 0 | L106: 0 | M106: 0 | N106: 0 | O106: 0 | P106: 0 | Q106: 280000 | R106: 280000
A107: 特別利益合計 | B107: 0 | C107: 0 | D107: 0 | E107: 0 | F107: 0 | G107: 0 | H107: 0 | I107: 0 | J107: 0 | K107: 0 | L107: 0 | M107: 0 | N107: 0 | O107: 0 | P107: 0 | Q107: 280000 | R107: 280000
A108: [特別損失]
A109: 前期損益修正損 | B109: 0 | C109: 0 | D109: 0 | E109: 0 | F109: 0 | G109: 0 | H109: 0 | I109: 0 | J109: 0 | K109: 0 | L109: 0 | M109: 0 | N109: 0 | O109: 0 | P109: 0 | Q109: 0 | R109: 0
A110: 固定資産売却損 | B110: 0 | C110: 0 | D110: 0 | E110: 0 | F110: 0 | G110: 0 | H110: 0 | I110: 0 | J110: 0 | K110: 0 | L110: 0 | M110: 0 | N110: 0 | O110: 0 | P110: 0 | Q110: 0 | R110: 0
A111: 固定資産除却損 | B111: 0 | C111: 0 | D111: 0 | E111: 0 | F111: 0 | G111: 0 | H111: 0 | I111: 0 | J111: 0 | K111: 0 | L111: 0 | M111: 0 | N111: 0 | O111: 0 | P111: 0 | Q111: 0 | R111: 0
A112: 投資有価証券売却損 | B112: 0 | C112: 0 | D112: 0 | E112: 0 | F112: 0 | G112: 0 | H112: 0 | I112: 0 | J112: 0 | K112: 0 | L112: 0 | M112: 0 | N112: 0 | O112: 0 | P112: 0 | Q112: 0 | R112: 0
A113: 特別損失合計 | B113: 0 | C113: 0 | D113: 0 | E113: 0 | F113: 0 | G113: 0 | H113: 0 | I113: 0 | J113: 0 | K113: 0 | L113: 0 | M113: 0 | N113: 0 | O113: 0 | P113: 0 | Q113: 0 | R113: 0
A114: [当期純損益]
A115: 税引前当期純損益金額 | B115: 1537770 | C115: 3866893 | D115: 2251712 | E115: -4654200 | F115: 3539421 | G115: 6374223 | H115: 12915819 | I115: 2207080 | J115: 1422001 | K115: 49120 | L115: 9162450 | M115: -5551511 | N115: 1457154 | O115: 8746294 | P115: 21662113 | Q115: -4351575 | R115: 17310538
A116: 法人税･住民税及び事業税 | B116: 0 | C116: 160 | D116: 0 | E116: 0 | F116: 233 | G116: 1230 | H116: 1623 | I116: 0 | J116: 3400000 | K116: 0 | L116: 0 | M116: 20 | N116: 1000 | O116: 3401020 | P116: 3402643 | Q116: 1900000 | R116: 5302643
A117: 法人税等 | B117: 0 | C117: 0 | D117: 0 | E117: 0 | F117: 0 | G117: 0 | H117: 0 | I117: 0 | J117: 0 | K117: 0 | L117: 0 | M117: 0 | N117: 0 | O117: 0 | P117: 0 | Q117: 0 | R117: 0
A118: 法人税等調整額 | B118: 0 | C118: 0 | D118: 0 | E118: 0 | F118: 0 | G118: 0 | H118: 0 | I118: 0 | J118: 0 | K118: 0 | L118: 0 | M118: 0 | N118: 0 | O118: 0 | P118: 0 | Q118: 0 | R118: 0
A119: 当期純損益金額 | B119: 1537770 | C119: 3866733 | D119: 2251712 | E119: -4654200 | F119: 3539188 | G119: 6372993 | H119: 12914196 | I119: 2207080 | J119: -1977999 | K119: 49120 | L119: 9162450 | M119: -5551531 | N119: 1456154 | O119: 5345274 | P119: 18259470 | Q119: -6251575 | R119: 12007895

Sheet 製･事業所(合計)
A1: 帳票名：残高試算表(年間推移)
A3: 事業所名：株式会社 弥生トレーディング
A4: 処理日時：平成15年09月30日,04:23:33
A5: 集計期間：平成19年04月01日,平成20年03月31日,決算仕訳を含む
A6: 税抜/税込：税抜
A8: 勘定科目 | B8: 4月度 | C8: 5月度 | D8: 6月度 | E8: 7月度 | F8: 8月度 | G8: 9月度 | H8: 上半期残高(合計) | I8: 10月度 | J8: 11月度 | K8: 12月度 | L8: 1月度 | M8: 2月度 | N8: 3月度 | O8: 下半期残高(合計) | P8: 当期仮残高(合計) | Q8: 決算残高(合計) | R8: 当期残高(合計)
A9: [材料費]
A10: [製]期首材料棚卸高 | B10: 0 | C10: 0 | D10: 0 | E10: 0 | F10: 0 | G10: 0 | H10: 0 | I10: 0 | J10: 0 | K10: 0 | L10: 0 | M10: 0 | N10: 0 | O10: 0 | P10: 0 | Q10: 447210 | R10: 447210
A11: [製]材料仕入高 | B11: 1516191 | C11: 2204763 | D11: 1818096 | E11: 3224097 | F11: 2185715 | G11: 5796667 | H11: 16745529 | I11: 3039048 | J11: 4083811 | K11: 270477 | L11: 292858 | M11: 278096 | N11: 299048 | O11: 8263338 | P11: 25008867 | Q11: 0 | R11: 25008867
A12: [製]仕入値引高 | B12: 0 | C12: 0 | D12: 0 | E12: 0 | F12: 0 | G12: 0 | H12: 0 | I12: 0 | J12: 0 | K12: 0 | L12: 0 | M12: 0 | N12: 0 | O12: 0 | P12: 0 | Q12: 0 | R12: 0
A13: [製]仕入戻し高 | B13: 0 | C13: 0 | D13: 0 | E13: 0 | F13: 0 | G13: 0 | H13: 0 | I13: 0 | J13: 0 | K13: 0 | L13: 0 | M13: 0 | N13: 0 | O13: 0 | P13: 0 | Q13: 0 | R13: 0
A14: [製]仕入割戻し高 | B14: 0 | C14: 0 | D14: 0 | E14: 0 | F14: 0 | G14: 0 | H14: 0 | I14: 0 | J14: 0 | K14: 0 | L14: 0 | M14: 0 | N14: 0 | O14: 0 | P14: 0 | Q14: 0 | R14: 0
A15: 合計 | B15: 1516191 | C15: 2204763 | D15: 1818096 | E15: 3224097 | F15: 2185715 | G15: 5796667 | H15: 16745529 | I15: 3039048 | J15: 4083811 | K15: 270477 | L15: 292858 | M15: 278096 | N15: 299048 | O15: 8263338 | P15: 25008867 | Q15: 447210 | R15: 25456077
A16: [製]期末材料棚卸高 | B16: 0 | C16: 0 | D16: 0 | E16: 0 | F16: 0 | G16: 0 | H16: 0 | I16: 0 | J16: 0 | K16: 0 | L16: 0 | M16: 0 | N16: 0 | O16: 0 | P16: 0 | Q16: 380020 | R16: 380020
A17: 材料費合計 | B17: 1516191 | C17: 2204763 | D17: 1818096 | E17: 3224097 | F17: 2185715 | G17: 5796667 | H17: 16745529 | I17: 3039048 | J17: 4083811 | K17: 270477 | L17: 292858 | M17: 278096 | N17: 299048 | O17: 8263338 | P17: 25008867 | Q17: 67190 | R17: 25076057
A18: [労務費]
A19: [製]役員報酬 | B19: 0 | C19: 0 | D19: 0 | E19: 0 | F19: 0 | G19: 0 | H19: 0 | I19: 0 | J19: 0 | K19: 0 | L19: 0 | M19: 0 | N19: 0 | O19: 0 | P19: 0 | Q19: 0 | R19: 0
A20: [製]給料手当 | B20: 267600 | C20: 267600 | D20: 267600 | E20: 267600 | F20: 267600 | G20: 267600 | H20: 1605600 | I20: 267600 | J20: 267600 | K20: 267600 | L20: 267600 | M20: 267600 | N20: 267600 | O20: 1605600 | P20: 3211200 | Q20: 0 | R20: 3211200
A21: [製]雑給 | B21: 0 | C21: 0 | D21: 0 | E21: 0 | F21: 0 | G21: 0 | H21: 0 | I21: 0 | J21: 0 | K21: 0 | L21: 0 | M21: 0 | N21: 0 | O21: 0 | P21: 0 | Q21: 0 | R21: 0
A22: [製]賞与 | B22: 0 | C22: 0 | D22: 0 | E22: 650000 | F22: 0 | G22: 0 | H22: 650000 | I22: 0 | J22: 0 | K22: 700000 | L22: 0 | M22: 0 | N22: 0 | O22: 700000 | P22: 1350000 | Q22: 0 | R22: 1350000
A23: [製]退職金 | B23: 0 | C23: 0 | D23: 0 | E23: 0 | F23: 0 | G23: 0 | H23: 0 | I23: 0 | J23: 0 | K23: 0 | L23: 0 | M23: 0 | N23: 0 | O23: 0 | P23: 0 | Q23: 0 | R23: 0
A24: [製]法定福利費 | B24: 0 | C24: 87890 | D24: 43945 | E24: 43945 | F24: 49145 | G24: 43945 | H24: 268870 | I24: 43945 | J24: 43945 | K24: 43945 | L24: 49545 | M24: 43945 | N24: 43945 | O24: 269270 | P24: 538140 | Q24: 0 | R24: 538140
A25: [製]福利厚生費 | B25: 0 | C25: 2544 | D25: 1564 | E25: 16040 | F25: 0 | G25: 762 | H25: 20910 | I25: 0 | J25: 0 | K25: 11183 | L25: 0 | M25: 6499 | N25: 5548 | O25: 23230 | P25: 44140 | Q25: 0 | R25: 44140
A26: [製]退職繰入額 | B26: 0 | C26: 0 | D26: 0 | E26: 0 | F26: 0 | G26: 0 | H26: 0 | I26: 0 | J26: 0 | K26: 0 | L26: 0 | M26: 0 | N26: 0 | O26: 0 | P26: 0 | Q26: 0 | R26: 0
A27: 労務費合計 | B27: 267600 | C27: 358034 | D27: 313109 | E27: 977585 | F27: 316745 | G27: 312307 | H27: 2545380 | I27: 311545 | J27: 311545 | K27: 1022728 | L27: 317145 | M27: 318044 | N27: 317093 | O27: 2598100 | P27: 5143480 | Q27: 0 | R27: 5143480
A28: [製造経費]
A29: [製]外注加工費 | B29: 171429 | C29: 176191 | D29: 161905 | E29: 169524 | F29: 180953 | G29: 843810 | H29: 1703812 | I29: 1142858 | J29: 1138096 | K29: 188572 | L29: 176191 | M29: 190000 | N29: 188572 | O29: 3024289 | P29: 4728101 | Q29: 0 | R29: 4728101
A30: [製]動力費 | B30: 0 | C30: 0 | D30: 0 | E30: 0 | F30: 0 | G30: 0 | H30: 0 | I30: 0 | J30: 0 | K30: 0 | L30: 0 | M30: 0 | N30: 0 | O30: 0 | P30: 0 | Q30: 0 | R30: 0
A31: [製]荷造運賃 | B31: 0 | C31: 0 | D31: 0 | E31: 0 | F31: 0 | G31: 0 | H31: 0 | I31: 0 | J31: 0 | K31: 0 | L31: 0 | M31: 0 | N31: 0 | O31: 0 | P31: 0 | Q31: 0 | R31: 0
A32: [製]会議費 | B32: 0 | C32: 0 | D32: 0 | E32: 0 | F32: 0 | G32: 0 | H32: 0 | I32: 0 | J32: 0 | K32: 0 | L32: 0 | M32: 0 | N32: 0 | O32: 0 | P32: 0 | Q32: 0 | R32: 0
A33: [製]旅費交通費 | B33: 7429 | C33: 7429 | D33: 7429 | E33: 7429 | F33: 7429 | G33: 7429 | H33: 44574 | I33: 7429 | J33: 7429 | K33: 7429 | L33: 7429 | M33: 7429 | N33: 7429 | O33: 44574 | P33: 89148 | Q33: 0 | R33: 89148
A34: [製]通信費 | B34: 34384 | C34: 22397 | D34: 31417 | E34: 42113 | F34: 32569 | G34: 31417 | H34: 194297 | I34: 43140 | J34: 32980 | K34: 3019 | L34: 5985 | M34: 5033 | N34: 5722 | O34: 95879 | P34: 290176 | Q34: 0 | R34: 290176
A35: [製]消耗品費 | B35: 32287 | C35: 45173 | D35: 10472 | E35: 48525 | F35: 11692 | G35: 10525 | H35: 158674 | I35: 43246 | J35: 7667 | K35: 2849 | L35: 36048 | M35: 2143 | N35: 1000 | O35: 92953 | P35: 251627 | Q35: 0 | R35: 251627
A36: [製]事務用品費 | B36: 0 | C36: 0 | D36: 0 | E36: 0 | F36: 0 | G36: 0 | H36: 0 | I36: 0 | J36: 0 | K36: 0 | L36: 0 | M36: 0 | N36: 0 | O36: 0 | P36: 0 | Q36: 0 | R36: 0
A37: [製]消耗工具費 | B37: 0 | C37: 0 | D37: 30953 | E37: 0 | F37: 0 | G37: 14477 | H37: 45430 | I37: 0 | J37: 0 | K37: 0 | L37: 0 | M37: 0 | N37: 0 | O37: 0 | P37: 45430 | Q37: 0 | R37: 45430
A38: [製]車両費 | B38: 0 | C38: 0 | D38: 0 | E38: 0 | F38: 0 | G38: 0 | H38: 0 | I38: 0 | J38: 0 | K38: 0 | L38: 0 | M38: 0 | N38: 0 | O38: 0 | P38: 0 | Q38: 0 | R38: 0
A39: [製]修繕費 | B39: 52381 | C39: 0 | D39: 28572 | E39: 0 | F39: 0 | G39: 0 | H39: 80953 | I39: 0 | J39: 28572 | K39: 0 | L39: 0 | M39: 0 | N39: 0 | O39: 28572 | P39: 109525 | Q39: 0 | R39: 109525
A40: [製]水道光熱費 | B40: 33334 | C40: 43334 | D40: 56763 | E40: 24762 | F40: 59049 | G40: 25334 | H40: 242576 | I40: 56382 | J40: 24734 | K40: 346286 | L40: 111334 | M40: 153286 | N40: 161905 | O40: 853927 | P40: 1096503 | Q40: 0 | R40: 1096503
A41: [製]新聞図書費 | B41: 0 | C41: 0 | D41: 0 | E41: 0 | F41: 0 | G41: 0 | H41: 0 | I41: 0 | J41: 0 | K41: 0 | L41: 0 | M41: 0 | N41: 0 | O41: 0 | P41: 0 | Q41: 0 | R41: 0
A42: [製]諸会費 | B42: 0 | C42: 0 | D42: 0 | E42: 0 | F42: 0 | G42: 0 | H42: 0 | I42: 0 | J42: 0 | K42: 0 | L42: 0 | M42: 0 | N42: 0 | O42: 0 | P42: 0 | Q42: 0 | R42: 0
A43: [製]減価償却費 | B43: 0 | C43: 0 | D43: 0 | E43: 0 | F43: 0 | G43: 0 | H43: 0 | I43: 0 | J43: 0 | K43: 0 | L43: 0 | M43: 0 | N43: 0 | O43: 0 | P43: 0 | Q43: 968091 | R43: 968091
A44: [製]地代家賃 | B44: 109524 | C44: 109524 | D44: 109524 | E44: 109524 | F44: 109524 | G44: 109524 | H44: 657144 | I44: 109524 | J44: 109524 | K44: 109524 | L44: 0 | M44: 219048 | N44: 109524 | O44: 657144 | P44: 1314288 | Q44: 0 | R44: 1314288
A45: [製]賃借料 | B45: 42500 | C45: 42500 | D45: 42500 | E45: 42500 | F45: 42500 | G45: 42500 | H45: 255000 | I45: 42500 | J45: 42500 | K45: 42500 | L45: 42500 | M45: 42500 | N45: 42500 | O45: 255000 | P45: 510000 | Q45: 0 | R45: 510000
A46: [製]租税公課 | B46: 0 | C46: 0 | D46: 0 | E46: 0 | F46: 0 | G46: 0 | H46: 0 | I46: 0 | J46: 0 | K46: 0 | L46: 0 | M46: 0 | N46: 0 | O46: 0 | P46: 0 | Q46: 0 | R46: 0
A47: [製]保険料 | B47: 0 | C47: 0 | D47: 0 | E47: 0 | F47: 0 | G47: 0 | H47: 0 | I47: 0 | J47: 0 | K47: 0 | L47: 0 | M47: 0 | N47: 0 | O47: 0 | P47: 0 | Q47: 0 | R47: 0
A48: [製]支払報酬料 | B48: 0 | C48: 0 | D48: 0 | E48: 0 | F48: 0 | G48: 0 | H48: 0 | I48: 0 | J48: 0 | K48: 0 | L48: 0 | M48: 0 | N48: 0 | O48: 0 | P48: 0 | Q48: 0 | R48: 0
A49: [製]寄付金 | B49: 0 | C49: 0 | D49: 0 | E49: 0 | F49: 0 | G49: 0 | H49: 0 | I49: 0 | J49: 0 | K49: 0 | L49: 0 | M49: 0 | N49: 0 | O49: 0 | P49: 0 | Q49: 0 | R49: 0
A50: [製]研究開発費 | B50: 0 | C50: 0 | D50: 0 | E50: 0 | F50: 0 | G50: 0 | H50: 0 | I50: 0 | J50: 0 | K50: 0 | L50: 0 | M50: 0 | N50: 0 | O50: 0 | P50: 0 | Q50: 0 | R50: 0
A51: [製]保管料 | B51: 0 | C51: 0 | D51: 0 | E51: 0 | F51: 0 | G51: 0 | H51: 0 | I51: 0 | J51: 0 | K51: 0 | L51: 0 | M51: 0 | N51: 0 | O51: 0 | P51: 0 | Q51: 0 | R51: 0
A52: [製]特許使用料 | B52: 0 | C52: 0 | D52: 0 | E52: 0 | F52: 0 | G52: 0 | H52: 0 | I52: 0 | J52: 0 | K52: 0 | L52: 0 | M52: 0 | N52: 0 | O52: 0 | P52: 0 | Q52: 0 | R52: 0
A53: [製]棚卸減耗損 | B53: 0 | C53: 0 | D53: 0 | E53: 0 | F53: 0 | G53: 0 | H53: 0 | I53: 0 | J53: 0 | K53: 0 | L53: 0 | M53: 0 | N53: 0 | O53: 0 | P53: 0 | Q53: 0 | R53: 0
A54: [製]雑費 | B54: 0 | C54: 0 | D54: 0 | E54: 0 | F54: 0 | G54: 0 | H54: 0 | I54: 0 | J54: 0 | K54: 0 | L54: 0 | M54: 0 | N54: 0 | O54: 0 | P54: 0 | Q54: 0 | R54: 0
A55: 製造経費合計 | B55: 483268 | C55: 446548 | D55: 479535 | E55: 444377 | F55: 443716 | G55: 1085016 | H55: 3382460 | I55: 1445079 | J55: 1391502 | K55: 700179 | L55: 379487 | M55: 619439 | N55: 516652 | O55: 5052338 | P55: 8434798 | Q55: 968091 | R55: 9402889
A56: 総製造費用 | B56: 2267059 | C56: 3009345 | D56: 2610740 | E56: 4646059 | F56: 2946176 | G56: 7193990 | H56: 22673369 | I56: 4795672 | J56: 5786858 | K56: 1993384 | L56: 989490 | M56: 1215579 | N56: 1132793 | O56: 15913776 | P56: 38587145 | Q56: 1035281 | R56: 39622426
A57: [仕掛品]
A58: [製]期首仕掛品 | B58: 0 | C58: 0 | D58: 0 | E58: 0 | F58: 0 | G58: 0 | H58: 0 | I58: 0 | J58: 0 | K58: 0 | L58: 0 | M58: 0 | N58: 0 | O58: 0 | P58: 0 | Q58: 36000 | R58: 36000
A59: [製]期首半製品 | B59: 0 | C59: 0 | D59: 0 | E59: 0 | F59: 0 | G59: 0 | H59: 0 | I59: 0 | J59: 0 | K59: 0 | L59: 0 | M59: 0 | N59: 0 | O59: 0 | P59: 0 | Q59: 301100 | R59: 301100
A60: 合計 | B60: 2267059 | C60: 3009345 | D60: 2610740 | E60: 4646059 | F60: 2946176 | G60: 7193990 | H60: 22673369 | I60: 4795672 | J60: 5786858 | K60: 1993384 | L60: 989490 | M60: 1215579 | N60: 1132793 | O60: 15913776 | P60: 38587145 | Q60: 1372381 | R60: 39959526
A61: [製]期末仕掛品 | B61: 0 | C61: 0 | D61: 0 | E61: 0 | F61: 0 | G61: 0 | H61: 0 | I61: 0 | J61: 0 | K61: 0 | L61: 0 | M61: 0 | N61: 0 | O61: 0 | P61: 0 | Q61: 32000 | R61: 32000
A62: [製]期末半製品 | B62: 0 | C62: 0 | D62: 0 | E62: 0 | F62: 0 | G62: 0 | H62: 0 | I62: 0 | J62: 0 | K62: 0 | L62: 0 | M62: 0 | N62: 0 | O62: 0 | P62: 0 | Q62: 291770 | R62: 291770
A63: [製]他勘定振替高 | B63: 0 | C63: 0 | D63: 0 | E63: 0 | F63: 0 | G63: 0 | H63: 0 | I63: 0 | J63: 0 | K63: 0 | L63: 0 | M63: 0 | N63: 0 | O63: 0 | P63: 0 | Q63: 0 | R63: 0
A64: 当期製品製造原価 | B64: 2267059 | C64: 3009345 | D64: 2610740 | E64: 4646059 | F64: 2946176 | G64: 7193990 | H64: 22673369 | I64: 4795672 | J64: 5786858 | K64: 1993384 | L64: 989490 | M64: 1215579 | N64: 1132793 | O64: 15913776 | P64: 38587145 | Q64: 1048611 | R64: 39635756

Sheet auto1
C2: TMS経営コンサルタント
B4: 経営分析、Ｂ／Ｓ，Ｐ／Ｌ分析表
J9: =IF(J10>=4,J10-3,J10+9) -> 4
J10: 7 | K10: 月が入力されました

Sheet No1
A1: 帳票名：残高試算表(年間推移)
A3: 事業所名：株式会社 弥生トレーディング
A4: 処理日時：平成15年09月30日,04:23:21
A5: 集計期間：平成19年04月01日,平成20年03月31日,決算仕訳を含む
A6: 税抜/税込：税抜
A8: 勘定科目 | B8: 4月度 | C8: 5月度 | D8: 6月度 | E8: 7月度 | F8: 8月度 | G8: 9月度 | H8: 上半期残高(合計) | I8: 10月度 | J8: 11月度 | K8: 12月度 | L8: 1月度 | M8: 2月度 | N8: 3月度 | O8: 下半期残高(合計) | P8: 当期仮残高(合計) | Q8: 決算残高(合計) | R8: 当期残高(合計) | T8: 勘定科目 | U8: 前期繰越
A9: [現金･預金] | T9: [現金･預金]
A10: 現金 | B10: 3319228 | C10: 3603771 | D10: 3632381 | E10: 4483780 | F10: 4603382 | G10: 4762654 | H10: 4762654 | I10: 4639171 | J10: 4815418 | K10: 4604083 | L10: 5278046 | M10: 4881392 | N10: 4556569 | O10: 4556569 | P10: 4556569 | Q10: 4556569 | R10: 4556569 | T10: 現金 | U10: 4556569
A11: 小口現金 | B11: 0 | C11: 0 | D11: 0 | E11: 0 | F11: 0 | G11: 0 | H11: 0 | I11: 0 | J11: 0 | K11: 0 | L11: 0 | M11: 0 | N11: 0 | O11: 0 | P11: 0 | Q11: 0 | R11: 0 | T11: 小口現金 | U11: 0
A12: 当座預金 | B12: 20672051 | C12: 21901054 | D12: 18847767 | E12: 22953571 | F12: 18992781 | G12: 30691299 | H12: 30691299 | I12: 37706811 | J12: 32248488 | K12: 30320001 | L12: 30216171 | M12: 42434878 | N12: 24805181 | O12: 24805181 | P12: 24805181 | Q12: 24805181 | R12: 24805181 | T12: 当座預金 | U12: 24805181
A13: 普通預金 | B13: 17697524 | C13: 14708154 | D13: 17443797 | E13: 13559901 | F13: 15441885 | G13: 18064829 | H13: 18064829 | I13: 17300106 | J13: 18997377 | K13: 21299901 | L13: 23109186 | M13: 25135280 | N13: 27299975 | O13: 27299975 | P13: 27299975 | Q13: 27299975 | R13: 27299975 | T13: 普通預金 | U13: 27299975
A14: 定期預金 | B14: 2004000 | C14: 2004000 | D14: 2004000 | E14: 2004000 | F14: 2004000 | G14: 2008000 | H14: 2008000 | I14: 2008000 | J14: 2008000 | K14: 2008000 | L14: 2008000 | M14: 2008000 | N14: 2012000 | O14: 2012000 | P14: 2012000 | Q14: 2012000 | R14: 2012000 | T14: 定期預金 | U14: 2012000
A15: 通知預金 | B15: 0 | C15: 0 | D15: 0 | E15: 0 | F15: 0 | G15: 0 | H15: 0 | I15: 0 | J15: 0 | K15: 0 | L15: 0 | M15: 0 | N15: 0 | O15: 0 | P15: 0 | Q15: 0 | R15: 0 | T15: 通知預金 | U15: 0
A16: 定期積金 | B16: 0 | C16: 0 | D16: 0 | E16: 0 | F16: 0 | G16: 0 | H16: 0 | I16: 0 | J16: 0 | K16: 0 | L16: 0 | M16: 0 | N16: 0 | O16: 0 | P16: 0 | Q16: 0 | R16: 0 | T16: 定期積金 | U16: 0
A17: 別段預金 | B17: 0 | C17: 0 | D17: 0 | E17: 0 | F17: 0 | G17: 0 | H17: 0 | I17: 0 | J17: 0 | K17: 0 | L17: 0 | M17: 0 | N17: 0 | O17: 0 | P17: 0 | Q17: 0 | R17: 0 | T17: 別段預金 | U17: 0
A18: 郵便貯金 | B18: 0 | C18: 0 | D18: 0 | E18: 0 | F18: 0 | G18: 0 | H18: 0 | I18: 0 | J18: 0 | K18: 0 | L18: 0 | M18: 0 | N18: 0 | O18: 0 | P18: 0 | Q18: 0 | R18: 0 | T18: 郵便貯金 | U18: 0
A19: 現金･預金合計 | B19: 43692803 | C19: 42216979 | D19: 41927945 | E19: 43001252 | F19: 41042048 | G19: 55526782 | H19: 55526782 | I19: 61654088 | J19: 58069283 | K19: 58231985 | L19: 60611403 | M19: 74459550 | N19: 58673725 | O19: 58673725 | P19: 58673725 | Q19: 58673725 | R19: 58673725 | T19: 現金･預金合計 | U19: 58673725
A20: [売上債権] | T20: [売上債権]
A21: 受取手形 | B21: 0 | C21: 2000000 | D21: 5000000 | E21: 5000000 | F21: 3500000 | G21: 0 | H21: 0 | I21: 0 | J21: 0 | K21: 0 | L21: 0 | M21: 0 | N21: 0 | O21: 0 | P21: 0 | Q21: 0 | R21: 0 | T21: 受取手形 | U21: 0
A22: 不渡手形 | B22: 0 | C22: 0 | D22: 0 | E22: 0 | F22: 0 | G22: 0 | H22: 0 | I22: 0 | J22: 0 | K22: 0 | L22: 0 | M22: 0 | N22: 0 | O22: 0 | P22: 0 | Q22: 0 | R22: 0 | T22: 不渡手形 | U22: 0
A23: 売掛金 | B23: 32395126 | C23: 36466067 | D23: 38906399 | E23: 40791618 | F23: 34461962 | G23: 37471270 | H23: 37471270 | I23: 40572365 | J23: 41077474 | K23: 43406313 | L23: 55831662 | M23: 37485734 | N23: 33906364 | O23: 33906364 | P23: 33906364 | Q23: 33906364 | R23: 33906364 | T23: 売掛金 | U23: 33906364
A24: 貸倒引当金(売) | B24: -280000 | C24: -280000 | D24: -280000 | E24: -280000 | F24: -280000 | G24: -280000 | H24: -280000 | I24: -280000 | J24: -280000 | K24: -280000 | L24: -280000 | M24: -280000 | N24: -280000 | O24: -280000 | P24: -280000 | Q24: -330000 | R24: -330000 | T24: 貸倒引当金(売) | U24: -330000
A25: 売上債権合計 | B25: 32115126 | C25: 38186067 | D25: 43626399 | E25: 45511618 | F25: 37681962 | G25: 37191270 | H25: 37191270 | I25: 40292365 | J25: 40797474 | K25: 43126313 | L25: 55551662 | M25: 37205734 | N25: 33626364 | O25: 33626364 | P25: 33626364 | Q25: 33576364 | R25: 33576364 | T25: 売上債権合計 | U25: 33576364
A26: [有価証券] | T26: [有価証券]
A27: 有価証券 | B27: 0 | C27: 0 | D27: 0 | E27: 0 | F27: 0 | G27: 0 | H27: 0 | I27: 0 | J27: 0 | K27: 0 | L27: 0 | M27: 0 | N27: 0 | O27: 0 | P27: 0 | Q27: 0 | R27: 0 | T27: 有価証券 | U27: 0
A28: 有価証券合計 | B28: 0 | C28: 0 | D28: 0 | E28: 0 | F28: 0 | G28: 0 | H28: 0 | I28: 0 | J28: 0 | K28: 0 | L28: 0 | M28: 0 | N28: 0 | O28: 0 | P28: 0 | Q28: 0 | R28: 0 | T28: 有価証券合計 | U28: 0
A29: [棚卸資産] | T29: [棚卸資産]
A30: 商品 | B30: 1420830 | C30: 1420830 | D30: 1420830 | E30: 1420830 | F30: 1420830 | G30: 1420830 | H30: 1420830 | I30: 1420830 | J30: 1420830 | K30: 1420830 | L30: 1420830 | M30: 1420830 | N30: 1420830 | O30: 1420830 | P30: 1420830 | Q30: 1301290 | R30: 1301290 | T30: 商品 | U30: 1301290
A31: 製品 | B31: 0 | C31: 0 | D31: 0 | E31: 0 | F31: 0 | G31: 0 | H31: 0 | I31: 0 | J31: 0 | K31: 0 | L31: 0 | M31: 0 | N31: 0 | O31: 0 | P31: 0 | Q31: 0 | R31: 0 | T31: 製品 | U31: 0
A32: 副産物作業くず | B32: 0 | C32: 0 | D32: 0 | E32: 0 | F32: 0 | G32: 0 | H32: 0 | I32: 0 | J32: 0 | K32: 0 | L32: 0 | M32: 0 | N32: 0 | O32: 0 | P32: 0 | Q32: 0 | R32: 0 | T32: 副産物作業くず | U32: 0
A33: 半製品 | B33: 301100 | C33: 301100 | D33: 301100 | E33: 301100 | F33: 301100 | G33: 301100 | H33: 301100 | I33: 301100 | J33: 301100 | K33: 301100 | L33: 301100 | M33: 301100 | N33: 301100 | O33: 301100 | P33: 301100 | Q33: 291770 | R33: 291770 | T33: 半製品 | U33: 291770
A34: 原材料 | B34: 447210 | C34: 447210 | D34: 447210 | E34: 447210 | F34: 447210 | G34: 447210 | H34: 447210 | I34: 447210 | J34: 447210 | K34: 447210 | L34: 447210 | M34: 447210 | N34: 447210 | O34: 447210 | P34: 447210 | Q34: 380020 | R34: 380020 | T34: 原材料 | U34: 380020
A35: 仕掛品 | B35: 36000 | C35: 36000 | D35: 36000 | E35: 36000 | F35: 36000 | G35: 36000 | H35: 36000 | I35: 36000 | J35: 36000 | K35: 36000 | L35: 36000 | M35: 36000 | N35: 36000 | O35: 36000 | P35: 36000 | Q35: 32000 | R35: 32000 | T35: 仕掛品 | U35: 32000
A36: 貯蔵品 | B36: 0 | C36: 0 | D36: 0 | E36: 0 | F36: 0 | G36: 0 | H36: 0 | I36: 0 | J36: 0 | K36: 0 | L36: 0 | M36: 0 | N36: 0 | O36: 0 | P36: 0 | Q36: 0 | R36: 0 | T36: 貯蔵品 | U36: 0
A37: 棚卸資産合計 | B37: 2205140 | C37: 2205140 | D37: 2205140 | E37: 2205140 | F37: 2205140 | G37: 2205140 | H37: 2205140 | I37: 2205140 | J37: 2205140 | K37: 2205140 | L37: 2205140 | M37: 2205140 | N37: 2205140 | O37: 2205140 | P37: 2205140 | Q37: 2005080 | R37: 2005080 | T37: 棚卸資産合計 | U37: 2005080
A38: [他流動資産] | T38: [他流動資産]
A39: 前渡金 | B39: 0 | C39: 0 | D39: 0 | E39: 0 | F39: 0 | G39: 0 | H39: 0 | I39: 0 | J39: 0 | K39: 0 | L39: 0 | M39: 0 | N39: 0 | O39: 0 | P39: 0 | Q39: 0 | R39: 0 | T39: 前渡金 | U39: 0
A40: 立替金 | B40: 185449 | C40: 175572 | D40: 165695 | E40: 155818 | F40: 145941 | G40: 136064 | H40: 136064 | I40: 126187 | J40: 116310 | K40: 78975 | L40: 69098 | M40: 59221 | N40: 49344 | O40: 49344 | P40: 49344 | Q40: 49344 | R40: 49344 | T40: 立替金 | U40: 49344
A41: 前払費用 | B41: 0 | C41: 0 | D41: 0 | E41: 0 | F41: 0 | G41: 0 | H41: 0 | I41: 0 | J41: 0 | K41: 0 | L41: 0 | M41: 0 | N41: 0 | O41: 0 | P41: 0 | Q41: 0 | R41: 0 | T41: 前払費用 | U41: 0
A42: 繰延税金資産(流) | B42: 0 | C42: 0 | D42: 0 | E42: 0 | F42: 0 | G42: 0 | H42: 0 | I42: 0 | J42: 0 | K42: 0 | L42: 0 | M42: 0 | N42: 0 | O42: 0 | P42: 0 | Q42: 0 | R42: 0 | T42: 繰延税金資産(流) | U42: 0
A43: 未収収益 | B43: 300000 | C43: 300000 | D43: 300000 | E43: 300000 | F43: 300000 | G43: 300000 | H43: 300000 | I43: 300000 | J43: 300000 | K43: 300000 | L43: 300000 | M43: 300000 | N43: 300000 | O43: 300000 | P43: 300000 | Q43: 300000 | R43: 300000 | T43: 未収収益 | U43: 300000
A44: 短期貸付金 | B44: 0 | C44: 0 | D44: 0 | E44: 0 | F44: 0 | G44: 0 | H44: 0 | I44: 0 | J44: 0 | K44: 0 | L44: 0 | M44: 0 | N44: 0 | O44: 0 | P44: 0 | Q44: 0 | R44: 0 | T44: 短期貸付金 | U44: 0
A45: 未収入金 | B45: 0 | C45: 0 | D45: 0 | E45: 0 | F45: 0 | G45: 0 | H45: 0 | I45: 0 | J45: 0 | K45: 0 | L45: 0 | M45: 0 | N45: 0 | O45: 0 | P45: 0 | Q45: 0 | R45: 0 | T45: 未収入金 | U45: 0
A46: 仮払金 | B46: 0 | C46: 0 | D46: 0 | E46: 0 | F46: 150000 | G46: 0 | H46: 0 | I46: 0 | J46: 0 | K46: 0 | L46: 0 | M46: 0 | N46: 0 | O46: 0 | P46: 0 | Q46: 0 | R46: 0 | T46: 仮払金 | U46: 0
A47: 預け金 | B47: 0 | C47: 0 | D47: 0 | E47: 0 | F47: 0 | G47: 0 | H47: 0 | I47: 0 | J47: 0 | K47: 0 | L47: 0 | M47: 0 | N47: 0 | O47: 0 | P47: 0 | Q47: 0 | R47: 0 | T47: 預け金 | U47: 0
A48: 仮払消費税 | B48: 943968 | C48: 2205946 | D48: 3317165 | E48: 4393821 | F48: 5461311 | G48: 6528756 | H48: 6528756 | I48: 7920670 | J48: 10273260 | K48: 11163031 | L48: 12056099 | M48: 12862808 | N48: 13656726 | O48: 13656726 | P48: 13656726 | Q48: 0 | R48: 0 | T48: 仮払消費税 | U48: 0
A49: 貸倒引当金(他) | B49: 0 | C49: 0 | D49: 0 | E49: 0 | F49: 0 | G49: 0 | H49: 0 | I49: 0 | J49: 0 | K49: 0 | L49: 0 | M49: 0 | N49: 0 | O49: 0 | P49: 0 | Q49: 0 | R49: 0 | T49: 貸倒引当金(他) | U49: 0
A50: 他流動資産合計 | B50: 1429417 | C50: 2681518 | D50: 3782860 | E50: 4849639 | F50: 6057252 | G50: 6964820 | H50: 6964820 | I50: 8346857 | J50: 10689570 | K50: 11542006 | L50: 12425197 | M50: 13222029 | N50: 14006070 | O50: 14006070 | P50: 14006070 | Q50: 349344 | R50: 349344 | T50: 他流動資産合計 | U50: 349344
A51: 流動資産合計 | B51: 79442486 | C51: 85289704 | D51: 91542344 | E51: 95567649 | F51: 86986402 | G51: 101888012 | H51: 101888012 | I51: 112498450 | J51: 111761467 | K51: 115105444 | L51: 130793402 | M51: 127092453 | N51: 108511299 | O51: 108511299 | P51: 108511299 | Q51: 94604513 | R51: 94604513 | T51: 流動資産合計 | U51: 94604513
A52: [有形固定資産] | T52: [有形固定資産]
A53: 建物 | B53: 22671600 | C53: 22671600 | D53: 22671600 | E53: 22671600 | F53: 22671600 | G53: 22671600 | H53: 22671600 | I53: 22671600 | J53: 22671600 | K53: 22671600 | L53: 22671600 | M53: 22671600 | N53: 34671600 | O53: 34671600 | P53: 34671600 | Q53: 34153200 | R53: 34153200 | T53: 建物 | U53: 34153200
A54: 附属設備 | B54: 822122 | C54: 822122 | D54: 822122 | E54: 822122 | F54: 822122 | G54: 822122 | H54: 822122 | I54: 822122 | J54: 822122 | K54: 822122 | L54: 822122 | M54: 822122 | N54: 822122 | O54: 822122 | P54: 822122 | Q54: 652765 | R54: 652765 | T54: 附属設備 | U54: 652765
A55: 構築物 | B55: 0 | C55: 0 | D55: 0 | E55: 0 | F55: 0 | G55: 0 | H55: 0 | I55: 0 | J55: 0 | K55: 0 | L55: 0 | M55: 0 | N55: 0 | O55: 0 | P55: 0 | Q55: 0 | R55: 0 | T55: 構築物 | U55: 0
A56: 機械装置 | B56: 2256085 | C56: 2256085 | D56: 2256085 | E56: 2256085 | F56: 2256085 | G56: 2256085 | H56: 2256085 | I56: 2256085 | J56: 2256085 | K56: 2256085 | L56: 2256085 | M56: 2256085 | N56: 2256085 | O56: 2256085 | P56: 2256085 | Q56: 1536394 | R56: 1536394 | T56: 機械装置 | U56: 1536394
A57: 車両運搬具 | B57: 5287476 | C57: 5287476 | D57: 5287476 | E57: 5287476 | F57: 5287476 | G57: 5287476 | H57: 5287476 | I57: 5287476 | J57: 5287476 | K57: 5287476 | L57: 5287476 | M57: 5287476 | N57: 5287476 | O57: 5287476 | P57: 5287476 | Q57: 3193104 | R57: 3193104 | T57: 車両運搬具 | U57: 3193104
A58: 工具器具備品 | B58: 812042 | C58: 812042 | D58: 812042 | E58: 812042 | F58: 812042 | G58: 812042 | H58: 812042 | I58: 812042 | J58: 812042 | K58: 812042 | L58: 812042 | M58: 812042 | N58: 812042 | O58: 812042 | P58: 812042 | Q58: 546392 | R58: 546392 | T58: 工具器具備品 | U58: 546392
A59: 一括償却資産 | B59: 120000 | C59: 120000 | D59: 120000 | E59: 120000 | F59: 120000 | G59: 120000 | H59: 120000 | I59: 120000 | J59: 120000 | K59: 120000 | L59: 120000 | M59: 120000 | N59: 120000 | O59: 120000 | P59: 120000 | Q59: 62857 | R59: 62857 | T59: 一括償却資産 | U59: 62857
A60: 減価償却累計額 | B60: 0 | C60: 0 | D60: 0 | E60: 0 | F60: 0 | G60: 0 | H60: 0 | I60: 0 | J60: 0 | K60: 0 | L60: 0 | M60: 0 | N60: 0 | O60: 0 | P60: 0 | Q60: 0 | R60: 0 | T60: 減価償却累計額 | U60: 0
A61: 土地 | B61: 25000000 | C61: 25000000 | D61: 25000000 | E61: 25000000 | F61: 25000000 | G61: 25000000 | H61: 25000000 | I61: 25000000 | J61: 25000000 | K61: 25000000 | L61: 25000000 | M61: 25000000 | N61: 25000000 | O61: 25000000 | P61: 25000000 | Q61: 25000000 | R61: 25000000 | T61: 土地 | U61: 25000000
A62: 建設仮勘定 | B62: 0 | C62: 0 | D62: 0 | E62: 0 | F62: 0 | G62: 0 | H62: 0 | I62: 0 | J62: 0 | K62: 0 | L62: 0 | M62: 0 | N62: 0 | O62: 0 | P62: 0 | Q62: 0 | R62: 0 | T62: 建設仮勘定 | U62: 0
A63: 有形固定資産計 | B63: 56969325 | C63: 56969325 | D63: 56969325 | E63: 56969325 | F63: 56969325 | G63: 56969325 | H63: 56969325 | I63: 56969325 | J63: 56969325 | K63: 56969325 | L63: 56969325 | M63: 56969325 | N63: 68969325 | O63: 68969325 | P63: 68969325 | Q63: 65144712 | R63: 65144712 | T63: 有形固定資産計 | U63: 65144712
A64: [無形固定資産] | T64: [無形固定資産]
A65: 電話加入権 | B65: 150000 | C65: 150000 | D65: 150000 | E65: 150000 | F65: 150000 | G65: 150000 | H65: 150000 | I65: 150000 | J65: 150000 | K65: 150000 | L65: 150000 | M65: 150000 | N65: 150000 | O65: 150000 | P65: 150000 | Q65: 150000 | R65: 150000 | T65: 電話加入権 | U65: 150000
A66: 施設利用権 | B66: 0 | C66: 0 | D66: 0 | E66: 0 | F66: 0 | G66: 0 | H66: 0 | I66: 0 | J66: 0 | K66: 0 | L66: 0 | M66: 0 | N66: 0 | O66: 0 | P66: 0 | Q66: 0 | R66: 0 | T66: 施設利用権 | U66: 0
A67: 工業所有権 | B67: 0 | C67: 0 | D67: 0 | E67: 0 | F67: 0 | G67: 0 | H67: 0 | I67: 0 | J67: 0 | K67: 0 | L67: 0 | M67: 0 | N67: 0 | O67: 0 | P67: 0 | Q67: 0 | R67: 0 | T67: 工業所有権 | U67: 0
A68: 営業権 | B68: 0 | C68: 0 | D68: 0 | E68: 0 | F68: 0 | G68: 0 | H68: 0 | I68: 0 | J68: 0 | K68: 0 | L68: 0 | M68: 0 | N68: 0 | O68: 0 | P68: 0 | Q68: 0 | R68: 0 | T68: 営業権 | U68: 0
A69: 借地権 | B69: 0 | C69: 0 | D69: 0 | E69: 0 | F69: 0 | G69: 0 | H69: 0 | I69: 0 | J69: 0 | K69: 0 | L69: 0 | M69: 0 | N69: 0 | O69: 0 | P69: 0 | Q69: 0 | R69: 0 | T69: 借地権 | U69: 0
A70: ソフトウェア | B70: 400000 | C70: 400000 | D70: 400000 | E70: 400000 | F70: 400000 | G70: 400000 | H70: 400000 | I70: 400000 | J70: 400000 | K70: 400000 | L70: 400000 | M70: 400000 | N70: 400000 | O70: 400000 | P70: 400000 | Q70: 300000 | R70: 300000 | T70: ソフトウェア | U70: 300000
A71: 無形固定資産計 | B71: 550000 | C71: 550000 | D71: 550000 | E71: 550000 | F71: 550000 | G71: 550000 | H71: 550000 | I71: 550000 | J71: 550000 | K71: 550000 | L71: 550000 | M71: 550000 | N71: 550000 | O71: 550000 | P71: 550000 | Q71: 450000 | R71: 450000 | T71: 無形固定資産計 | U71: 450000
A72: [投資その他の資産] | T72: [投資その他の資産]
A73: 投資有価証券 | B73: 3000000 | C73: 3000000 | D73: 3000000 | E73: 3000000 | F73: 3000000 | G73: 3000000 | H73: 3000000 | I73: 3000000 | J73: 3000000 | K73: 3000000 | L73: 3000000 | M73: 3000000 | N73: 3000000 | O73: 3000000 | P73: 3000000 | Q73: 3000000 | R73: 3000000 | T73: 投資有価証券 | U73: 3000000
A74: 関係会社株式 | B74: 500000 | C74: 500000 | D74: 500000 | E74: 500000 | F74: 500000 | G74: 500000 | H74: 500000 | I74: 500000 | J74: 500000 | K74: 500000 | L74: 500000 | M74: 500000 | N74: 500000 | O74: 500000 | P74: 500000 | Q74: 500000 | R74: 500000 | T74: 関係会社株式 | U74: 500000
A75: 出資金 | B75: 700000 | C75: 700000 | D75: 700000 | E75: 700000 | F75: 700000 | G75: 700000 | H75: 700000 | I75: 700000 | J75: 700000 | K75: 700000 | L75: 700000 | M75: 700000 | N75: 700000 | O75: 700000 | P75: 700000 | Q75: 700000 | R75: 700000 | T75: 出資金 | U75: 700000
A76: 関係会社出資金 | B76: 1200000 | C76: 1200000 | D76: 1200000 | E76: 1200000 | F76: 1200000 | G76: 1200000 | H76: 1200000 | I76: 1200000 | J76: 1200000 | K76: 1200000 | L76: 1200000 | M76: 1200000 | N76: 1200000 | O76: 1200000 | P76: 1200000 | Q76: 1200000 | R76: 1200000 | T76: 関係会社出資金 | U76: 1200000
A77: 敷金 | B77: 0 | C77: 0 | D77: 0 | E77: 0 | F77: 0 | G77: 0 | H77: 0 | I77: 0 | J77: 0 | K77: 0 | L77: 0 | M77: 0 | N77: 0 | O77: 0 | P77: 0 | Q77: 0 | R77: 0 | T77: 敷金 | U77: 0
A78: 差入保証金 | B78: 0 | C78: 0 | D78: 0 | E78: 0 | F78: 0 | G78: 0 | H78: 0 | I78: 0 | J78: 0 | K78: 0 | L78: 0 | M78: 0 | N78: 0 | O78: 0 | P78: 0 | Q78: 0 | R78: 0 | T78: 差入保証金 | U78: 0
A79: 長期貸付金 | B79: 0 | C79: 0 | D79: 0 | E79: 0 | F79: 0 | G79: 0 | H79: 0 | I79: 0 | J79: 0 | K79: 0 | L79: 0 | M79: 0 | N79: 0 | O79: 0 | P79: 0 | Q79: 0 | R79: 0 | T79: 長期貸付金 | U79: 0
A80: 長期固定性預金 | B80: 0 | C80: 0 | D80: 0 | E80: 0 | F80: 0 | G80: 0 | H80: 0 | I80: 0 | J80: 0 | K80: 0 | L80: 0 | M80: 0 | N80: 0 | O80: 0 | P80: 0 | Q80: 0 | R80: 0 | T80: 長期固定性預金 | U80: 0
A81: 長期滞留債権 | B81: 0 | C81: 0 | D81: 0 | E81: 0 | F81: 0 | G81: 0 | H81: 0 | I81: 0 | J81: 0 | K81: 0 | L81: 0 | M81: 0 | N81: 0 | O81: 0 | P81: 0 | Q81: 0 | R81: 0 | T81: 長期滞留債権 | U81: 0
A82: 長期前払費用 | B82: 0 | C82: 0 | D82: 0 | E82: 0 | F82: 0 | G82: 0 | H82: 0 | I82: 0 | J82: 0 | K82: 0 | L82: 0 | M82: 0 | N82: 0 | O82: 0 | P82: 0 | Q82: 0 | R82: 0 | T82: 長期前払費用 | U82: 0
A83: 繰延税金資産(固) | B83: 0 | C83: 0 | D83: 0 | E83: 0 | F83: 0 | G83: 0 | H83: 0 | I83: 0 | J83: 0 | K83: 0 | L83: 0 | M83: 0 | N83: 0 | O83: 0 | P83: 0 | Q83: 0 | R83: 0 | T83: 繰延税金資産(固) | U83: 0
A84: 貸倒引当金(投) | B84: 0 | C84: 0 | D84: 0 | E84: 0 | F84: 0 | G84: 0 | H84: 0 | I84: 0 | J84: 0 | K84: 0 | L84: 0 | M84: 0 | N84: 0 | O84: 0 | P84: 0 | Q84: 0 | R84: 0 | T84: 貸倒引当金(投) | U84: 0
A85: 投資その他の資産合計 | B85: 5400000 | C85: 5400000 | D85: 5400000 | E85: 5400000 | F85: 5400000 | G85: 5400000 | H85: 5400000 | I85: 5400000 | J85: 5400000 | K85: 5400000 | L85: 5400000 | M85: 5400000 | N85: 5400000 | O85: 5400000 | P85: 5400000 | Q85: 5400000 | R85: 5400000 | T85: 投資その他の資産合計 | U85: 5400000
A86: 固定資産合計 | B86: 62919325 | C86: 62919325 | D86: 62919325 | E86: 62919325 | F86: 62919325 | G86: 62919325 | H86: 62919325 | I86: 62919325 | J86: 62919325 | K86: 62919325 | L86: 62919325 | M86: 62919325 | N86: 74919325 | O86: 74919325 | P86: 74919325 | Q86: 70994712 | R86: 70994712 | T86: 固定資産合計 | U86: 70994712
A87: [繰延資産] | T87: [繰延資産]
A88: 創立費 | B88: 0 | C88: 0 | D88: 0 | E88: 0 | F88: 0 | G88: 0 | H88: 0 | I88: 0 | J88: 0 | K88: 0 | L88: 0 | M88: 0 | N88: 0 | O88: 0 | P88: 0 | Q88: 0 | R88: 0 | T88: 創立費 | U88: 0
A89: 開業費 | B89: 0 | C89: 0 | D89: 0 | E89: 0 | F89: 0 | G89: 0 | H89: 0 | I89: 0 | J89: 0 | K89: 0 | L89: 0 | M89: 0 | N89: 0 | O89: 0 | P89: 0 | Q89: 0 | R89: 0 | T89: 開業費 | U89: 0
A90: 開発費 | B90: 0 | C90: 0 | D90: 0 | E90: 0 | F90: 0 | G90: 0 | H90: 0 | I90: 0 | J90: 0 | K90: 0 | L90: 0 | M90: 0 | N90: 0 | O90: 0 | P90: 0 | Q90: 0 | R90: 0 | T90: 開発費 | U90: 0
A91: 試験研究費 | B91: 0 | C91: 0 | D91: 0 | E91: 0 | F91: 0 | G91: 0 | H91: 0 | I91: 0 | J91: 0 | K91: 0 | L91: 0 | M91: 0 | N91: 0 | O91: 0 | P91: 0 | Q91: 0 | R91: 0 | T91: 試験研究費 | U91: 0
A92: 繰延資産合計 | B92: 0 | C92: 0 | D92: 0 | E92: 0 | F92: 0 | G92: 0 | H92: 0 | I92: 0 | J92: 0 | K92: 0 | L92: 0 | M92: 0 | N92: 0 | O92: 0 | P92: 0 | Q92: 0 | R92: 0 | T92: 繰延資産合計 | U92: 0
A93: [諸口] | T93: [諸口]
A94: 複合 | B94: 0 | C94: 0 | D94: 0 | E94: 0 | F94: 0 | G94: 0 | H94: 0 | I94: 0 | J94: 0 | K94: 0 | L94: 0 | M94: 0 | N94: 0 | O94: 0 | P94: 0 | Q94: 0 | R94: 0 | T94: 複合 | U94: 0
A95: 未確定勘定 | B95: 0 | C95: 0 | D95: 0 | E95: 0 | F95: 0 | G95: 0 | H95: 0 | I95: 0 | J95: 0 | K95: 0 | L95: 0 | M95: 0 | N95: 0 | O95: 0 | P95: 0 | Q95: 0 | R95: 0 | T95: 未確定勘定 | U95: 0
A96: 資産合計 | B96: 142361811 | C96: 148209029 | D96: 154461669 | E96: 158486974 | F96: 149905727 | G96: 164807337 | H96: 164807337 | I96: 175417775 | J96: 174680792 | K96: 178024769 | L96: 193712727 | M96: 190011778 | N96: 183430624 | O96: 183430624 | P96: 183430624 | Q96: 165599225 | R96: 165599225 | T96: 資産合計 | U96: 165599225
A97: [仕入債務] | T97: [仕入債務]
A98: 支払手形 | B98: 2000000 | C98: 4000000 | D98: 4000000 | E98: 9000000 | F98: 2000000 | G98: 1500000 | H98: 1500000 | I98: 2500000 | J98: 4000000 | K98: 4000000 | L98: 4000000 | M98: 4000000 | N98: 4000000 | O98: 4000000 | P98: 4000000 | Q98: 4000000 | R98: 4000000 | T98: 支払手形 | U98: 4000000
A99: 買掛金 | B99: 32879591 | C99: 38112098 | D99: 41647799 | E99: 47067747 | F99: 42046671 | G99: 50429228 | H99: 50429228 | I99: 57471286 | J99: 56623555 | K99: 57992625 | L99: 65212974 | M99: 66384681 | N99: 57908481 | O99: 57908481 | P99: 57908481 | Q99: 57908481 | R99: 57908481 | T99: 買掛金 | U99: 57908481
A100: 仕入債務合計 | B100: 34879591 | C100: 42112098 | D100: 45647799 | E100: 56067747 | F100: 44046671 | G100: 51929228 | H100: 51929228 | I100: 59971286 | J100: 60623555 | K100: 61992625 | L100: 69212974 | M100: 70384681 | N100: 61908481 | O100: 61908481 | P100: 61908481 | Q100: 61908481 | R100: 61908481 | T100: 仕入債務合計 | U100: 61908481
A101: [他流動負債] | T101: [他流動負債]
A102: 設備支払手形 | B102: 0 | C102: 0 | D102: 0 | E102: 0 | F102: 0 | G102: 0 | H102: 0 | I102: 0 | J102: 0 | K102: 0 | L102: 0 | M102: 0 | N102: 0 | O102: 0 | P102: 0 | Q102: 0 | R102: 0 | T102: 設備支払手形 | U102: 0
A103: 短期借入金 | B103: 2500000 | C103: 2000000 | D103: 2000000 | E103: 1500000 | F103: 1000000 | G103: 1000000 | H103: 1000000 | I103: 1000000 | J103: 1000000 | K103: 1000000 | L103: 1000000 | M103: 1000000 | N103: 1000000 | O103: 1000000 | P103: 1000000 | Q103: 1000000 | R103: 1000000 | T103: 短期借入金 | U103: 1000000
A104: 未払金 | B104: 0 | C104: 0 | D104: 0 | E104: 0 | F104: 0 | G104: 0 | H104: 0 | I104: 0 | J104: 0 | K104: 0 | L104: 0 | M104: 0 | N104: 0 | O104: 0 | P104: 0 | Q104: 0 | R104: 0 | T104: 未払金 | U104: 0
A105: 未払費用 | B105: 0 | C105: 0 | D105: 0 | E105: 0 | F105: 0 | G105: 0 | H105: 0 | I105: 0 | J105: 0 | K105: 0 | L105: 0 | M105: 0 | N105: 0 | O105: 0 | P105: 0 | Q105: 0 | R105: 0 | T105: 未払費用 | U105: 0
A106: 未払配当金 | B106: 0 | C106: 0 | D106: 0 | E106: 0 | F106: 0 | G106: 0 | H106: 0 | I106: 0 | J106: 0 | K106: 0 | L106: 0 | M106: 0 | N106: 0 | O106: 0 | P106: 0 | Q106: 0 | R106: 0 | T106: 未払配当金 | U106: 0
A107: 未払役員賞与 | B107: 0 | C107: 0 | D107: 0 | E107: 0 | F107: 0 | G107: 0 | H107: 0 | I107: 0 | J107: 0 | K107: 0 | L107: 0 | M107: 0 | N107: 0 | O107: 0 | P107: 0 | Q107: 0 | R107: 0 | T107: 未払役員賞与 | U107: 0
A108: 未払法人税等 | B108: 4200000 | C108: 0 | D108: 0 | E108: 0 | F108: 0 | G108: 0 | H108: 0 | I108: 0 | J108: 0 | K108: 0 | L108: 0 | M108: 0 | N108: 0 | O108: 0 | P108: 0 | Q108: 1900000 | R108: 1900000 | T108: 未払法人税等 | U108: 1900000
A109: 未払事業税等 | B109: 0 | C109: 0 | D109: 0 | E109: 0 | F109: 0 | G109: 0 | H109: 0 | I109: 0 | J109: 0 | K109: 0 | L109: 0 | M109: 0 | N109: 0 | O109: 0 | P109: 0 | Q109: 0 | R109: 0 | T109: 未払事業税等 | U109: 0
A110: 未払消費税等 | B110: 1497700 | C110: 351700 | D110: 351700 | E110: 351700 | F110: 351700 | G110: 351700 | H110: 351700 | I110: 351700 | J110: 351700 | K110: 351700 | L110: 351700 | M110: 351700 | N110: 351700 | O110: 351700 | P110: 351700 | Q110: 1078800 | R110: 1078800 | T110: 未払消費税等 | U110: 1078800
A111: 繰延税金負債(流) | B111: 0 | C111: 0 | D111: 0 | E111: 0 | F111: 0 | G111: 0 | H111: 0 | I111: 0 | J111: 0 | K111: 0 | L111: 0 | M111: 0 | N111: 0 | O111: 0 | P111: 0 | Q111: 0 | R111: 0 | T111: 繰延税金負債(流) | U111: 0
A112: 前受金 | B112: 0 | C112: 0 | D112: 0 | E112: 0 | F112: 0 | G112: 0 | H112: 0 | I112: 0 | J112: 0 | K112: 0 | L112: 0 | M112: 0 | N112: 0 | O112: 0 | P112: 0 | Q112: 0 | R112: 0 | T112: 前受金 | U112: 0
A113: 預り金 | B113: 2482890 | C113: 2521508 | D113: 2697418 | E113: 1155548 | F113: 1297698 | G113: 1473608 | H113: 1473608 | I113: 1689418 | J113: 1908328 | K113: 2673463 | L113: 743857 | M113: 962767 | N113: 1181677 | O113: 1181677 | P113: 1181677 | Q113: 1181677 | R113: 1181677 | T113: 預り金 | U113: 1181677
A114: 前受収益 | B114: 0 | C114: 0 | D114: 0 | E114: 0 | F114: 0 | G114: 0 | H114: 0 | I114: 0 | J114: 0 | K114: 0 | L114: 0 | M114: 0 | N114: 0 | O114: 0 | P114: 0 | Q114: 0 | R114: 0 | T114: 前受収益 | U114: 0
A115: 仮受金 | B115: 0 | C115: 0 | D115: 0 | E115: 0 | F115: 0 | G115: 0 | H115: 0 | I115: 0 | J115: 0 | K115: 0 | L115: 0 | M115: 0 | N115: 0 | O115: 0 | P115: 0 | Q115: 0 | R115: 0 | T115: 仮受金 | U115: 0
A116: 預り保証金 | B116: 0 | C116: 0 | D116: 0 | E116: 0 | F116: 0 | G116: 0 | H116: 0 | I116: 0 | J116: 0 | K116: 0 | L116: 0 | M116: 0 | N116: 0 | O116: 0 | P116: 0 | Q116: 0 | R116: 0 | T116: 預り保証金 | U116: 0
A117: 割引手形 | B117: 800000 | C117: 800000 | D117: 800000 | E117: 800000 | F117: 800000 | G117: 800000 | H117: 800000 | I117: 800000 | J117: 800000 | K117: 800000 | L117: 800000 | M117: 800000 | N117: 800000 | O117: 800000 | P117: 800000 | Q117: 800000 | R117: 800000 | T117: 割引手形 | U117: 800000
A118: 裏書手形 | B118: 0 | C118: 0 | D118: 0 | E118: 0 | F118: 0 | G118: 0 | H118: 0 | I118: 0 | J118: 0 | K118: 0 | L118: 0 | M118: 0 | N118: 0 | O118: 0 | P118: 0 | Q118: 0 | R118: 0 | T118: 裏書手形 | U118: 0
A119: 仮受消費税 | B119: 1111127 | C119: 2703272 | D119: 4030037 | E119: 5369334 | F119: 6666118 | G119: 8174984 | H119: 8174984 | I119: 9549608 | J119: 10559012 | K119: 11719664 | L119: 13144850 | M119: 13795664 | N119: 14206924 | O119: 14206924 | P119: 14206924 | Q119: 0 | R119: 0 | T119: 仮受消費税 | U119: 0
A120: 他流動負債合計 | B120: 12591717 | C120: 8376480 | D120: 9879155 | E120: 9176582 | F120: 10115516 | G120: 11800292 | H120: 11800292 | I120: 13390726 | J120: 14619040 | K120: 16544827 | L120: 16040407 | M120: 16910131 | N120: 17540301 | O120: 17540301 | P120: 17540301 | Q120: 5960477 | R120: 5960477 | T120: 他流動負債合計 | U120: 5960477
A121: 流動負債合計 | B121: 47471308 | C121: 50488578 | D121: 55526954 | E121: 65244329 | F121: 54162187 | G121: 63729520 | H121: 63729520 | I121: 73362012 | J121: 75242595 | K121: 78537452 | L121: 85253381 | M121: 87294812 | N121: 79448782 | O121: 79448782 | P121: 79448782 | Q121: 67868958 | R121: 67868958 | T121: 流動負債合計 | U121: 67868958
A122: [固定負債] | T122: [固定負債]
A123: 長期借入金 | B123: 17550000 | C123: 16513215 | D123: 15475767 | E123: 14437897 | F123: 13399604 | G123: 12360888 | H123: 12360888 | I123: 11131754 | J123: 10492187 | K123: 10492187 | L123: 10301766 | M123: 10110917 | N123: 9919639 | O123: 9919639 | P123: 9919639 | Q123: 9919639 | R123: 9919639 | T123: 長期借入金 | U123: 9919639
A124: 長期未払金 | B124: 0 | C124: 0 | D124: 0 | E124: 0 | F124: 0 | G124: 0 | H124: 0 | I124: 0 | J124: 0 | K124: 0 | L124: 0 | M124: 0 | N124: 0 | O124: 0 | P124: 0 | Q124: 0 | R124: 0 | T124: 長期未払金 | U124: 0
A125: 繰延税金負債(固) | B125: 0 | C125: 0 | D125: 0 | E125: 0 | F125: 0 | G125: 0 | H125: 0 | I125: 0 | J125: 0 | K125: 0 | L125: 0 | M125: 0 | N125: 0 | O125: 0 | P125: 0 | Q125: 0 | R125: 0 | T125: 繰延税金負債(固) | U125: 0
A126: 退職給付引当金 | B126: 0 | C126: 0 | D126: 0 | E126: 0 | F126: 0 | G126: 0 | H126: 0 | I126: 0 | J126: 0 | K126: 0 | L126: 0 | M126: 0 | N126: 0 | O126: 0 | P126: 0 | Q126: 0 | R126: 0 | T126: 退職給付引当金 | U126: 0
A127: 固定負債合計 | B127: 17550000 | C127: 16513215 | D127: 15475767 | E127: 14437897 | F127: 13399604 | G127: 12360888 | H127: 12360888 | I127: 11131754 | J127: 10492187 | K127: 10492187 | L127: 10301766 | M127: 10110917 | N127: 9919639 | O127: 9919639 | P127: 9919639 | Q127: 9919639 | R127: 9919639 | T127: 固定負債合計 | U127: 9919639
A128: 負債合計 | B128: 65021308 | C128: 67001793 | D128: 71002721 | E128: 79682226 | F128: 67561791 | G128: 76090408 | H128: 76090408 | I128: 84493766 | J128: 85734782 | K128: 89029639 | L128: 95555147 | M128: 97405729 | N128: 89368421 | O128: 89368421 | P128: 89368421 | Q128: 77788597 | R128: 77788597 | T128: 負債合計 | U128: 77788597
A129: [資本金] | T129: [資本金]
A130: 資本金 | B130: 10000000 | C130: 10000000 | D130: 10000000 | E130: 10000000 | F130: 10000000 | G130: 10000000 | H130: 10000000 | I130: 10000000 | J130: 10000000 | K130: 10000000 | L130: 10000000 | M130: 10000000 | N130: 10000000 | O130: 10000000 | P130: 10000000 | Q130: 10000000 | R130: 10000000 | T130: 資本金 | U130: 10000000
A131: 資本金合計 | B131: 10000000 | C131: 10000000 | D131: 10000000 | E131: 10000000 | F131: 10000000 | G131: 10000000 | H131: 10000000 | I131: 10000000 | J131: 10000000 | K131: 10000000 | L131: 10000000 | M131: 10000000 | N131: 10000000 | O131: 10000000 | P131: 10000000 | Q131: 10000000 | R131: 10000000 | T131: 資本金合計 | U131: 10000000
A132: [新株式申込証拠金] | T132: [新株式申込証拠金]
A133: 新株式申込証拠金 | B133: 0 | C133: 0 | D133: 0 | E133: 0 | F133: 0 | G133: 0 | H133: 0 | I133: 0 | J133: 0 | K133: 0 | L133: 0 | M133: 0 | N133: 0 | O133: 0 | P133: 0 | Q133: 0 | R133: 0 | T133: 新株式申込証拠金 | U133: 0
A134: 新株式申込証拠金合計 | B134: 0 | C134: 0 | D134: 0 | E134: 0 | F134: 0 | G134: 0 | H134: 0 | I134: 0 | J134: 0 | K134: 0 | L134: 0 | M134: 0 | N134: 0 | O134: 0 | P134: 0 | Q134: 0 | R134: 0 | T134: 新株式申込証拠金合計 | U134: 0
A135: [資本剰余金] | T135: [資本剰余金]
A136: 資本準備金 | B136: 5000000 | C136: 5000000 | D136: 5000000 | E136: 5000000 | F136: 5000000 | G136: 5000000 | H136: 5000000 | I136: 5000000 | J136: 5000000 | K136: 5000000 | L136: 5000000 | M136: 5000000 | N136: 5000000 | O136: 5000000 | P136: 5000000 | Q136: 5000000 | R136: 5000000 | T136: 資本準備金 | U136: 5000000
A137: 資本準備金合計 | B137: 5000000 | C137: 5000000 | D137: 5000000 | E137: 5000000 | F137: 5000000 | G137: 5000000 | H137: 5000000 | I137: 5000000 | J137: 5000000 | K137: 5000000 | L137: 5000000 | M137: 5000000 | N137: 5000000 | O137: 5000000 | P137: 5000000 | Q137: 5000000 | R137: 5000000 | T137: 資本準備金合計 | U137: 5000000
A138: 資本金及び準備金減少差益 | B138: 0 | C138: 0 | D138: 0 | E138: 0 | F138: 0 | G138: 0 | H138: 0 | I138: 0 | J138: 0 | K138: 0 | L138: 0 | M138: 0 | N138: 0 | O138: 0 | P138: 0 | Q138: 0 | R138: 0 | T138: 資本金及び準備金減少差益 | U138: 0
A139: 自己株処分差益 | B139: 0 | C139: 0 | D139: 0 | E139: 0 | F139: 0 | G139: 0 | H139: 0 | I139: 0 | J139: 0 | K139: 0 | L139: 0 | M139: 0 | N139: 0 | O139: 0 | P139: 0 | Q139: 0 | R139: 0 | T139: 自己株処分差益 | U139: 0
A140: その他資本剰余金合計 | B140: 0 | C140: 0 | D140: 0 | E140: 0 | F140: 0 | G140: 0 | H140: 0 | I140: 0 | J140: 0 | K140: 0 | L140: 0 | M140: 0 | N140: 0 | O140: 0 | P140: 0 | Q140: 0 | R140: 0 | T140: その他資本剰余金合計 | U140: 0
A141: 資本剰余金合計 | B141: 5000000 | C141: 5000000 | D141: 5000000 | E141: 5000000 | F141: 5000000 | G141: 5000000 | H141: 5000000 | I141: 5000000 | J141: 5000000 | K141: 5000000 | L141: 5000000 | M141: 5000000 | N141: 5000000 | O141: 5000000 | P141: 5000000 | Q141: 5000000 | R141: 5000000 | T141: 資本剰余金合計 | U141: 5000000
A142: [利益剰余金] | T142: [利益剰余金]
A143: 利益準備金 | B143: 5000000 | C143: 5000000 | D143: 5000000 | E143: 5000000 | F143: 5000000 | G143: 5000000 | H143: 5000000 | I143: 5000000 | J143: 5000000 | K143: 5000000 | L143: 5000000 | M143: 5000000 | N143: 5000000 | O143: 5000000 | P143: 5000000 | Q143: 5000000 | R143: 5000000 | T143: 利益準備金 | U143: 5000000
A144: 利益準備金合計 | B144: 5000000 | C144: 5000000 | D144: 5000000 | E144: 5000000 | F144: 5000000 | G144: 5000000 | H144: 5000000 | I144: 5000000 | J144: 5000000 | K144: 5000000 | L144: 5000000 | M144: 5000000 | N144: 5000000 | O144: 5000000 | P144: 5000000 | Q144: 5000000 | R144: 5000000 | T144: 利益準備金合計 | U144: 5000000
A145: 別途積立金 | B145: 2000000 | C145: 2000000 | D145: 2000000 | E145: 2000000 | F145: 2000000 | G145: 2000000 | H145: 2000000 | I145: 2000000 | J145: 2000000 | K145: 2000000 | L145: 2000000 | M145: 2000000 | N145: 2000000 | O145: 2000000 | P145: 2000000 | Q145: 2000000 | R145: 2000000 | T145: 別途積立金 | U145: 2000000
A146: 任意積立金合計 | B146: 2000000 | C146: 2000000 | D146: 2000000 | E146: 2000000 | F146: 2000000 | G146: 2000000 | H146: 2000000 | I146: 2000000 | J146: 2000000 | K146: 2000000 | L146: 2000000 | M146: 2000000 | N146: 2000000 | O146: 2000000 | P146: 2000000 | Q146: 2000000 | R146: 2000000 | T146: 任意積立金合計 | U146: 2000000
A147: 繰越利益 | B147: 53802733 | C147: 53802733 | D147: 53802733 | E147: 53802733 | F147: 53802733 | G147: 53802733 | H147: 53802733 | I147: 53802733 | J147: 53802733 | K147: 53802733 | L147: 53802733 | M147: 53802733 | N147: 53802733 | O147: 53802733 | P147: 53802733 | Q147: 53802733 | R147: 53802733 | T147: 繰越利益 | U147: 65810628
A148: 当期純損益金額 | B148: 1537770 | C148: 5404503 | D148: 7656215 | E148: 3002015 | F148: 6541203 | G148: 12914196 | H148: 12914196 | I148: 15121276 | J148: 13143277 | K148: 13192397 | L148: 22354847 | M148: 16803316 | N148: 18259470 | O148: 18259470 | P148: 18259470 | Q148: 12007895 | R148: 12007895 | T148: 当期純損益金額 | U148: 0
A149: 繰越利益剰余金合計 | B149: 55340503 | C149: 59207236 | D149: 61458948 | E149: 56804748 | F149: 60343936 | G149: 66716929 | H149: 66716929 | I149: 68924009 | J149: 66946010 | K149: 66995130 | L149: 76157580 | M149: 70606049 | N149: 72062203 | O149: 72062203 | P149: 72062203 | Q149: 65810628 | R149: 65810628 | T149: 繰越利益剰余金合計 | U149: 65810628
A150: その他利益剰余金合計 | B150: 57340503 | C150: 61207236 | D150: 63458948 | E150: 58804748 | F150: 62343936 | G150: 68716929 | H150: 68716929 | I150: 70924009 | J150: 68946010 | K150: 68995130 | L150: 78157580 | M150: 72606049 | N150: 74062203 | O150: 74062203 | P150: 74062203 | Q150: 67810628 | R150: 67810628 | T150: その他利益剰余金合計 | U150: 67810628
A151: 利益剰余金合計 | B151: 62340503 | C151: 66207236 | D151: 68458948 | E151: 63804748 | F151: 67343936 | G151: 73716929 | H151: 73716929 | I151: 75924009 | J151: 73946010 | K151: 73995130 | L151: 83157580 | M151: 77606049 | N151: 79062203 | O151: 79062203 | P151: 79062203 | Q151: 72810628 | R151: 72810628 | T151: 利益剰余金合計 | U151: 72810628
A152: [自己株式] | T152: [自己株式]
A153: 自己株式 | B153: 0 | C153: 0 | D153: 0 | E153: 0 | F153: 0 | G153: 0 | H153: 0 | I153: 0 | J153: 0 | K153: 0 | L153: 0 | M153: 0 | N153: 0 | O153: 0 | P153: 0 | Q153: 0 | R153: 0 | T153: 自己株式 | U153: 0
A154: 自己株式合計 | B154: 0 | C154: 0 | D154: 0 | E154: 0 | F154: 0 | G154: 0 | H154: 0 | I154: 0 | J154: 0 | K154: 0 | L154: 0 | M154: 0 | N154: 0 | O154: 0 | P154: 0 | Q154: 0 | R154: 0 | T154: 自己株式合計 | U154: 0
A155: [自己株式申込証拠金] | T155: [自己株式申込証拠金]
A156: 自己株式申込証拠金 | B156: 0 | C156: 0 | D156: 0 | E156: 0 | F156: 0 | G156: 0 | H156: 0 | I156: 0 | J156: 0 | K156: 0 | L156: 0 | M156: 0 | N156: 0 | O156: 0 | P156: 0 | Q156: 0 | R156: 0 | T156: 自己株式申込証拠金 | U156: 0
A157: 自己株式申込証拠金合計 | B157: 0 | C157: 0 | D157: 0 | E157: 0 | F157: 0 | G157: 0 | H157: 0 | I157: 0 | J157: 0 | K157: 0 | L157: 0 | M157: 0 | N157: 0 | O157: 0 | P157: 0 | Q157: 0 | R157: 0 | T157: 自己株式申込証拠金合計 | U157: 0
A158: 株主資本合計 | B158: 77340503 | C158: 81207236 | D158: 83458948 | E158: 78804748 | F158: 82343936 | G158: 88716929 | H158: 88716929 | I158: 90924009 | J158: 88946010 | K158: 88995130 | L158: 98157580 | M158: 92606049 | N158: 94062203 | O158: 94062203 | P158: 94062203 | Q158: 87810628 | R158: 87810628 | T158: 株主資本合計 | U158: 87810628
A159: [評価･換算差額等] | T159: [評価･換算差額等]
A160: その他有価証券評価差額金 | B160: 0 | C160: 0 | D160: 0 | E160: 0 | F160: 0 | G160: 0 | H160: 0 | I160: 0 | J160: 0 | K160: 0 | L160: 0 | M160: 0 | N160: 0 | O160: 0 | P160: 0 | Q160: 0 | R160: 0 | T160: その他有価証券評価差額金 | U160: 0
A161: 繰延ヘッジ損益 | B161: 0 | C161: 0 | D161: 0 | E161: 0 | F161: 0 | G161: 0 | H161: 0 | I161: 0 | J161: 0 | K161: 0 | L161: 0 | M161: 0 | N161: 0 | O161: 0 | P161: 0 | Q161: 0 | R161: 0 | T161: 繰延ヘッジ損益 | U161: 0
A162: 土地再評価差額金 | B162: 0 | C162: 0 | D162: 0 | E162: 0 | F162: 0 | G162: 0 | H162: 0 | I162: 0 | J162: 0 | K162: 0 | L162: 0 | M162: 0 | N162: 0 | O162: 0 | P162: 0 | Q162: 0 | R162: 0 | T162: 土地再評価差額金 | U162: 0
A163: 評価･換算差額等合計 | B163: 0 | C163: 0 | D163: 0 | E163: 0 | F163: 0 | G163: 0 | H163: 0 | I163: 0 | J163: 0 | K163: 0 | L163: 0 | M163: 0 | N163: 0 | O163: 0 | P163: 0 | Q163: 0 | R163: 0 | T163: 評価･換算差額等合計 | U163: 0
A164: [新株予約権] | T164: [新株予約権]
A165: 新株予約権 | B165: 0 | C165: 0 | D165: 0 | E165: 0 | F165: 0 | G165: 0 | H165: 0 | I165: 0 | J165: 0 | K165: 0 | L165: 0 | M165: 0 | N165: 0 | O165: 0 | P165: 0 | Q165: 0 | R165: 0 | T165: 新株予約権 | U165: 0
A166: 新株予約権合計 | B166: 0 | C166: 0 | D166: 0 | E166: 0 | F166: 0 | G166: 0 | H166: 0 | I166: 0 | J166: 0 | K166: 0 | L166: 0 | M166: 0 | N166: 0 | O166: 0 | P166: 0 | Q166: 0 | R166: 0 | T166: 新株予約権合計 | U166: 0
A167: 純資産合計 | B167: 77340503 | C167: 81207236 | D167: 83458948 | E167: 78804748 | F167: 82343936 | G167: 88716929 | H167: 88716929 | I167: 90924009 | J167: 88946010 | K167: 88995130 | L167: 98157580 | M167: 92606049 | N167: 94062203 | O167: 94062203 | P167: 94062203 | Q167: 87810628 | R167: 87810628 | T167: 純資産合計 | U167: 87810628
A168: 負債･純資産合計 | B168: 142361811 | C168: 148209029 | D168: 154461669 | E168: 158486974 | F168: 149905727 | G168: 164807337 | H168: 164807337 | I168: 175417775 | J168: 174680792 | K168: 178024769 | L168: 193712727 | M168: 190011778 | N168: 183430624 | O168: 183430624 | P168: 183430624 | Q168: 165599225 | R168: 165599225 | T168: 負債･純資産合計 | U168: 165599225
A171: 勘定科目 | B171: 4月度 | C171: 5月度 | D171: 6月度 | E171: 7月度 | F171: 8月度 | G171: 9月度 | H171: 上半期残高(合計) | I171: 10月度 | J171: 11月度 | K171: 12月度 | L171: 1月度 | M171: 2月度 | N171: 3月度 | O171: 下半期残高(合計) | P171: 当期仮残高(合計) | Q171: 決算残高(合計) | R171: 当期残高(合計)
A172: [売上高]
A173: 売上高 | B173: 23730235 | C173: 29370928 | D173: 26360153 | E173: 25751245 | F173: 26527462 | G173: 30242038 | H173: 161982061 | I173: 29274704 | J173: 19625274 | K173: 24076028 | L173: 33236724 | M173: 13016544 | N173: 8225518 | O173: 127454792 | P173: 289436853 | Q173: 0 | R173: 289436853
A174: 売上値引高 | B174: 0 | C174: 0 | D174: 0 | E174: 0 | F174: 0 | G174: 0 | H174: 0 | I174: 0 | J174: 0 | K174: 0 | L174: 0 | M174: 0 | N174: 0 | O174: 0 | P174: 0 | Q174: 0 | R174: 0
A175: 売上戻り高 | B175: 0 | C175: 0 | D175: 0 | E175: 0 | F175: 0 | G175: 0 | H175: 0 | I175: 0 | J175: 0 | K175: 0 | L175: 0 | M175: 0 | N175: 0 | O175: 0 | P175: 0 | Q175: 0 | R175: 0
A176: 売上割戻し高 | B176: 0 | C176: 0 | D176: 0 | E176: 0 | F176: 0 | G176: 0 | H176: 0 | I176: 0 | J176: 0 | K176: 0 | L176: 0 | M176: 0 | N176: 0 | O176: 0 | P176: 0 | Q176: 0 | R176: 0
A177: 役務収益 | B177: 0 | C177: 0 | D177: 0 | E177: 0 | F177: 0 | G177: 0 | H177: 0 | I177: 0 | J177: 0 | K177: 0 | L177: 0 | M177: 0 | N177: 0 | O177: 0 | P177: 0 | Q177: 0 | R177: 0
A178: 売上高合計 | B178: 23730235 | C178: 29370928 | D178: 26360153 | E178: 25751245 | F178: 26527462 | G178: 30242038 | H178: 161982061 | I178: 29274704 | J178: 19625274 | K178: 24076028 | L178: 33236724 | M178: 13016544 | N178: 8225518 | O178: 127454792 | P178: 289436853 | Q178: 0 | R178: 289436853
A179: [売上原価]
A180: 期首商品棚卸高 | B180: 0 | C180: 0 | D180: 0 | E180: 0 | F180: 0 | G180: 0 | H180: 0 | I180: 0 | J180: 0 | K180: 0 | L180: 0 | M180: 0 | N180: 0 | O180: 0 | P180: 0 | Q180: 1420830 | R180: 1420830
A181: 期首商品棚卸高 | B181: 0 | C181: 0 | D181: 0 | E181: 0 | F181: 0 | G181: 0 | H181: 0 | I181: 0 | J181: 0 | K181: 0 | L181: 0 | M181: 0 | N181: 0 | O181: 0 | P181: 0 | Q181: 1420830 | R181: 1420830
A182: 仕入高 | B182: 16518456 | C182: 18740506 | D182: 16439254 | E182: 19131739 | F182: 15889917 | G182: 12885244 | H182: 99605116 | I182: 15493568 | J182: 8773395 | K182: 14149481 | L182: 18853707 | M182: 13030427 | N182: 1578500 | O182: 71879078 | P182: 171484194 | Q182: 0 | R182: 171484194
A183: 仕入値引高 | B183: 0 | C183: 0 | D183: 0 | E183: 0 | F183: 0 | G183: 0 | H183: 0 | I183: 0 | J183: 0 | K183: 0 | L183: 0 | M183: 0 | N183: 0 | O183: 0 | P183: 0 | Q183: 0 | R183: 0
A184: 仕入戻し高 | B184: 0 | C184: 0 | D184: 0 | E184: 0 | F184: 0 | G184: 0 | H184: 0 | I184: 0 | J184: 0 | K184: 0 | L184: 0 | M184: 0 | N184: 0 | O184: 0 | P184: 0 | Q184: 0 | R184: 0
A185: 仕入割戻し高 | B185: 0 | C185: 0 | D185: 0 | E185: 0 | F185: 0 | G185: 0 | H185: 0 | I185: 0 | J185: 0 | K185: 0 | L185: 0 | M185: 0 | N185: 0 | O185: 0 | P185: 0 | Q185: 0 | R185: 0
A186: 当期商品仕入高 | B186: 16518456 | C186: 18740506 | D186: 16439254 | E186: 19131739 | F186: 15889917 | G186: 12885244 | H186: 99605116 | I186: 15493568 | J186: 8773395 | K186: 14149481 | L186: 18853707 | M186: 13030427 | N186: 1578500 | O186: 71879078 | P186: 171484194 | Q186: 0 | R186: 171484194
A187: 合計 | B187: 16518456 | C187: 18740506 | D187: 16439254 | E187: 19131739 | F187: 15889917 | G187: 12885244 | H187: 99605116 | I187: 15493568 | J187: 8773395 | K187: 14149481 | L187: 18853707 | M187: 13030427 | N187: 1578500 | O187: 71879078 | P187: 171484194 | Q187: 1420830 | R187: 172905024
A188: 他勘定振替高(商) | B188: 0 | C188: 0 | D188: 0 | E188: 0 | F188: 0 | G188: 0 | H188: 0 | I188: 0 | J188: 0 | K188: 0 | L188: 0 | M188: 0 | N188: 0 | O188: 0 | P188: 0 | Q188: 0 | R188: 0
A189: 期末商品棚卸高 | B189: 0 | C189: 0 | D189: 0 | E189: 0 | F189: 0 | G189: 0 | H189: 0 | I189: 0 | J189: 0 | K189: 0 | L189: 0 | M189: 0 | N189: 0 | O189: 0 | P189: 0 | Q189: 1301290 | R189: 1301290
A190: 期末商品棚卸高 | B190: 0 | C190: 0 | D190: 0 | E190: 0 | F190: 0 | G190: 0 | H190: 0 | I190: 0 | J190: 0 | K190: 0 | L190: 0 | M190: 0 | N190: 0 | O190: 0 | P190: 0 | Q190: 1301290 | R190: 1301290
A191: 商品売上原価 | B191: 16518456 | C191: 18740506 | D191: 16439254 | E191: 19131739 | F191: 15889917 | G191: 12885244 | H191: 99605116 | I191: 15493568 | J191: 8773395 | K191: 14149481 | L191: 18853707 | M191: 13030427 | N191: 1578500 | O191: 71879078 | P191: 171484194 | Q191: 119540 | R191: 171603734
A192: 期首製品棚卸高 | B192: 0 | C192: 0 | D192: 0 | E192: 0 | F192: 0 | G192: 0 | H192: 0 | I192: 0 | J192: 0 | K192: 0 | L192: 0 | M192: 0 | N192: 0 | O192: 0 | P192: 0 | Q192: 0 | R192: 0
A193: 期首製品棚卸高 | B193: 0 | C193: 0 | D193: 0 | E193: 0 | F193: 0 | G193: 0 | H193: 0 | I193: 0 | J193: 0 | K193: 0 | L193: 0 | M193: 0 | N193: 0 | O193: 0 | P193: 0 | Q193: 0 | R193: 0
A194: 当期製品製造原価 | B194: 2267059 | C194: 3009345 | D194: 2610740 | E194: 4646059 | F194: 2946176 | G194: 7193990 | H194: 22673369 | I194: 4795672 | J194: 5786858 | K194: 1993384 | L194: 989490 | M194: 1215579 | N194: 1132793 | O194: 15913776 | P194: 38587145 | Q194: 1048611 | R194: 39635756
A195: 合計 | B195: 2267059 | C195: 3009345 | D195: 2610740 | E195: 4646059 | F195: 2946176 | G195: 7193990 | H195: 22673369 | I195: 4795672 | J195: 5786858 | K195: 1993384 | L195: 989490 | M195: 1215579 | N195: 1132793 | O195: 15913776 | P195: 38587145 | Q195: 1048611 | R195: 39635756
A196: 他勘定振替高(製) | B196: 0 | C196: 0 | D196: 0 | E196: 0 | F196: 0 | G196: 0 | H196: 0 | I196: 0 | J196: 0 | K196: 0 | L196: 0 | M196: 0 | N196: 0 | O196: 0 | P196: 0 | Q196: 0 | R196: 0
A197: 期末製品棚卸高 | B197: 0 | C197: 0 | D197: 0 | E197: 0 | F197: 0 | G197: 0 | H197: 0 | I197: 0 | J197: 0 | K197: 0 | L197: 0 | M197: 0 | N197: 0 | O197: 0 | P197: 0 | Q197: 0 | R197: 0
A198: 期末製品棚卸高 | B198: 0 | C198: 0 | D198: 0 | E198: 0 | F198: 0 | G198: 0 | H198: 0 | I198: 0 | J198: 0 | K198: 0 | L198: 0 | M198: 0 | N198: 0 | O198: 0 | P198: 0 | Q198: 0 | R198: 0
A199: 製品売上原価 | B199: 2267059 | C199: 3009345 | D199: 2610740 | E199: 4646059 | F199: 2946176 | G199: 7193990 | H199: 22673369 | I199: 4795672 | J199: 5786858 | K199: 1993384 | L199: 989490 | M199: 1215579 | N199: 1132793 | O199: 15913776 | P199: 38587145 | Q199: 1048611 | R199: 39635756
A200: 売上原価 | B200: 18785515 | C200: 21749851 | D200: 19049994 | E200: 23777798 | F200: 18836093 | G200: 20079234 | H200: 122278485 | I200: 20289240 | J200: 14560253 | K200: 16142865 | L200: 19843197 | M200: 14246006 | N200: 2711293 | O200: 87792854 | P200: 210071339 | Q200: 1168151 | R200: 211239490
A201: 売上総損益金額 | B201: 4944720 | C201: 7621077 | D201: 7310159 | E201: 1973447 | F201: 7691369 | G201: 10162804 | H201: 39703576 | I201: 8985464 | J201: 5065021 | K201: 7933163 | L201: 13393527 | M201: -1229462 | N201: 5514225 | O201: 39661938 | P201: 79365514 | Q201: -1168151 | R201: 78197363
A202: [販売管理費]
A203: 役員報酬 | B203: 800000 | C203: 800000 | D203: 800000 | E203: 800000 | F203: 800000 | G203: 800000 | H203: 4800000 | I203: 800000 | J203: 800000 | K203: 800000 | L203: 800000 | M203: 800000 | N203: 800000 | O203: 4800000 | P203: 9600000 | Q203: 0 | R203: 9600000
A204: 役員賞与 | B204: 0 | C204: 0 | D204: 0 | E204: 0 | F204: 0 | G204: 0 | H204: 0 | I204: 0 | J204: 0 | K204: 0 | L204: 0 | M204: 0 | N204: 0 | O204: 0 | P204: 0 | Q204: 0 | R204: 0
... 140 more rows

Sheet No2
B1: 安全性分析
C2: Ⅰ，流動比率（１３０％以上）
D3: 短期の借り入れおよび負債の支払い能力判定指標
N4: テスト
C5: 流動比率＝ | F5: 流動資産 | H5: ＝ | I5: ='No4'!F26 -> 95567649 | K5: ＝ | L5: =I5/I6 -> 1.464765604 | N5: 0.9
F6: 流動負債 | I6: ='No4'!M26 -> 65244329
C8: Ⅱ、当座比率（100％以上）
D9: 流動資産のうちさらに換金しやすい資産
C12: 当座比率＝ | F12: 当座資産 | H12: ＝ | I12: ='No4'!F7+'No4'!F8+'No4'!F9+'No4'!F10+'No4'!F11+'No4'!F13 -> 88512870 | K12: ＝ | L12: =I12/I13 -> 1.356636988
G13: 流動負債 | I13: =I6 -> 65244329
D15: 当座資産（現金・預金・受取手形・売掛金）－貸し倒れ引当金
C17: Ⅲ固定比率（１００％以下）
D18: 固定資産の投資が自己資本で出来ているか
C20: 固定比率＝ | F20: 固定資産＋投資等 | H20: ＝ | I20: ='No4'!F44 -> 62919325 | K20: ＝ | L20: =I20/I21 -> 0.7984204835
F21: 自己資本 | I21: ='No4'!M44 -> 78804748
C23: Ⅳ、長期適合率（必ず１００％以下）
D24: 固定資産投資が自己資本＋長期負債で賄えているか
C26: 長期適合率＝ | F26: 固定資産＋投資等 | H26: ＝ | I26: =I20 -> 62919325 | K26: ＝ | L26: =I26/I27 -> 0.6747912932
F27: 自己資本＋固定負債 | I27: ='No4'!M44+'No4'!M28 -> 93242645
C29: Ⅴ自己資本比率（３０％以上）
D30: 会社の経営が他人資本に依存しすぎていないか
C32: 自己資本比率 | F32: 自己資本 | H32: ＝ | I32: =I21 -> 78804748 | K32: ＝ | L32: =I32/I33 -> 0.4972317031
F33: 総資本 | I33: ='No4'!M46 -> 158486974

Sheet No3
B1: 収益力分析指標
C2: 総資本利益率で経営を判断
C3: 公のヒト、モノ、カネなどの資源を使っていかに社会に貢献したか
L4: 判 定
C5: 総資本利益率 ＝ | G5: 経常利益 | H5: ＝ | I5: ='No6'!K22 -> 3002175 | K5: ＝ | L5: =I5/I6*12/auto1!J9 -> 0.05682817188
G6: 総資本 | I6: ='No4'!F46 -> 158486974
C8: 総資本利益率 | F8: ＝ | G8: 売上利益率 | H8: ＝ | I8: 総資本回転率
C10: 売上利益率＝ | F10: 経常利益 | H10: ＝ | I10: ='No6'!K22 -> 3002175 | K10: ＝ | L10: =I10/I11 -> 0.02853437813
F11: 売上高 | I11: ='No6'!K8 -> 105212561
C13: 総資本回転率＝ | F13: 売上高 | H13: ＝ | I13: =I11 -> 105212561 | K13: ＝ | L13: =ROUND(I13/I14,1)*12/auto1!J9 -> 2.1
F14: 総資本 | I14: =I6 -> 158486974
B16: 1、売上利益率を上げるには
F18: （粗利益）
C19: 粗利益率 ＝ | F19: 売上高－原価 | H19: ＝ | I19: ='No6'!K11 -> 21849403 | K19: ＝ | L19: =I19/I20 -> 0.2076691489
F20: 売上高 | I20: =I13 -> 105212561
F22: （営業利益）
C23: 営業利益率＝ | F23: 粗利益－管理費販売費 | H23: ＝ | I23: ='No6'!K14 -> 3133729 | K23: ＝ | L23: =I23/I24 -> 0.02978474215
F24: 売上高 | I24: =I20 -> 105212561
G26: （営業外損益）
C27: 営業外損益率＝ | F27: 営業外収益－営業外費用 | H27: ＝ | I27: ='No6'!K18-'No6'!K21 -> -131554 | K27: ＝ | L27: =I27/I28 -> -0.001250364013
F28: 売上高 | I28: =I24 -> 105212561
B30: 2、総資本回転率を上げるには
C32: 売掛債権回転率＝ | F32: 売上高 | H32: ＝ | I32: =I28 -> 105212561 | K32: ＝ | L32: =I32/I33*12/auto1!J9 -> 6.935321065
F33: 受取手形＋売掛金 | I33: ='No4'!F9+'No4'!F10+'No4'!F11 -> 45511618
F34: （売掛債権）
C36: 棚卸資産回転率＝ | F36: 売上高 | H36: ＝ | I36: =I32 -> 105212561 | K36: ＝ | L36: =I36/I37*12/auto1!J9 -> 143.1372534
F37: 製商品＋仕掛品＋材料 | I37: ='No4'!F14+'No4'!F15+'No4'!F16+'No4'!F17 -> 2205140
F38: （棚卸資産）
C40: 固定資産回転率＝ | F40: 売上高 | H40: ＝ | I40: =I32 -> 105212561 | K40: ＝ | L40: =I40/I41*12/auto1!J9 -> 5.016545918
F41: 固定資産 | I41: ='No4'!F44 -> 62919325
B43: ３、生産性を上げる
C44: 収益性の良否は生産性にあり
B46: １）付加価値生産性ＵＰ
B47: 付加価値生産性＝ | F47: 付加価値 | H47: ＝ | I47: １人当たり売上高 | K47: × | L47: 付加価値率
F48: 従業員数
B50: １人当たり売上高＝ | F50: 売上高 | H50: ＝ | I50: ='No4'!F49 -> 26303140.25 | K50: ＝ | L50: =I50/I51 -> 2630314.025 | M50: 千円
F51: 従業員数 | I51: 10
B54: 付加価値率＝ | F54: 付加価値 | H54: ＝ | I54: ='No6'!K22+'No6'!K44+'No6'!K66+'No6'!K69+'No6'!K20+'No6'!K98+'No6'!K113+'No6'!K116 -> 14960942 | K54: ＝ | L54: =I54/I55 -> 0.142197299
F55: 売上高 | I55: =I40 -> 105212561
B57: 付加価値とは
C58: 付加価値とは経営活動によって新たに付け加えられた価値
D59: １）控除法 | G59: 加工高－外部購入価値
D60: ２）加算法 | G60: 経常利益+人件費+金利+租税公課+減価償却費
C62: 生産性 | F62: ＝ | G62: 人の生産性 | I62: × | K62: 設備の生産性
B64: ２）労働分配率
C65: 労働分配率とは付加価値に占める人件費率
B67: 労働分配率＝ | F67: 人件費 | H67: ＝ | I67: ='No6'!K44 -> 11486013 | K67: ＝ | L67: =I67/I68 -> 0.5256900154
F68: 付加価値 | I68: =I19 -> 21849403
B70: ３）人時生産性
C71: 販売員１人当たり１時間あたりの売上高または・粗利益高
D72: 人時売上高＝ | G72: 売上高 | I72: 人時粗利益高＝ | K72: 粗利益高
G73: 販売員総勤務時間 | K73: 販売員総勤務時間

Sheet No4
G2: 比較貸借対照表
H3: ='No5'!H3 -> 7 | I3: 月末現在
D4: =F4-1 -> 3 | F4: =IF(F5>=4,F5-3,F5+9) -> 4 | G4: 前月比較 | O4: (単位:千円) | AA4: 0 | AB4: 1 | AC4: 2 | AD4: 3 | AE4: 4 | AF4: 5 | AG4: 6 | AI4: 7 | AJ4: 8 | AK4: 9 | AL4: 10 | AM4: 11 | AN4: 12
B5: 借方 | D5: =IF(F5-1=0,12,F5-1) -> 6 | E5: 月 | F5: =H3 -> 7 | G5: 月 | H5: 増減 | I5: 貸方 | K5: =D5 -> 6 | L5: 月 | M5: =F5 -> 7 | N5: 月 | O5: =H5 -> 増減
D6: 金額 | E6: 日 | F6: 金額 | G6: 日 | K6: =D6 -> 金額 | L6: 日 | M6: =F6 -> 金額 | N6: 日 | AA6: 3月度 | AB6: 4月度 | AC6: 5月度 | AD6: 6月度 | AE6: 7月度 | AF6: 8月度 | AG6: 9月度 | AH6: 上半期残高(合計) | AI6: 10月度 | AJ6: 11月度 | AK6: 12月度 | AL6: 1月度 | AM6: 2月度 | AN6: 3月度 | AO6: 下半期残高(合計) | AP6: 当期仮残高(合計) | AQ6: 決算残高(合計)
B7: 現金･預金 | D7: =SUMIF($AA$4:$AP$4,$D$4,AA7:AN7) -> 39923945 | E7: =D7/$D$49*30 -> 45.218922 | F7: =SUMIF($AA$4:$AP$4,$F$4,AA7:AP7) -> 40997252 | G7: =F7/$F$49*30 -> 46.75934312 | H7: =F7-D7 -> 1073307 | I7: 仕入債務 | J7: 支払手形 | K7: =SUMIF($AA$4:$AP$4,$F$4,AA49:AP49) -> 9000000 | L7: =K7/$D$49*30 -> 10.19363938 | M7: =SUMIF($AB$4:$AP$4,$F$4,AA49:AP49) -> 4000000 | N7: =M7/$F$49*30 -> 4.562192912 | O7: =M7-K7 -> -5000000 | Z7: =B7 -> 現金･預金 | AA7: 56661725 | AB7: ='No1'!B19-'No1'!B14 -> 41688803 | AC7: ='No1'!C19-'No1'!C14 -> 40212979 | AD7: ='No1'!D19-'No1'!D14 -> 39923945 | AE7: ='No1'!E19-'No1'!E14 -> 40997252 | AF7: ='No1'!F19-'No1'!F14 -> 39038048 | AG7: ='No1'!G19-'No1'!G14 -> 53518782 | AH7: ='No1'!H19-'No1'!H14 -> 53518782 | AI7: ='No1'!I19-'No1'!I14 -> 59646088 | AJ7: ='No1'!J19-'No1'!J14 -> 56061283 | AK7: ='No1'!K19-'No1'!K14 -> 56223985 | AL7: ='No1'!L19-'No1'!L14 -> 58603403 | AM7: ='No1'!M19-'No1'!M14 -> 72451550 | AN7: ='No1'!N19-'No1'!N14 -> 56661725 | AO7: ='No1'!O19-'No1'!O14 -> 56661725 | AP7: ='No1'!P19-'No1'!P14 -> 56661725 | AQ7: ='No1'!Q19-'No1'!Q14 -> 56661725 | AR7: ='No1'!R19-'No1'!R14 -> 56661725
B8: 定期預金 | D8: =SUMIF($AA$4:$AP$4,$D$4,AA8:AN8) -> 2004000 | E8: =D8/$D$49*30 -> 2.269783702 | F8: =SUMIF($AA$4:$AP$4,$F$4,AA8:AP8) -> 2004000 | G8: =F8/$F$49*30 -> 2.285658649 | H8: =F8-D8 -> 0 | J8: 買掛金 | K8: =SUMIF($AA$4:$AP$4,$F$4,AA50:AP50) -> 47067747 | L8: 53.31018215 | M8: =SUMIF($AB$4:$AP$4,$F$4,AB50:AP50) -> 47067747 | N8: 53.68303543 | O8: 0 | Z8: ='No1'!A14 -> 定期預金 | AA8: 2012000 | AB8: ='No1'!B14 -> 2004000 | AC8: ='No1'!C14 -> 2004000 | AD8: ='No1'!D14 -> 2004000 | AE8: ='No1'!E14 -> 2004000 | AF8: ='No1'!F14 -> 2004000 | AG8: ='No1'!G14 -> 2008000 | AH8: ='No1'!H14 -> 2008000 | AI8: ='No1'!I14 -> 2008000 | AJ8: ='No1'!J14 -> 2008000 | AK8: ='No1'!K14 -> 2008000 | AL8: ='No1'!L14 -> 2008000 | AM8: ='No1'!M14 -> 2008000 | AN8: ='No1'!N14 -> 2012000 | AO8: ='No1'!O14 -> 2012000 | AP8: ='No1'!P14 -> 2012000 | AQ8: ='No1'!Q14 -> 2012000 | AR8: ='No1'!R14 -> 2012000
B9: 売上債権 | C9: 受取手形 | D9: 5000000 | E9: 5.663132989 | F9: 5000000 | G9: 5.702741139 | H9: =F9-D9 -> 0 | K9: =SUMIF($AA$4:$AP$4,$F$4,AA51:AP51) -> 0 | L9: 0 | M9: =SUMIF($AB$4:$AP$4,$F$4,AC51:AQ51) -> 0 | N9: 0 | O9: 0 | Z9: ='No1'!A21 -> 受取手形 | AA9: 0 | AB9: ='No1'!B21 -> 0 | AC9: ='No1'!C21 -> 2000000 | AD9: ='No1'!D21 -> 5000000 | AE9: ='No1'!E21 -> 5000000 | AF9: ='No1'!F21 -> 3500000 | AG9: ='No1'!G21 -> 0 | AH9: ='No1'!H21 -> 0 | AI9: ='No1'!I21 -> 0 | AJ9: ='No1'!J21 -> 0 | AK9: ='No1'!K21 -> 0 | AL9: ='No1'!L21 -> 0 | AM9: ='No1'!M21 -> 0 | AN9: ='No1'!N21 -> 0 | AO9: ='No1'!O21 -> 0 | AP9: ='No1'!P21 -> 0 | AQ9: ='No1'!Q21 -> 0 | AR9: ='No1'!R21 -> 0
C10: 売掛金 | D10: 38906399 | E10: 44.06642233 | F10: 40791618 | G10: 46.52480762 | H10: =F10-D10 -> 1885219 | I10: 短期借入金 | K10: =SUMIF($AA$4:$AP$4,$F$4,AB52:AP52) -> 1000000 | L10: 1.132626598 | M10: =SUMIF($AB$4:$AP$4,$F$4,AB52:AP52) -> 1500000 | N10: 1.710822342 | O10: 500000 | Z10: ='No1'!A23 -> 売掛金 | AA10: 33906364 | AB10: ='No1'!B23 -> 32395126 | AC10: ='No1'!C23 -> 36466067 | AD10: ='No1'!D23 -> 38906399 | AE10: ='No1'!E23 -> 40791618 | AF10: ='No1'!F23 -> 34461962 | AG10: ='No1'!G23 -> 37471270 | AH10: ='No1'!H23 -> 37471270 | AI10: ='No1'!I23 -> 40572365 | AJ10: ='No1'!J23 -> 41077474 | AK10: ='No1'!K23 -> 43406313 | AL10: ='No1'!L23 -> 55831662 | AM10: ='No1'!M23 -> 37485734 | AN10: ='No1'!N23 -> 33906364 | AO10: ='No1'!O23 -> 33906364 | AP10: ='No1'!P23 -> 33906364 | AQ10: ='No1'!Q23 -> 33906364 | AR10: ='No1'!R23 -> 33906364
C11: 貸倒引当金(売） | D11: -280000 | E11: -0.3171354474 | F11: -280000 | G11: -0.3193535038 | I11: 他流動負債 | J11: 未払金 | K11: =SUMIF($AA$4:$AP$4,$F$4,Z53:AP53) -> 0 | L11: 0 | M11: =SUMIF($AB$4:$AP$4,$F$4,AB53:AP53) -> 0 | N11: 0 | O11: 0 | Z11: ='No1'!A24 -> 貸倒引当金(売) | AA11: -330000 | AB11: ='No1'!B24 -> -280000 | AC11: ='No1'!C24 -> -280000 | AD11: ='No1'!D24 -> -280000 | AE11: ='No1'!E24 -> -280000 | AF11: ='No1'!F24 -> -280000 | AG11: ='No1'!G24 -> -280000 | AH11: ='No1'!H24 -> -280000 | AI11: ='No1'!I24 -> -280000 | AJ11: ='No1'!J24 -> -280000 | AK11: ='No1'!K24 -> -280000 | AL11: ='No1'!L24 -> -280000 | AM11: ='No1'!M24 -> -280000 | AN11: ='No1'!N24 -> -280000 | AO11: ='No1'!O24 -> -280000 | AP11: ='No1'!P24 -> -280000 | AQ11: ='No1'!Q24 -> -330000 | AR11: ='No1'!R24 -> -330000
D12: 0 | E12: 0 | F12: 0 | G12: 0 | J12: 未払費用 | K12: =SUMIF($AA$4:$AP$4,$F$4,Z54:AP54) -> 0 | L12: =K12/$D$49*30 -> 0 | M12: =SUMIF($AB$4:$AP$4,$F$4,AB54:AP54) -> 0 | N12: =M12/$F$49*30 -> 0 | O12: =M12-K12 -> 0
B13: 有価証券 | D13: 0 | E13: 0 | F13: 0 | G13: 0 | J13: 未払配当金 | K13: 0 | L13: =K13/$D$49*30 -> 0 | M13: 0 | N13: =M13/$F$49*30 -> 0 | O13: =M13-K13 -> 0 | Z13: ='No1'!A27 -> 有価証券 | AA13: 0 | AB13: ='No1'!B27 -> 0 | AC13: ='No1'!C27 -> 0 | AD13: ='No1'!D27 -> 0 | AE13: ='No1'!E27 -> 0 | AF13: ='No1'!F27 -> 0 | AG13: ='No1'!G27 -> 0 | AH13: ='No1'!H27 -> 0 | AI13: ='No1'!I27 -> 0 | AJ13: ='No1'!J27 -> 0 | AK13: ='No1'!K27 -> 0 | AL13: ='No1'!L27 -> 0 | AM13: ='No1'!M27 -> 0 | AN13: ='No1'!N27 -> 0 | AO13: ='No1'!O27 -> 0 | AP13: ='No1'!P27 -> 0 | AQ13: ='No1'!Q27 -> 0 | AR13: ='No1'!R27 -> 0
B14: 棚卸資産 | C14: 商品・製品 | D14: 1420830 | E14: 1.609269849 | F14: 1420830 | G14: 1.620525139 | H14: =F14-D14 -> 0 | J14: 未払役員賞与 | K14: 0 | L14: =K14/$D$49*30 -> 0 | M14: 0 | N14: 0 | O14: 0 | Z14: ='No1'!A30 -> 商品 | AA14: 1301290 | AB14: ='No1'!B30 -> 1420830 | AC14: ='No1'!C30 -> 1420830 | AD14: ='No1'!D30 -> 1420830 | AE14: ='No1'!E30 -> 1420830 | AF14: ='No1'!F30 -> 1420830 | AG14: ='No1'!G30 -> 1420830 | AH14: ='No1'!H30 -> 1420830 | AI14: ='No1'!I30 -> 1420830 | AJ14: ='No1'!J30 -> 1420830 | AK14: ='No1'!K30 -> 1420830 | AL14: ='No1'!L30 -> 1420830 | AM14: ='No1'!M30 -> 1420830 | AN14: ='No1'!N30 -> 1420830 | AO14: ='No1'!O30 -> 1420830 | AP14: ='No1'!P30 -> 1420830 | AQ14: ='No1'!Q30 -> 1301290 | AR14: ='No1'!R30 -> 1301290
C15: 半製品 | D15: 301100 | E15: 0.3410338686 | F15: 301100 | G15: 0.3434190714 | H15: =F15-D15 -> 0 | J15: 未払法人税等 | K15: 0 | M15: 0 | Z15: 半製品 | AA15: 291770 | AB15: ='No1'!B33 -> 301100 | AC15: ='No1'!C33 -> 301100 | AD15: ='No1'!D33 -> 301100 | AE15: ='No1'!E33 -> 301100 | AF15: ='No1'!F33 -> 301100 | AG15: ='No1'!G33 -> 301100 | AH15: ='No1'!H33 -> 301100 | AI15: ='No1'!I33 -> 301100 | AJ15: ='No1'!J33 -> 301100 | AK15: ='No1'!K33 -> 301100 | AL15: ='No1'!L33 -> 301100 | AM15: ='No1'!M33 -> 301100 | AN15: ='No1'!N33 -> 301100 | AO15: ='No1'!O33 -> 301100 | AP15: ='No1'!P33 -> 301100 | AQ15: ='No1'!Q33 -> 291770 | AR15: ='No1'!R33 -> 291770
C16: 原材料 | D16: 447210 | E16: 0.5065219408 | F16: 447210 | G16: 0.510064573 | H16: =F16-D16 -> 0 | J16: 未払事業税等 | K16: 0 | L16: =K16/$D$49*30 -> 0 | M16: 0 | N16: =M16/$F$49*30 -> 0 | O16: =M16-K16 -> 0 | Z16: 原材料 | AA16: 380020 | AB16: ='No1'!B34 -> 447210 | AC16: ='No1'!C34 -> 447210 | AD16: ='No1'!D34 -> 447210 | AE16: ='No1'!E34 -> 447210 | AF16: ='No1'!F34 -> 447210 | AG16: ='No1'!G34 -> 447210 | AH16: ='No1'!H34 -> 447210 | AI16: ='No1'!I34 -> 447210 | AJ16: ='No1'!J34 -> 447210 | AK16: ='No1'!K34 -> 447210 | AL16: ='No1'!L34 -> 447210 | AM16: ='No1'!M34 -> 447210 | AN16: ='No1'!N34 -> 447210 | AO16: ='No1'!O34 -> 447210 | AP16: ='No1'!P34 -> 447210 | AQ16: ='No1'!Q34 -> 380020 | AR16: ='No1'!R34 -> 380020
C17: 仕掛品 | D17: 36000 | E17: 0.04077455752 | F17: 36000 | G17: 0.0410597362 | J17: 未払消費税等 | K17: 351700 | L17: 0.3983447745 | M17: 351700 | N17: 0.4011308117 | O17: 0 | Z17: 仕掛品 | AA17: 32000 | AB17: ='No1'!B35 -> 36000 | AC17: ='No1'!C35 -> 36000 | AD17: ='No1'!D35 -> 36000 | AE17: ='No1'!E35 -> 36000 | AF17: ='No1'!F35 -> 36000 | AG17: ='No1'!G35 -> 36000 | AH17: ='No1'!H35 -> 36000 | AI17: ='No1'!I35 -> 36000 | AJ17: ='No1'!J35 -> 36000 | AK17: ='No1'!K35 -> 36000 | AL17: ='No1'!L35 -> 36000 | AM17: ='No1'!M35 -> 36000 | AN17: ='No1'!N35 -> 36000 | AO17: ='No1'!O35 -> 36000 | AP17: ='No1'!P35 -> 36000 | AQ17: ='No1'!Q35 -> 32000 | AR17: ='No1'!R35 -> 32000
B18: 他流動資産 | C18: 立替金 | D18: =SUMIF($AA$4:$AP$4,$D$4,AA18:AN18) -> 0 | E18: 0 | F18: =SUMIF($AA$4:$AP$4,$F$4,AA18:AP18) -> 0 | G18: 0 | H18: =F18-D18 -> 0 | J18: 繰延税金負債(流) | K18: 0 | L18: 0 | M18: 0 | N18: 0 | O18: 0 | Z18: 立替金 | AA18: 49344 | AB18: ='No1'!B40 -> 185449
C19: 繰延税金資産(流) | D19: =SUMIF($AA$4:$AP$4,$D$4,AA19:AN19) -> 0 | E19: 0 | F19: =SUMIF($AA$4:$AP$4,$F$4,AA19:AP19) -> 0 | G19: 0 | H19: =F19-D19 -> 0 | J19: 前受金 | K19: 0 | L19: 0 | M19: 0 | N19: 0 | O19: 0 | Z19: 繰延税金資産(流) | AA19: 0 | AB19: ='No1'!B42 -> 0 | AC19: ='No1'!C42 -> 0 | AD19: ='No1'!D42 -> 0 | AE19: ='No1'!E42 -> 0 | AF19: ='No1'!F42 -> 0 | AG19: ='No1'!G42 -> 0 | AH19: ='No1'!H42 -> 0 | AI19: ='No1'!I42 -> 0 | AJ19: ='No1'!J42 -> 0 | AK19: ='No1'!K42 -> 0 | AL19: ='No1'!L42 -> 0 | AM19: ='No1'!M42 -> 0 | AN19: ='No1'!N42 -> 0 | AO19: ='No1'!O42 -> 0 | AP19: ='No1'!P42 -> 0 | AQ19: ='No1'!Q42 -> 0 | AR19: ='No1'!R42 -> 0
C20: 未収収益 | D20: 300000 | E20: 0.3397879793 | F20: 300000 | G20: 0.3421644684 | H20: =F20-D20 -> 0 | J20: 預り金 | K20: 2697418 | L20: 3.055167372 | M20: 1155548 | N20: 1.317958224 | O20: -1541870 | Z20: 未収収益 | AA20: 300000 | AB20: ='No1'!B43 -> 300000 | AC20: ='No1'!C43 -> 300000 | AD20: ='No1'!D43 -> 300000 | AE20: ='No1'!E43 -> 300000 | AF20: ='No1'!F43 -> 300000 | AG20: ='No1'!G43 -> 300000 | AH20: ='No1'!H43 -> 300000 | AI20: ='No1'!I43 -> 300000 | AJ20: ='No1'!J43 -> 300000 | AK20: ='No1'!K43 -> 300000 | AL20: ='No1'!L43 -> 300000 | AM20: ='No1'!M43 -> 300000 | AN20: ='No1'!N43 -> 300000 | AO20: ='No1'!O43 -> 300000 | AP20: ='No1'!P43 -> 300000 | AQ20: ='No1'!Q43 -> 300000 | AR20: ='No1'!R43 -> 300000
C21: 短期貸付金 | D21: 0 | E21: 0 | F21: 0 | G21: 0 | H21: =F21-D21 -> 0 | J21: 前受収益 | K21: 0 | L21: 0 | M21: 0 | N21: 0 | O21: 0 | Z21: 短期貸付金 | AA21: 0 | AB21: ='No1'!B44 -> 0 | AC21: ='No1'!C44 -> 0 | AD21: ='No1'!D44 -> 0 | AE21: ='No1'!E44 -> 0 | AF21: ='No1'!F44 -> 0 | AG21: ='No1'!G44 -> 0 | AH21: ='No1'!H44 -> 0 | AI21: ='No1'!I44 -> 0 | AJ21: ='No1'!J44 -> 0 | AK21: ='No1'!K44 -> 0 | AL21: ='No1'!L44 -> 0 | AM21: ='No1'!M44 -> 0 | AN21: ='No1'!N44 -> 0 | AO21: ='No1'!O44 -> 0 | AP21: ='No1'!P44 -> 0 | AQ21: ='No1'!Q44 -> 0 | AR21: ='No1'!R44 -> 0
C22: 未収入金 | J22: 仮受金 | K22: 0 | L22: 0 | M22: 0 | N22: 0 | Z22: 未収入金 | AA22: 0 | AB22: ='No1'!B45 -> 0 | AC22: ='No1'!C45 -> 0 | AD22: ='No1'!D45 -> 0 | AE22: ='No1'!E45 -> 0 | AF22: ='No1'!F45 -> 0 | AG22: ='No1'!G45 -> 0 | AH22: ='No1'!H45 -> 0 | AI22: ='No1'!I45 -> 0 | AJ22: ='No1'!J45 -> 0 | AK22: ='No1'!K45 -> 0 | AL22: ='No1'!L45 -> 0 | AM22: ='No1'!M45 -> 0 | AN22: ='No1'!N45 -> 0 | AO22: ='No1'!O45 -> 0 | AP22: ='No1'!P45 -> 0 | AQ22: ='No1'!Q45 -> 0 | AR22: ='No1'!R45 -> 0
C23: 仮払金 | D23: 0 | E23: 0 | F23: 0 | G23: 0 | H23: =F23-D23 -> 0 | J23: 預り保証金 | K23: 0 | L23: 0 | M23: 0 | N23: 0 | O23: 0 | Z23: 仮払金 | AA23: 0 | AB23: ='No1'!B46 -> 0 | AC23: ='No1'!C46 -> 0 | AD23: ='No1'!D46 -> 0 | AE23: ='No1'!E46 -> 0 | AF23: ='No1'!F46 -> 150000 | AG23: ='No1'!G46 -> 0 | AH23: ='No1'!H46 -> 0 | AI23: ='No1'!I46 -> 0 | AJ23: ='No1'!J46 -> 0 | AK23: ='No1'!K46 -> 0 | AL23: ='No1'!L46 -> 0 | AM23: ='No1'!M46 -> 0 | AN23: ='No1'!N46 -> 0 | AO23: ='No1'!O46 -> 0 | AP23: ='No1'!P46 -> 0 | AQ23: ='No1'!Q46 -> 0 | AR23: ='No1'!R46 -> 0
C24: 預け金 | D24: 0 | E24: 0 | F24: 0 | G24: 0 | J24: 割引手形 | K24: 800000 | L24: 0.9061012783 | M24: 800000 | N24: 0.9124385823 | O24: 0 | Z24: 預け金 | AA24: 0 | AB24: ='No1'!B47 -> 0 | AC24: ='No1'!C47 -> 0 | AD24: ='No1'!D47 -> 0 | AE24: ='No1'!E47 -> 0 | AF24: ='No1'!F47 -> 0 | AG24: ='No1'!G47 -> 0 | AH24: ='No1'!H47 -> 0 | AI24: ='No1'!I47 -> 0 | AJ24: ='No1'!J47 -> 0 | AK24: ='No1'!K47 -> 0 | AL24: ='No1'!L47 -> 0 | AM24: ='No1'!M47 -> 0 | AN24: ='No1'!N47 -> 0 | AO24: ='No1'!O47 -> 0 | AP24: ='No1'!P47 -> 0 | AQ24: ='No1'!Q47 -> 0 | AR24: ='No1'!R47 -> 0
C25: 仮払消費税 | D25: 3317165 | E25: 3.757109308 | F25: 4393821 | G25: 5.011364755 | J25: 仮受消費税 | K25: 4030037 | L25: 4.564527096 | M25: 5369334 | N25: 6.123984379 | O25: 1339297 | Z25: 仮払消費税 | AA25: 0 | AB25: ='No1'!B48 -> 943968 | AC25: ='No1'!C48 -> 2205946 | AD25: ='No1'!D48 -> 3317165 | AE25: ='No1'!E48 -> 4393821 | AF25: ='No1'!F48 -> 5461311 | AG25: ='No1'!G48 -> 6528756 | AH25: ='No1'!H48 -> 6528756 | AI25: ='No1'!I48 -> 7920670 | AJ25: ='No1'!J48 -> 10273260 | AK25: ='No1'!K48 -> 11163031 | AL25: ='No1'!L48 -> 12056099 | AM25: ='No1'!M48 -> 12862808 | AN25: ='No1'!N48 -> 13656726 | AO25: ='No1'!O48 -> 13656726 | AP25: ='No1'!P48 -> 13656726 | AQ25: ='No1'!Q48 -> 0 | AR25: ='No1'!R48 -> 0
B26: 小計 | D26: 91542344 | E26: 103.6832936 | F26: 95567649 | G26: 108.9995127 | H26: =F26-D26 -> 4025305 | I26: 小計 | K26: =SUMIF($AA$4:$AP$4,$F$4,AB68:AP68) -> 54162187 | L26: =K26/$D$49*30 -> 61.34553359 | M26: =SUMIF($AB$4:$AP$4,$F$4,AB68:AP68) -> 65244329 | N26: 74.41430382 | O26: 11082142 | AA26: 94604513 | AB26: ='No1'!B51 -> 79442486 | AC26: ='No1'!C51 -> 85289704 | AD26: ='No1'!D51 -> 91542344 | AE26: ='No1'!E51 -> 95567649 | AF26: ='No1'!F51 -> 86986402 | AG26: ='No1'!G51 -> 101888012 | AH26: ='No1'!H51 -> 101888012 | AI26: ='No1'!I51 -> 112498450 | AJ26: ='No1'!J51 -> 111761467 | AK26: ='No1'!K51 -> 115105444 | AL26: ='No1'!L51 -> 130793402 | AM26: ='No1'!M51 -> 127092453 | AN26: ='No1'!N51 -> 108511299 | AO26: ='No1'!O51 -> 108511299 | AP26: ='No1'!P51 -> 108511299 | AQ26: ='No1'!Q51 -> 94604513 | AR26: ='No1'!R51 -> 94604513
D27: 0 | F27: 0 | K27: =SUMIF($AA$4:$AP$4,$F$4,AA69:AP69) -> 0 | M27: =SUMIF($AB$4:$AP$4,$F$4,AC69:AQ69) -> 0 | O27: 0
B28: 固定資産 | C28: 建物 | D28: 22671600 | E28: 25.67845718 | F28: 22671600 | G28: 25.8580532 | H28: =F28-D28 -> 0 | I28: 固定負債 | J28: 長期借入金 | K28: =SUMIF($AA$4:$AP$4,$F$4,AB70:AP70) -> 13399604 | L28: =K28/$D$49*30 -> 15.17674789 | M28: =SUMIF($AB$4:$AP$4,$F$4,AB70:AP70) -> 14437897 | N28: 16.46711784 | O28: 1038293 | Z28: ='No1'!A53 -> 建物 | AA28: 34153200 | AB28: ='No1'!B53 -> 22671600 | AC28: ='No1'!C53 -> 22671600 | AD28: ='No1'!D53 -> 22671600 | AE28: ='No1'!E53 -> 22671600 | AF28: ='No1'!F53 -> 22671600 | AG28: ='No1'!G53 -> 22671600 | AH28: ='No1'!H53 -> 22671600 | AI28: ='No1'!I53 -> 22671600 | AJ28: ='No1'!J53 -> 22671600 | AK28: ='No1'!K53 -> 22671600 | AL28: ='No1'!L53 -> 22671600 | AM28: ='No1'!M53 -> 22671600 | AN28: ='No1'!N53 -> 34671600 | AO28: ='No1'!O53 -> 34671600 | AP28: ='No1'!P53 -> 34671600 | AQ28: ='No1'!Q53 -> 34153200 | AR28: ='No1'!R53 -> 34153200
C29: 建物附属設備 | D29: 822122 | E29: 0.9311572439 | F29: 822122 | G29: 0.9376697902 | H29: =F29-D29 -> 0 | J29: 長期未払金 | K29: =SUMIF($AA$4:$AP$4,$F$4,AA71:AP71) -> 0 | L29: =K29/$D$49*30 -> 0 | M29: 0 | N29: 0 | O29: 0 | Z29: ='No1'!A54 -> 附属設備 | AA29: 652765 | AB29: ='No1'!B54 -> 822122 | AC29: ='No1'!C54 -> 822122 | AD29: ='No1'!D54 -> 822122 | AE29: ='No1'!E54 -> 822122 | AF29: ='No1'!F54 -> 822122 | AG29: ='No1'!G54 -> 822122 | AH29: ='No1'!H54 -> 822122 | AI29: ='No1'!I54 -> 822122 | AJ29: ='No1'!J54 -> 822122 | AK29: ='No1'!K54 -> 822122 | AL29: ='No1'!L54 -> 822122 | AM29: ='No1'!M54 -> 822122 | AN29: ='No1'!N54 -> 822122 | AO29: ='No1'!O54 -> 822122 | AP29: ='No1'!P54 -> 822122 | AQ29: ='No1'!Q54 -> 652765 | AR29: ='No1'!R54 -> 652765
C30: 構築物 | D30: 0 | E30: 0 | F30: 0 | G30: 0 | H30: =F30-D30 -> 0 | J30: 退職給与引当金 | K30: =SUMIF($AA$4:$AP$4,$F$4,AA72:AP72) -> 0 | L30: =K30/$D$49*30 -> 0 | M30: 0 | N30: 0 | O30: 0 | Z30: ='No1'!A55 -> 構築物 | AA30: 0 | AB30: ='No1'!B55 -> 0 | AC30: ='No1'!C55 -> 0 | AD30: ='No1'!D55 -> 0 | AE30: ='No1'!E55 -> 0 | AF30: ='No1'!F55 -> 0 | AG30: ='No1'!G55 -> 0 | AH30: ='No1'!H55 -> 0 | AI30: ='No1'!I55 -> 0 | AJ30: ='No1'!J55 -> 0 | AK30: ='No1'!K55 -> 0 | AL30: ='No1'!L55 -> 0 | AM30: ='No1'!M55 -> 0 | AN30: ='No1'!N55 -> 0 | AO30: ='No1'!O55 -> 0 | AP30: ='No1'!P55 -> 0 | AQ30: ='No1'!Q55 -> 0 | AR30: ='No1'!R55 -> 0
C31: 機械装置 | D31: 2256085 | E31: 2.555301878 | F31: 2256085 | G31: 2.573173749 | H31: 0 | K31: =SUMIF($AA$4:$AP$4,$F$4,AA73:AP73) -> 0 | M31: 0 | N31: 0 | O31: 0 | Z31: ='No1'!A56 -> 機械装置 | AA31: 1536394 | AB31: ='No1'!B56 -> 2256085 | AC31: ='No1'!C56 -> 2256085 | AD31: ='No1'!D56 -> 2256085 | AE31: ='No1'!E56 -> 2256085 | AF31: ='No1'!F56 -> 2256085 | AG31: ='No1'!G56 -> 2256085 | AH31: ='No1'!H56 -> 2256085 | AI31: ='No1'!I56 -> 2256085 | AJ31: ='No1'!J56 -> 2256085 | AK31: ='No1'!K56 -> 2256085 | AL31: ='No1'!L56 -> 2256085 | AM31: ='No1'!M56 -> 2256085 | AN31: ='No1'!N56 -> 2256085 | AO31: ='No1'!O56 -> 2256085 | AP31: ='No1'!P56 -> 2256085 | AQ31: ='No1'!Q56 -> 1536394 | AR31: ='No1'!R56 -> 1536394
C32: 車両運搬具 | D32: 5287476 | E32: 5.988735953 | F32: 5287476 | G32: 6.030621382 | H32: 0 | I32: 内部留保 | J32: 資本金 | K32: =SUMIF($AA$4:$AP$4,$F$4,AA74:AP74) -> 10000000 | L32: =K32/$D$49*30 -> 11.32626598 | M32: 10000000 | N32: 11.40548228 | O32: 0 | Z32: ='No1'!A57 -> 車両運搬具 | AA32: 3193104 | AB32: ='No1'!B57 -> 5287476 | AC32: ='No1'!C57 -> 5287476 | AD32: ='No1'!D57 -> 5287476 | AE32: ='No1'!E57 -> 5287476 | AF32: ='No1'!F57 -> 5287476 | AG32: ='No1'!G57 -> 5287476 | AH32: ='No1'!H57 -> 5287476 | AI32: ='No1'!I57 -> 5287476 | AJ32: ='No1'!J57 -> 5287476 | AK32: ='No1'!K57 -> 5287476 | AL32: ='No1'!L57 -> 5287476 | AM32: ='No1'!M57 -> 5287476 | AN32: ='No1'!N57 -> 5287476 | AO32: ='No1'!O57 -> 5287476 | AP32: ='No1'!P57 -> 5287476 | AQ32: ='No1'!Q57 -> 3193104 | AR32: ='No1'!R57 -> 3193104
C33: 工具器具備品 | D33: 812042 | E33: 0.9197403678 | F33: 812042 | G33: 0.9261730641 | H33: 0 | J33: 資本準備金 | K33: =SUMIF($AA$4:$AP$4,$F$4,AB75:AP75) -> 5000000 | L33: 5.663132989 | M33: 5000000 | N33: 5.702741139 | O33: 0 | Z33: ='No1'!A58 -> 工具器具備品 | AA33: 546392 | AB33: ='No1'!B58 -> 812042 | AC33: ='No1'!C58 -> 812042 | AD33: ='No1'!D58 -> 812042 | AE33: ='No1'!E58 -> 812042 | AF33: ='No1'!F58 -> 812042 | AG33: ='No1'!G58 -> 812042 | AH33: ='No1'!H58 -> 812042 | AI33: ='No1'!I58 -> 812042 | AJ33: ='No1'!J58 -> 812042 | AK33: ='No1'!K58 -> 812042 | AL33: ='No1'!L58 -> 812042 | AM33: ='No1'!M58 -> 812042 | AN33: ='No1'!N58 -> 812042 | AO33: ='No1'!O58 -> 812042 | AP33: ='No1'!P58 -> 812042 | AQ33: ='No1'!Q58 -> 546392 | AR33: ='No1'!R58 -> 546392
C34: 一括償却資産 | D34: 120000 | E34: 0.1359151917 | F34: 120000 | G34: 0.1368657873 | H34: 0 | J34: 利益準備金 | K34: 5000000 | L34: 5.663132989 | M34: 5000000 | N34: 5.702741139 | O34: 0 | Z34: ='No1'!A59 -> 一括償却資産 | AA34: 62857 | AB34: ='No1'!B59 -> 120000 | AC34: ='No1'!C59 -> 120000 | AD34: ='No1'!D59 -> 120000 | AE34: ='No1'!E59 -> 120000 | AF34: ='No1'!F59 -> 120000 | AG34: ='No1'!G59 -> 120000 | AH34: ='No1'!H59 -> 120000 | AI34: ='No1'!I59 -> 120000 | AJ34: ='No1'!J59 -> 120000 | AK34: ='No1'!K59 -> 120000 | AL34: ='No1'!L59 -> 120000 | AM34: ='No1'!M59 -> 120000 | AN34: ='No1'!N59 -> 120000 | AO34: ='No1'!O59 -> 120000 | AP34: ='No1'!P59 -> 120000 | AQ34: ='No1'!Q59 -> 62857 | AR34: ='No1'!R59 -> 62857
C35: 減価償却累計額 | D35: 0 | F35: 0 | J35: 法定準備金 | K35: 2000000 | L35: 2.265253196 | M35: 2000000 | N35: =M35/$F$49*30 -> 2.281096456 | O35: 0
C36: 土地 | D36: 25000000 | E36: 28.31566495 | F36: 25000000 | G36: 28.5137057 | H36: 0 | J36: 繰越利益 | K36: 53802733 | L36: 60.93840643 | M36: 53802733 | N36: =M36/$F$49*30 -> 61.36461178 | O36: 0 | Z36: ='No1'!A61 -> 土地 | AA36: 25000000 | AB36: ='No1'!B61 -> 25000000 | AC36: ='No1'!C61 -> 25000000 | AD36: ='No1'!D61 -> 25000000 | AE36: ='No1'!E61 -> 25000000 | AF36: ='No1'!F61 -> 25000000 | AG36: ='No1'!G61 -> 25000000 | AH36: ='No1'!H61 -> 25000000 | AI36: ='No1'!I61 -> 25000000 | AJ36: ='No1'!J61 -> 25000000 | AK36: ='No1'!K61 -> 25000000 | AL36: ='No1'!L61 -> 25000000 | AM36: ='No1'!M61 -> 25000000 | AN36: ='No1'!N61 -> 25000000 | AO36: ='No1'!O61 -> 25000000 | AP36: ='No1'!P61 -> 25000000 | AQ36: ='No1'!Q61 -> 25000000 | AR36: ='No1'!R61 -> 25000000
C37: 電話加入権 | D37: 150000 | E37: 0.1698939897 | F37: 150000 | G37: 0.1710822342 | H37: =F37-D37 -> 0 | J37: 当期純損益金額 | K37: 6541203 | L37: 7.4087405 | M37: 3002015 | N37: =M37/$F$49*30 -> 3.423942888 | O37: -3539188 | Z37: ='No1'!A65 -> 電話加入権 | AA37: 150000 | AB37: ='No1'!B65 -> 150000 | AC37: ='No1'!C65 -> 150000 | AD37: ='No1'!D65 -> 150000 | AE37: ='No1'!E65 -> 150000 | AF37: ='No1'!F65 -> 150000 | AG37: ='No1'!G65 -> 150000 | AH37: ='No1'!H65 -> 150000 | AI37: ='No1'!I65 -> 150000 | AJ37: ='No1'!J65 -> 150000 | AK37: ='No1'!K65 -> 150000 | AL37: ='No1'!L65 -> 150000 | AM37: ='No1'!M65 -> 150000 | AN37: ='No1'!N65 -> 150000 | AO37: ='No1'!O65 -> 150000 | AP37: ='No1'!P65 -> 150000 | AQ37: ='No1'!Q65 -> 150000 | AR37: ='No1'!R65 -> 150000
C38: 投資有価証券 | D38: 3000000 | E38: 3.397879793 | F38: 3000000 | G38: 3.421644684 | H38: 0 | K38: 0 | L38: 0 | M38: 0 | O38: 0 | Z38: ='No1'!A73 -> 投資有価証券 | AA38: 3000000 | AB38: ='No1'!B73 -> 3000000 | AC38: ='No1'!C73 -> 3000000 | AD38: ='No1'!D73 -> 3000000 | AE38: ='No1'!E73 -> 3000000 | AF38: ='No1'!F73 -> 3000000 | AG38: ='No1'!G73 -> 3000000 | AH38: ='No1'!H73 -> 3000000 | AI38: ='No1'!I73 -> 3000000 | AJ38: ='No1'!J73 -> 3000000 | AK38: ='No1'!K73 -> 3000000 | AL38: ='No1'!L73 -> 3000000 | AM38: ='No1'!M73 -> 3000000 | AN38: ='No1'!N73 -> 3000000 | AO38: ='No1'!O73 -> 3000000 | AP38: ='No1'!P73 -> 3000000 | AQ38: ='No1'!Q73 -> 3000000 | AR38: ='No1'!R66 -> 0
C39: 関係会社株式 | D39: 500000 | E39: 0.5663132989 | F39: 500000 | G39: 0.5702741139 | H39: 0 | K39: 0 | M39: 0 | N39: 0 | O39: 0 | Z39: ='No1'!A74 -> 関係会社株式 | AA39: 500000 | AB39: ='No1'!B74 -> 500000 | AC39: ='No1'!C74 -> 500000 | AD39: ='No1'!D74 -> 500000 | AE39: ='No1'!E74 -> 500000 | AF39: ='No1'!F74 -> 500000 | AG39: ='No1'!G74 -> 500000 | AH39: ='No1'!H74 -> 500000 | AI39: ='No1'!I74 -> 500000 | AJ39: ='No1'!J74 -> 500000 | AK39: ='No1'!K74 -> 500000 | AL39: ='No1'!L74 -> 500000 | AM39: ='No1'!M74 -> 500000 | AN39: ='No1'!N74 -> 500000 | AO39: ='No1'!O74 -> 500000 | AP39: ='No1'!P74 -> 500000 | AQ39: ='No1'!Q74 -> 500000 | AR39: ='No1'!R68 -> 0
C40: ソフトウェア | D40: 400000 | E40: 0.4530506391 | F40: 400000 | G40: 0.4562192912 | H40: 0 | K40: 0 | M40: 0 | N40: 0 | O40: 0 | Z40: ='No1'!A70 -> ソフトウェア | AA40: 300000 | AB40: ='No1'!B70 -> 400000 | AC40: ='No1'!C70 -> 400000 | AD40: ='No1'!D70 -> 400000 | AE40: ='No1'!E70 -> 400000 | AF40: ='No1'!F70 -> 400000 | AG40: ='No1'!G70 -> 400000 | AH40: ='No1'!H70 -> 400000 | AI40: ='No1'!I70 -> 400000 | AJ40: ='No1'!J70 -> 400000 | AK40: ='No1'!K70 -> 400000 | AL40: ='No1'!L70 -> 400000 | AM40: ='No1'!M70 -> 400000 | AN40: ='No1'!N70 -> 400000 | AO40: ='No1'!O70 -> 400000 | AP40: ='No1'!P70 -> 400000 | AQ40: ='No1'!Q70 -> 300000
C41: 出資金 | D41: 700000 | E41: 0.7928386185 | F41: 700000 | G41: 0.7983837595 | H41: 0 | K41: 0 | M41: 0 | N41: 0 | O41: 0 | Z41: ='No1'!A75 -> 出資金 | AA41: 700000 | AB41: ='No1'!B75 -> 700000 | AC41: ='No1'!C75 -> 700000 | AD41: ='No1'!D75 -> 700000 | AE41: ='No1'!E75 -> 700000 | AF41: ='No1'!F75 -> 700000 | AG41: ='No1'!G75 -> 700000 | AH41: ='No1'!H75 -> 700000 | AI41: ='No1'!I75 -> 700000 | AJ41: ='No1'!J75 -> 700000 | AK41: ='No1'!K75 -> 700000 | AL41: ='No1'!L75 -> 700000 | AM41: ='No1'!M75 -> 700000 | AN41: ='No1'!N75 -> 700000 | AO41: ='No1'!O75 -> 700000 | AP41: ='No1'!P75 -> 700000 | AQ41: ='No1'!Q75 -> 700000 | AR41: ='No1'!R75 -> 700000
C42: 関係会社出資金 | D42: 1200000 | E42: 1.359151917 | F42: 1200000 | G42: 1.368657873 | H42: 0 | K42: 0 | M42: 0 | N42: 0 | O42: 0 | Z42: ='No1'!A76 -> 関係会社出資金 | AA42: 1200000 | AB42: ='No1'!B76 -> 1200000 | AC42: ='No1'!C76 -> 1200000 | AD42: ='No1'!D76 -> 1200000 | AE42: ='No1'!E76 -> 1200000 | AF42: ='No1'!F76 -> 1200000 | AG42: ='No1'!G76 -> 1200000 | AH42: ='No1'!H76 -> 1200000 | AI42: ='No1'!I76 -> 1200000 | AJ42: ='No1'!J76 -> 1200000 | AK42: ='No1'!K76 -> 1200000 | AL42: ='No1'!L76 -> 1200000 | AM42: ='No1'!M76 -> 1200000 | AN42: ='No1'!N76 -> 1200000 | AO42: ='No1'!O76 -> 1200000 | AP42: ='No1'!P76 -> 1200000 | AQ42: ='No1'!Q76 -> 1200000 | AR42: ='No1'!R76 -> 1200000
C43: 敷金 | D43: 0 | E43: 0 | F43: 0 | G43: 0 | O43: 0 | Z43: ='No1'!A77 -> 敷金 | AA43: 0 | AB43: ='No1'!B77 -> 0 | AC43: ='No1'!C77 -> 0 | AD43: ='No1'!D77 -> 0 | AE43: ='No1'!E77 -> 0 | AF43: ='No1'!F77 -> 0 | AG43: ='No1'!G77 -> 0 | AH43: ='No1'!H77 -> 0 | AI43: ='No1'!I77 -> 0 | AJ43: ='No1'!J77 -> 0 | AK43: ='No1'!K77 -> 0 | AL43: ='No1'!L77 -> 0 | AM43: ='No1'!M77 -> 0 | AN43: ='No1'!N77 -> 0 | AO43: ='No1'!O77 -> 0 | AP43: ='No1'!P77 -> 0 | AQ43: ='No1'!Q77 -> 0 | AR43: ='No1'!R77 -> 0
B44: 小計 | D44: 62919325 | E44: 71.26410101 | F44: 62919325 | G44: 71.76252463 | H44: 0 | I44: 小計 | K44: =SUMIF($AA$4:$AP$4,$F$4,AB85:AP85) -> 82343936 | L44: =K44/$D$49*30 -> 93.26493208 | M44: =SUMIF($AB$4:$AP$4,$F$4,AB85:AP85) -> 78804748 | N44: =M44/$F$49*30 -> 89.88061568 | O44: -3539188 | AA44: 70994712 | AB44: ='No1'!B86 -> 62919325 | AC44: ='No1'!C86 -> 62919325 | AD44: ='No1'!D86 -> 62919325 | AE44: ='No1'!E86 -> 62919325 | AF44: ='No1'!F86 -> 62919325 | AG44: ='No1'!G86 -> 62919325 | AH44: ='No1'!H86 -> 62919325 | AI44: ='No1'!I86 -> 62919325 | AJ44: ='No1'!J86 -> 62919325 | AK44: ='No1'!K86 -> 62919325 | AL44: ='No1'!L86 -> 62919325 | AM44: ='No1'!M86 -> 62919325 | AN44: ='No1'!N86 -> 74919325 | AO44: ='No1'!O86 -> 74919325 | AP44: ='No1'!P86 -> 74919325 | AQ44: ='No1'!Q86 -> 70994712 | AR44: ='No1'!R86 -> 70994712
D45: 0 | F45: 0 | O45: 0
B46: 合計 | D46: 154461669 | E46: 174.9473947 | F46: 158486974 | G46: 180.7620373 | H46: =F46-D46 -> 4025305 | I46: 合計 | K46: =SUMIF($AA$4:$AP$4,$F$4,AB87:AP87) -> 149905727 | L46: =K46/$D$49*30 -> 169.7872136 | M46: =SUMIF($AB$4:$AP$4,$F$4,AB87:AP88) -> 158486974 | N46: 180.7620373 | O46: 8581247 | AA46: 165599225 | AB46: ='No1'!B96 -> 142361811 | AC46: ='No1'!C96 -> 148209029 | AD46: ='No1'!D96 -> 154461669 | AE46: ='No1'!E96 -> 158486974 | AF46: ='No1'!F96 -> 149905727 | AG46: ='No1'!G96 -> 164807337 | AH46: ='No1'!H96 -> 164807337 | AI46: ='No1'!I96 -> 175417775 | AJ46: ='No1'!J96 -> 174680792 | AK46: ='No1'!K96 -> 178024769 | AL46: ='No1'!L96 -> 193712727 | AM46: ='No1'!M96 -> 190011778 | AN46: ='No1'!N96 -> 183430624 | AO46: ='No1'!O96 -> 183430624 | AP46: ='No1'!P96 -> 183430624 | AQ46: ='No1'!Q96 -> 165599225 | AR46: ='No1'!R96 -> 165599225
F47: 0
F48: 0
B49: 平均月商 | D49: =SUMIF($AA$4:$AP$4,$D$4,AA92:AP92) -> 26487105.33 | E49: 30 | F49: =SUMIF($AA$4:$AP$4,$F$4,AA92:AP92) -> 26303140.25 | G49: 30 | H49: =F49-D49 -> -183965.0833 | Z49: 支払手形 | AA49: 4000000 | AB49: ='No1'!B98 -> 2000000 | AC49: ='No1'!C98 -> 4000000 | AD49: ='No1'!D98 -> 4000000 | AE49: ='No1'!E98 -> 9000000 | AF49: ='No1'!F98 -> 2000000 | AG49: ='No1'!G98 -> 1500000 | AH49: ='No1'!H98 -> 1500000 | AI49: ='No1'!I98 -> 2500000 | AJ49: ='No1'!J98 -> 4000000 | AK49: ='No1'!K98 -> 4000000 | AL49: ='No1'!L98 -> 4000000 | AM49: ='No1'!M98 -> 4000000 | AN49: ='No1'!N98 -> 4000000 | AO49: ='No1'!O98 -> 4000000 | AP49: ='No1'!P98 -> 4000000 | AQ49: ='No1'!Q98 -> 4000000 | AR49: ='No1'!R98 -> 4000000
Z50: 買掛金 | AA50: 57908481 | AB50: ='No1'!B99 -> 32879591 | AC50: ='No1'!C99 -> 38112098 | AD50: ='No1'!D99 -> 41647799 | AE50: ='No1'!E99 -> 47067747 | AF50: ='No1'!F99 -> 42046671 | AG50: ='No1'!G99 -> 50429228 | AH50: ='No1'!H99 -> 50429228 | AI50: ='No1'!I99 -> 57471286 | AJ50: ='No1'!J99 -> 56623555 | AK50: ='No1'!K99 -> 57992625 | AL50: ='No1'!L99 -> 65212974 | AM50: ='No1'!M99 -> 66384681 | AN50: ='No1'!N99 -> 57908481 | AO50: ='No1'!O99 -> 57908481 | AP50: ='No1'!P99 -> 57908481 | AQ50: ='No1'!Q99 -> 57908481 | AR50: ='No1'!R99 -> 57908481
Z52: 短期借入金 | AA52: 1000000 | AB52: ='No1'!B103 -> 2500000 | AC52: ='No1'!C103 -> 2000000 | AD52: ='No1'!D103 -> 2000000 | AE52: ='No1'!E103 -> 1500000 | AF52: ='No1'!F103 -> 1000000 | AG52: ='No1'!G103 -> 1000000 | AH52: ='No1'!H103 -> 1000000 | AI52: ='No1'!I103 -> 1000000 | AJ52: ='No1'!J103 -> 1000000 | AK52: ='No1'!K103 -> 1000000 | AL52: ='No1'!L103 -> 1000000 | AM52: ='No1'!M103 -> 1000000 | AN52: ='No1'!N103 -> 1000000 | AO52: ='No1'!O103 -> 1000000 | AP52: ='No1'!P103 -> 1000000 | AQ52: ='No1'!Q103 -> 1000000 | AR52: ='No1'!R103 -> 1000000
Z53: 未払金 | AA53: 0 | AB53: ='No1'!B104 -> 0 | AC53: ='No1'!C104 -> 0 | AD53: ='No1'!D104 -> 0 | AE53: ='No1'!E104 -> 0 | AF53: ='No1'!F104 -> 0 | AG53: ='No1'!G104 -> 0 | AH53: ='No1'!H104 -> 0 | AI53: ='No1'!I104 -> 0 | AJ53: ='No1'!J104 -> 0 | AK53: ='No1'!K104 -> 0 | AL53: ='No1'!L104 -> 0 | AM53: ='No1'!M104 -> 0 | AN53: ='No1'!N104 -> 0 | AO53: ='No1'!O104 -> 0 | AP53: ='No1'!P104 -> 0 | AQ53: ='No1'!Q104 -> 0 | AR53: ='No1'!R104 -> 0
Z54: 未払費用 | AA54: 0 | AB54: ='No1'!B105 -> 0 | AC54: ='No1'!C105 -> 0 | AD54: ='No1'!D105 -> 0 | AE54: ='No1'!E105 -> 0 | AF54: ='No1'!F105 -> 0 | AG54: ='No1'!G105 -> 0 | AH54: ='No1'!H105 -> 0 | AI54: ='No1'!I105 -> 0 | AJ54: ='No1'!J105 -> 0 | AK54: ='No1'!K105 -> 0 | AL54: ='No1'!L105 -> 0 | AM54: ='No1'!M105 -> 0 | AN54: ='No1'!N105 -> 0 | AO54: ='No1'!O105 -> 0 | AP54: ='No1'!P105 -> 0 | AQ54: ='No1'!Q105 -> 0 | AR54: ='No1'!R105 -> 0
Z55: 未払配当金 | AA55: 0 | AB55: ='No1'!B106 -> 0 | AC55: ='No1'!C106 -> 0 | AD55: ='No1'!D106 -> 0 | AE55: ='No1'!E106 -> 0 | AF55: ='No1'!F106 -> 0 | AG55: ='No1'!G106 -> 0 | AH55: ='No1'!H106 -> 0 | AI55: ='No1'!I106 -> 0 | AJ55: ='No1'!J106 -> 0 | AK55: ='No1'!K106 -> 0 | AL55: ='No1'!L106 -> 0 | AM55: ='No1'!M106 -> 0 | AN55: ='No1'!N106 -> 0 | AO55: ='No1'!O106 -> 0 | AP55: ='No1'!P106 -> 0 | AQ55: ='No1'!Q106 -> 0 | AR55: ='No1'!R106 -> 0
Z56: 未払役員賞与 | AA56: 0 | AB56: ='No1'!B107 -> 0 | AC56: ='No1'!C107 -> 0 | AD56: ='No1'!D107 -> 0 | AE56: ='No1'!E107 -> 0 | AF56: ='No1'!F107 -> 0 | AG56: ='No1'!G107 -> 0 | AH56: ='No1'!H107 -> 0 | AI56: ='No1'!I107 -> 0 | AJ56: ='No1'!J107 -> 0 | AK56: ='No1'!K107 -> 0 | AL56: ='No1'!L107 -> 0 | AM56: ='No1'!M107 -> 0 | AN56: ='No1'!N107 -> 0 | AO56: ='No1'!O107 -> 0 | AP56: ='No1'!P107 -> 0 | AQ56: ='No1'!Q107 -> 0 | AR56: ='No1'!R107 -> 0
Z57: 未払法人税等 | AA57: 1900000 | AB57: ='No1'!B108 -> 4200000 | AC57: ='No1'!C108 -> 0 | AD57: ='No1'!D108 -> 0 | AE57: ='No1'!E108 -> 0 | AF57: ='No1'!F108 -> 0 | AG57: ='No1'!G108 -> 0 | AH57: ='No1'!H108 -> 0 | AI57: ='No1'!I108 -> 0 | AJ57: ='No1'!J108 -> 0 | AK57: ='No1'!K108 -> 0 | AL57: ='No1'!L108 -> 0 | AM57: ='No1'!M108 -> 0 | AN57: ='No1'!N108 -> 0 | AO57: ='No1'!O108 -> 0 | AP57: ='No1'!P108 -> 0 | AQ57: ='No1'!Q108 -> 1900000 | AR57: ='No1'!R108 -> 1900000
Z58: 未払事業税等 | AA58: 0 | AB58: ='No1'!B109 -> 0 | AC58: ='No1'!C109 -> 0 | AD58: ='No1'!D109 -> 0 | AE58: ='No1'!E109 -> 0 | AF58: ='No1'!F109 -> 0 | AG58: ='No1'!G109 -> 0 | AH58: ='No1'!H109 -> 0 | AI58: ='No1'!I109 -> 0 | AJ58: ='No1'!J109 -> 0 | AK58: ='No1'!K109 -> 0 | AL58: ='No1'!L109 -> 0 | AM58: ='No1'!M109 -> 0 | AN58: ='No1'!N109 -> 0 | AO58: ='No1'!O109 -> 0 | AP58: ='No1'!P109 -> 0 | AQ58: ='No1'!Q109 -> 0 | AR58: ='No1'!R109 -> 0
Z59: 未払消費税等 | AA59: 1078800 | AB59: ='No1'!B110 -> 1497700 | AC59: ='No1'!C110 -> 351700 | AD59: ='No1'!D110 -> 351700 | AE59: ='No1'!E110 -> 351700 | AF59: ='No1'!F110 -> 351700 | AG59: ='No1'!G110 -> 351700 | AH59: ='No1'!H110 -> 351700 | AI59: ='No1'!I110 -> 351700 | AJ59: ='No1'!J110 -> 351700 | AK59: ='No1'!K110 -> 351700 | AL59: ='No1'!L110 -> 351700 | AM59: ='No1'!M110 -> 351700 | AN59: ='No1'!N110 -> 351700 | AO59: ='No1'!O110 -> 351700 | AP59: ='No1'!P110 -> 351700 | AQ59: ='No1'!Q110 -> 1078800 | AR59: ='No1'!R110 -> 1078800
Z60: 繰延税金負債(流) | AA60: 0 | AB60: ='No1'!B111 -> 0 | AC60: ='No1'!C111 -> 0 | AD60: ='No1'!D111 -> 0 | AE60: ='No1'!E111 -> 0 | AF60: ='No1'!F111 -> 0 | AG60: ='No1'!G111 -> 0 | AH60: ='No1'!H111 -> 0 | AI60: ='No1'!I111 -> 0 | AJ60: ='No1'!J111 -> 0 | AK60: ='No1'!K111 -> 0 | AL60: ='No1'!L111 -> 0 | AM60: ='No1'!M111 -> 0 | AN60: ='No1'!N111 -> 0 | AO60: ='No1'!O111 -> 0 | AP60: ='No1'!P111 -> 0 | AQ60: ='No1'!Q111 -> 0 | AR60: ='No1'!R111 -> 0
Z61: 前受金 | AA61: 0 | AB61: ='No1'!B112 -> 0 | AC61: ='No1'!C112 -> 0 | AD61: ='No1'!D112 -> 0 | AE61: ='No1'!E112 -> 0 | AF61: ='No1'!F112 -> 0 | AG61: ='No1'!G112 -> 0 | AH61: ='No1'!H112 -> 0 | AI61: ='No1'!I112 -> 0 | AJ61: ='No1'!J112 -> 0 | AK61: ='No1'!K112 -> 0 | AL61: ='No1'!L112 -> 0 | AM61: ='No1'!M112 -> 0 | AN61: ='No1'!N112 -> 0 | AO61: ='No1'!O112 -> 0 | AP61: ='No1'!P112 -> 0 | AQ61: ='No1'!Q112 -> 0 | AR61: ='No1'!R112 -> 0
Z62: 預り金 | AA62: 1181677 | AB62: ='No1'!B113 -> 2482890 | AC62: ='No1'!C113 -> 2521508 | AD62: ='No1'!D113 -> 2697418 | AE62: ='No1'!E113 -> 1155548 | AF62: ='No1'!F113 -> 1297698 | AG62: ='No1'!G113 -> 1473608 | AH62: ='No1'!H113 -> 1473608 | AI62: ='No1'!I113 -> 1689418 | AJ62: ='No1'!J113 -> 1908328 | AK62: ='No1'!K113 -> 2673463 | AL62: ='No1'!L113 -> 743857 | AM62: ='No1'!M113 -> 962767 | AN62: ='No1'!N113 -> 1181677 | AO62: ='No1'!O113 -> 1181677 | AP62: ='No1'!P113 -> 1181677 | AQ62: ='No1'!Q113 -> 1181677 | AR62: ='No1'!R113 -> 1181677
Z63: 前受収益 | AA63: 0 | AB63: ='No1'!B114 -> 0 | AC63: ='No1'!C114 -> 0 | AD63: ='No1'!D114 -> 0 | AE63: ='No1'!E114 -> 0 | AF63: ='No1'!F114 -> 0 | AG63: ='No1'!G114 -> 0 | AH63: ='No1'!H114 -> 0 | AI63: ='No1'!I114 -> 0 | AJ63: ='No1'!J114 -> 0 | AK63: ='No1'!K114 -> 0 | AL63: ='No1'!L114 -> 0 | AM63: ='No1'!M114 -> 0 | AN63: ='No1'!N114 -> 0 | AO63: ='No1'!O114 -> 0 | AP63: ='No1'!P114 -> 0 | AQ63: ='No1'!Q114 -> 0 | AR63: ='No1'!R114 -> 0
Z64: 仮受金 | AA64: 0 | AB64: ='No1'!B115 -> 0 | AC64: ='No1'!C115 -> 0 | AD64: ='No1'!D115 -> 0 | AE64: ='No1'!E115 -> 0 | AF64: ='No1'!F115 -> 0 | AG64: ='No1'!G115 -> 0 | AH64: ='No1'!H115 -> 0 | AI64: ='No1'!I115 -> 0 | AJ64: ='No1'!J115 -> 0 | AK64: ='No1'!K115 -> 0 | AL64: ='No1'!L115 -> 0 | AM64: ='No1'!M115 -> 0 | AN64: ='No1'!N115 -> 0 | AO64: ='No1'!O115 -> 0 | AP64: ='No1'!P115 -> 0 | AQ64: ='No1'!Q115 -> 0 | AR64: ='No1'!R115 -> 0
Z65: 預り保証金 | AA65: 0 | AB65: ='No1'!B116 -> 0 | AC65: ='No1'!C116 -> 0 | AD65: ='No1'!D116 -> 0 | AE65: ='No1'!E116 -> 0 | AF65: ='No1'!F116 -> 0 | AG65: ='No1'!G116 -> 0 | AH65: ='No1'!H116 -> 0 | AI65: ='No1'!I116 -> 0 | AJ65: ='No1'!J116 -> 0 | AK65: ='No1'!K116 -> 0 | AL65: ='No1'!L116 -> 0 | AM65: ='No1'!M116 -> 0 | AN65: ='No1'!N116 -> 0 | AO65: ='No1'!O116 -> 0 | AP65: ='No1'!P116 -> 0 | AQ65: ='No1'!Q116 -> 0 | AR65: ='No1'!R116 -> 0
Z66: 割引手形 | AA66: 800000 | AB66: ='No1'!B117 -> 800000 | AC66: ='No1'!C117 -> 800000 | AD66: ='No1'!D117 -> 800000 | AE66: ='No1'!E117 -> 800000 | AF66: ='No1'!F117 -> 800000 | AG66: ='No1'!G117 -> 800000 | AH66: ='No1'!H117 -> 800000 | AI66: ='No1'!I117 -> 800000 | AJ66: ='No1'!J117 -> 800000 | AK66: ='No1'!K117 -> 800000 | AL66: ='No1'!L117 -> 800000 | AM66: ='No1'!M117 -> 800000 | AN66: ='No1'!N117 -> 800000 | AO66: ='No1'!O117 -> 800000 | AP66: ='No1'!P117 -> 800000 | AQ66: ='No1'!Q117 -> 800000 | AR66: ='No1'!R117 -> 800000
Z67: 仮受消費税 | AA67: 0 | AB67: ='No1'!B119 -> 1111127 | AC67: ='No1'!C119 -> 2703272 | AD67: ='No1'!D119 -> 4030037 | AE67: ='No1'!E119 -> 5369334 | AF67: ='No1'!F119 -> 6666118 | AG67: ='No1'!G119 -> 8174984 | AH67: ='No1'!H119 -> 8174984 | AI67: ='No1'!I119 -> 9549608 | AJ67: ='No1'!J119 -> 10559012 | AK67: ='No1'!K119 -> 11719664 | AL67: ='No1'!L119 -> 13144850 | AM67: ='No1'!M119 -> 13795664 | AN67: ='No1'!N119 -> 14206924 | AO67: ='No1'!O119 -> 14206924 | AP67: ='No1'!P119 -> 14206924 | AQ67: ='No1'!Q119 -> 0 | AR67: ='No1'!R119 -> 0
Z68: 流動負債合計 | AA68: 67868958 | AB68: ='No1'!B121 -> 47471308 | AC68: ='No1'!C121 -> 50488578 | AD68: ='No1'!D121 -> 55526954 | AE68: ='No1'!E121 -> 65244329 | AF68: ='No1'!F121 -> 54162187 | AG68: ='No1'!G121 -> 63729520 | AH68: ='No1'!H121 -> 63729520 | AI68: ='No1'!I121 -> 73362012 | AJ68: ='No1'!J121 -> 75242595 | AK68: ='No1'!K121 -> 78537452 | AL68: ='No1'!L121 -> 85253381 | AM68: ='No1'!M121 -> 87294812 | AN68: ='No1'!N121 -> 79448782 | AO68: ='No1'!O121 -> 79448782 | AP68: ='No1'!P121 -> 79448782 | AQ68: ='No1'!Q121 -> 67868958 | AR68: ='No1'!R121 -> 67868958
Z70: 長期借入金 | AA70: 9919639 | AB70: ='No1'!B123 -> 17550000 | AC70: ='No1'!C123 -> 16513215 | AD70: ='No1'!D123 -> 15475767 | AE70: ='No1'!E123 -> 14437897 | AF70: ='No1'!F123 -> 13399604 | AG70: ='No1'!G123 -> 12360888 | AH70: ='No1'!H123 -> 12360888 | AI70: ='No1'!I123 -> 11131754 | AJ70: ='No1'!J123 -> 10492187 | AK70: ='No1'!K123 -> 10492187 | AL70: ='No1'!L123 -> 10301766 | AM70: ='No1'!M123 -> 10110917 | AN70: ='No1'!N123 -> 9919639 | AO70: ='No1'!O123 -> 9919639 | AP70: ='No1'!P123 -> 9919639 | AQ70: ='No1'!Q123 -> 9919639 | AR70: ='No1'!R123 -> 9919639
AA71: 0 | AB71: ='No1'!B124 -> 0 | AC71: ='No1'!C124 -> 0 | AD71: ='No1'!D124 -> 0 | AE71: ='No1'!E124 -> 0 | AF71: ='No1'!F124 -> 0 | AG71: ='No1'!G124 -> 0 | AH71: ='No1'!H124 -> 0 | AI71: ='No1'!I124 -> 0 | AJ71: ='No1'!J124 -> 0 | AK71: ='No1'!K124 -> 0 | AL71: ='No1'!L124 -> 0 | AM71: ='No1'!M124 -> 0 | AN71: ='No1'!N124 -> 0 | AO71: ='No1'!O124 -> 0 | AP71: ='No1'!P124 -> 0 | AQ71: ='No1'!Q124 -> 0 | AR71: ='No1'!R124 -> 0
AA72: 0 | AB72: ='No1'!B126 -> 0 | AC72: ='No1'!C126 -> 0 | AD72: ='No1'!D126 -> 0 | AE72: ='No1'!E126 -> 0 | AF72: ='No1'!F126 -> 0 | AG72: ='No1'!G126 -> 0 | AH72: ='No1'!H126 -> 0 | AI72: ='No1'!I126 -> 0 | AJ72: ='No1'!J126 -> 0 | AK72: ='No1'!K126 -> 0 | AL72: ='No1'!L126 -> 0 | AM72: ='No1'!M126 -> 0 | AN72: ='No1'!N126 -> 0 | AO72: ='No1'!O126 -> 0 | AP72: ='No1'!P126 -> 0 | AQ72: ='No1'!Q126 -> 0 | AR72: ='No1'!R126 -> 0
Z74: 資本金 | AA74: 10000000 | AB74: ='No1'!B130 -> 10000000 | AC74: ='No1'!C130 -> 10000000 | AD74: ='No1'!D130 -> 10000000 | AE74: ='No1'!E130 -> 10000000 | AF74: ='No1'!F130 -> 10000000 | AG74: ='No1'!G130 -> 10000000 | AH74: ='No1'!H130 -> 10000000 | AI74: ='No1'!I130 -> 10000000 | AJ74: ='No1'!J130 -> 10000000 | AK74: ='No1'!K130 -> 10000000 | AL74: ='No1'!L130 -> 10000000 | AM74: ='No1'!M130 -> 10000000 | AN74: ='No1'!N130 -> 10000000 | AO74: ='No1'!O130 -> 10000000 | AP74: ='No1'!P130 -> 10000000 | AQ74: ='No1'!Q130 -> 10000000 | AR74: ='No1'!R130 -> 10000000
Z75: 資本準備金 | AA75: 5000000 | AB75: ='No1'!B136 -> 5000000 | AC75: ='No1'!C136 -> 5000000 | AD75: ='No1'!D136 -> 5000000 | AE75: ='No1'!E136 -> 5000000 | AF75: ='No1'!F136 -> 5000000 | AG75: ='No1'!G136 -> 5000000 | AH75: ='No1'!H136 -> 5000000 | AI75: ='No1'!I136 -> 5000000 | AJ75: ='No1'!J136 -> 5000000 | AK75: ='No1'!K136 -> 5000000 | AL75: ='No1'!L136 -> 5000000 | AM75: ='No1'!M136 -> 5000000 | AN75: ='No1'!N136 -> 5000000 | AO75: ='No1'!O136 -> 5000000 | AP75: ='No1'!P136 -> 5000000 | AQ75: ='No1'!Q136 -> 5000000 | AR75: ='No1'!R136 -> 5000000
Z76: 資本準備金合計 | AA76: 5000000 | AB76: ='No1'!B143 -> 5000000 | AC76: ='No1'!C143 -> 5000000 | AD76: ='No1'!D143 -> 5000000 | AE76: ='No1'!E143 -> 5000000 | AF76: ='No1'!F143 -> 5000000 | AG76: ='No1'!G143 -> 5000000 | AH76: ='No1'!H143 -> 5000000 | AI76: ='No1'!I143 -> 5000000 | AJ76: ='No1'!J143 -> 5000000 | AK76: ='No1'!K143 -> 5000000 | AL76: ='No1'!L143 -> 5000000 | AM76: ='No1'!M143 -> 5000000 | AN76: ='No1'!N143 -> 5000000 | AO76: ='No1'!O143 -> 5000000 | AP76: ='No1'!P143 -> 5000000 | AQ76: ='No1'!Q143 -> 5000000 | AR76: ='No1'!R143 -> 5000000
Z77: 別途積立金 | AA77: 2000000 | AB77: ='No1'!B145 -> 2000000 | AC77: ='No1'!C145 -> 2000000 | AD77: ='No1'!D145 -> 2000000 | AE77: ='No1'!E145 -> 2000000 | AF77: ='No1'!F145 -> 2000000 | AG77: ='No1'!G145 -> 2000000 | AH77: ='No1'!H145 -> 2000000 | AI77: ='No1'!I145 -> 2000000 | AJ77: ='No1'!J145 -> 2000000 | AK77: ='No1'!K145 -> 2000000 | AL77: ='No1'!L145 -> 2000000 | AM77: ='No1'!M145 -> 2000000 | AN77: ='No1'!N145 -> 2000000 | AO77: ='No1'!O145 -> 2000000 | AP77: ='No1'!P145 -> 2000000 | AQ77: ='No1'!Q145 -> 2000000 | AR77: ='No1'!R145 -> 2000000
Z78: 繰越利益 | AA78: 65810628 | AB78: ='No1'!B147 -> 53802733 | AC78: ='No1'!C147 -> 53802733 | AD78: ='No1'!D147 -> 53802733 | AE78: ='No1'!E147 -> 53802733 | AF78: ='No1'!F147 -> 53802733 | AG78: ='No1'!G147 -> 53802733 | AH78: ='No1'!H147 -> 53802733 | AI78: ='No1'!I147 -> 53802733 | AJ78: ='No1'!J147 -> 53802733 | AK78: ='No1'!K147 -> 53802733 | AL78: ='No1'!L147 -> 53802733 | AM78: ='No1'!M147 -> 53802733 | AN78: ='No1'!N147 -> 53802733 | AO78: ='No1'!O147 -> 53802733 | AP78: ='No1'!P147 -> 53802733 | AQ78: ='No1'!Q147 -> 53802733 | AR78: ='No1'!R147 -> 53802733
Z79: 当期純損益金額 | AA79: 0 | AB79: ='No1'!B148 -> 1537770 | AC79: ='No1'!C148 -> 5404503 | AD79: ='No1'!D148 -> 7656215 | AE79: ='No1'!E148 -> 3002015 | AF79: ='No1'!F148 -> 6541203 | AG79: ='No1'!G148 -> 12914196 | AH79: ='No1'!H148 -> 12914196 | AI79: ='No1'!I148 -> 15121276 | AJ79: ='No1'!J148 -> 13143277 | AK79: ='No1'!K148 -> 13192397 | AL79: ='No1'!L148 -> 22354847 | AM79: ='No1'!M148 -> 16803316 | AN79: ='No1'!N148 -> 18259470 | AO79: ='No1'!O148 -> 18259470 | AP79: ='No1'!P148 -> 18259470 | AQ79: ='No1'!Q148 -> 12007895 | AR79: ='No1'!R148 -> 12007895
Z85: 純資産合計 | AA85: 87810628 | AB85: ='No1'!B167 -> 77340503 | AC85: ='No1'!C167 -> 81207236 | AD85: ='No1'!D167 -> 83458948 | AE85: ='No1'!E167 -> 78804748 | AF85: ='No1'!F167 -> 82343936 | AG85: ='No1'!G167 -> 88716929 | AH85: ='No1'!H167 -> 88716929 | AI85: ='No1'!I167 -> 90924009 | AJ85: ='No1'!J167 -> 88946010 | AK85: ='No1'!K167 -> 88995130 | AL85: ='No1'!L167 -> 98157580 | AM85: ='No1'!M167 -> 92606049 | AN85: ='No1'!N167 -> 94062203 | AO85: ='No1'!O167 -> 94062203 | AP85: ='No1'!P167 -> 94062203 | AQ85: ='No1'!Q167 -> 87810628 | AR85: ='No1'!R167 -> 87810628
Z87: 負債･純資産合計 | AA87: 165599225 | AB87: ='No1'!B168 -> 142361811 | AC87: ='No1'!C168 -> 148209029 | AD87: ='No1'!D168 -> 154461669 | AE87: ='No1'!E168 -> 158486974 | AF87: ='No1'!F168 -> 149905727 | AG87: ='No1'!G168 -> 164807337 | AH87: ='No1'!H168 -> 164807337 | AI87: ='No1'!I168 -> 175417775 | AJ87: ='No1'!J168 -> 174680792 | AK87: ='No1'!K168 -> 178024769 | AL87: ='No1'!L168 -> 193712727 | AM87: ='No1'!M168 -> 190011778 | AN87: ='No1'!N168 -> 183430624 | AO87: ='No1'!O168 -> 183430624 | AP87: ='No1'!P168 -> 183430624 | AQ87: ='No1'!Q168 -> 165599225 | AR87: ='No1'!R168 -> 165599225
AA89: 前期 | AB89: ='No1'!B171 -> 4月度 | AC89: ='No1'!C171 -> 5月度 | AD89: ='No1'!D171 -> 6月度 | AE89: ='No1'!E171 -> 7月度 | AF89: ='No1'!F171 -> 8月度 | AG89: ='No1'!G171 -> 9月度 | AH89: ='No1'!H171 -> 上半期残高(合計) | AI89: ='No1'!I171 -> 10月度 | AJ89: ='No1'!J171 -> 11月度 | AK89: ='No1'!K171 -> 12月度 | AL89: ='No1'!L171 -> 1月度 | AM89: ='No1'!M171 -> 2月度 | AN89: ='No1'!N171 -> 3月度 | AO89: ='No1'!O171 -> 下半期残高(合計) | AP89: ='No1'!P171 -> 当期仮残高(合計)
Z90: 売上高 | AB90: ='No1'!B173 -> 23730235 | AC90: ='No1'!C173 -> 29370928 | AD90: ='No1'!D173 -> 26360153 | AE90: ='No1'!E173 -> 25751245 | AF90: ='No1'!F173 -> 26527462 | AG90: ='No1'!G173 -> 30242038 | AH90: ='No1'!H173 -> 161982061 | AI90: ='No1'!I173 -> 29274704 | AJ90: ='No1'!J173 -> 19625274 | AK90: ='No1'!K173 -> 24076028 | AL90: ='No1'!L173 -> 33236724 | AM90: ='No1'!M173 -> 13016544 | AN90: ='No1'!N173 -> 8225518 | AO90: ='No1'!O173 -> 127454792 | AP90: ='No1'!P173 -> 289436853 | AQ90: ='No1'!Q173 -> 0 | AR90: ='No1'!R173 -> 289436853
Z91: 累計売上高 | AA91: 279033636.4 | AB91: =AB90 -> 23730235 | AC91: =AB91+AC90 -> 53101163 | AD91: =AC91+AD90 -> 79461316 | AE91: 105212561 | AF91: 131740023 | AG91: 161982061 | AI91: =AG91+AI90 -> 191256765 | AJ91: 210882039 | AK91: 234958067 | AL91: 268194791 | AM91: 281211335 | AN91: 289436853 | AO91: 416891645
Z92: 平均月商 | AA92: =AA91/12 -> 23252803.03 | AB92: =AB91 -> 23730235 | AC92: =AC91/AC4 -> 26550581.5 | AD92: =AD91/AD4 -> 26487105.33 | AE92: =AE91/AE4 -> 26303140.25 | AF92: =AF91/AF4 -> 26348004.6 | AG92: =AG91/AG4 -> 26997010.17 | AH92: =AH91/AI4 -> 0 | AI92: =AI91/AI4 -> 27322395 | AJ92: 26360254.88 | AK92: 26106451.89 | AL92: 26819479.1 | AM92: 25564666.82 | AN92: 24119737.75

Sheet No5
G2: 比較貸借対照表
C3: 期首 | H3: =auto1!J10 -> 7 | I3: 月末現在
C4: 前年同月 | F4: =IF(F5>=4,F5-3,F5+9) -> 4 | H4: 期首 | I4: 比較 | O4: (単位:千円)
B5: 借方 | D5: =H4 -> 期首 | F5: =H3 -> 7 | G5: 月 | H5: 増減 | I5: 貸方 | K5: =D5 -> 期首 | M5: =F5 -> 7 | N5: 月 | O5: =H5 -> 増減
D6: 金額 | E6: 日 | F6: 金額 | G6: 日 | K6: =D6 -> 金額 | L6: =E6 -> 日 | M6: =F6 -> 金額 | N6: =G6 -> 日
A7: 7822.432 | B7: 現金･預金 | D7: 56661725 | E7: =D7/$D$48*30 -> 73.10308988 | F7: ='No4'!F7 -> 40997252 | G7: =F7/$F$48*30 -> 46.75934312 | H7: =F7-D7 -> -15664473 | I7: 仕入債務 | J7: 支払手形 | K7: 4000000 | L7: =K7/$D$48*30 -> 5.16066815 | M7: ='No4'!M7 -> 4000000 | N7: ='No4'!N7 -> 4.562192912 | O7: =M7-K7 -> 0 | P7: 2027.287
A8: 0 | B8: 定期預金 | D8: 2012000 | E8: =D8/$D$48*30 -> 2.59581608 | F8: ='No4'!F8 -> 2004000 | G8: =F8/$F$48*30 -> 2.285658649 | H8: =F8-D8 -> -8000 | J8: 買掛金 | K8: 57908481 | L8: =K8/$D$48*30 -> 74.71161338 | M8: ='No4'!M8 -> 47067747 | N8: ='No4'!N8 -> 53.68303543 | O8: =M8-K8 -> -10840734 | P8: 13028.268
A9: 587.698 | B9: 売上債権 | C9: ='No4'!C9 -> 受取手形 | D9: 0 | E9: =D9/$D$48*30 -> 0 | F9: ='No4'!F9 -> 5000000 | G9: =F9/$F$48*30 -> 5.702741139 | H9: 5000000 | M9: ='No4'!M9 -> 0 | N9: ='No4'!N9 -> 0
A10: 16110 | C10: ='No4'!C10 -> 売掛金 | D10: 33906364 | E10: =D10/$D$48*30 -> 43.7448732 | F10: ='No4'!F10 -> 40791618 | G10: =F10/$F$48*30 -> 46.52480762 | H10: 6885254 | I10: ='No4'!I10 -> 短期借入金 | K10: 1000000 | L10: =K10/$D$48*30 -> 1.290167038 | M10: ='No4'!M10 -> 1500000 | N10: ='No4'!N10 -> 1.710822342 | O10: =M10-K10 -> 500000 | P10: 2000
A11: 0 | C11: ='No4'!C11 -> 貸倒引当金(売） | D11: -330000 | F11: ='No4'!F11 -> -280000 | G11: =F11/$F$48*30 -> -0.3193535038 | H11: 50000 | I11: 他流動負債 | J11: 未払金 | K11: 0 | L11: =K11/$D$48*30 -> 0 | M11: ='No4'!M11 -> 0 | N11: ='No4'!N11 -> 0 | O11: 0 | P11: 497.253
A12: 0 | D12: 0 | J12: 未払費用 | K12: 0 | L12: =K12/$D$48*30 -> 0 | M12: ='No4'!M12 -> 0 | N12: ='No4'!N12 -> 0 | O12: 0 | P12: 400
A13: 0 | B13: ='No4'!B13 -> 有価証券 | D13: 0 | E13: =D13/$D$48*30 -> 0 | F13: ='No4'!F13 -> 0 | G13: =F13/$F$48*30 -> 0 | H13: 0 | J13: 未払配当金 | K13: 0 | L13: =K13/$D$48*30 -> 0 | M13: ='No4'!M13 -> 0 | N13: ='No4'!N13 -> 0 | O13: 0 | P13: 984.31
A14: 6589.742 | B14: 棚卸資産 | C14: 商品・製品 | D14: 1301290 | E14: =D14/$D$48*30 -> 1.678881464 | F14: ='No4'!F14 -> 1420830 | G14: 1.620525139 | H14: 119540 | J14: 未払役員賞与 | K14: 0 | L14: =K14/$D$48*30 -> 0 | M14: ='No4'!M14 -> 0 | N14: ='No4'!N14 -> 0 | O14: 0 | P14: 0
A15: 178.63 | C15: 半製品 | D15: 291770 | F15: ='No4'!F15 -> 301100 | G15: 0.3434190714 | H15: 9330 | J15: 未払法人税等 | K15: 1900000 | L15: =K15/$D$48*30 -> 2.451317371 | M15: ='No4'!M15 -> 0 | N15: ='No4'!N15 -> 0 | O15: -1900000 | P15: 804.042
A16: 168.25 | C16: 原材料 | D16: 380020 | E16: =D16/$D$48*30 -> 0.4902892776 | F16: ='No4'!F16 -> 447210 | G16: 0.510064573 | H16: 67190 | J16: 未払事業税等 | K16: 0 | L16: 0 | M16: ='No4'!M16 -> 0 | N16: ='No4'!N16 -> 0 | O16: 0 | P16: 0
C17: 仕掛品 | D17: 32000 | F17: ='No4'!F17 -> 36000 | G17: 0.0410597362 | H17: 4000 | J17: 未払消費税等 | K17: 1078800 | L17: 1.3918322 | M17: ='No4'!M17 -> 351700 | N17: ='No4'!N17 -> 0.4011308117 | O17: -727100 | P17: 0
B18: 他流動資産 | C18: 立替金 | D18: 0 | E18: =D18/$D$48*30 -> 0 | F18: ='No4'!F18 -> 0 | G18: 0 | H18: 0 | J18: 繰延税金負債(流) | K18: 0 | L18: 0 | M18: ='No4'!M18 -> 0 | N18: ='No4'!N18 -> 0 | O18: 0 | P18: 0
A19: 0 | C19: 繰延税金資産(流) | D19: 0 | E19: =D19/$D$48*30 -> 0 | F19: ='No4'!F19 -> 0 | G19: 0 | H19: 0 | J19: 前受金 | K19: 0 | L19: 0 | M19: ='No4'!M19 -> 0 | N19: ='No4'!N19 -> 0 | O19: 0 | P19: 0
A20: 0 | C20: 未収収益 | D20: 300000 | E20: =D20/$D$48*30 -> 0.3870501113 | F20: ='No4'!F20 -> 300000 | G20: 0.3421644684 | H20: 0 | J20: 預り金 | K20: 1181677 | L20: =K20/$D$48*30 -> 1.524560714 | M20: ='No4'!M20 -> 1155548 | N20: ='No4'!N20 -> 1.317958224 | O20: -26129
C21: 短期貸付金 | F21: ='No4'!F21 -> 0 | H21: 0 | J21: 前受収益 | K21: 0 | M21: ='No4'!M21 -> 0 | N21: ='No4'!N21 -> 0 | O21: 0
A22: 0 | C22: 未収入金 | D22: 0 | E22: =D22/$D$48*30 -> 0 | F22: ='No4'!F22 -> 0 | G22: =F22/$F$48*30 -> 0 | H22: 0 | J22: 仮受金 | K22: 0 | L22: =K22/$D$48*30 -> 0 | M22: ='No4'!M22 -> 0 | N22: ='No4'!N22 -> 0 | O22: 0
A23: 0 | C23: 仮払金 | D23: 0 | E23: =D23/$D$48*30 -> 0 | F23: ='No4'!F23 -> 0 | G23: =F23/$F$48*30 -> 0 | H23: 0 | J23: 預り保証金 | K23: 0 | L23: 0 | M23: ='No4'!M23 -> 0 | N23: ='No4'!N23 -> 0 | O23: 0
A24: 0 | C24: 預け金 | D24: 0 | F24: ='No4'!F24 -> 0 | G24: =F24/$F$48*30 -> 0 | H24: 0 | J24: 割引手形 | K24: 800000 | L24: 1.03213363 | M24: ='No4'!M24 -> 800000 | N24: ='No4'!N24 -> 0.9124385823 | O24: 0
C25: 仮払消費税 | D25: 0 | F25: ='No4'!F25 -> 4393821 | G25: =F25/$F$48*30 -> 5.011364755 | H25: 4393821 | J25: 仮受消費税 | K25: 0 | L25: 0 | M25: ='No4'!M25 -> 5369334 | N25: ='No4'!N25 -> 6.123984379 | O25: 5369334
A26: 31456.636 | B26: 小計 | D26: 94604513 | E26: =D26/$D$48*30 -> 122.0556243 | F26: ='No4'!F26 -> 95567649 | G26: =F26/$F$48*30 -> 108.9995127 | H26: 963136 | I26: 小計 | K26: 67868958 | L26: =K26/$D$48*30 -> 87.56229248 | M26: ='No4'!M26 -> 65244329 | N26: ='No4'!N26 -> 74.41430382 | O26: =M26-K26 -> -2624629 | P26: 19741
D27: 0
A28: 12000 | B28: 固定資産 | C28: ='No4'!C28 -> 建物 | D28: 34153200 | E28: =D28/$D$48*30 -> 44.06333287 | F28: ='No4'!F28 -> 22671600 | G28: =F28/$F$48*30 -> 25.8580532 | H28: -11481600 | I28: 固定負債 | J28: ='No4'!J28 -> 長期借入金 | K28: 9919639 | L28: =K28/$D$48*30 -> 12.79799126 | M28: ='No4'!M28 -> 14437897 | N28: ='No4'!N28 -> 16.46711784 | O28: =M28-K28 -> 4518258 | P28: 25250
A29: 1250 | C29: ='No4'!C29 -> 建物附属設備 | D29: 652765 | E29: =D29/$D$48*30 -> 0.8421758863 | F29: ='No4'!F29 -> 822122 | G29: =F29/$F$48*30 -> 0.9376697902 | H29: =F29-D29 -> 169357 | J29: ='No4'!J29 -> 長期未払金 | K29: 0 | L29: =K29/$D$48*30 -> 0 | M29: ='No4'!M29 -> 0 | N29: ='No4'!N29 -> 0 | O29: =M29-K29 -> 0 | P29: 0
A30: 0 | C30: ='No4'!C30 -> 構築物 | D30: 0 | E30: 0 | F30: ='No4'!F30 -> 0 | G30: 0 | H30: 0 | J30: ='No4'!J30 -> 退職給与引当金 | L30: =K30/$D$48*30 -> 0 | M30: ='No4'!M30 -> 0 | N30: ='No4'!N30 -> 0 | O30: =M30-K30 -> 0 | P30: 0
A31: 0 | C31: ='No4'!C31 -> 機械装置 | D31: 1536394 | E31: 1.982204895 | F31: ='No4'!F31 -> 2256085 | G31: 2.573173749 | H31: 719691
A32: 6386.2 | C32: ='No4'!C32 -> 車両運搬具 | D32: 3193104 | E32: 4.119637528 | F32: ='No4'!F32 -> 5287476 | G32: 6.030621382 | H32: 2094372 | I32: 内部留保 | J32: ='No4'!J32 -> 資本金 | K32: 10000000 | L32: =K32/$D$48*30 -> 12.90167038 | M32: ='No4'!M32 -> 10000000 | N32: ='No4'!N32 -> 11.40548228 | O32: =M32-K32 -> 0 | P32: 10000
A33: 2003 | C33: ='No4'!C33 -> 工具器具備品 | D33: 546392 | E33: 0.704936948 | F33: ='No4'!F33 -> 812042 | G33: 0.9261730641 | H33: 265650 | J33: ='No4'!J33 -> 資本準備金 | K33: 5000000 | L33: 6.450835188 | M33: ='No4'!M33 -> 5000000 | N33: ='No4'!N33 -> 5.702741139 | O33: 0 | P33: 0
C34: 一括償却資産 | D34: 62857 | J34: ='No4'!J34 -> 利益準備金 | K34: 5000000 | L34: 6.450835188 | M34: ='No4'!M34 -> 5000000 | N34: ='No4'!N34 -> 5.702741139 | O34: =M34-K34 -> 0
A35: -4854.363 | C35: ='No4'!C35 -> 減価償却累計額 | D35: 0 | E35: 0 | F35: ='No4'!F34 -> 120000 | G35: 0.1368657873 | H35: 120000 | J35: 法定準備金 | K35: 2000000 | L35: 2.580334075 | M35: ='No4'!M35 -> 2000000 | N35: ='No4'!N35 -> 2.281096456 | O35: =M35-K35 -> 0 | P35: 0
A36: 15000 | C36: ='No4'!C36 -> 土地 | D36: 25000000 | E36: 32.25417594 | F36: ='No4'!F36 -> 25000000 | G36: 28.5137057 | H36: 0 | J36: 繰越利益 | K36: 65810628 | L36: 84.90670297 | M36: ='No4'!M36 -> 53802733 | N36: ='No4'!N36 -> 61.36461178 | O36: =M36-K36 -> -12007895 | P36: 0
A37: 0 | C37: ='No4'!C37 -> 電話加入権 | D37: 150000 | E37: 0.1935250556 | F37: ='No4'!F37 -> 150000 | G37: 0.1710822342 | H37: =F37-D37 -> 0 | J37: 当期純損益金額 | K37: 0 | L37: 0 | M37: ='No4'!M37 -> 3002015 | N37: ='No4'!N37 -> 3.423942888 | O37: =M37-K37 -> 3002015
A38: 0 | C38: 投資有価証券 | D38: 3000000 | E38: 3.870501113 | F38: ='No4'!F38 -> 3000000 | G38: 3.421644684 | H38: 0 | K38: 0
A39: 0 | C39: ='No4'!C39 -> 関係会社株式 | D39: 500000 | E39: 0.6450835188 | F39: ='No4'!F39 -> 500000 | G39: 0.5702741139 | H39: 0 | K39: 0 | M39: ='No4'!M39 -> 0 | O39: 0 | P39: 9645
A40: 525 | C40: ソフトウェア | D40: 300000 | E40: 0.3870501113 | F40: ='No4'!F40 -> 400000 | G40: 0.4562192912 | H40: 100000 | K40: 0 | M40: ='No4'!M40 -> 0 | O40: 0 | P40: 6519.235
A41: 10 | C41: ='No4'!C41 -> 出資金 | D41: 700000 | E41: 0.9031169263 | F41: ='No4'!F41 -> 700000 | G41: 0.7983837595 | H41: 0 | K41: 0
A42: 860 | C42: ='No4'!C42 -> 関係会社出資金 | D42: 1200000 | E42: 1.548200445 | F42: ='No4'!F42 -> 1200000 | G42: 1.368657873 | H42: 0 | K42: 0
C43: 敷金 | D43: 0
A44: 33179.837 | B44: 小計 | D44: 70994712 | E44: =D44/$D$48*30 -> 91.59503726 | F44: ='No4'!F44 -> 62919325 | G44: =F44/$F$48*30 -> 71.76252463 | H44: -8075387 | I44: 小計 | K44: 87810628 | L44: =K44/$D$48*30 -> 113.2903778 | M44: ='No4'!M44 -> 78804748 | N44: ='No4'!N44 -> 89.88061568 | O44: =M44-K44 -> -9005880 | P44: 44895.313
D45: 0
A46: 64636.473 | B46: 合計 | D46: 165599225 | E46: =D46/$D$48*30 -> 213.6506615 | F46: ='No4'!F46 -> 158486974 | G46: =F46/$F$48*30 -> 180.7620373 | H46: =F46-D46 -> -7112251 | I46: 合計 | K46: 165599225 | L46: =K46/$D$48*30 -> 213.6506615 | M46: ='No4'!M46 -> 158486974 | N46: ='No4'!N46 -> 180.7620373 | O46: =M46-K46 -> -7112251 | P46: 64636.473
D47: =A47*1000 -> 0
B48: 平均月商 | D48: ='No4'!AA92 -> 23252803.03 | E48: 30 | F48: ='No4'!F49 -> 26303140.25 | G48: 30 | H48: =F48-D48 -> 3050337.22

Sheet No6
F2: 比較損益計算書
G3: =auto1!J10 -> 7 | H3: 月末現在 | R3: =IF($I$4>=1,$I$4,0) -> 4 | S3: =IF($I$4>=2,$I$4,0) -> 4 | T3: =IF($I$4>=3,$I$4,0) -> 4 | U3: =IF($I$4>=4,$I$4,0) -> 4 | V3: =IF($I$4>=5,$I$4,0) -> 0 | W3: =IF($I$4>=6,$I$4,0) -> 0 | Y3: =IF($I$4>=8,$I$4,0) -> 0 | Z3: =IF($I$4>=9,$I$4,0) -> 0 | AA3: =IF($I$4>=10,$I$4,0) -> 0 | AB3: =IF($I$4>=11,$I$4,0) -> 0 | AC3: =IF($I$4>=12,$I$4,0) -> 0 | AD3: =IF($I$4>=12,$I$4,0) -> 0 | AG3: =IF($I$4>=1,$I$4,0) -> 4 | AH3: =IF($I$4>=2,$I$4,0) -> 4 | AI3: =IF($I$4>=3,$I$4,0) -> 4 | AJ3: =IF($I$4>=4,$I$4,0) -> 4 | AK3: =IF($I$4>=5,$I$4,0) -> 0 | AL3: =IF($I$4>=6,$I$4,0) -> 0 | AN3: =IF($I$4>=8,$I$4,0) -> 0 | AO3: =IF($I$4>=9,$I$4,0) -> 0 | AP3: =IF($I$4>=10,$I$4,0) -> 0 | AQ3: =IF($I$4>=11,$I$4,0) -> 0 | AR3: =IF($I$4>=12,$I$4,0) -> 0 | AS3: =IF($I$4>=12,$I$4,0) -> 0
D4: =IF(H4>=4,H4-3,H4+9) -> 4 | H4: =G3 -> 7 | I4: =IF(H4<4,H4+9,H4-3) -> 4 | M4: （単位：千円） | R4: 1 | S4: 2 | T4: 3 | U4: 4 | V4: 5 | W4: 6 | Y4: 7 | Z4: 8 | AA4: 9 | AB4: 10 | AC4: 11 | AD4: 12 | AG4: 1 | AH4: 2 | AI4: 3 | AJ4: 4 | AK4: 5 | AL4: 6 | AN4: 7 | AO4: 8 | AP4: 9 | AQ4: 10 | AR4: 11 | AS4: 12
B5: 勘定科目 | C5: 当月 | I5: 累計 | Q5: 勘定科目 | R5: 当期 | AG5: 計画
C6: 計画 | E6: 実績 | G6: 増減 | H6: 計画比 | I6: 計画 | K6: 実績 | M6: 増減 | N6: 計画比 | R6: ='No1'!B8 -> 4月度 | S6: ='No1'!C8 -> 5月度 | T6: ='No1'!D8 -> 6月度 | U6: ='No1'!E8 -> 7月度 | V6: ='No1'!F8 -> 8月度 | W6: ='No1'!G8 -> 9月度 | X6: ='No1'!H8 -> 上半期残高(合計) | Y6: ='No1'!I8 -> 10月度 | Z6: ='No1'!J8 -> 11月度 | AA6: ='No1'!K8 -> 12月度 | AB6: ='No1'!L8 -> 1月度 | AC6: ='No1'!M8 -> 2月度 | AD6: ='No1'!N8 -> 3月度 | AE6: 合計 | AG6: 4月度 | AH6: 5月度 | AI6: 6月度 | AJ6: 7月度 | AK6: 8月度 | AL6: 9月度 | AN6: 10月度 | AO6: 11月度 | AP6: 12月度 | AQ6: 1月度 | AR6: 2月度 | AS6: 3月度 | AT6: 合計
C7: 金額 | D7: % | E7: 金額 | F7: % | I7: 金額 | J7: % | K7: 金額 | L7: % | AD7: 0 | AS7: 0
B8: 売上高 | C8: =SUMIF($AG$4:$AS$4,$D$4,AG8:AR8) -> 25751245 | D8: =ROUND(C8/$C$8*100,2) -> 100 | E8: =SUMIF($R$4:$AD$4,$D$4,R8:AC8) -> 25751245 | F8: =ROUND(E8/$E$8*100,2) -> 100 | G8: =E8-C8 -> 0 | H8: =IF(OR(C8=0,E8=0),"",ROUND(E8/C8*100,0)) -> 100 | I8: =SUMIF($AG$3:$AR$3,$I$4,AG8:AS8) -> 105212561 | J8: 100 | K8: =SUMIF($R$3:$AC$3,$I$4,R8:AC8) -> 105212561 | L8: 100 | M8: =K8-I8 -> 0 | N8: =IF(OR(I8=0,K8=0),"",ROUND(K8/I8*100,0)) -> 100 | Q8: 売上高 | R8: ='No1'!B173 -> 23730235 | S8: ='No1'!C173 -> 29370928 | T8: ='No1'!D173 -> 26360153 | U8: ='No1'!E173 -> 25751245 | V8: ='No1'!F173 -> 26527462 | W8: ='No1'!G173 -> 30242038 | X8: ='No1'!H173 -> 161982061 | Y8: ='No1'!I173 -> 29274704 | Z8: ='No1'!J173 -> 19625274 | AA8: ='No1'!K173 -> 24076028 | AB8: ='No1'!L173 -> 33236724 | AC8: ='No1'!M173 -> 13016544 | AD8: ='No1'!N173 -> 8225518 | AF8: 売上高 | AG8: 23730235 | AH8: 29370928 | AI8: 26360153 | AJ8: 25751245 | AK8: 26527462 | AL8: 30242038 | AN8: 29274704 | AO8: 19625274 | AP8: 24076028 | AQ8: 33236724 | AR8: 13016544 | AS8: 8225518 | AT8: =SUM(AG8:AS8) -> 289436853
H9: =IF(OR(C9=0,E9=0),"",ROUND(E9/C9*100,0)) ->  | I9: =SUMIF($AG$3:$AR$3,$I$4,AG9:AS9) -> 0 | N9: =IF(AND(I9=0,K9=0),"",ROUND(K9/I9*100,1)) ->  | AT9: =SUM(AG9:AS9) -> 0
B10: 売上原価 | C10: =SUMIF($AG$4:$AS$4,$D$4,AG10:AR10) -> 23777798 | D10: =ROUND(C10/C$8*100,2) -> 92.34 | E10: =SUMIF($R$4:$AD$4,$D$4,R10:AC10) -> 23777798 | F10: 92.34 | G10: =E10-C10 -> 0 | H10: =IF(OR(C10=0,E10=0),"",ROUND(E10/C10*100,0)) -> 100 | I10: =SUMIF($AG$3:$AR$3,$I$4,AG10:AS10) -> 83363158 | J10: =ROUND(I10/I$8*100,2) -> 79.23 | K10: =SUMIF($R$3:$AC$3,$I$4,R10:AC10) -> 83363158 | L10: =ROUND(K10/K$8*100,2) -> 79.23 | M10: =K10-I10 -> 0 | N10: =IF(OR(I10=0,K10=0),"",ROUND(K10/I10*100,0)) -> 100 | Q10: 売上原価 | R10: ='No1'!B200 -> 18785515 | S10: ='No1'!C200 -> 21749851 | T10: ='No1'!D200 -> 19049994 | U10: ='No1'!E200 -> 23777798 | V10: ='No1'!F200 -> 18836093 | W10: ='No1'!G200 -> 20079234 | X10: ='No1'!H200 -> 122278485 | Y10: ='No1'!I200 -> 20289240 | Z10: ='No1'!J200 -> 14560253 | AA10: ='No1'!K200 -> 16142865 | AB10: ='No1'!L200 -> 19843197 | AC10: ='No1'!M200 -> 14246006 | AD10: ='No1'!N200 -> 2711293 | AF10: 売上原価 | AG10: 18785515 | AH10: 21749851 | AI10: 19049994 | AJ10: 23777798 | AK10: 18836093 | AL10: 20079234 | AN10: 20289240 | AO10: 14560253 | AP10: 16142865 | AQ10: 19843197 | AR10: 14246006 | AS10: 2711293 | AT10: 210071339
B11: 売上総損益 | C11: 1973447 | D11: 7.66 | E11: 1973447 | F11: 7.66 | G11: =E11-C11 -> 0 | H11: =IF(OR(C11=0,E11=0),"",ROUND(E11/C11*100,0)) -> 100 | I11: =SUMIF($AG$3:$AR$3,$I$4,AG11:AS11) -> 21849403 | J11: 20.77 | K11: 21849403 | L11: 20.77 | M11: 0 | N11: 100 | Q11: 売上総損益 | R11: ='No1'!B201 -> 4944720 | S11: ='No1'!C201 -> 7621077 | T11: ='No1'!D201 -> 7310159 | U11: ='No1'!E201 -> 1973447 | V11: ='No1'!F201 -> 7691369 | W11: ='No1'!G201 -> 10162804 | X11: ='No1'!H201 -> 39703576 | Y11: ='No1'!I201 -> 8985464 | Z11: ='No1'!J201 -> 5065021 | AA11: ='No1'!K201 -> 7933163 | AB11: ='No1'!L201 -> 13393527 | AC11: ='No1'!M201 -> -1229462 | AD11: ='No1'!N201 -> 5514225 | AF11: 売上総損益 | AG11: 4944720 | AH11: 7621077 | AI11: 7310159 | AJ11: 1973447 | AK11: 7691369 | AL11: 10162804 | AN11: 8985464 | AO11: 5065021 | AP11: 7933163 | AQ11: 13393527 | AR11: -1229462 | AS11: 5514225 | AT11: 79365514
C12: 0 | E12: 0 | I12: =SUMIF($AG$3:$AR$3,$I$4,AG12:AS12) -> 0 | K12: 0 | AT12: 0
B13: 販売費および管理費 | C13: 6593148 | D13: 25.6 | E13: 6593148 | F13: 25.6 | G13: =E13-C13 -> 0 | H13: =IF(OR(C13=0,E13=0),"",ROUND(E13/C13*100,0)) -> 100 | I13: 18715674 | J13: 17.79 | K13: 18715674 | L13: 17.79 | M13: 0 | N13: 100 | Q13: 販売費および管理費 | R13: ='No1'!B244 -> 3387900 | S13: ='No1'!C244 -> 3713775 | T13: ='No1'!D244 -> 5020851 | U13: ='No1'!E244 -> 6593148 | V13: ='No1'!F244 -> 4120887 | W13: ='No1'!G244 -> 3764765 | X13: ='No1'!H244 -> 26601326 | Y13: ='No1'!I244 -> 6726646 | Z13: ='No1'!J244 -> 3617584 | AA13: ='No1'!K244 -> 7881418 | AB13: ='No1'!L244 -> 4205720 | AC13: ='No1'!M244 -> 4298970 | AD13: ='No1'!N244 -> 4038446 | AF13: 販売費および管理費 | AG13: 3387900 | AH13: 3713775 | AI13: 5020851 | AJ13: 6593148 | AK13: 4120887 | AL13: 3764765 | AN13: 6726646 | AO13: 3617584 | AP13: 7881418 | AQ13: 4205720 | AR13: 4298970 | AS13: 4038446 | AT13: 57370110
B14: 営業利益 | C14: -4619701 | D14: -17.94 | E14: -4619701 | F14: -17.94 | G14: 0 | H14: 100 | I14: 3133729 | J14: 2.98 | K14: 3133729 | L14: 2.98 | M14: 0 | N14: 100 | Q14: 営業利益 | R14: ='No1'!B245 -> 1556820 | S14: ='No1'!C245 -> 3907302 | T14: ='No1'!D245 -> 2289308 | U14: ='No1'!E245 -> -4619701 | V14: ='No1'!F245 -> 3570482 | W14: ='No1'!G245 -> 6398039 | X14: ='No1'!H245 -> 13102250 | Y14: ='No1'!I245 -> 2258818 | Z14: ='No1'!J245 -> 1447437 | AA14: ='No1'!K245 -> 51745 | AB14: ='No1'!L245 -> 9187807 | AC14: ='No1'!M245 -> -5528432 | AD14: ='No1'!N245 -> 1475779 | AF14: 営業利益 | AG14: 1556820 | AH14: 3907302 | AI14: 2289308 | AJ14: -4619701 | AK14: 3570482 | AL14: 6398039 | AN14: 2258818 | AO14: 1447437 | AP14: 51745 | AQ14: 9187807 | AR14: -5528432 | AS14: 1475779 | AT14: 21995404
B15: ｢営業外収益」 | C15: 0 | D15: 0 | E15: 0 | F15: 0 | G15: 0 | I15: 0 | J15: 0 | K15: 0 | L15: 0 | M15: 0 | Q15: ｢営業外収益」 | AF15: ｢営業外収益」 | AT15: 0
B16: 受取利息 | C16: 0 | D16: 0 | E16: 0 | F16: 0 | G16: 0 | I16: 0 | J16: 0 | K16: 0 | L16: 0 | M16: 0 | Q16: 受取利息 | R16: ='No1'!B247 -> 0 | S16: ='No1'!C247 -> 0 | T16: ='No1'!D247 -> 0 | U16: ='No1'!E247 -> 0 | V16: ='No1'!F247 -> 1174 | W16: ='No1'!G247 -> 6154 | X16: ='No1'!H247 -> 7328 | Y16: ='No1'!I247 -> 0 | Z16: ='No1'!J247 -> 0 | AA16: ='No1'!K247 -> 0 | AB16: ='No1'!L247 -> 0 | AC16: ='No1'!M247 -> 100 | AD16: ='No1'!N247 -> 5000 | AF16: 受取利息 | AG16: 0 | AH16: 0 | AI16: 0 | AJ16: 0 | AK16: 1174 | AL16: 6154 | AN16: 0 | AO16: 0 | AP16: 0 | AQ16: 0 | AR16: 100 | AS16: 5000 | AT16: 12428
B17: 受取配当金 | C17: 0 | D17: 0 | E17: 0 | F17: 0 | G17: 0 | I17: 800 | J17: 0 | K17: 800 | L17: 0 | M17: 0 | N17: 100 | Q17: 受取配当金 | R17: ='No1'!B248 -> 0 | S17: ='No1'!C248 -> 800 | T17: ='No1'!D248 -> 0 | U17: ='No1'!E248 -> 0 | V17: ='No1'!F248 -> 0 | W17: ='No1'!G248 -> 0 | X17: ='No1'!H248 -> 800 | Y17: ='No1'!I248 -> 0 | Z17: ='No1'!J248 -> 0 | AA17: ='No1'!K248 -> 0 | AB17: ='No1'!L248 -> 0 | AC17: ='No1'!M248 -> 0 | AD17: ='No1'!N248 -> 0 | AF17: 受取配当金 | AG17: 0 | AH17: 800 | AI17: 0 | AJ17: 0 | AK17: 0 | AL17: 0 | AN17: 0 | AO17: 0 | AP17: 0 | AQ17: 0 | AR17: 0 | AS17: 0 | AT17: 800
B18: 営業外利益計 | C18: 0 | D18: 0 | E18: 0 | F18: 0 | G18: 0 | I18: 800 | J18: 0 | K18: 800 | L18: 0 | M18: 0 | N18: 100 | Q18: 営業外利益計 | R18: ='No1'!B252 -> 0 | S18: ='No1'!C252 -> 800 | T18: ='No1'!D252 -> 0 | U18: ='No1'!E252 -> 0 | V18: ='No1'!F252 -> 1174 | W18: ='No1'!G252 -> 6154 | X18: ='No1'!H252 -> 8128 | Y18: ='No1'!I252 -> 0 | Z18: ='No1'!J252 -> 0 | AA18: ='No1'!K252 -> 0 | AB18: ='No1'!L252 -> 0 | AC18: ='No1'!M252 -> 100 | AD18: ='No1'!N252 -> 5000 | AF18: 営業外利益計 | AG18: 0 | AH18: 800 | AI18: 0 | AJ18: 0 | AK18: 1174 | AL18: 6154 | AN18: 0 | AO18: 0 | AP18: 0 | AQ18: 0 | AR18: 100 | AS18: 5000 | AT18: 13228
B19: ｢営業外費用」 | C19: 0 | D19: 0 | E19: 0 | F19: 0 | G19: 0 | I19: 0 | J19: 0 | L19: 0 | M19: 0 | Q19: ｢営業外費用」 | AF19: ｢営業外費用」 | AT19: 0
B20: 支払利息 | C20: 34499 | D20: 0.13 | E20: 34499 | F20: 0.13 | G20: 0 | H20: 100 | I20: 132354 | J20: 0.13 | K20: 132354 | L20: 0.13 | M20: 0 | N20: 100 | Q20: 支払利息 | R20: ='No1'!B254 -> 19050 | S20: ='No1'!C254 -> 41209 | T20: ='No1'!D254 -> 37596 | U20: ='No1'!E254 -> 34499 | V20: ='No1'!F254 -> 32235 | W20: ='No1'!G254 -> 29970 | X20: ='No1'!H254 -> 194559 | Y20: ='No1'!I254 -> 51738 | Z20: ='No1'!J254 -> 25436 | AA20: ='No1'!K254 -> 2625 | AB20: ='No1'!L254 -> 25357 | AC20: ='No1'!M254 -> 23179 | AD20: ='No1'!N254 -> 23625 | AF20: 支払利息 | AG20: 19050 | AH20: 41209 | AI20: 37596 | AJ20: 34499 | AK20: 32235 | AL20: 29970 | AN20: 51738 | AO20: 25436 | AP20: 2625 | AQ20: 25357 | AR20: 23179 | AS20: 23625 | AT20: 346519
B21: 営業外費用計 | C21: 34499 | D21: 0.13 | E21: 34499 | F21: 0.13 | G21: 0 | H21: 100 | I21: 132354 | J21: 0.13 | K21: 132354 | L21: 0.13 | M21: 0 | N21: 100 | Q21: 営業外費用計 | R21: ='No1'!B263 -> 19050 | S21: ='No1'!C263 -> 41209 | T21: ='No1'!D263 -> 37596 | U21: ='No1'!E263 -> 34499 | V21: ='No1'!F263 -> 32235 | W21: ='No1'!G263 -> 29970 | X21: ='No1'!H263 -> 194559 | Y21: ='No1'!I263 -> 51738 | Z21: ='No1'!J263 -> 25436 | AA21: ='No1'!K263 -> 2625 | AB21: ='No1'!L263 -> 25357 | AC21: ='No1'!M263 -> 23179 | AD21: ='No1'!N263 -> 23625 | AF21: 営業外費用計 | AG21: 19050 | AH21: 41209 | AI21: 37596 | AJ21: 34499 | AK21: 32235 | AL21: 29970 | AN21: 51738 | AO21: 25436 | AP21: 2625 | AQ21: 25357 | AR21: 23179 | AS21: 23625 | AT21: 346519
B22: 経常利益 | C22: -4654200 | D22: -18.07 | E22: -4654200 | F22: -18.07 | G22: 0 | H22: 100 | I22: 3002175 | J22: 2.85 | K22: 3002175 | L22: 2.85 | M22: 0 | N22: 100 | Q22: 経常利益 | R22: ='No1'!B264 -> 1537770 | S22: ='No1'!C264 -> 3866893 | T22: ='No1'!D264 -> 2251712 | U22: ='No1'!E264 -> -4654200 | V22: ='No1'!F264 -> 3539421 | W22: ='No1'!G264 -> 6374223 | X22: ='No1'!H264 -> 12915819 | Y22: ='No1'!I264 -> 2207080 | Z22: ='No1'!J264 -> 1422001 | AA22: ='No1'!K264 -> 49120 | AB22: ='No1'!L264 -> 9162450 | AC22: ='No1'!M264 -> -5551511 | AD22: ='No1'!N264 -> 1457154 | AF22: 経常利益 | AG22: 1537770 | AH22: 3866893 | AI22: 2251712 | AJ22: -4654200 | AK22: 3539421 | AL22: 6374223 | AN22: 2207080 | AO22: 1422001 | AP22: 49120 | AQ22: 9162450 | AR22: -5551511 | AS22: 1457154 | AT22: 21662113
B23: 法人税等 | C23: 0 | D23: 0 | E23: 0 | F23: 0 | G23: 0 | I23: 160 | J23: 0 | K23: 160 | L23: 0 | M23: 0 | N23: 100 | Q23: 法人税等 | R23: ='No1'!B279 -> 0 | S23: ='No1'!C279 -> 160 | T23: ='No1'!D279 -> 0 | U23: ='No1'!E279 -> 0 | V23: ='No1'!F279 -> 233 | W23: ='No1'!G279 -> 1230 | X23: ='No1'!H279 -> 1623 | Y23: ='No1'!I279 -> 0 | Z23: ='No1'!J279 -> 3400000 | AA23: ='No1'!K279 -> 0 | AB23: ='No1'!L279 -> 0 | AC23: ='No1'!M279 -> 20 | AD23: ='No1'!N279 -> 1000 | AF23: 法人税等 | AG23: 0 | AH23: 160 | AI23: 0 | AJ23: 0 | AK23: 233 | AL23: 1230 | AN23: 0 | AO23: 3400000 | AP23: 0 | AQ23: 0 | AR23: 20 | AS23: 1000 | AT23: 3402643
B24: 当期利益 | C24: -4654200 | D24: -18.07 | E24: -4654200 | F24: -18.07 | G24: 0 | H24: 100 | I24: 3002015 | J24: 2.85 | K24: 3002015 | L24: 2.85 | M24: 0 | N24: 100 | Q24: 当期利益 | R24: ='No1'!B282 -> 1537770 | S24: ='No1'!C282 -> 3866733 | T24: ='No1'!D282 -> 2251712 | U24: ='No1'!E282 -> -4654200 | V24: ='No1'!F282 -> 3539188 | W24: ='No1'!G282 -> 6372993 | X24: ='No1'!H282 -> 12914196 | Y24: ='No1'!I282 -> 2207080 | Z24: ='No1'!J282 -> -1977999 | AA24: ='No1'!K282 -> 49120 | AB24: ='No1'!L282 -> 9162450 | AC24: ='No1'!M282 -> -5551531 | AD24: ='No1'!N282 -> 1456154 | AF24: 当期利益 | AG24: 1537770 | AH24: 3866733 | AI24: 2251712 | AJ24: -4654200 | AK24: 3539188 | AL24: 6372993 | AN24: 2207080 | AO24: -1977999 | AP24: 49120 | AQ24: 9162450 | AR24: -5551531 | AS24: 1456154 | AT24: 18259470
AD25: =SUM(R25:AC25) -> 0 | AS25: 0 | AT25: 0
AD26: 0 | AS26: 0 | AT26: 0
AD27: 0 | AS27: 0 | AT27: 0
F28: 販売費一般管理費明細書 | AD28: 0 | AS28: 0 | AT28: 0
AD29: 0 | AS29: 0 | AT29: 0
G30: =G3 -> 7 | H30: 月末現在 | M30: （単位：千円） | AD30: 0 | AS30: 0 | AT30: 0
B31: 勘定科目 | C31: 当月 | I31: 累計 | Q31: 勘定科目 | R31: 当期 | AD31: 0 | AF31: 勘定科目 | AG31: 当期 | AS31: 0 | AT31: 0
C32: 計画 | E32: 当期 | G32: 増減 | H32: 計画比 | I32: 計画 | K32: 当期 | M32: 増減 | N32: 計画比 | R32: 4月度 | S32: 5月度 | T32: 6月度 | U32: 7月度 | V32: 8月度 | W32: 9月度 | Y32: 10月度 | Z32: 11月度 | AA32: 12月度 | AB32: 1月度 | AC32: 2月度 | AD32: 3月度 | AG32: 4月度 | AH32: 5月度 | AI32: 6月度 | AJ32: 7月度 | AK32: 8月度 | AL32: 9月度 | AN32: 10月度 | AO32: 11月度 | AP32: 12月度 | AQ32: 1月度 | AR32: 2月度 | AS32: 3月度
C33: 金額 | D33: % | E33: 金額 | F33: % | I33: 金額 | J33: % | K33: 金額 | L33: % | S33: =IF($I$4>=2,$I$4,0) -> 4 | T33: =IF($I$4>=3,$I$4,0) -> 4 | U33: =IF($I$4>=4,$I$4,0) -> 4 | V33: =IF($I$4>=5,$I$4,0) -> 0 | W33: =IF($I$4>=6,$I$4,0) -> 0 | X33: =IF($I$4>=7,$I$4,0) -> 0 | Y33: =IF($I$4>=8,$I$4,0) -> 0 | Z33: =IF($I$4>=9,$I$4,0) -> 0 | AA33: =IF($I$4>=10,$I$4,0) -> 0 | AB33: =IF($I$4>=11,$I$4,0) -> 0 | AC33: =IF($I$4>=12,$I$4,0) -> 0 | AD33: 12 | AH33: 4 | AI33: 4 | AJ33: 4 | AK33: 0 | AL33: 0 | AN33: 0 | AO33: 0 | AP33: 0 | AQ33: 0 | AR33: 0 | AS33: 12 | AT33: 合計
B34: 役員報酬 | C34: =SUMIF($AG$4:$AS$4,$D$4,AG34:AR34) -> 800000 | D34: =ROUND(C34/$C$8*100,2) -> 3.11 | E34: =SUMIF($R$4:$AD$4,$D$4,R34:AC34) -> 800000 | F34: =ROUND(E34/$E$8*100,2) -> 3.11 | G34: =E34-C34 -> 0 | H34: =IF(OR(C34=0,E34=0),"",ROUND(E34/C34*100,0)) -> 100 | I34: =SUMIF($AG$3:$AR$3,$I$4,AG34:AS34) -> 3200000 | J34: =ROUND(I34/I$8*100,2) -> 3.04 | K34: =SUMIF($R$3:$AC$3,$I$4,R34:AC34) -> 3200000 | L34: =ROUND(K34/K$8*100,2) -> 3.04 | M34: =K34-I34 -> 0 | N34: =IF(OR(I34=0,K34=0),"",ROUND(K34/I34*100,0)) -> 100 | Q34: 役員報酬 | R34: ='No1'!B203 -> 800000 | S34: ='No1'!C203 -> 800000 | T34: ='No1'!D203 -> 800000 | U34: ='No1'!E203 -> 800000 | V34: ='No1'!F203 -> 800000 | W34: ='No1'!G203 -> 800000 | X34: ='No1'!H203 -> 4800000 | Y34: ='No1'!I203 -> 800000 | Z34: ='No1'!J203 -> 800000 | AA34: ='No1'!K203 -> 800000 | AB34: ='No1'!L203 -> 800000 | AC34: ='No1'!M203 -> 800000 | AD34: ='No1'!N203 -> 800000 | AF34: 役員報酬 | AG34: 800000 | AH34: 800000 | AI34: 800000 | AJ34: 800000 | AK34: 800000 | AL34: 800000 | AN34: 800000 | AO34: 800000 | AP34: 800000 | AQ34: 800000 | AR34: 800000 | AS34: 800000 | AT34: 9600000
B35: 役員賞与 | C35: 0 | D35: 0 | E35: 0 | F35: 0 | G35: 0 | I35: =SUMIF($AG$3:$AR$3,$I$4,AG35:AS35) -> 0 | J35: =ROUND(I35/I$8*100,2) -> 0 | K35: =SUMIF($R$3:$AC$3,$I$4,R35:AC35) -> 0 | L35: =ROUND(K35/K$8*100,2) -> 0 | M35: =K35-I35 -> 0 | N35: =IF(OR(I35=0,K35=0),"",ROUND(K35/I35*100,0)) ->  | Q35: 役員賞与 | R35: ='No1'!B204 -> 0 | S35: ='No1'!C204 -> 0 | T35: ='No1'!D204 -> 0 | U35: ='No1'!E204 -> 0 | V35: ='No1'!F204 -> 0 | W35: ='No1'!G204 -> 0 | X35: ='No1'!H204 -> 0 | Y35: ='No1'!I204 -> 0 | Z35: ='No1'!J204 -> 0 | AA35: ='No1'!K204 -> 0 | AB35: ='No1'!L204 -> 0 | AC35: ='No1'!M204 -> 0 | AD35: ='No1'!N204 -> 0 | AF35: 役員賞与 | AG35: 0 | AH35: 0 | AI35: 0 | AJ35: 0 | AK35: 0 | AL35: 0 | AN35: 0 | AO35: 0 | AP35: 0 | AQ35: 0 | AR35: 0 | AS35: 0 | AT35: 0
B36: 給料手当 | C36: 1076600 | D36: 4.18 | E36: 1076600 | F36: 4.18 | G36: 0 | H36: 100 | I36: =SUMIF($AG$3:$AR$3,$I$4,AG36:AS36) -> 4242800 | J36: =ROUND(I36/I$8*100,2) -> 4.03 | K36: =SUMIF($R$3:$AC$3,$I$4,R36:AC36) -> 4242800 | L36: =ROUND(K36/K$8*100,2) -> 4.03 | M36: =K36-I36 -> 0 | N36: =IF(OR(I36=0,K36=0),"",ROUND(K36/I36*100,0)) -> 100 | Q36: 給料手当 | R36: ='No1'!B205 -> 1010800 | S36: ='No1'!C205 -> 1078800 | T36: ='No1'!D205 -> 1076600 | U36: ='No1'!E205 -> 1076600 | V36: ='No1'!F205 -> 1067100 | W36: ='No1'!G205 -> 1056600 | X36: ='No1'!H205 -> 6366500 | Y36: ='No1'!I205 -> 1082000 | Z36: ='No1'!J205 -> 1086400 | AA36: ='No1'!K205 -> 1079300 | AB36: ='No1'!L205 -> 1089300 | AC36: ='No1'!M205 -> 1064000 | AD36: ='No1'!N205 -> 1096000 | AF36: 給料手当 | AG36: 1010800 | AH36: 1078800 | AI36: 1076600 | AJ36: 1076600 | AK36: 1067100 | AL36: 1056600 | AN36: 1082000 | AO36: 1086400 | AP36: 1079300 | AQ36: 1089300 | AR36: 1064000 | AS36: 1096000 | AT36: 12863500
B37: 雑給 | C37: 0 | D37: 0 | E37: 0 | F37: 0 | G37: 0 | I37: =SUMIF($AG$3:$AR$3,$I$4,AG37:AS37) -> 0 | J37: =ROUND(I37/I$8*100,2) -> 0 | K37: =SUMIF($R$3:$AC$3,$I$4,R37:AC37) -> 0 | L37: =ROUND(K37/K$8*100,2) -> 0 | M37: =K37-I37 -> 0 | N37: =IF(OR(I37=0,K37=0),"",ROUND(K37/I37*100,0)) ->  | Q37: 雑給 | R37: ='No1'!B206 -> 0 | S37: ='No1'!C206 -> 0 | T37: ='No1'!D206 -> 0 | U37: ='No1'!E206 -> 0 | V37: ='No1'!F206 -> 0 | W37: ='No1'!G206 -> 0 | X37: ='No1'!H206 -> 0 | Y37: ='No1'!I206 -> 0 | Z37: ='No1'!J206 -> 0 | AA37: ='No1'!K206 -> 0 | AB37: ='No1'!L206 -> 0 | AC37: ='No1'!M206 -> 0 | AD37: ='No1'!N206 -> 0 | AF37: 雑給 | AG37: 0 | AH37: 0 | AI37: 0 | AJ37: 0 | AK37: 0 | AL37: 0 | AN37: 0 | AO37: 0 | AP37: 0 | AQ37: 0 | AR37: 0 | AS37: 0 | AT37: 0
B38: 賞与 | C38: 3245000 | D38: 12.6 | E38: 3245000 | F38: 12.6 | G38: 0 | H38: 100 | I38: =SUMIF($AG$3:$AR$3,$I$4,AG38:AS38) -> 3245000 | J38: =ROUND(I38/I$8*100,2) -> 3.08 | K38: =SUMIF($R$3:$AC$3,$I$4,R38:AC38) -> 3245000 | L38: =ROUND(K38/K$8*100,2) -> 3.08 | M38: =K38-I38 -> 0 | N38: =IF(OR(I38=0,K38=0),"",ROUND(K38/I38*100,0)) -> 100 | Q38: 賞与 | R38: ='No1'!B207 -> 0 | S38: ='No1'!C207 -> 0 | T38: ='No1'!D207 -> 0 | U38: ='No1'!E207 -> 3245000 | V38: ='No1'!F207 -> 0 | W38: ='No1'!G207 -> 0 | X38: ='No1'!H207 -> 3245000 | Y38: ='No1'!I207 -> 0 | Z38: ='No1'!J207 -> 0 | AA38: ='No1'!K207 -> 4210000 | AB38: ='No1'!L207 -> 0 | AC38: ='No1'!M207 -> 0 | AD38: ='No1'!N207 -> 0 | AF38: 賞与 | AG38: 0 | AH38: 0 | AI38: 0 | AJ38: 3245000 | AK38: 0 | AL38: 0 | AN38: 0 | AO38: 0 | AP38: 4210000 | AQ38: 0 | AR38: 0 | AS38: 0 | AT38: 7455000
B39: 退職金 | C39: 0 | D39: 0 | E39: 0 | F39: 0 | G39: 0 | I39: 0 | J39: 0 | K39: 0 | L39: 0 | M39: 0 | N39: =IF(OR(I39=0,K39=0),"",ROUND(K39/I39*100,0)) ->  | Q39: 退職金 | R39: ='No1'!B208 -> 0 | S39: ='No1'!C208 -> 0 | T39: ='No1'!D208 -> 0 | U39: ='No1'!E208 -> 0 | V39: ='No1'!F208 -> 0 | W39: ='No1'!G208 -> 0 | X39: ='No1'!H208 -> 0 | Y39: ='No1'!I208 -> 0 | Z39: ='No1'!J208 -> 0 | AA39: ='No1'!K208 -> 0 | AB39: ='No1'!L208 -> 0 | AC39: ='No1'!M208 -> 0 | AD39: ='No1'!N208 -> 0 | AF39: 退職金 | AG39: 0 | AH39: 0 | AI39: 0 | AJ39: 0 | AK39: 0 | AL39: 0 | AN39: 0 | AO39: 0 | AP39: 0 | AQ39: 0 | AR39: 0 | AS39: 0 | AT39: 0
B40: 法定福利費 | C40: =SUMIF($AG$4:$AS$4,$D$4,AG40:AR40) -> 199567 | D40: =ROUND(C40/$C$8*100,2) -> 0.77 | E40: =SUMIF($R$4:$AD$4,$D$4,R40:AC40) -> 199567 | F40: =ROUND(E40/$E$8*100,2) -> 0.77 | G40: =E40-C40 -> 0 | H40: =IF(OR(C40=0,E40=0),"",ROUND(E40/C40*100,0)) -> 100 | I40: 781076 | J40: 0.74 | K40: 781076 | L40: 0.74 | M40: 0 | N40: 100 | Q40: 法定福利費 | R40: ='No1'!B209 -> 0 | S40: ='No1'!C209 -> 381942 | T40: ='No1'!D209 -> 199567 | U40: ='No1'!E209 -> 199567 | V40: ='No1'!F209 -> 229927 | W40: ='No1'!G209 -> 199567 | X40: ='No1'!H209 -> 1210570 | Y40: ='No1'!I209 -> 199567 | Z40: ='No1'!J209 -> 199567 | AA40: ='No1'!K209 -> 199567 | AB40: ='No1'!L209 -> 236047 | AC40: ='No1'!M209 -> 199567 | AD40: ='No1'!N209 -> 199567 | AF40: 法定福利費 | AG40: 0 | AH40: 381942 | AI40: 199567 | AJ40: 199567 | AK40: 229927 | AL40: 199567 | AN40: 199567 | AO40: 199567 | AP40: 199567 | AQ40: 236047 | AR40: 199567 | AS40: 199567 | AT40: 2444452
B41: 福利厚生費 | C41: 0 | D41: 0 | E41: 0 | F41: 0 | G41: 0 | I41: 17137 | J41: 0.02 | K41: =SUMIF($R$3:$AC$3,$I$4,R41:AC41) -> 17137 | L41: 0.02 | M41: 0 | N41: 100 | Q41: 福利厚生費 | R41: ='No1'!B210 -> 4000 | S41: ='No1'!C210 -> 2363 | T41: ='No1'!D210 -> 10774 | U41: ='No1'!E210 -> 0 | V41: ='No1'!F210 -> 114219 | W41: ='No1'!G210 -> 5292 | X41: ='No1'!H210 -> 136648 | Y41: ='No1'!I210 -> 7871 | Z41: ='No1'!J210 -> 1830 | AA41: ='No1'!K210 -> 43620 | AB41: ='No1'!L210 -> 103239 | AC41: ='No1'!M210 -> 0 | AD41: ='No1'!N210 -> 4997 | AF41: 福利厚生費 | AG41: 4000 | AH41: 2363 | AI41: 10774 | AJ41: 0 | AK41: 114219 | AL41: 5292 | AN41: 7871 | AO41: 1830 | AP41: 43620 | AQ41: 103239 | AR41: 0 | AS41: 4997 | AT41: 298205
B42: 退職給付繰入額 | C42: 0 | D42: 0 | E42: 0 | F42: 0 | G42: 0 | I42: 0 | J42: 0 | K42: 0 | L42: 0 | M42: 0 | Q42: 退職給付繰入額 | R42: ='No1'!B211 -> 0 | S42: ='No1'!C211 -> 0 | T42: ='No1'!D211 -> 0 | U42: ='No1'!E211 -> 0 | V42: ='No1'!F211 -> 0 | W42: ='No1'!G211 -> 0 | X42: ='No1'!H211 -> 0 | Y42: ='No1'!I211 -> 0 | Z42: ='No1'!J211 -> 0 | AA42: ='No1'!K211 -> 0 | AB42: ='No1'!L211 -> 0 | AC42: ='No1'!M211 -> 0 | AD42: ='No1'!N211 -> 0 | AF42: 退職給付繰入額 | AG42: 0 | AH42: 0 | AI42: 0 | AJ42: 0 | AK42: 0 | AL42: 0 | AN42: 0 | AO42: 0 | AP42: 0 | AQ42: 0 | AR42: 0 | AS42: 0 | AT42: 0
B43: 採用教育費 | C43: 0 | D43: 0 | E43: 0 | F43: 0 | G43: 0 | I43: 0 | J43: 0 | K43: 0 | L43: 0 | M43: 0 | N43: =IF(OR(I43=0,K43=0),"",ROUND(K43/I43*100,0)) ->  | Q43: 採用教育費 | R43: ='No1'!B212 -> 0 | S43: ='No1'!C212 -> 0 | T43: ='No1'!D212 -> 0 | U43: ='No1'!E212 -> 0 | V43: ='No1'!F212 -> 0 | W43: ='No1'!G212 -> 0 | X43: ='No1'!H212 -> 0 | Y43: ='No1'!I212 -> 0 | Z43: ='No1'!J212 -> 0 | AA43: ='No1'!K212 -> 0 | AB43: ='No1'!L212 -> 0 | AC43: ='No1'!M212 -> 800000 | AD43: ='No1'!N212 -> 0 | AF43: 採用教育費 | AG43: 0 | AH43: 0 | AI43: 0 | AJ43: 0 | AK43: 0 | AL43: 0 | AN43: 0 | AO43: 0 | AP43: 0 | AQ43: 0 | AR43: 800000 | AS43: 0 | AT43: 800000
B44: 人件費計 | C44: 5321167 | D44: 20.66 | E44: 5321167 | F44: 20.66 | G44: =SUM(G37:G43) -> 0 | H44: 100 | I44: 11486013 | J44: 10.92 | K44: 11486013 | L44: 10.92 | M44: =SUM(M37:M43) -> 0 | N44: 100 | Q44: 人件費計 | R44: =SUM(R34:R43) -> 1814800 | S44: =SUM(S34:S43) -> 2263105 | T44: 2086941 | U44: 5321167 | V44: 2211246 | W44: 2061459 | X44: 15758718 | Y44: 2089438 | Z44: 2087797 | AA44: 6332487 | AB44: 2228586 | AC44: 2863567 | AD44: 2100564 | AF44: 人件費計 | AG44: 1814800 | AH44: 2263105 | AI44: 2086941 | AJ44: 5321167 | AK44: 2211246 | AL44: 2061459 | AN44: 2089438 | AO44: 2087797 | AP44: 6332487 | AQ44: 2228586 | AR44: 2863567 | AS44: 2100564 | AT44: 33461157
B45: 外注費 | C45: 0 | D45: 0 | E45: 0 | F45: 0 | G45: 0 | I45: 0 | J45: 0 | K45: 0 | L45: 0 | M45: 0 | Q45: 外注費 | R45: ='No1'!B213 -> 0 | S45: ='No1'!C213 -> 0 | T45: ='No1'!D213 -> 0 | U45: ='No1'!E213 -> 0 | V45: ='No1'!F213 -> 0 | W45: ='No1'!G213 -> 0 | X45: ='No1'!H213 -> 0 | Y45: ='No1'!I213 -> 0 | Z45: ='No1'!J213 -> 0 | AA45: ='No1'!K213 -> 0 | AB45: ='No1'!L213 -> 0 | AC45: ='No1'!M213 -> 0 | AD45: ='No1'!N213 -> 0 | AF45: 外注費 | AG45: 0 | AH45: 0 | AI45: 0 | AJ45: 0 | AK45: 0 | AL45: 0 | AN45: 0 | AO45: 0 | AP45: 0 | AQ45: 0 | AR45: 0 | AS45: 0 | AT45: 0
B46: 荷造運賃 | C46: 381905 | D46: 1.48 | E46: 381905 | F46: 1.48 | G46: 0 | H46: 100 | I46: 1432859 | J46: 1.36 | K46: 1432859 | L46: 1.36 | M46: 0 | N46: 100 | Q46: 荷造運賃 | R46: ='No1'!B214 -> 340953 | S46: ='No1'!C214 -> 339048 | T46: ='No1'!D214 -> 370953 | U46: ='No1'!E214 -> 381905 | V46: ='No1'!F214 -> 400953 | W46: ='No1'!G214 -> 496667 | X46: ='No1'!H214 -> 2330479 | Y46: ='No1'!I214 -> 600763 | Z46: ='No1'!J214 -> 256096 | AA46: ='No1'!K214 -> 340953 | AB46: ='No1'!L214 -> 360000 | AC46: ='No1'!M214 -> 379524 | AD46: ='No1'!N214 -> 347810 | AF46: 荷造運賃 | AG46: 340953 | AH46: 339048 | AI46: 370953 | AJ46: 381905 | AK46: 400953 | AL46: 496667 | AN46: 600763 | AO46: 256096 | AP46: 340953 | AQ46: 360000 | AR46: 379524 | AS46: 347810 | AT46: 4615625
B47: 広告宣伝費 | C47: 0 | D47: 0 | E47: 0 | F47: 0 | G47: 0 | I47: 1332381 | J47: 1.27 | K47: 1332381 | L47: 1.27 | M47: 0 | N47: 100 | Q47: 広告宣伝費 | R47: ='No1'!B215 -> 0 | S47: ='No1'!C215 -> 0 | T47: ='No1'!D215 -> 1332381 | U47: ='No1'!E215 -> 0 | V47: ='No1'!F215 -> 0 | W47: ='No1'!G215 -> 0 | X47: ='No1'!H215 -> 1332381 | Y47: ='No1'!I215 -> 2857143 | Z47: ='No1'!J215 -> 0 | AA47: ='No1'!K215 -> 0 | AB47: ='No1'!L215 -> 450000 | AC47: ='No1'!M215 -> 0 | AD47: ='No1'!N215 -> 400000 | AF47: 広告宣伝費 | AG47: 0 | AH47: 0 | AI47: 1332381 | AJ47: 0 | AK47: 0 | AL47: 0 | AN47: 2857143 | AO47: 0 | AP47: 0 | AQ47: 450000 | AR47: 0 | AS47: 400000 | AT47: 5039524
B48: 交際費 | C48: 45715 | D48: 0.18 | E48: 45715 | F48: 0.18 | G48: 0 | H48: 100 | I48: 301602 | J48: 0.29 | K48: 301602 | L48: 0.29 | M48: 0 | N48: =IF(OR(I48=0,K48=0),"",ROUND(K48/I48*100,0)) -> 100 | Q48: 交際費 | R48: ='No1'!B216 -> 72648 | S48: ='No1'!C216 -> 95239 | T48: ='No1'!D216 -> 88000 | U48: ='No1'!E216 -> 45715 | V48: ='No1'!F216 -> 52381 | W48: ='No1'!G216 -> 0 | X48: ='No1'!H216 -> 353983 | Y48: ='No1'!I216 -> 158000 | Z48: ='No1'!J216 -> 260001 | AA48: ='No1'!K216 -> 44286 | AB48: ='No1'!L216 -> 102381 | AC48: ='No1'!M216 -> 41620 | AD48: ='No1'!N216 -> 198000 | AF48: 交際費 | AG48: 72648 | AH48: 95239 | AI48: 88000 | AJ48: 45715 | AK48: 52381 | AL48: 0 | AN48: 158000 | AO48: 260001 | AP48: 44286 | AQ48: 102381 | AR48: 41620 | AS48: 198000 | AT48: 1158271
B49: 会議費 | C49: 0 | D49: 0 | E49: 0 | F49: 0 | G49: 0 | I49: 0 | J49: 0 | K49: 0 | L49: 0 | M49: 0 | Q49: 会議費 | R49: ='No1'!B217 -> 0 | S49: ='No1'!C217 -> 0 | T49: ='No1'!D217 -> 0 | U49: ='No1'!E217 -> 0 | V49: ='No1'!F217 -> 0 | W49: ='No1'!G217 -> 0 | X49: ='No1'!H217 -> 0 | Y49: ='No1'!I217 -> 0 | Z49: ='No1'!J217 -> 0 | AA49: ='No1'!K217 -> 0 | AB49: ='No1'!L217 -> 0 | AC49: ='No1'!M217 -> 0 | AD49: ='No1'!N217 -> 0 | AF49: 会議費 | AG49: 0 | AH49: 0 | AI49: 0 | AJ49: 0 | AK49: 0 | AL49: 0 | AN49: 0 | AO49: 0 | AP49: 0 | AQ49: 0 | AR49: 0 | AS49: 0 | AT49: 0
B50: 旅費交通費 | C50: 132250 | D50: 0.51 | E50: 132250 | F50: 0.51 | G50: 0 | H50: 100 | I50: 522332 | J50: 0.5 | K50: 522332 | L50: 0.5 | M50: 0 | N50: 100 | Q50: 旅費交通費 | R50: ='No1'!B218 -> 126135 | S50: ='No1'!C218 -> 132250 | T50: ='No1'!D218 -> 131697 | U50: ='No1'!E218 -> 132250 | V50: ='No1'!F218 -> 290802 | W50: ='No1'!G218 -> 293656 | X50: ='No1'!H218 -> 1106790 | Y50: ='No1'!I218 -> 134307 | Z50: ='No1'!J218 -> 132802 | AA50: ='No1'!K218 -> 131697 | AB50: ='No1'!L218 -> 132802 | AC50: ='No1'!M218 -> 132802 | AD50: ='No1'!N218 -> 131697 | AF50: 旅費交通費 | AG50: 126135 | AH50: 132250 | AI50: 131697 | AJ50: 132250 | AK50: 290802 | AL50: 293656 | AN50: 134307 | AO50: 132802 | AP50: 131697 | AQ50: 132802 | AR50: 132802 | AS50: 131697 | AT50: 1902897
B51: 通信費 | C51: 126727 | D51: 0.49 | E51: 126727 | F51: 0.49 | G51: 0 | H51: 100 | I51: 491747 | J51: 0.47 | K51: 491747 | L51: 0.47 | M51: 0 | N51: 100 | Q51: 通信費 | R51: ='No1'!B219 -> 40411 | S51: ='No1'!C219 -> 151942 | T51: ='No1'!D219 -> 172667 | U51: ='No1'!E219 -> 126727 | V51: ='No1'!F219 -> 46421 | W51: ='No1'!G219 -> 153145 | X51: ='No1'!H219 -> 691313 | Y51: ='No1'!I219 -> 102576 | Z51: ='No1'!J219 -> 84307 | AA51: ='No1'!K219 -> 157177 | AB51: ='No1'!L219 -> 137864 | AC51: ='No1'!M219 -> 126429 | AD51: ='No1'!N219 -> 163418 | AF51: 通信費 | AG51: 40411 | AH51: 151942 | AI51: 172667 | AJ51: 126727 | AK51: 46421 | AL51: 153145 | AN51: 102576 | AO51: 84307 | AP51: 157177 | AQ51: 137864 | AR51: 126429 | AS51: 163418 | AT51: 1463084
B52: 販売手数料 | C52: 0 | D52: 0 | E52: 0 | F52: 0 | G52: 0 | I52: 0 | J52: 0 | K52: 0 | L52: 0 | M52: 0 | Q52: 販売手数料 | R52: ='No1'!B220 -> 0 | S52: ='No1'!C220 -> 0 | T52: ='No1'!D220 -> 0 | U52: ='No1'!E220 -> 0 | V52: ='No1'!F220 -> 0 | W52: ='No1'!G220 -> 0 | X52: ='No1'!H220 -> 0 | Y52: ='No1'!I220 -> 0 | Z52: ='No1'!J220 -> 0 | AA52: ='No1'!K220 -> 0 | AB52: ='No1'!L220 -> 0 | AC52: ='No1'!M220 -> 0 | AD52: ='No1'!N220 -> 0 | AF52: 販売手数料 | AG52: 0 | AH52: 0 | AI52: 0 | AJ52: 0 | AK52: 0 | AL52: 0 | AN52: 0 | AO52: 0 | AP52: 0 | AQ52: 0 | AR52: 0 | AS52: 0 | AT52: 0
B53: 販売促進費 | C53: 0 | D53: 0 | E53: 0 | F53: 0 | G53: 0 | I53: 0 | J53: 0 | K53: 0 | L53: 0 | M53: 0 | N53: =IF(OR(I53=0,K53=0),"",ROUND(K53/I53*100,0)) ->  | Q53: 販売促進費 | R53: ='No1'!B221 -> 0 | S53: ='No1'!C221 -> 0 | T53: ='No1'!D221 -> 0 | U53: ='No1'!E221 -> 0 | V53: ='No1'!F221 -> 0 | W53: ='No1'!G221 -> 0 | X53: ='No1'!H221 -> 0 | Y53: ='No1'!I221 -> 0 | Z53: ='No1'!J221 -> 0 | AA53: ='No1'!K221 -> 0 | AB53: ='No1'!L221 -> 0 | AC53: ='No1'!M221 -> 0 | AD53: ='No1'!N221 -> 0 | AF53: 販売促進費 | AG53: 0 | AH53: 0 | AI53: 0 | AJ53: 0 | AK53: 0 | AL53: 0 | AN53: 0 | AO53: 0 | AP53: 0 | AQ53: 0 | AR53: 0 | AS53: 0 | AT53: 0
B54: 消耗品費 | C54: 8585 | D54: 0.03 | E54: 8585 | F54: 0.03 | G54: 0 | H54: 100 | I54: 128832 | J54: 0.12 | K54: 128832 | L54: 0.12 | M54: 0 | N54: 100 | Q54: 消耗品費 | R54: ='No1'!B222 -> 44572 | S54: ='No1'!C222 -> 0 | T54: ='No1'!D222 -> 75675 | U54: ='No1'!E222 -> 8585 | V54: ='No1'!F222 -> 0 | W54: ='No1'!G222 -> 4289 | X54: ='No1'!H222 -> 133121 | Y54: ='No1'!I222 -> 8000 | Z54: ='No1'!J222 -> 7235 | AA54: ='No1'!K222 -> 46489 | AB54: ='No1'!L222 -> 1072 | AC54: ='No1'!M222 -> 2133 | AD54: ='No1'!N222 -> 0 | AF54: 消耗品費 | AG54: 44572 | AH54: 0 | AI54: 75675 | AJ54: 8585 | AK54: 0 | AL54: 4289 | AN54: 8000 | AO54: 7235 | AP54: 46489 | AQ54: 1072 | AR54: 2133 | AS54: 0 | AT54: 198050
B55: 事務用品費 | C55: 11524 | D55: 0.04 | E55: 11524 | F55: 0.04 | G55: 0 | H55: 100 | I55: 27858 | J55: 0.03 | K55: 27858 | L55: 0.03 | M55: 0 | N55: 100 | Q55: 事務用品費 | R55: ='No1'!B223 -> 6334 | S55: ='No1'!C223 -> 0 | T55: ='No1'!D223 -> 10000 | U55: ='No1'!E223 -> 11524 | V55: ='No1'!F223 -> 14300 | W55: ='No1'!G223 -> 32000 | X55: ='No1'!H223 -> 74158 | Y55: ='No1'!I223 -> 9798 | Z55: ='No1'!J223 -> 0 | AA55: ='No1'!K223 -> 30000 | AB55: ='No1'!L223 -> 3048 | AC55: ='No1'!M223 -> 36572 | AD55: ='No1'!N223 -> 7172 | AF55: 事務用品費 | AG55: 6334 | AH55: 0 | AI55: 10000 | AJ55: 11524 | AK55: 14300 | AL55: 32000 | AN55: 9798 | AO55: 0 | AP55: 30000 | AQ55: 3048 | AR55: 36572 | AS55: 7172 | AT55: 160748
B56: 修繕費 | C56: 48572 | D56: 0.19 | E56: 48572 | F56: 0.19 | G56: 0 | H56: 100 | I56: 129525 | J56: 0.12 | K56: 129525 | L56: 0.12 | M56: 0 | N56: 100 | Q56: 修繕費 | R56: ='No1'!B224 -> 80953 | S56: ='No1'!C224 -> 0 | T56: ='No1'!D224 -> 0 | U56: ='No1'!E224 -> 48572 | V56: ='No1'!F224 -> 0 | W56: ='No1'!G224 -> 0 | X56: ='No1'!H224 -> 129525 | Y56: ='No1'!I224 -> 0 | Z56: ='No1'!J224 -> 50477 | AA56: ='No1'!K224 -> 14286 | AB56: ='No1'!L224 -> 0 | AC56: ='No1'!M224 -> 20520 | AD56: ='No1'!N224 -> 0 | AF56: 修繕費 | AG56: 80953 | AH56: 0 | AI56: 0 | AJ56: 48572 | AK56: 0 | AL56: 0 | AN56: 0 | AO56: 50477 | AP56: 14286 | AQ56: 0 | AR56: 20520 | AS56: 0 | AT56: 214808
B57: 水道光熱費 | C57: 77604 | D57: 0.3 | E57: 77604 | F57: 0.3 | G57: 0 | H57: 100 | I57: 354102 | J57: 0.34 | K57: 354102 | L57: 0.34 | M57: 0 | N57: 100 | Q57: 水道光熱費 | R57: ='No1'!B225 -> 73379 | S57: ='No1'!C225 -> 81739 | T57: ='No1'!D225 -> 121380 | U57: ='No1'!E225 -> 77604 | V57: ='No1'!F225 -> 143437 | W57: ='No1'!G225 -> 78525 | X57: ='No1'!H225 -> 576064 | Y57: ='No1'!I225 -> 135461 | Z57: ='No1'!J225 -> 96664 | AA57: ='No1'!K225 -> 146957 | AB57: ='No1'!L225 -> 82477 | AC57: ='No1'!M225 -> 72635 | AD57: ='No1'!N225 -> 73913 | AF57: 水道光熱費 | AG57: 73379 | AH57: 81739 | AI57: 121380 | AJ57: 77604 | AK57: 143437 | AL57: 78525 | AN57: 135461 | AO57: 96664 | AP57: 146957 | AQ57: 82477 | AR57: 72635 | AS57: 73913 | AT57: 1184171
B58: 新聞図書費 | C58: 0 | D58: 0 | E58: 0 | F58: 0 | G58: 0 | I58: 0 | J58: 0 | K58: 0 | L58: 0 | M58: 0 | N58: =IF(OR(I58=0,K58=0),"",ROUND(K58/I58*100,0)) ->  | Q58: 新聞図書費 | R58: ='No1'!B226 -> 0 | S58: ='No1'!C226 -> 0 | T58: ='No1'!D226 -> 0 | U58: ='No1'!E226 -> 0 | V58: ='No1'!F226 -> 0 | W58: ='No1'!G226 -> 0 | X58: ='No1'!H226 -> 0 | Y58: ='No1'!I226 -> 0 | Z58: ='No1'!J226 -> 0 | AA58: ='No1'!K226 -> 0 | AB58: ='No1'!L226 -> 0 | AC58: ='No1'!M226 -> 0 | AD58: ='No1'!N226 -> 0 | AF58: 新聞図書費 | AG58: 0 | AH58: 0 | AI58: 0 | AJ58: 0 | AK58: 0 | AL58: 0 | AN58: 0 | AO58: 0 | AP58: 0 | AQ58: 0 | AR58: 0 | AS58: 0 | AT58: 0
B59: 諸会費 | C59: 0 | D59: 0 | E59: 0 | F59: 0 | G59: 0 | I59: 0 | J59: 0 | K59: 0 | L59: 0 | M59: 0 | Q59: 諸会費 | R59: ='No1'!B227 -> 0 | S59: ='No1'!C227 -> 0 | T59: ='No1'!D227 -> 0 | U59: ='No1'!E227 -> 0 | V59: ='No1'!F227 -> 0 | W59: ='No1'!G227 -> 0 | X59: ='No1'!H227 -> 0 | Y59: ='No1'!I227 -> 0 | Z59: ='No1'!J227 -> 0 | AA59: ='No1'!K227 -> 0 | AB59: ='No1'!L227 -> 0 | AC59: ='No1'!M227 -> 0 | AD59: ='No1'!N227 -> 0 | AF59: 諸会費 | AG59: 0 | AH59: 0 | AI59: 0 | AJ59: 0 | AK59: 0 | AL59: 0 | AN59: 0 | AO59: 0 | AP59: 0 | AQ59: 0 | AR59: 0 | AS59: 0 | AT59: 0
B60: 支払手数料 | C60: 49620 | D60: 0.19 | E60: 49620 | F60: 0.19 | G60: 0 | H60: 100 | I60: 228980 | J60: 0.22 | K60: 228980 | L60: 0.22 | M60: 0 | N60: 100 | Q60: 支払手数料 | R60: ='No1'!B228 -> 80120 | S60: ='No1'!C228 -> 49620 | T60: ='No1'!D228 -> 49620 | U60: ='No1'!E228 -> 49620 | V60: ='No1'!F228 -> 49620 | W60: ='No1'!G228 -> 49620 | X60: ='No1'!H228 -> 328220 | Y60: ='No1'!I228 -> 49620 | Z60: ='No1'!J228 -> 57420 | AA60: ='No1'!K228 -> 57520 | AB60: ='No1'!L228 -> 51220 | AC60: ='No1'!M228 -> 49620 | AD60: ='No1'!N228 -> 49620 | AF60: 支払手数料 | AG60: 80120 | AH60: 49620 | AI60: 49620 | AJ60: 49620 | AK60: 49620 | AL60: 49620 | AN60: 49620 | AO60: 57420 | AP60: 57520 | AQ60: 51220 | AR60: 49620 | AS60: 49620 | AT60: 643240
B61: 車両費 | C61: 76049 | D61: 0.3 | E61: 76049 | F61: 0.3 | G61: 0 | H61: 100 | I61: 335323 | J61: 0.32 | K61: 335323 | L61: 0.32 | M61: 0 | N61: 100 | Q61: 車両費 | R61: ='No1'!B229 -> 83765 | S61: ='No1'!C229 -> 87402 | T61: ='No1'!D229 -> 88107 | U61: ='No1'!E229 -> 76049 | V61: ='No1'!F229 -> 243297 | W61: ='No1'!G229 -> 98974 | X61: ='No1'!H229 -> 677594 | Y61: ='No1'!I229 -> 93110 | Z61: ='No1'!J229 -> 96355 | AA61: ='No1'!K229 -> 99851 | AB61: ='No1'!L229 -> 85297 | AC61: ='No1'!M229 -> 93833 | AD61: ='No1'!N229 -> 86537 | AF61: 車両費 | AG61: 83765 | AH61: 87402 | AI61: 88107 | AJ61: 76049 | AK61: 243297 | AL61: 98974 | AN61: 93110 | AO61: 96355 | AP61: 99851 | AQ61: 85297 | AR61: 93833 | AS61: 86537 | AT61: 1232577
B62: 地代家賃 | C62: 245715 | D62: 0.95 | E62: 245715 | F62: 0.95 | G62: 0 | H62: 100 | I62: 1522860 | J62: 1.45 | K62: 1522860 | L62: 1.45 | M62: 0 | N62: =IF(OR(I62=0,K62=0),"",ROUND(K62/I62*100,0)) -> 100 | Q62: 地代家賃 | R62: ='No1'!B230 -> 425715 | S62: ='No1'!C230 -> 425715 | T62: ='No1'!D230 -> 425715 | U62: ='No1'!E230 -> 245715 | V62: ='No1'!F230 -> 605715 | W62: ='No1'!G230 -> 425715 | X62: ='No1'!H230 -> 2554290 | Y62: ='No1'!I230 -> 425715 | Z62: ='No1'!J230 -> 425715 | AA62: ='No1'!K230 -> 440000 | AB62: ='No1'!L230 -> 440000 | AC62: ='No1'!M230 -> 440000 | AD62: ='No1'!N230 -> 440000 | AF62: 地代家賃 | AG62: 425715 | AH62: 425715 | AI62: 425715 | AJ62: 245715 | AK62: 605715 | AL62: 425715 | AN62: 425715 | AO62: 425715 | AP62: 440000 | AQ62: 440000 | AR62: 440000 | AS62: 440000 | AT62: 5165720
B63: 賃借料 | C63: 0 | D63: 0 | E63: 0 | F63: 0 | G63: 0 | I63: 0 | J63: 0 | K63: 0 | L63: 0 | M63: 0 | Q63: 賃借料 | R63: ='No1'!B231 -> 0 | S63: ='No1'!C231 -> 0 | T63: ='No1'!D231 -> 0 | U63: ='No1'!E231 -> 0 | V63: ='No1'!F231 -> 0 | W63: ='No1'!G231 -> 0 | X63: ='No1'!H231 -> 0 | Y63: ='No1'!I231 -> 0 | Z63: ='No1'!J231 -> 0 | AA63: ='No1'!K231 -> 0 | AB63: ='No1'!L231 -> 0 | AC63: ='No1'!M231 -> 0 | AD63: ='No1'!N231 -> 0 | AF63: 賃借料 | AG63: 0 | AH63: 0 | AI63: 0 | AJ63: 0 | AK63: 0 | AL63: 0 | AN63: 0 | AO63: 0 | AP63: 0 | AQ63: 0 | AR63: 0 | AS63: 0 | AT63: 0
B64: リース料 | C64: 16715 | D64: 0.06 | E64: 16715 | F64: 0.06 | G64: 0 | H64: 100 | I64: 66860 | J64: 0.06 | K64: 66860 | L64: 0.06 | M64: 0 | N64: 100 | Q64: リース料 | R64: ='No1'!B232 -> 16715 | S64: ='No1'!C232 -> 16715 | T64: ='No1'!D232 -> 16715 | U64: ='No1'!E232 -> 16715 | V64: ='No1'!F232 -> 16715 | W64: ='No1'!G232 -> 16715 | X64: ='No1'!H232 -> 100290 | Y64: ='No1'!I232 -> 16715 | Z64: ='No1'!J232 -> 16715 | AA64: ='No1'!K232 -> 16715 | AB64: ='No1'!L232 -> 16715 | AC64: ='No1'!M232 -> 16715 | AD64: ='No1'!N232 -> 16715 | AF64: リース料 | AG64: 16715 | AH64: 16715 | AI64: 16715 | AJ64: 16715 | AK64: 16715 | AL64: 16715 | AN64: 16715 | AO64: 16715 | AP64: 16715 | AQ64: 16715 | AR64: 16715 | AS64: 16715 | AT64: 200580
B65: 保険料 | C65: 46000 | D65: 0.18 | E65: 46000 | F65: 0.18 | G65: 0 | H65: 100 | I65: 184000 | J65: 0.17 | K65: 184000 | L65: 0.17 | M65: 0 | N65: 100 | Q65: 保険料 | R65: ='No1'!B233 -> 46000 | S65: ='No1'!C233 -> 46000 | T65: ='No1'!D233 -> 46000 | U65: ='No1'!E233 -> 46000 | V65: ='No1'!F233 -> 46000 | W65: ='No1'!G233 -> 46000 | X65: ='No1'!H233 -> 276000 | Y65: ='No1'!I233 -> 46000 | Z65: ='No1'!J233 -> 46000 | AA65: ='No1'!K233 -> 23000 | AB65: ='No1'!L233 -> 74258 | AC65: ='No1'!M233 -> 23000 | AD65: ='No1'!N233 -> 23000 | AF65: 保険料 | AG65: 46000 | AH65: 46000 | AI65: 46000 | AJ65: 46000 | AK65: 46000 | AL65: 46000 | AN65: 46000 | AO65: 46000 | AP65: 23000 | AQ65: 74258 | AR65: 23000 | AS65: 23000 | AT65: 511258
B66: 租税公課 | C66: 5000 | D66: 0.02 | E66: 5000 | F66: 0.02 | G66: 0 | H66: 100 | I66: 170400 | J66: 0.16 | K66: 170400 | L66: 0.16 | M66: 0 | N66: 100 | Q66: 租税公課 | R66: ='No1'!B234 -> 135400 | S66: ='No1'!C234 -> 25000 | T66: ='No1'!D234 -> 5000 | U66: ='No1'!E234 -> 5000 | V66: ='No1'!F234 -> 0 | W66: ='No1'!G234 -> 8000 | X66: ='No1'!H234 -> 178400 | Y66: ='No1'!I234 -> 0 | Z66: ='No1'!J234 -> 0 | AA66: ='No1'!K234 -> 0 | AB66: ='No1'!L234 -> 40000 | AC66: ='No1'!M234 -> 0 | AD66: ='No1'!N234 -> 0 | AF66: 租税公課 | AG66: 135400 | AH66: 25000 | AI66: 5000 | AJ66: 5000 | AK66: 0 | AL66: 8000 | AN66: 0 | AO66: 0 | AP66: 0 | AQ66: 40000 | AR66: 0 | AS66: 0 | AT66: 218400
B67: 支払報酬料 | C67: 0 | D67: 0 | E67: 0 | F67: 0 | G67: 0 | I67: 0 | J67: 0 | K67: 0 | L67: 0 | M67: 0 | Q67: 支払報酬料 | R67: ='No1'!B235 -> 0 | S67: ='No1'!C235 -> 0 | T67: ='No1'!D235 -> 0 | U67: ='No1'!E235 -> 0 | V67: ='No1'!F235 -> 0 | W67: ='No1'!G235 -> 0 | X67: ='No1'!H235 -> 0 | Y67: ='No1'!I235 -> 0 | Z67: ='No1'!J235 -> 0 | AA67: ='No1'!K235 -> 0 | AB67: ='No1'!L235 -> 0 | AC67: ='No1'!M235 -> 0 | AD67: ='No1'!N235 -> 0 | AF67: 支払報酬料 | AG67: 0 | AH67: 0 | AI67: 0 | AJ67: 0 | AK67: 0 | AL67: 0 | AN67: 0 | AO67: 0 | AP67: 0 | AQ67: 0 | AR67: 0 | AS67: 0 | AT67: 0
B68: 寄付金 | C68: 0 | D68: 0 | E68: 0 | F68: 0 | G68: 0 | I68: 0 | J68: 0 | K68: 0 | L68: 0 | M68: 0 | Q68: 寄付金 | R68: ='No1'!B236 -> 0 | S68: ='No1'!C236 -> 0 | T68: ='No1'!D236 -> 0 | U68: ='No1'!E236 -> 0 | V68: ='No1'!F236 -> 0 | W68: ='No1'!G236 -> 0 | X68: ='No1'!H236 -> 0 | Y68: ='No1'!I236 -> 0 | Z68: ='No1'!J236 -> 0 | AA68: ='No1'!K236 -> 0 | AB68: ='No1'!L236 -> 0 | AC68: ='No1'!M236 -> 0 | AD68: ='No1'!N236 -> 0 | AF68: 寄付金 | AG68: 0 | AH68: 0 | AI68: 0 | AJ68: 0 | AK68: 0 | AL68: 0 | AN68: 0 | AO68: 0 | AP68: 0 | AQ68: 0 | AR68: 0 | AS68: 0 | AT68: 0
B69: 研究開発費 | C69: 0 | D69: 0 | E69: 0 | F69: 0 | G69: 0 | I69: 0 | J69: 0 | K69: 0 | L69: 0 | M69: 0 | Q69: 研究開発費 | R69: ='No1'!B237 -> 0 | S69: ='No1'!C237 -> 0 | T69: ='No1'!D237 -> 0 | U69: ='No1'!E237 -> 0 | V69: ='No1'!F237 -> 0 | W69: ='No1'!G237 -> 0 | X69: ='No1'!H237 -> 0 | Y69: ='No1'!I237 -> 0 | Z69: ='No1'!J237 -> 0 | AA69: ='No1'!K237 -> 0 | AB69: ='No1'!L237 -> 0 | AC69: ='No1'!M237 -> 0 | AD69: ='No1'!N237 -> 0 | AF69: 研究開発費 | AG69: 0 | AH69: 0 | AI69: 0 | AJ69: 0 | AK69: 0 | AL69: 0 | AN69: 0 | AO69: 0 | AP69: 0 | AQ69: 0 | AR69: 0 | AS69: 0 | AT69: 0
B70: 減価償却費 | C70: 0 | D70: 0 | E70: 0 | F70: 0 | G70: 0 | I70: 0 | J70: 0 | K70: 0 | L70: 0 | M70: 0 | Q70: 減価償却費 | R70: ='No1'!B238 -> 0 | S70: ='No1'!C238 -> 0 | T70: ='No1'!D238 -> 0 | U70: ='No1'!E238 -> 0 | V70: ='No1'!F238 -> 0 | W70: ='No1'!G238 -> 0 | X70: ='No1'!H238 -> 0 | Y70: ='No1'!I238 -> 0 | Z70: ='No1'!J238 -> 0 | AA70: ='No1'!K238 -> 0 | AB70: ='No1'!L238 -> 0 | AC70: ='No1'!M238 -> 0 | AD70: ='No1'!N238 -> 0 | AF70: 減価償却費 | AG70: 0 | AH70: 0 | AI70: 0 | AJ70: 0 | AK70: 0 | AL70: 0 | AN70: 0 | AO70: 0 | AP70: 0 | AQ70: 0 | AR70: 0 | AS70: 0 | AT70: 0
B71: 長期前払費用償却 | C71: 0 | D71: 0 | E71: 0 | F71: 0 | G71: 0 | I71: 0 | J71: 0 | K71: 0 | L71: 0 | M71: 0 | Q71: 長期前払費用償却 | R71: ='No1'!B239 -> 0 | S71: ='No1'!C239 -> 0 | T71: ='No1'!D239 -> 0 | U71: ='No1'!E239 -> 0 | V71: ='No1'!F239 -> 0 | W71: ='No1'!G239 -> 0 | X71: ='No1'!H239 -> 0 | Y71: ='No1'!I239 -> 0 | Z71: ='No1'!J239 -> 0 | AA71: ='No1'!K239 -> 0 | AB71: ='No1'!L239 -> 0 | AC71: ='No1'!M239 -> 0 | AD71: ='No1'!N239 -> 0 | AF71: 長期前払費用償却 | AG71: 0 | AH71: 0 | AI71: 0 | AJ71: 0 | AK71: 0 | AL71: 0 | AN71: 0 | AO71: 0 | AP71: 0 | AQ71: 0 | AR71: 0 | AS71: 0 | AT71: 0
B72: 繰延資産償却(販) | Q72: 繰延資産償却(販) | R72: ='No1'!B240 -> 0 | S72: ='No1'!C240 -> 0 | T72: ='No1'!D240 -> 0 | U72: ='No1'!E240 -> 0 | V72: ='No1'!F240 -> 0 | W72: ='No1'!G240 -> 0 | X72: ='No1'!H240 -> 0 | Y72: ='No1'!I240 -> 0 | Z72: ='No1'!J240 -> 0 | AA72: ='No1'!K240 -> 0 | AB72: ='No1'!L240 -> 0 | AC72: ='No1'!M240 -> 0 | AD72: ='No1'!N240 -> 0 | AF72: 繰延資産償却(販) | AG72: 0 | AH72: 0 | AI72: 0 | AJ72: 0 | AK72: 0 | AL72: 0 | AN72: 0 | AO72: 0 | AP72: 0 | AQ72: 0 | AR72: 0 | AS72: 0 | AT72: 0
B73: 貸倒損失(販) | Q73: 貸倒損失(販) | R73: ='No1'!B241 -> 0 | S73: ='No1'!C241 -> 0 | T73: ='No1'!D241 -> 0 | U73: ='No1'!E241 -> 0 | V73: ='No1'!F241 -> 0 | W73: ='No1'!G241 -> 0 | X73: ='No1'!H241 -> 0 | Y73: ='No1'!I241 -> 0 | Z73: ='No1'!J241 -> 0 | AA73: ='No1'!K241 -> 0 | AB73: ='No1'!L241 -> 0 | AC73: ='No1'!M241 -> 0 | AD73: ='No1'!N241 -> 0 | AF73: 貸倒損失(販) | AG73: 0 | AH73: 0 | AI73: 0 | AJ73: 0 | AK73: 0 | AL73: 0 | AN73: 0 | AO73: 0 | AP73: 0 | AQ73: 0 | AR73: 0 | AS73: 0 | AT73: =SUM(AG73:AS73) -> 0
B74: 貸倒繰入額(販) | Q74: 貸倒繰入額(販) | R74: ='No1'!B242 -> 0 | S74: ='No1'!C242 -> 0 | T74: ='No1'!D242 -> 0 | U74: ='No1'!E242 -> 0 | V74: ='No1'!F242 -> 0 | W74: ='No1'!G242 -> 0 | X74: ='No1'!H242 -> 0 | Y74: ='No1'!I242 -> 0 | Z74: ='No1'!J242 -> 0 | AA74: ='No1'!K242 -> 0 | AB74: ='No1'!L242 -> 0 | AC74: ='No1'!M242 -> 0 | AD74: ='No1'!N242 -> 0 | AF74: 貸倒繰入額(販) | AG74: 0 | AH74: 0 | AI74: 0 | AJ74: 0 | AK74: 0 | AL74: 0 | AN74: 0 | AO74: 0 | AP74: 0 | AQ74: 0 | AR74: 0 | AS74: 0 | AT74: 0
B75: 雑費 | Q75: 雑費 | AF75: 雑費 | AT75: 0
B76: 管理費計 | C76: =SUMIF($AG$4:$AS$4,$D$4,AG76:AR76) -> 1271981 | D76: 4.94 | E76: =SUMIF($R$4:$AD$4,$D$4,R76:AC76) -> 1271981 | F76: 4.94 | G76: =SUM(G45:G71) -> 0 | H76: 100 | I76: 7229661 | J76: 6.87 | K76: 7229661 | L76: 6.87 | M76: =SUM(M45:M71) -> 0 | N76: =IF(OR(I76=0,K76=0),"",ROUND(K76/I76*100,0)) -> 100 | Q76: 管理費計 | R76: =SUM(R45:R71) -> 1573100 | S76: =SUM(S45:S71) -> 1450670 | T76: 2933910 | U76: 1271981 | V76: 1909641 | W76: 1703306 | X76: 10842608 | Y76: 4637208 | Z76: 1529787 | AA76: 1548931 | AB76: 1977134 | AC76: 1435403 | AD76: 1937882 | AF76: 管理費計 | AG76: 1573100 | AH76: 1450670 | AI76: 2933910 | AJ76: 1271981 | AK76: 1909641 | AL76: 1703306 | AN76: 4637208 | AO76: 1529787 | AP76: 1548931 | AQ76: 1977134 | AR76: 1435403 | AS76: 1937882 | AT76: 23908953
B77: 販売管理費計 | C77: =SUMIF($AG$4:$AS$4,$D$4,AG77:AR77) -> 6593148 | D77: 25.6 | E77: =SUMIF($R$4:$AD$4,$D$4,R77:AC77) -> 6593148 | F77: 25.6 | G77: 0 | H77: 100 | I77: 18715674 | J77: 17.79 | K77: 18715674 | L77: 17.79 | M77: 0 | N77: =IF(OR(I77=0,K77=0),"",ROUND(K77/I77*100,0)) -> 100 | Q77: 販売管理費計 | R77: ='No1'!B244 -> 3387900 | S77: ='No1'!C244 -> 3713775 | T77: ='No1'!D244 -> 5020851 | U77: ='No1'!E244 -> 6593148 | V77: ='No1'!F244 -> 4120887 | W77: ='No1'!G244 -> 3764765 | X77: ='No1'!H244 -> 26601326 | Y77: ='No1'!I244 -> 6726646 | Z77: ='No1'!J244 -> 3617584 | AA77: ='No1'!K244 -> 7881418 | AB77: ='No1'!L244 -> 4205720 | AC77: ='No1'!M244 -> 4298970 | AD77: ='No1'!N244 -> 4038446 | AF77: 販売管理費計 | AG77: 3387900 | AH77: 3713775 | AI77: 5020851 | AJ77: 6593148 | AK77: 4120887 | AL77: 3764765 | AN77: 6726646 | AO77: 3617584 | AP77: 7881418 | AQ77: 4205720 | AR77: 4298970 | AS77: 4038446 | AT77: 57370110
AD78: =SUM(R78:AC78) -> 0 | AS78: 0 | AT78: 0
F79: 製造原価報告書 | AD79: 0 | AS79: 0 | AT79: 0
M80: （単位：千円） | AD80: 0 | AS80: 0 | AT80: 0
G81: =G3 -> 7 | H81: 月末現在 | AD81: 0 | AS81: 0 | AT81: 0
B82: 勘定科目 | C82: 当月 | I82: 累計 | Q82: 勘定科目 | AD82: 0 | AF82: 勘定科目 | AS82: 0 | AT82: 0
C83: 計画 | E83: 当期 | G83: 増減 | H83: 計画比 | I83: 計画 | K83: 当期 | M83: 増減 | N83: 計画比 | AD83: 0 | AS83: 0 | AT83: 0
C84: 金額 | D84: % | E84: 金額 | F84: % | I84: 金額 | J84: % | K84: 金額 | L84: % | R84: 4月度 | S84: 5月度 | T84: 6月度 | U84: 7月度 | V84: 8月度 | W84: 9月度 | Y84: 10月度 | Z84: 11月度 | AA84: 12月度 | AB84: 1月度 | AC84: 2月度 | AD84: 3月度 | AG84: 4月度 | AH84: 5月度 | AI84: 6月度 | AJ84: 7月度 | AK84: 8月度 | AL84: 9月度 | AN84: 10月度 | AO84: 11月度 | AP84: 12月度 | AQ84: 1月度 | AR84: 2月度 | AS84: 3月度 | AT84: 合計
B85: 材料費合計 | C85: =SUMIF($AG$4:$AS$4,$D$4,AG85:AR85) -> 3224097 | D85: =ROUND(C85/$C$8*100,2) -> 12.52 | E85: =SUMIF($R$4:$AD$4,$D$4,R85:AC85) -> 3224097 | F85: =ROUND(E85/$E$8*100,2) -> 12.52 | G85: =E85-C85 -> 0 | H85: =IF(AND(C85=0,E85=0),"",ROUND(E85/C85*100,1)) -> 100 | I85: =SUMIF($AG$3:$AR$3,$I$4,AG85:AS85) -> 8763147 | J85: =ROUND(I85/I$8*100,2) -> 8.33 | K85: =SUMIF($R$3:$AC$3,$I$4,R85:AC85) -> 8763147 | L85: =ROUND(K85/K$8*100,2) -> 8.33 | M85: =K85-I85 -> 0 | N85: =IF(OR(I85=0,K85=0),"",ROUND(K85/I85*100,0)) -> 100 | Q85: 材料費合計 | R85: ='No1'!B317 -> 1516191 | S85: ='No1'!C317 -> 2204763 | T85: ='No1'!D317 -> 1818096 | U85: ='No1'!E317 -> 3224097 | V85: ='No1'!F317 -> 2185715 | W85: ='No1'!G317 -> 5796667 | X85: ='No1'!H317 -> 16745529 | Y85: ='No1'!I317 -> 3039048 | Z85: ='No1'!J317 -> 4083811 | AA85: ='No1'!K317 -> 270477 | AB85: ='No1'!L317 -> 292858 | AC85: ='No1'!M317 -> 278096 | AD85: ='No1'!N317 -> 299048 | AF85: 材料費合計 | AG85: 1516191 | AH85: 2204763 | AI85: 1818096 | AJ85: 3224097 | AK85: 2185715 | AL85: 5796667 | AN85: 3039048 | AO85: 4083811 | AP85: 270477 | AQ85: 292858 | AR85: 278096 | AS85: 299048 | AT85: 25008867
B86: [労務費] | C86: 0 | D86: 0 | E86: 0 | F86: 0 | G86: =E86-C86 -> 0 | H86: =IF(OR(C86=0,E86=0),"",ROUND(E86/C86*100,0)) ->  | I86: 0 | J86: 0 | K86: 0 | L86: 0 | M86: =K86-I86 -> 0 | Q86: [労務費] | R86: ='No1'!B318 -> 0 | S86: ='No1'!C318 -> 0 | T86: ='No1'!D318 -> 0 | U86: ='No1'!E318 -> 0 | V86: ='No1'!F318 -> 0 | W86: ='No1'!G318 -> 0 | X86: ='No1'!H318 -> 0 | Y86: ='No1'!I318 -> 0 | Z86: ='No1'!J318 -> 0 | AA86: ='No1'!K318 -> 0 | AB86: ='No1'!L318 -> 0 | AC86: ='No1'!M318 -> 0 | AD86: ='No1'!N318 -> 0 | AF86: [労務費] | AG86: 0 | AH86: 0 | AI86: 0 | AJ86: 0 | AK86: 0 | AL86: 0 | AN86: 0 | AO86: 0 | AP86: 0 | AQ86: 0 | AR86: 0 | AS86: 0 | AT86: 0
B87: [製]役員報酬 | C87: 0 | D87: 0 | E87: 0 | F87: 0 | G87: 0 | H87: =IF(OR(C87=0,E87=0),"",ROUND(E87/C87*100,0)) ->  | I87: 0 | J87: 0 | K87: 0 | L87: 0 | M87: 0 | Q87: [製]役員報酬 | R87: ='No1'!B319 -> 0 | S87: ='No1'!C319 -> 0 | T87: ='No1'!D319 -> 0 | U87: ='No1'!E319 -> 0 | V87: ='No1'!F319 -> 0 | W87: ='No1'!G319 -> 0 | X87: ='No1'!H319 -> 0 | Y87: ='No1'!I319 -> 0 | Z87: ='No1'!J319 -> 0 | AA87: ='No1'!K319 -> 0 | AB87: ='No1'!L319 -> 0 | AC87: ='No1'!M319 -> 0 | AD87: ='No1'!N319 -> 0 | AF87: [製]役員報酬 | AG87: 0 | AH87: 0 | AI87: 0 | AJ87: 0 | AK87: 0 | AL87: 0 | AN87: 0 | AO87: 0 | AP87: 0 | AQ87: 0 | AR87: 0 | AS87: 0 | AT87: 0
B88: [製]給料手当 | C88: 267600 | D88: 1.04 | E88: 267600 | F88: 1.04 | G88: 0 | H88: 100 | I88: 1070400 | J88: 1.02 | K88: 1070400 | L88: 1.02 | M88: 0 | N88: 100 | Q88: [製]給料手当 | R88: ='No1'!B320 -> 267600 | S88: ='No1'!C320 -> 267600 | T88: ='No1'!D320 -> 267600 | U88: ='No1'!E320 -> 267600 | V88: ='No1'!F320 -> 267600 | W88: ='No1'!G320 -> 267600 | X88: ='No1'!H320 -> 1605600 | Y88: ='No1'!I320 -> 267600 | Z88: ='No1'!J320 -> 267600 | AA88: ='No1'!K320 -> 267600 | AB88: ='No1'!L320 -> 267600 | AC88: ='No1'!M320 -> 267600 | AD88: ='No1'!N320 -> 267600 | AF88: [製]給料手当 | AG88: 267600 | AH88: 267600 | AI88: 267600 | AJ88: 267600 | AK88: 267600 | AL88: 267600 | AN88: 267600 | AO88: 267600 | AP88: 267600 | AQ88: 267600 | AR88: 267600 | AS88: 267600 | AT88: 3211200
B89: [製]雑給 | C89: 0 | D89: 0 | E89: 0 | F89: 0 | G89: 0 | I89: 0 | J89: 0 | K89: 0 | L89: 0 | M89: 0 | Q89: [製]雑給 | R89: ='No1'!B321 -> 0 | S89: ='No1'!C321 -> 0 | T89: ='No1'!D321 -> 0 | U89: ='No1'!E321 -> 0 | V89: ='No1'!F321 -> 0 | W89: ='No1'!G321 -> 0 | X89: ='No1'!H321 -> 0 | Y89: ='No1'!I321 -> 0 | Z89: ='No1'!J321 -> 0 | AA89: ='No1'!K321 -> 0 | AB89: ='No1'!L321 -> 0 | AC89: ='No1'!M321 -> 0 | AD89: ='No1'!N321 -> 0 | AF89: [製]雑給 | AG89: 0 | AH89: 0 | AI89: 0 | AJ89: 0 | AK89: 0 | AL89: 0 | AN89: 0 | AO89: 0 | AP89: 0 | AQ89: 0 | AR89: 0 | AS89: 0 | AT89: 0
B90: [製]賞与 | C90: 650000 | D90: 2.52 | E90: 650000 | F90: 2.52 | G90: 0 | H90: 100 | I90: 650000 | J90: 0.62 | K90: 650000 | L90: 0.62 | M90: 0 | N90: 100 | Q90: [製]賞与 | R90: ='No1'!B322 -> 0 | S90: ='No1'!C322 -> 0 | T90: ='No1'!D322 -> 0 | U90: ='No1'!E322 -> 650000 | V90: ='No1'!F322 -> 0 | W90: ='No1'!G322 -> 0 | X90: ='No1'!H322 -> 650000 | Y90: ='No1'!I322 -> 0 | Z90: ='No1'!J322 -> 0 | AA90: ='No1'!K322 -> 700000 | AB90: ='No1'!L322 -> 0 | AC90: ='No1'!M322 -> 0 | AD90: ='No1'!N322 -> 0 | AF90: [製]賞与 | AG90: 0 | AH90: 0 | AI90: 0 | AJ90: 650000 | AK90: 0 | AL90: 0 | AN90: 0 | AO90: 0 | AP90: 700000 | AQ90: 0 | AR90: 0 | AS90: 0 | AT90: 1350000
B91: [製]退職金 | C91: 0 | D91: 0 | E91: 0 | F91: 0 | G91: 0 | I91: 0 | J91: 0 | K91: 0 | L91: 0 | M91: 0 | Q91: [製]退職金 | R91: ='No1'!B323 -> 0 | S91: ='No1'!C323 -> 0 | T91: ='No1'!D323 -> 0 | U91: ='No1'!E323 -> 0 | V91: ='No1'!F323 -> 0 | W91: ='No1'!G323 -> 0 | X91: ='No1'!H323 -> 0 | Y91: ='No1'!I323 -> 0 | Z91: ='No1'!J323 -> 0 | AA91: ='No1'!K323 -> 0 | AB91: ='No1'!L323 -> 0 | AC91: ='No1'!M323 -> 0 | AD91: ='No1'!N323 -> 0 | AF91: [製]退職金 | AG91: 0 | AH91: 0 | AI91: 0 | AJ91: 0 | AK91: 0 | AL91: 0 | AN91: 0 | AO91: 0 | AP91: 0 | AQ91: 0 | AR91: 0 | AS91: 0 | AT91: 0
B92: [製]法定福利費 | C92: 43945 | D92: 0.17 | E92: 43945 | F92: 0.17 | G92: 0 | H92: 100 | I92: 175780 | J92: 0.17 | K92: 175780 | L92: 0.17 | M92: 0 | N92: 100 | Q92: [製]法定福利費 | R92: ='No1'!B324 -> 0 | S92: ='No1'!C324 -> 87890 | T92: ='No1'!D324 -> 43945 | U92: ='No1'!E324 -> 43945 | V92: ='No1'!F324 -> 49145 | W92: ='No1'!G324 -> 43945 | X92: ='No1'!H324 -> 268870 | Y92: ='No1'!I324 -> 43945 | Z92: ='No1'!J324 -> 43945 | AA92: ='No1'!K324 -> 43945 | AB92: ='No1'!L324 -> 49545 | AC92: ='No1'!M324 -> 43945 | AD92: ='No1'!N324 -> 43945 | AF92: [製]法定福利費 | AG92: 0 | AH92: 87890 | AI92: 43945 | AJ92: 43945 | AK92: 49145 | AL92: 43945 | AN92: 43945 | AO92: 43945 | AP92: 43945 | AQ92: 49545 | AR92: 43945 | AS92: 43945 | AT92: 538140
B93: [製]福利厚生費 | C93: 16040 | D93: 0.06 | E93: 16040 | F93: 0.06 | G93: 0 | H93: 100 | I93: 20148 | J93: 0.02 | K93: 20148 | L93: 0.02 | M93: 0 | N93: 100 | Q93: [製]福利厚生費 | R93: ='No1'!B325 -> 0 | S93: ='No1'!C325 -> 2544 | T93: ='No1'!D325 -> 1564 | U93: ='No1'!E325 -> 16040 | V93: ='No1'!F325 -> 0 | W93: ='No1'!G325 -> 762 | X93: ='No1'!H325 -> 20910 | Y93: ='No1'!I325 -> 0 | Z93: ='No1'!J325 -> 0 | AA93: ='No1'!K325 -> 11183 | AB93: ='No1'!L325 -> 0 | AC93: ='No1'!M325 -> 6499 | AD93: ='No1'!N325 -> 5548 | AF93: [製]福利厚生費 | AG93: 0 | AH93: 2544 | AI93: 1564 | AJ93: 16040 | AK93: 0 | AL93: 762 | AN93: 0 | AO93: 0 | AP93: 11183 | AQ93: 0 | AR93: 6499 | AS93: 5548 | AT93: 44140
B94: [製]退職繰入額 | C94: 0 | D94: 0 | E94: 0 | F94: 0 | G94: 0 | I94: 0 | J94: 0 | K94: 0 | L94: 0 | M94: 0 | Q94: [製]退職繰入額 | R94: ='No1'!B326 -> 0 | S94: ='No1'!C326 -> 0 | T94: ='No1'!D326 -> 0 | U94: ='No1'!E326 -> 0 | V94: ='No1'!F326 -> 0 | W94: ='No1'!G326 -> 0 | X94: ='No1'!H326 -> 0 | Y94: ='No1'!I326 -> 0 | Z94: ='No1'!J326 -> 0 | AA94: ='No1'!K326 -> 0 | AB94: ='No1'!L326 -> 0 | AC94: ='No1'!M326 -> 0 | AD94: ='No1'!N326 -> 0 | AF94: [製]退職繰入額 | AG94: 0 | AH94: 0 | AI94: 0 | AJ94: 0 | AK94: 0 | AL94: 0 | AN94: 0 | AO94: 0 | AP94: 0 | AQ94: 0 | AR94: 0 | AS94: 0 | AT94: 0
B95: 労務費合計 | C95: 977585 | D95: 3.8 | E95: 977585 | F95: 3.8 | G95: 0 | H95: 100 | I95: 1916328 | J95: 1.82 | K95: 1916328 | L95: 1.82 | M95: 0 | N95: 100 | Q95: 労務費合計 | R95: ='No1'!B327 -> 267600 | S95: ='No1'!C327 -> 358034 | T95: ='No1'!D327 -> 313109 | U95: ='No1'!E327 -> 977585 | V95: ='No1'!F327 -> 316745 | W95: ='No1'!G327 -> 312307 | X95: ='No1'!H327 -> 2545380 | Y95: ='No1'!I327 -> 311545 | Z95: ='No1'!J327 -> 311545 | AA95: ='No1'!K327 -> 1022728 | AB95: ='No1'!L327 -> 317145 | AC95: ='No1'!M327 -> 318044 | AD95: ='No1'!N327 -> 317093 | AF95: 労務費合計 | AG95: 267600 | AH95: 358034 | AI95: 313109 | AJ95: 977585 | AK95: 316745 | AL95: 312307 | AN95: 311545 | AO95: 311545 | AP95: 1022728 | AQ95: 317145 | AR95: 318044 | AS95: 317093 | AT95: 5143480
B96: [製造経費] | C96: 0 | D96: 0 | E96: 0 | F96: 0 | G96: 0 | I96: 0 | J96: 0 | K96: 0 | L96: 0 | M96: 0 | Q96: [製造経費] | R96: ='No1'!B328 -> 0 | S96: ='No1'!C328 -> 0 | T96: ='No1'!D328 -> 0 | U96: ='No1'!E328 -> 0 | V96: ='No1'!F328 -> 0 | W96: ='No1'!G328 -> 0 | X96: ='No1'!H328 -> 0 | Y96: ='No1'!I328 -> 0 | Z96: ='No1'!J328 -> 0 | AA96: ='No1'!K328 -> 0 | AB96: ='No1'!L328 -> 0 | AC96: ='No1'!M328 -> 0 | AD96: ='No1'!N328 -> 0 | AF96: [製造経費] | AG96: 0 | AH96: 0 | AI96: 0 | AJ96: 0 | AK96: 0 | AL96: 0 | AN96: 0 | AO96: 0 | AP96: 0 | AQ96: 0 | AR96: 0 | AS96: 0 | AT96: 0
B97: [製]外注加工費 | C97: 169524 | D97: 0.66 | E97: 169524 | F97: 0.66 | G97: 0 | H97: 100 | I97: 679049 | J97: 0.65 | K97: 679049 | L97: 0.65 | M97: 0 | N97: 100 | Q97: [製]外注加工費 | R97: ='No1'!B329 -> 171429 | S97: ='No1'!C329 -> 176191 | T97: ='No1'!D329 -> 161905 | U97: ='No1'!E329 -> 169524 | V97: ='No1'!F329 -> 180953 | W97: ='No1'!G329 -> 843810 | X97: ='No1'!H329 -> 1703812 | Y97: ='No1'!I329 -> 1142858 | Z97: ='No1'!J329 -> 1138096 | AA97: ='No1'!K329 -> 188572 | AB97: ='No1'!L329 -> 176191 | AC97: ='No1'!M329 -> 190000 | AD97: ='No1'!N329 -> 188572 | AF97: [製]外注加工費 | AG97: 171429 | AH97: 176191 | AI97: 161905 | AJ97: 169524 | AK97: 180953 | AL97: 843810 | AN97: 1142858 | AO97: 1138096 | AP97: 188572 | AQ97: 176191 | AR97: 190000 | AS97: 188572 | AT97: 4728101
B98: [製]動力費 | C98: 0 | D98: 0 | E98: 0 | F98: 0 | G98: 0 | I98: 0 | J98: 0 | K98: 0 | L98: 0 | M98: 0 | Q98: [製]動力費 | R98: ='No1'!B330 -> 0 | S98: ='No1'!C330 -> 0 | T98: ='No1'!D330 -> 0 | U98: ='No1'!E330 -> 0 | V98: ='No1'!F330 -> 0 | W98: ='No1'!G330 -> 0 | X98: ='No1'!H330 -> 0 | Y98: ='No1'!I330 -> 0 | Z98: ='No1'!J330 -> 0 | AA98: ='No1'!K330 -> 0 | AB98: ='No1'!L330 -> 0 | AC98: ='No1'!M330 -> 0 | AD98: ='No1'!N330 -> 0 | AF98: [製]動力費 | AG98: 0 | AH98: 0 | AI98: 0 | AJ98: 0 | AK98: 0 | AL98: 0 | AN98: 0 | AO98: 0 | AP98: 0 | AQ98: 0 | AR98: 0 | AS98: 0 | AT98: 0
B99: [製]荷造運賃 | C99: 0 | D99: 0 | E99: 0 | G99: 0 | I99: 0 | J99: 0 | K99: 0 | Q99: [製]荷造運賃 | R99: ='No1'!B331 -> 0 | S99: ='No1'!C331 -> 0 | T99: ='No1'!D331 -> 0 | U99: ='No1'!E331 -> 0 | V99: ='No1'!F331 -> 0 | W99: ='No1'!G331 -> 0 | X99: ='No1'!H331 -> 0 | Y99: ='No1'!I331 -> 0 | Z99: ='No1'!J331 -> 0 | AA99: ='No1'!K331 -> 0 | AB99: ='No1'!L331 -> 0 | AC99: ='No1'!M331 -> 0 | AD99: ='No1'!N331 -> 0 | AF99: [製]荷造運賃 | AG99: 0 | AH99: 0 | AI99: 0 | AJ99: 0 | AK99: 0 | AL99: 0 | AN99: 0 | AO99: 0 | AP99: 0 | AQ99: 0 | AR99: 0 | AS99: 0 | AT99: 0
B100: [製]会議費 | C100: 0 | D100: 0 | E100: 0 | F100: =ROUND(E100/$E$8*100,2) -> 0 | G100: 0 | I100: 0 | J100: 0 | K100: 0 | L100: =ROUND(K100/K$8*100,2) -> 0 | M100: =K100-I100 -> 0 | Q100: [製]会議費 | R100: ='No1'!B332 -> 0 | S100: ='No1'!C332 -> 0 | T100: ='No1'!D332 -> 0 | U100: ='No1'!E332 -> 0 | V100: ='No1'!F332 -> 0 | W100: ='No1'!G332 -> 0 | X100: ='No1'!H332 -> 0 | Y100: ='No1'!I332 -> 0 | Z100: ='No1'!J332 -> 0 | AA100: ='No1'!K332 -> 0 | AB100: ='No1'!L332 -> 0 | AC100: ='No1'!M332 -> 0 | AD100: ='No1'!N332 -> 0 | AF100: [製]会議費 | AG100: 0 | AH100: 0 | AI100: 0 | AJ100: 0 | AK100: 0 | AL100: 0 | AN100: 0 | AO100: 0 | AP100: 0 | AQ100: 0 | AR100: 0 | AS100: 0 | AT100: 0
B101: [製]旅費交通費 | C101: 7429 | D101: 0.03 | E101: 7429 | F101: 0.03 | G101: 0 | H101: 100 | I101: 29716 | J101: 0.03 | K101: 29716 | L101: 0.03 | M101: 0 | N101: 100 | Q101: [製]旅費交通費 | R101: ='No1'!B333 -> 7429 | S101: ='No1'!C333 -> 7429 | T101: ='No1'!D333 -> 7429 | U101: ='No1'!E333 -> 7429 | V101: ='No1'!F333 -> 7429 | W101: ='No1'!G333 -> 7429 | X101: ='No1'!H333 -> 44574 | Y101: ='No1'!I333 -> 7429 | Z101: ='No1'!J333 -> 7429 | AA101: ='No1'!K333 -> 7429 | AB101: ='No1'!L333 -> 7429 | AC101: ='No1'!M333 -> 7429 | AD101: ='No1'!N333 -> 7429 | AF101: [製]旅費交通費 | AG101: 7429 | AH101: 7429 | AI101: 7429 | AJ101: 7429 | AK101: 7429 | AL101: 7429 | AN101: 7429 | AO101: 7429 | AP101: 7429 | AQ101: 7429 | AR101: 7429 | AS101: 7429 | AT101: 89148
B102: [製]通信費 | C102: 42113 | D102: 0.16 | E102: 42113 | F102: 0.16 | G102: 0 | H102: 100 | I102: 130311 | J102: 0.12 | K102: 130311 | L102: 0.12 | M102: 0 | N102: 100 | Q102: [製]通信費 | R102: ='No1'!B334 -> 34384 | S102: ='No1'!C334 -> 22397 | T102: ='No1'!D334 -> 31417 | U102: ='No1'!E334 -> 42113 | V102: ='No1'!F334 -> 32569 | W102: ='No1'!G334 -> 31417 | X102: ='No1'!H334 -> 194297 | Y102: ='No1'!I334 -> 43140 | Z102: ='No1'!J334 -> 32980 | AA102: ='No1'!K334 -> 3019 | AB102: ='No1'!L334 -> 5985 | AC102: ='No1'!M334 -> 5033 | AD102: ='No1'!N334 -> 5722 | AF102: [製]通信費 | AG102: 34384 | AH102: 22397 | AI102: 31417 | AJ102: 42113 | AK102: 32569 | AL102: 31417 | AN102: 43140 | AO102: 32980 | AP102: 3019 | AQ102: 5985 | AR102: 5033 | AS102: 5722 | AT102: 290176
B103: [製]消耗品費 | C103: 48525 | D103: 0.19 | E103: 48525 | F103: 0.19 | G103: 0 | H103: 100 | I103: 136457 | J103: 0.13 | K103: 136457 | L103: 0.13 | M103: 0 | N103: 100 | Q103: [製]消耗品費 | R103: ='No1'!B335 -> 32287 | S103: ='No1'!C335 -> 45173 | T103: ='No1'!D335 -> 10472 | U103: ='No1'!E335 -> 48525 | V103: ='No1'!F335 -> 11692 | W103: ='No1'!G335 -> 10525 | X103: ='No1'!H335 -> 158674 | Y103: ='No1'!I335 -> 43246 | Z103: ='No1'!J335 -> 7667 | AA103: ='No1'!K335 -> 2849 | AB103: ='No1'!L335 -> 36048 | AC103: ='No1'!M335 -> 2143 | AD103: ='No1'!N335 -> 1000 | AF103: [製]消耗品費 | AG103: 32287 | AH103: 45173 | AI103: 10472 | AJ103: 48525 | AK103: 11692 | AL103: 10525 | AN103: 43246 | AO103: 7667 | AP103: 2849 | AQ103: 36048 | AR103: 2143 | AS103: 1000 | AT103: 251627
B104: [製]事務用品費 | C104: 0 | D104: 0 | E104: 0 | F104: 0 | G104: 0 | I104: 0 | J104: 0 | K104: 0 | L104: 0 | M104: 0 | Q104: [製]事務用品費 | R104: ='No1'!B336 -> 0 | S104: ='No1'!C336 -> 0 | T104: ='No1'!D336 -> 0 | U104: ='No1'!E336 -> 0 | V104: ='No1'!F336 -> 0 | W104: ='No1'!G336 -> 0 | X104: ='No1'!H336 -> 0 | Y104: ='No1'!I336 -> 0 | Z104: ='No1'!J336 -> 0 | AA104: ='No1'!K336 -> 0 | AB104: ='No1'!L336 -> 0 | AC104: ='No1'!M336 -> 0 | AD104: ='No1'!N336 -> 0 | AF104: [製]事務用品費 | AG104: 0 | AH104: 0 | AI104: 0 | AJ104: 0 | AK104: 0 | AL104: 0 | AN104: 0 | AO104: 0 | AP104: 0 | AQ104: 0 | AR104: 0 | AS104: 0 | AT104: 0
B105: [製]消耗工具費 | C105: 0 | D105: 0 | E105: 0 | F105: 0 | G105: 0 | I105: 30953 | J105: 0.03 | K105: 30953 | L105: 0.03 | M105: 0 | N105: 100 | Q105: [製]消耗工具費 | R105: ='No1'!B337 -> 0 | S105: ='No1'!C337 -> 0 | T105: ='No1'!D337 -> 30953 | U105: ='No1'!E337 -> 0 | V105: ='No1'!F337 -> 0 | W105: ='No1'!G337 -> 14477 | X105: ='No1'!H337 -> 45430 | Y105: ='No1'!I337 -> 0 | Z105: ='No1'!J337 -> 0 | AA105: ='No1'!K337 -> 0 | AB105: ='No1'!L337 -> 0 | AC105: ='No1'!M337 -> 0 | AD105: ='No1'!N337 -> 0 | AF105: [製]消耗工具費 | AG105: 0 | AH105: 0 | AI105: 30953 | AJ105: 0 | AK105: 0 | AL105: 14477 | AN105: 0 | AO105: 0 | AP105: 0 | AQ105: 0 | AR105: 0 | AS105: 0 | AT105: 45430
B106: [製]車両費 | C106: 0 | D106: 0 | E106: 0 | F106: 0 | G106: 0 | I106: 0 | J106: 0 | K106: 0 | L106: 0 | M106: 0 | Q106: [製]車両費 | R106: ='No1'!B338 -> 0 | S106: ='No1'!C338 -> 0 | T106: ='No1'!D338 -> 0 | U106: ='No1'!E338 -> 0 | V106: ='No1'!F338 -> 0 | W106: ='No1'!G338 -> 0 | X106: ='No1'!H338 -> 0 | Y106: ='No1'!I338 -> 0 | Z106: ='No1'!J338 -> 0 | AA106: ='No1'!K338 -> 0 | AB106: ='No1'!L338 -> 0 | AC106: ='No1'!M338 -> 0 | AD106: ='No1'!N338 -> 0 | AF106: [製]車両費 | AG106: 0 | AH106: 0 | AI106: 0 | AJ106: 0 | AK106: 0 | AL106: 0 | AN106: 0 | AO106: 0 | AP106: 0 | AQ106: 0 | AR106: 0 | AS106: 0 | AT106: 0
B107: [製]修繕費 | C107: 0 | D107: 0 | E107: 0 | F107: 0 | G107: 0 | I107: 80953 | J107: 0.08 | K107: 80953 | L107: 0.08 | M107: 0 | N107: 100 | Q107: [製]修繕費 | R107: ='No1'!B339 -> 52381 | S107: ='No1'!C339 -> 0 | T107: ='No1'!D339 -> 28572 | U107: ='No1'!E339 -> 0 | V107: ='No1'!F339 -> 0 | W107: ='No1'!G339 -> 0 | X107: ='No1'!H339 -> 80953 | Y107: ='No1'!I339 -> 0 | Z107: ='No1'!J339 -> 28572 | AA107: ='No1'!K339 -> 0 | AB107: ='No1'!L339 -> 0 | AC107: ='No1'!M339 -> 0 | AD107: ='No1'!N339 -> 0 | AF107: [製]修繕費 | AG107: 52381 | AH107: 0 | AI107: 28572 | AJ107: 0 | AK107: 0 | AL107: 0 | AN107: 0 | AO107: 28572 | AP107: 0 | AQ107: 0 | AR107: 0 | AS107: 0 | AT107: 109525
B108: [製]水道光熱費 | C108: 24762 | D108: 0.1 | E108: 24762 | F108: 0.1 | G108: 0 | H108: 100 | I108: 158193 | J108: 0.15 | K108: 158193 | L108: 0.15 | M108: 0 | N108: 100 | Q108: [製]水道光熱費 | R108: ='No1'!B340 -> 33334 | S108: ='No1'!C340 -> 43334 | T108: ='No1'!D340 -> 56763 | U108: ='No1'!E340 -> 24762 | V108: ='No1'!F340 -> 59049 | W108: ='No1'!G340 -> 25334 | X108: ='No1'!H340 -> 242576 | Y108: ='No1'!I340 -> 56382 | Z108: ='No1'!J340 -> 24734 | AA108: ='No1'!K340 -> 346286 | AB108: ='No1'!L340 -> 111334 | AC108: ='No1'!M340 -> 153286 | AD108: ='No1'!N340 -> 161905 | AF108: [製]水道光熱費 | AG108: 33334 | AH108: 43334 | AI108: 56763 | AJ108: 24762 | AK108: 59049 | AL108: 25334 | AN108: 56382 | AO108: 24734 | AP108: 346286 | AQ108: 111334 | AR108: 153286 | AS108: 161905 | AT108: 1096503
B109: [製]新聞図書費 | C109: 0 | D109: 0 | E109: 0 | F109: 0 | G109: 0 | I109: 0 | J109: 0 | K109: 0 | L109: 0 | M109: 0 | Q109: [製]新聞図書費 | R109: ='No1'!B341 -> 0 | S109: ='No1'!C341 -> 0 | T109: ='No1'!D341 -> 0 | U109: ='No1'!E341 -> 0 | V109: ='No1'!F341 -> 0 | W109: ='No1'!G341 -> 0 | X109: ='No1'!H341 -> 0 | Y109: ='No1'!I341 -> 0 | Z109: ='No1'!J341 -> 0 | AA109: ='No1'!K341 -> 0 | AB109: ='No1'!L341 -> 0 | AC109: ='No1'!M341 -> 0 | AD109: ='No1'!N341 -> 0 | AF109: [製]新聞図書費 | AG109: 0 | AH109: 0 | AI109: 0 | AJ109: 0 | AK109: 0 | AL109: 0 | AN109: 0 | AO109: 0 | AP109: 0 | AQ109: 0 | AR109: 0 | AS109: 0 | AT109: 0
B110: [製]諸会費 | C110: 0 | D110: 0 | E110: 0 | F110: 0 | G110: 0 | I110: 0 | J110: 0 | K110: 0 | L110: 0 | M110: 0 | Q110: [製]諸会費 | R110: ='No1'!B342 -> 0 | S110: ='No1'!C342 -> 0 | T110: ='No1'!D342 -> 0 | U110: ='No1'!E342 -> 0 | V110: ='No1'!F342 -> 0 | W110: ='No1'!G342 -> 0 | X110: ='No1'!H342 -> 0 | Y110: ='No1'!I342 -> 0 | Z110: ='No1'!J342 -> 0 | AA110: ='No1'!K342 -> 0 | AB110: ='No1'!L342 -> 0 | AC110: ='No1'!M342 -> 0 | AD110: ='No1'!N342 -> 0 | AF110: [製]諸会費 | AG110: 0 | AH110: 0 | AI110: 0 | AJ110: 0 | AK110: 0 | AL110: 0 | AN110: 0 | AO110: 0 | AP110: 0 | AQ110: 0 | AR110: 0 | AS110: 0 | AT110: 0
B111: [製]減価償却費 | C111: 0 | D111: 0 | E111: 0 | F111: 0 | G111: 0 | I111: 0 | J111: 0 | K111: 0 | L111: 0 | M111: 0 | Q111: [製]減価償却費 | R111: ='No1'!B343 -> 0 | S111: ='No1'!C343 -> 0 | T111: ='No1'!D343 -> 0 | U111: ='No1'!E343 -> 0 | V111: ='No1'!F343 -> 0 | W111: ='No1'!G343 -> 0 | X111: ='No1'!H343 -> 0 | Y111: ='No1'!I343 -> 0 | Z111: ='No1'!J343 -> 0 | AA111: ='No1'!K343 -> 0 | AB111: ='No1'!L343 -> 0 | AC111: ='No1'!M343 -> 0 | AD111: ='No1'!N343 -> 0 | AF111: [製]減価償却費 | AG111: 0 | AH111: 0 | AI111: 0 | AJ111: 0 | AK111: 0 | AL111: 0 | AN111: 0 | AO111: 0 | AP111: 0 | AQ111: 0 | AR111: 0 | AS111: 0 | AT111: 0
B112: [製]地代家賃 | C112: 109524 | D112: 0.43 | E112: 109524 | F112: 0.43 | G112: 0 | H112: 100 | I112: 438096 | J112: 0.42 | K112: 438096 | L112: 0.42 | M112: 0 | N112: 100 | Q112: [製]地代家賃 | R112: ='No1'!B344 -> 109524 | S112: ='No1'!C344 -> 109524 | T112: ='No1'!D344 -> 109524 | U112: ='No1'!E344 -> 109524 | V112: ='No1'!F344 -> 109524 | W112: ='No1'!G344 -> 109524 | X112: ='No1'!H344 -> 657144 | Y112: ='No1'!I344 -> 109524 | Z112: ='No1'!J344 -> 109524 | AA112: ='No1'!K344 -> 109524 | AB112: ='No1'!L344 -> 0 | AC112: ='No1'!M344 -> 219048 | AD112: ='No1'!N344 -> 109524 | AF112: [製]地代家賃 | AG112: 109524 | AH112: 109524 | AI112: 109524 | AJ112: 109524 | AK112: 109524 | AL112: 109524 | AN112: 109524 | AO112: 109524 | AP112: 109524 | AQ112: 0 | AR112: 219048 | AS112: 109524 | AT112: 1314288
B113: [製]賃借料 | C113: 42500 | D113: 0.17 | E113: 42500 | F113: 0.17 | G113: 0 | H113: 100 | I113: 170000 | J113: 0.16 | K113: 170000 | L113: 0.16 | M113: 0 | N113: 100 | Q113: [製]賃借料 | R113: ='No1'!B345 -> 42500 | S113: ='No1'!C345 -> 42500 | T113: ='No1'!D345 -> 42500 | U113: ='No1'!E345 -> 42500 | V113: ='No1'!F345 -> 42500 | W113: ='No1'!G345 -> 42500 | X113: ='No1'!H345 -> 255000 | Y113: ='No1'!I345 -> 42500 | Z113: ='No1'!J345 -> 42500 | AA113: ='No1'!K345 -> 42500 | AB113: ='No1'!L345 -> 42500 | AC113: ='No1'!M345 -> 42500 | AD113: ='No1'!N345 -> 42500 | AF113: [製]賃借料 | AG113: 42500 | AH113: 42500 | AI113: 42500 | AJ113: 42500 | AK113: 42500 | AL113: 42500 | AN113: 42500 | AO113: 42500 | AP113: 42500 | AQ113: 42500 | AR113: 42500 | AS113: 42500 | AT113: 510000
B114: [製]租税公課 | C114: =SUMIF($AG$4:$AS$4,$D$4,AG114:AR114) -> 0 | D114: 0 | E114: 0 | F114: 0 | G114: 0 | I114: 0 | J114: 0 | K114: 0 | L114: 0 | M114: 0 | Q114: [製]租税公課 | R114: ='No1'!B346 -> 0 | S114: ='No1'!C346 -> 0 | T114: ='No1'!D346 -> 0 | U114: ='No1'!E346 -> 0 | V114: ='No1'!F346 -> 0 | W114: ='No1'!G346 -> 0 | X114: ='No1'!H346 -> 0 | Y114: ='No1'!I346 -> 0 | Z114: ='No1'!J346 -> 0 | AA114: ='No1'!K346 -> 0 | AB114: ='No1'!L346 -> 0 | AC114: ='No1'!M346 -> 0 | AD114: ='No1'!N346 -> 0 | AF114: [製]租税公課 | AG114: 0 | AH114: 0 | AI114: 0 | AJ114: 0 | AK114: 0 | AL114: 0 | AN114: 0 | AO114: 0 | AP114: 0 | AQ114: 0 | AR114: 0 | AS114: 0 | AT114: 0
B115: [製]保険料 | C115: 0 | D115: 0 | E115: 0 | F115: 0 | G115: 0 | I115: 0 | J115: 0 | K115: 0 | L115: 0 | M115: 0 | Q115: [製]保険料 | R115: ='No1'!B347 -> 0 | S115: ='No1'!C347 -> 0 | T115: ='No1'!D347 -> 0 | U115: ='No1'!E347 -> 0 | V115: ='No1'!F347 -> 0 | W115: ='No1'!G347 -> 0 | X115: ='No1'!H347 -> 0 | Y115: ='No1'!I347 -> 0 | Z115: ='No1'!J347 -> 0 | AA115: ='No1'!K347 -> 0 | AB115: ='No1'!L347 -> 0 | AC115: ='No1'!M347 -> 0 | AD115: ='No1'!N347 -> 0 | AF115: [製]保険料 | AG115: 0 | AH115: 0 | AI115: 0 | AJ115: 0 | AK115: 0 | AL115: 0 | AN115: 0 | AO115: 0 | AP115: 0 | AQ115: 0 | AR115: 0 | AS115: 0 | AT115: 0
B116: [製]支払報酬料 | C116: 0 | D116: 0 | E116: 0 | F116: 0 | G116: 0 | I116: 0 | J116: 0 | K116: 0 | L116: 0 | M116: 0 | Q116: [製]支払報酬料 | R116: ='No1'!B348 -> 0 | S116: ='No1'!C348 -> 0 | T116: ='No1'!D348 -> 0 | U116: ='No1'!E348 -> 0 | V116: ='No1'!F348 -> 0 | W116: ='No1'!G348 -> 0 | X116: ='No1'!H348 -> 0 | Y116: ='No1'!I348 -> 0 | Z116: ='No1'!J348 -> 0 | AA116: ='No1'!K348 -> 0 | AB116: ='No1'!L348 -> 0 | AC116: ='No1'!M348 -> 0 | AD116: ='No1'!N348 -> 0 | AF116: [製]支払報酬料 | AG116: 0 | AH116: 0 | AI116: 0 | AJ116: 0 | AK116: 0 | AL116: 0 | AN116: 0 | AO116: 0 | AP116: 0 | AQ116: 0 | AR116: 0 | AS116: 0 | AT116: 0
B117: [製]寄付金 | C117: 0 | D117: 0 | E117: 0 | F117: 0 | G117: 0 | I117: 0 | J117: 0 | K117: 0 | L117: 0 | M117: 0 | Q117: [製]寄付金 | R117: ='No1'!B349 -> 0 | S117: ='No1'!C349 -> 0 | T117: ='No1'!D349 -> 0 | U117: ='No1'!E349 -> 0 | V117: ='No1'!F349 -> 0 | W117: ='No1'!G349 -> 0 | X117: ='No1'!H349 -> 0 | Y117: ='No1'!I349 -> 0 | Z117: ='No1'!J349 -> 0 | AA117: ='No1'!K349 -> 0 | AB117: ='No1'!L349 -> 0 | AC117: ='No1'!M349 -> 0 | AD117: ='No1'!N349 -> 0 | AF117: [製]寄付金 | AG117: 0 | AH117: 0 | AI117: 0 | AJ117: 0 | AK117: 0 | AL117: 0 | AN117: 0 | AO117: 0 | AP117: 0 | AQ117: 0 | AR117: 0 | AS117: 0 | AT117: 0
B118: [製]研究開発費 | C118: 0 | D118: 0 | E118: 0 | F118: 0 | G118: 0 | I118: 0 | J118: 0 | K118: 0 | L118: 0 | M118: 0 | Q118: [製]研究開発費 | R118: ='No1'!B350 -> 0 | S118: ='No1'!C350 -> 0 | T118: ='No1'!D350 -> 0 | U118: ='No1'!E350 -> 0 | V118: ='No1'!F350 -> 0 | W118: ='No1'!G350 -> 0 | X118: ='No1'!H350 -> 0 | Y118: ='No1'!I350 -> 0 | Z118: ='No1'!J350 -> 0 | AA118: ='No1'!K350 -> 0 | AB118: ='No1'!L350 -> 0 | AC118: ='No1'!M350 -> 0 | AD118: ='No1'!N350 -> 0 | AF118: [製]研究開発費 | AG118: 0 | AH118: 0 | AI118: 0 | AJ118: 0 | AK118: 0 | AL118: 0 | AN118: 0 | AO118: 0 | AP118: 0 | AQ118: 0 | AR118: 0 | AS118: 0 | AT118: 0
B119: [製]保管料 | C119: 0 | D119: 0 | E119: 0 | F119: 0 | G119: 0 | I119: 0 | J119: 0 | K119: 0 | L119: 0 | M119: 0 | Q119: [製]保管料 | R119: ='No1'!B351 -> 0 | S119: ='No1'!C351 -> 0 | T119: ='No1'!D351 -> 0 | U119: ='No1'!E351 -> 0 | V119: ='No1'!F351 -> 0 | W119: ='No1'!G351 -> 0 | X119: ='No1'!H351 -> 0 | Y119: ='No1'!I351 -> 0 | Z119: ='No1'!J351 -> 0 | AA119: ='No1'!K351 -> 0 | AB119: ='No1'!L351 -> 0 | AC119: ='No1'!M351 -> 0 | AD119: ='No1'!N351 -> 0 | AF119: [製]保管料 | AG119: 0 | AH119: 0 | AI119: 0 | AJ119: 0 | AK119: 0 | AL119: 0 | AN119: 0 | AO119: 0 | AP119: 0 | AQ119: 0 | AR119: 0 | AS119: 0 | AT119: 0
B120: [製]特許使用料 | C120: 0 | D120: 0 | E120: 0 | F120: 0 | G120: 0 | I120: 0 | J120: 0 | K120: 0 | L120: 0 | M120: 0 | Q120: [製]特許使用料 | R120: ='No1'!B352 -> 0 | S120: ='No1'!C352 -> 0 | T120: ='No1'!D352 -> 0 | U120: ='No1'!E352 -> 0 | V120: ='No1'!F352 -> 0 | W120: ='No1'!G352 -> 0 | X120: ='No1'!H352 -> 0 | Y120: ='No1'!I352 -> 0 | Z120: ='No1'!J352 -> 0 | AA120: ='No1'!K352 -> 0 | AB120: ='No1'!L352 -> 0 | AC120: ='No1'!M352 -> 0 | AD120: ='No1'!N352 -> 0 | AF120: [製]特許使用料 | AG120: 0 | AH120: 0 | AI120: 0 | AJ120: 0 | AK120: 0 | AL120: 0 | AN120: 0 | AO120: 0 | AP120: 0 | AQ120: 0 | AR120: 0 | AS120: 0 | AT120: 0
B121: [製]棚卸減耗損 | C121: 0 | D121: 0 | E121: 0 | F121: 0 | G121: 0 | I121: 0 | J121: 0 | K121: 0 | L121: 0 | M121: 0 | Q121: [製]棚卸減耗損 | R121: ='No1'!B353 -> 0 | S121: ='No1'!C353 -> 0 | T121: ='No1'!D353 -> 0 | U121: ='No1'!E353 -> 0 | V121: ='No1'!F353 -> 0 | W121: ='No1'!G353 -> 0 | X121: ='No1'!H353 -> 0 | Y121: ='No1'!I353 -> 0 | Z121: ='No1'!J353 -> 0 | AA121: ='No1'!K353 -> 0 | AB121: ='No1'!L353 -> 0 | AC121: ='No1'!M353 -> 0 | AD121: ='No1'!N353 -> 0 | AF121: [製]棚卸減耗損 | AG121: 0 | AH121: 0 | AI121: 0 | AJ121: 0 | AK121: 0 | AL121: 0 | AN121: 0 | AO121: 0 | AP121: 0 | AQ121: 0 | AR121: 0 | AS121: 0 | AT121: 0
B122: [製]雑費 | C122: 0 | D122: 0 | E122: 0 | F122: 0 | G122: 0 | I122: 0 | J122: 0 | K122: 0 | L122: 0 | M122: 0 | Q122: [製]雑費 | R122: ='No1'!B354 -> 0 | S122: ='No1'!C354 -> 0 | T122: ='No1'!D354 -> 0 | U122: ='No1'!E354 -> 0 | V122: ='No1'!F354 -> 0 | W122: ='No1'!G354 -> 0 | X122: ='No1'!H354 -> 0 | Y122: ='No1'!I354 -> 0 | Z122: ='No1'!J354 -> 0 | AA122: ='No1'!K354 -> 0 | AB122: ='No1'!L354 -> 0 | AC122: ='No1'!M354 -> 0 | AD122: ='No1'!N354 -> 0 | AF122: [製]雑費 | AG122: 0 | AH122: 0 | AI122: 0 | AJ122: 0 | AK122: 0 | AL122: 0 | AN122: 0 | AO122: 0 | AP122: 0 | AQ122: 0 | AR122: 0 | AS122: 0 | AT122: 0
B123: 製造経費合計 | C123: 444377 | D123: 1.73 | E123: 444377 | F123: 1.73 | G123: 0 | H123: 100 | I123: 1853728 | J123: 1.76 | K123: 1853728 | L123: 1.76 | M123: 0 | N123: 100 | Q123: 製造経費合計 | R123: ='No1'!B355 -> 483268 | S123: ='No1'!C355 -> 446548 | T123: ='No1'!D355 -> 479535 | U123: ='No1'!E355 -> 444377 | V123: ='No1'!F355 -> 443716 | W123: ='No1'!G355 -> 1085016 | X123: ='No1'!H355 -> 3382460 | Y123: ='No1'!I355 -> 1445079 | Z123: ='No1'!J355 -> 1391502 | AA123: ='No1'!K355 -> 700179 | AB123: ='No1'!L355 -> 379487 | AC123: ='No1'!M355 -> 619439 | AD123: ='No1'!N355 -> 516652 | AF123: 製造経費合計 | AG123: 483268 | AH123: 446548 | AI123: 479535 | AJ123: 444377 | AK123: 443716 | AL123: 1085016 | AN123: 1445079 | AO123: 1391502 | AP123: 700179 | AQ123: 379487 | AR123: 619439 | AS123: 516652 | AT123: 8434798
B124: 総製造費用 | C124: 4646059 | D124: 18.04 | E124: 4646059 | F124: 18.04 | G124: 0 | H124: 100 | I124: 12533203 | J124: 11.91 | K124: 12533203 | L124: 11.91 | M124: 0 | N124: 100 | Q124: 総製造費用 | R124: ='No1'!B356 -> 2267059 | S124: ='No1'!C356 -> 3009345 | T124: ='No1'!D356 -> 2610740 | U124: ='No1'!E356 -> 4646059 | V124: ='No1'!F356 -> 2946176 | W124: ='No1'!G356 -> 7193990 | X124: ='No1'!H356 -> 22673369 | Y124: ='No1'!I356 -> 4795672 | Z124: ='No1'!J356 -> 5786858 | AA124: ='No1'!K356 -> 1993384 | AB124: ='No1'!L356 -> 989490 | AC124: ='No1'!M356 -> 1215579 | AD124: ='No1'!N356 -> 1132793 | AF124: 総製造費用 | AG124: 2267059 | AH124: 3009345 | AI124: 2610740 | AJ124: 4646059 | AK124: 2946176 | AL124: 7193990 | AN124: 4795672 | AO124: 5786858 | AP124: 1993384 | AQ124: 989490 | AR124: 1215579 | AS124: 1132793 | AT124: 38587145
B125: 当期製品製造原価 | C125: =SUMIF($AG$4:$AS$4,$D$4,AG125:AR125) -> 4646059 | D125: 18.04 | E125: 4646059 | F125: 18.04 | G125: 0 | H125: 100 | I125: 12533203 | J125: 11.91 | K125: 12533203 | L125: 11.91 | M125: 0 | N125: 100 | Q125: 当期製品製造原価 | R125: ='No1'!B360 -> 2267059 | S125: ='No1'!C360 -> 3009345 | T125: ='No1'!D360 -> 2610740 | U125: ='No1'!E360 -> 4646059 | V125: ='No1'!F360 -> 2946176 | W125: ='No1'!G360 -> 7193990 | X125: ='No1'!H360 -> 22673369 | Y125: ='No1'!I360 -> 4795672 | Z125: ='No1'!J360 -> 5786858 | AA125: ='No1'!K360 -> 1993384 | AB125: ='No1'!L360 -> 989490 | AC125: ='No1'!M360 -> 1215579 | AD125: ='No1'!N360 -> 1132793 | AF125: 当期製品製造原価 | AG125: 2267059 | AH125: 3009345 | AI125: 2610740 | AJ125: 4646059 | AK125: 2946176 | AL125: 7193990 | AN125: 4795672 | AO125: 5786858 | AP125: 1993384 | AQ125: 989490 | AR125: 1215579 | AS125: 1132793 | AT125: 38587145
R126: ='No1'!B358 -> 0
R127: ='No1'!B359 -> 0

Sheet No7
F2: 比較損益計算書
G3: ='No6'!G3 -> 7 | H3: 月末現在 | R3: =IF($I$4>=1,$I$4,0) -> 4 | S3: =IF($I$4>=2,$I$4,0) -> 4 | T3: =IF($I$4>=3,$I$4,0) -> 4 | U3: =IF($I$4>=4,$I$4,0) -> 4 | V3: =IF($I$4>=5,$I$4,0) -> 0 | W3: =IF($I$4>=6,$I$4,0) -> 0 | Y3: =IF($I$4>=8,$I$4,0) -> 0 | Z3: =IF($I$4>=9,$I$4,0) -> 0 | AA3: =IF($I$4>=10,$I$4,0) -> 0 | AB3: =IF($I$4>=11,$I$4,0) -> 0 | AC3: =IF($I$4>=12,$I$4,0) -> 0 | AD3: =IF($I$4>=12,$I$4,0) -> 0 | AG3: =IF($I$4>=1,$I$4,0) -> 4 | AH3: =IF($I$4>=2,$I$4,0) -> 4 | AI3: =IF($I$4>=3,$I$4,0) -> 4 | AJ3: =IF($I$4>=4,$I$4,0) -> 4 | AK3: =IF($I$4>=5,$I$4,0) -> 0 | AL3: =IF($I$4>=6,$I$4,0) -> 0 | AN3: =IF($I$4>=8,$I$4,0) -> 0 | AO3: =IF($I$4>=9,$I$4,0) -> 0 | AP3: =IF($I$4>=10,$I$4,0) -> 0 | AQ3: =IF($I$4>=11,$I$4,0) -> 0 | AR3: =IF($I$4>=12,$I$4,0) -> 0 | AS3: =IF($I$4>=12,$I$4,0) -> 0
D4: =IF(H4>=4,H4-3,H4+9) -> 4 | H4: =G3 -> 7 | I4: =IF(H4<4,H4+9,H4-3) -> 4 | M4: （単位：千円） | R4: 1 | S4: 2 | T4: 3 | U4: 4 | V4: 5 | W4: 6 | Y4: 7 | Z4: 8 | AA4: 9 | AB4: 10 | AC4: 11 | AD4: 12 | AG4: 1 | AH4: 2 | AI4: 3 | AJ4: 4 | AK4: 5 | AL4: 6 | AN4: 7 | AO4: 8 | AP4: 9 | AQ4: 10 | AR4: 11 | AS4: 12
B5: 勘定科目 | C5: 当月 | I5: 累計 | Q5: 勘定科目 | R5: 当期 | AG5: 前年
C6: 前年 | E6: 実績 | G6: 増減 | H6: 前年比 | I6: 前年 | K6: 実績 | M6: 増減 | N6: 前年比 | R6: ='No1'!B8 -> 4月度 | S6: ='No1'!C8 -> 5月度 | T6: ='No1'!D8 -> 6月度 | U6: ='No1'!E8 -> 7月度 | V6: ='No1'!F8 -> 8月度 | W6: ='No1'!G8 -> 9月度 | X6: ='No1'!H8 -> 上半期残高(合計) | Y6: ='No1'!I8 -> 10月度 | Z6: ='No1'!J8 -> 11月度 | AA6: ='No1'!K8 -> 12月度 | AB6: ='No1'!L8 -> 1月度 | AC6: ='No1'!M8 -> 2月度 | AD6: ='No1'!N8 -> 3月度 | AE6: 合計 | AG6: 4月度 | AH6: 5月度 | AI6: 6月度 | AJ6: 7月度 | AK6: 8月度 | AL6: 9月度 | AN6: 10月度 | AO6: 11月度 | AP6: 12月度 | AQ6: 1月度 | AR6: 2月度 | AS6: 3月度 | AT6: 合計
C7: 金額 | D7: % | E7: 金額 | F7: % | I7: 金額 | J7: % | K7: 金額 | L7: % | AD7: 0 | AS7: 0
B8: 売上高 | C8: =SUMIF($AG$4:$AS$4,$D$4,AG8:AR8) -> 23410222.73 | D8: =ROUND(C8/$C$8*100,2) -> 100 | E8: ='No6'!E8 -> 25751245 | F8: =ROUND(E8/$E$8*100,2) -> 100 | G8: =E8-C8 -> 2341022.273 | H8: =IF(OR(C8=0,E8=0),"",ROUND(E8/C8*100,0)) -> 110 | I8: =SUMIF($AG$3:$AR$3,$I$4,AG8:AS8) -> 95647782.73 | J8: 100 | K8: ='No6'!K8 -> 105212561 | L8: 100 | M8: =K8-I8 -> 9564778.273 | N8: =IF(OR(I8=0,K8=0),"",ROUND(K8/I8*100,0)) -> 110 | Q8: 売上高 | R8: ='No1'!B173 -> 23730235 | S8: ='No1'!C173 -> 29370928 | T8: ='No1'!D173 -> 26360153 | U8: ='No1'!E173 -> 25751245 | V8: ='No1'!F173 -> 26527462 | W8: ='No1'!G173 -> 30242038 | X8: ='No1'!H173 -> 161982061 | Y8: ='No1'!I173 -> 29274704 | Z8: ='No1'!J173 -> 19625274 | AA8: ='No1'!K173 -> 24076028 | AB8: ='No1'!L173 -> 33236724 | AC8: ='No1'!M173 -> 13016544 | AD8: ='No1'!N173 -> 8225518 | AF8: 売上高 | AG8: 21572940.91 | AH8: 26700843.64 | AI8: 23963775.45 | AJ8: 23410222.73 | AK8: 24115874.55 | AL8: 27492761.82 | AN8: 26613367.27 | AO8: 17841158.18 | AP8: 21887298.18 | AQ8: 30215203.64 | AR8: 11833221.82 | AS8: 7477743.636 | AT8: =SUM(AG8:AS8) -> 263124411.8
E9: ='No6'!E9 -> 0 | I9: =SUMIF($AG$3:$AR$3,$I$4,AG9:AS9) -> 0 | K9: ='No6'!K9 -> 0 | N9: =IF(AND(I9=0,K9=0),"",ROUND(K9/I9*100,1)) ->  | AG9: 0 | AH9: 0 | AI9: 0 | AJ9: 0 | AK9: 0 | AL9: 0 | AN9: 0 | AO9: 0 | AP9: 0 | AQ9: 0 | AR9: 0 | AS9: 0 | AT9: =SUM(AG9:AS9) -> 0
B10: 売上原価 | C10: =SUMIF($AG$4:$AS$4,$D$4,AG10:AR10) -> 21616180 | D10: =ROUND(C10/C$8*100,2) -> 92.34 | E10: ='No6'!E10 -> 23777798 | F10: =ROUND(E10/E$8*100,2) -> 92.34 | G10: =E10-C10 -> 2161618 | H10: =IF(OR(C10=0,E10=0),"",ROUND(E10/C10*100,0)) -> 110 | I10: =SUMIF($AG$3:$AR$3,$I$4,AG10:AS10) -> 75784689.09 | J10: =ROUND(I10/I$8*100,2) -> 79.23 | K10: ='No6'!K10 -> 83363158 | L10: =ROUND(K10/K$8*100,2) -> 79.23 | M10: =K10-I10 -> 7578468.909 | N10: =IF(OR(I10=0,K10=0),"",ROUND(K10/I10*100,0)) -> 110 | Q10: 売上原価 | R10: ='No1'!B200 -> 18785515 | S10: ='No1'!C200 -> 21749851 | T10: ='No1'!D200 -> 19049994 | U10: ='No1'!E200 -> 23777798 | V10: ='No1'!F200 -> 18836093 | W10: ='No1'!G200 -> 20079234 | X10: ='No1'!H200 -> 122278485 | Y10: ='No1'!I200 -> 20289240 | Z10: ='No1'!J200 -> 14560253 | AA10: ='No1'!K200 -> 16142865 | AB10: ='No1'!L200 -> 19843197 | AC10: ='No1'!M200 -> 14246006 | AD10: ='No1'!N200 -> 2711293 | AF10: 売上原価 | AG10: 17077740.91 | AH10: 19772591.82 | AI10: 17318176.36 | AJ10: 21616180 | AK10: 17123720.91 | AL10: 18253849.09 | AN10: 18444763.64 | AO10: 13236593.64 | AP10: 14675331.82 | AQ10: 18039270 | AR10: 12950914.55 | AS10: 2464811.818 | AT10: 190973944.5
B11: 売上総損益 | C11: =SUMIF($AG$4:$AS$4,$D$4,AG11:AR11) -> 1794042.727 | D11: 7.66 | E11: ='No6'!E11 -> 1973447 | F11: 7.66 | G11: 179404.2727 | H11: 110 | I11: =SUMIF($AG$3:$AR$3,$I$4,AG11:AS11) -> 19863093.64 | J11: 20.77 | K11: ='No6'!K11 -> 21849403 | L11: 20.77 | M11: 1986309.364 | N11: 110 | Q11: 売上総損益 | R11: ='No1'!B201 -> 4944720 | S11: ='No1'!C201 -> 7621077 | T11: ='No1'!D201 -> 7310159 | U11: ='No1'!E201 -> 1973447 | V11: ='No1'!F201 -> 7691369 | W11: ='No1'!G201 -> 10162804 | X11: ='No1'!H201 -> 39703576 | Y11: ='No1'!I201 -> 8985464 | Z11: ='No1'!J201 -> 5065021 | AA11: ='No1'!K201 -> 7933163 | AB11: ='No1'!L201 -> 13393527 | AC11: ='No1'!M201 -> -1229462 | AD11: ='No1'!N201 -> 5514225 | AF11: 売上総損益 | AG11: 4495200 | AH11: 6928251.818 | AI11: 6645599.091 | AJ11: 1794042.727 | AK11: 6992153.636 | AL11: 9238912.727 | AN11: 8168603.636 | AO11: 4604564.545 | AP11: 7211966.364 | AQ11: 12175933.64 | AR11: -1117692.727 | AS11: 5012931.818 | AT11: 72150467.27
C12: =SUMIF($AG$4:$AS$4,$D$4,AG12:AR12) -> 0 | I12: =SUMIF($AG$3:$AR$3,$I$4,AG12:AS12) -> 0 | AG12: 0 | AH12: 0 | AI12: 0 | AJ12: 0 | AK12: 0 | AL12: 0 | AN12: 0 | AO12: 0 | AP12: 0 | AQ12: 0 | AR12: 0 | AS12: 0 | AT12: 0
B13: 販売費および管理費 | C13: =SUMIF($AG$4:$AS$4,$D$4,AG13:AR13) -> 5993770.909 | D13: 25.6 | E13: ='No6'!E13 -> 6593148 | F13: 25.6 | G13: 599377.0909 | H13: 110 | I13: 17014249.09 | J13: 17.79 | K13: ='No6'!K13 -> 18715674 | L13: 17.79 | M13: 1701424.909 | N13: 110 | Q13: 販売費および管理費 | R13: ='No1'!B244 -> 3387900 | S13: ='No1'!C244 -> 3713775 | T13: ='No1'!D244 -> 5020851 | U13: ='No1'!E244 -> 6593148 | V13: ='No1'!F244 -> 4120887 | W13: ='No1'!G244 -> 3764765 | X13: ='No1'!H244 -> 26601326 | Y13: ='No1'!I244 -> 6726646 | Z13: ='No1'!J244 -> 3617584 | AA13: ='No1'!K244 -> 7881418 | AB13: ='No1'!L244 -> 4205720 | AC13: ='No1'!M244 -> 4298970 | AD13: ='No1'!N244 -> 4038446 | AF13: 販売費および管理費 | AG13: 3079909.091 | AH13: 3376159.091 | AI13: 4564410 | AJ13: 5993770.909 | AK13: 3746260.909 | AL13: 3422513.636 | AN13: 6115132.727 | AO13: 3288712.727 | AP13: 7164925.455 | AQ13: 3823381.818 | AR13: 3908154.545 | AS13: 3671314.545 | AT13: 52154645.45
B14: 営業利益 | C14: =SUMIF($AG$4:$AS$4,$D$4,AG14:AR14) -> -4199728.182 | D14: -17.94 | E14: ='No6'!E14 -> -4619701 | F14: -17.94 | G14: -419972.8182 | H14: 110 | I14: 2848844.545 | J14: 2.98 | K14: ='No6'!K14 -> 3133729 | L14: 2.98 | M14: 284884.4545 | N14: 110 | Q14: 営業利益 | R14: ='No1'!B245 -> 1556820 | S14: ='No1'!C245 -> 3907302 | T14: ='No1'!D245 -> 2289308 | U14: ='No1'!E245 -> -4619701 | V14: ='No1'!F245 -> 3570482 | W14: ='No1'!G245 -> 6398039 | X14: ='No1'!H245 -> 13102250 | Y14: ='No1'!I245 -> 2258818 | Z14: ='No1'!J245 -> 1447437 | AA14: ='No1'!K245 -> 51745 | AB14: ='No1'!L245 -> 9187807 | AC14: ='No1'!M245 -> -5528432 | AD14: ='No1'!N245 -> 1475779 | AF14: 営業利益 | AG14: 1415290.909 | AH14: 3552092.727 | AI14: 2081189.091 | AJ14: -4199728.182 | AK14: 3245892.727 | AL14: 5816399.091 | AN14: 2053470.909 | AO14: 1315851.818 | AP14: 47040.90909 | AQ14: 8352551.818 | AR14: -5025847.273 | AS14: 1341617.273 | AT14: 19995821.82
Q15: ｢営業外収益」 | AF15: ｢営業外収益」 | AG15: 0 | AH15: 0 | AI15: 0 | AJ15: 0 | AK15: 0 | AL15: 0 | AN15: 0 | AO15: 0 | AP15: 0 | AQ15: 0 | AR15: 0 | AS15: 0 | AT15: 0
B16: 受取利息 | C16: =SUMIF($AG$4:$AS$4,$D$4,AG16:AR16) -> 0 | D16: 0 | E16: ='No6'!E16 -> 0 | F16: 0 | G16: 0 | I16: 0 | J16: 0 | K16: ='No6'!K16 -> 0 | L16: 0 | M16: 0 | Q16: 受取利息 | R16: ='No1'!B247 -> 0 | S16: ='No1'!C247 -> 0 | T16: ='No1'!D247 -> 0 | U16: ='No1'!E247 -> 0 | V16: ='No1'!F247 -> 1174 | W16: ='No1'!G247 -> 6154 | X16: ='No1'!H247 -> 7328 | Y16: ='No1'!I247 -> 0 | Z16: ='No1'!J247 -> 0 | AA16: ='No1'!K247 -> 0 | AB16: ='No1'!L247 -> 0 | AC16: ='No1'!M247 -> 100 | AD16: ='No1'!N247 -> 5000 | AF16: 受取利息 | AG16: 0 | AH16: 0 | AI16: 0 | AJ16: 0 | AK16: 1067.272727 | AL16: 5594.545455 | AN16: 0 | AO16: 0 | AP16: 0 | AQ16: 0 | AR16: 90.90909091 | AS16: 4545.454545 | AT16: 11298.18182
B17: 受取配当金 | C17: =SUMIF($AG$4:$AS$4,$D$4,AG17:AR17) -> 0 | D17: 0 | E17: ='No6'!E17 -> 0 | F17: 0 | G17: 0 | I17: 727.2727273 | J17: 0 | K17: ='No6'!K17 -> 800 | L17: 0 | M17: 72.72727273 | N17: 110 | Q17: 受取配当金 | R17: ='No1'!B248 -> 0 | S17: ='No1'!C248 -> 800 | T17: ='No1'!D248 -> 0 | U17: ='No1'!E248 -> 0 | V17: ='No1'!F248 -> 0 | W17: ='No1'!G248 -> 0 | X17: ='No1'!H248 -> 800 | Y17: ='No1'!I248 -> 0 | Z17: ='No1'!J248 -> 0 | AA17: ='No1'!K248 -> 0 | AB17: ='No1'!L248 -> 0 | AC17: ='No1'!M248 -> 0 | AD17: ='No1'!N248 -> 0 | AF17: 受取配当金 | AG17: 0 | AH17: 727.2727273 | AI17: 0 | AJ17: 0 | AK17: 0 | AL17: 0 | AN17: 0 | AO17: 0 | AP17: 0 | AQ17: 0 | AR17: 0 | AS17: 0 | AT17: 727.2727273
B18: 営業外利益計 | C18: =SUMIF($AG$4:$AS$4,$D$4,AG18:AR18) -> 0 | D18: 0 | E18: ='No6'!E18 -> 0 | F18: 0 | G18: 0 | I18: 727.2727273 | J18: 0 | K18: ='No6'!K18 -> 800 | L18: 0 | M18: 72.72727273 | N18: 110 | Q18: 営業外利益計 | R18: ='No1'!B252 -> 0 | S18: ='No1'!C252 -> 800 | T18: ='No1'!D252 -> 0 | U18: ='No1'!E252 -> 0 | V18: ='No1'!F252 -> 1174 | W18: ='No1'!G252 -> 6154 | X18: ='No1'!H252 -> 8128 | Y18: ='No1'!I252 -> 0 | Z18: ='No1'!J252 -> 0 | AA18: ='No1'!K252 -> 0 | AB18: ='No1'!L252 -> 0 | AC18: ='No1'!M252 -> 100 | AD18: ='No1'!N252 -> 5000 | AF18: 営業外利益計 | AG18: 0 | AH18: 727.2727273 | AI18: 0 | AJ18: 0 | AK18: 1067.272727 | AL18: 5594.545455 | AN18: 0 | AO18: 0 | AP18: 0 | AQ18: 0 | AR18: 90.90909091 | AS18: 4545.454545 | AT18: 12025.45455
Q19: ｢営業外費用」 | AF19: ｢営業外費用」 | AG19: 0 | AH19: 0 | AI19: 0 | AJ19: 0 | AK19: 0 | AL19: 0 | AN19: 0 | AO19: 0 | AP19: 0 | AQ19: 0 | AR19: 0 | AS19: 0 | AT19: 0
B20: 支払利息 | C20: =SUMIF($AG$4:$AS$4,$D$4,AG20:AR20) -> 31362.72727 | D20: 0.13 | E20: ='No6'!E20 -> 34499 | F20: 0.13 | G20: 3136.272727 | H20: 110 | I20: 120321.8182 | J20: 0.13 | K20: ='No6'!K20 -> 132354 | L20: 0.13 | M20: 12032.18182 | N20: 110 | Q20: 支払利息 | R20: ='No1'!B254 -> 19050 | S20: ='No1'!C254 -> 41209 | T20: ='No1'!D254 -> 37596 | U20: ='No1'!E254 -> 34499 | V20: ='No1'!F254 -> 32235 | W20: ='No1'!G254 -> 29970 | X20: ='No1'!H254 -> 194559 | Y20: ='No1'!I254 -> 51738 | Z20: ='No1'!J254 -> 25436 | AA20: ='No1'!K254 -> 2625 | AB20: ='No1'!L254 -> 25357 | AC20: ='No1'!M254 -> 23179 | AD20: ='No1'!N254 -> 23625 | AF20: 支払利息 | AG20: 17318.18182 | AH20: 37462.72727 | AI20: 34178.18182 | AJ20: 31362.72727 | AK20: 29304.54545 | AL20: 27245.45455 | AN20: 47034.54545 | AO20: 23123.63636 | AP20: 2386.363636 | AQ20: 23051.81818 | AR20: 21071.81818 | AS20: 21477.27273 | AT20: 315017.2727
B21: 営業外費用計 | C21: =SUMIF($AG$4:$AS$4,$D$4,AG21:AR21) -> 31362.72727 | D21: 0.13 | E21: ='No6'!E21 -> 34499 | F21: 0.13 | G21: 3136.272727 | H21: 110 | I21: 120321.8182 | J21: 0.13 | K21: ='No6'!K21 -> 132354 | L21: 0.13 | M21: 12032.18182 | N21: 110 | Q21: 営業外費用計 | R21: ='No1'!B263 -> 19050 | S21: ='No1'!C263 -> 41209 | T21: ='No1'!D263 -> 37596 | U21: ='No1'!E263 -> 34499 | V21: ='No1'!F263 -> 32235 | W21: ='No1'!G263 -> 29970 | X21: ='No1'!H263 -> 194559 | Y21: ='No1'!I263 -> 51738 | Z21: ='No1'!J263 -> 25436 | AA21: ='No1'!K263 -> 2625 | AB21: ='No1'!L263 -> 25357 | AC21: ='No1'!M263 -> 23179 | AD21: ='No1'!N263 -> 23625 | AF21: 営業外費用計 | AG21: 17318.18182 | AH21: 37462.72727 | AI21: 34178.18182 | AJ21: 31362.72727 | AK21: 29304.54545 | AL21: 27245.45455 | AN21: 47034.54545 | AO21: 23123.63636 | AP21: 2386.363636 | AQ21: 23051.81818 | AR21: 21071.81818 | AS21: 21477.27273 | AT21: 315017.2727
B22: 経常利益 | C22: =SUMIF($AG$4:$AS$4,$D$4,AG22:AR22) -> -4231090.909 | D22: -18.07 | E22: ='No6'!E22 -> -4654200 | F22: -18.07 | G22: -423109.0909 | H22: 110 | I22: 2729250 | J22: 2.85 | K22: ='No6'!K22 -> 3002175 | L22: 2.85 | M22: 272925 | N22: 110 | Q22: 経常利益 | R22: ='No1'!B264 -> 1537770 | S22: ='No1'!C264 -> 3866893 | T22: ='No1'!D264 -> 2251712 | U22: ='No1'!E264 -> -4654200 | V22: ='No1'!F264 -> 3539421 | W22: ='No1'!G264 -> 6374223 | X22: ='No1'!H264 -> 12915819 | Y22: ='No1'!I264 -> 2207080 | Z22: ='No1'!J264 -> 1422001 | AA22: ='No1'!K264 -> 49120 | AB22: ='No1'!L264 -> 9162450 | AC22: ='No1'!M264 -> -5551511 | AD22: ='No1'!N264 -> 1457154 | AF22: 経常利益 | AG22: 1397972.727 | AH22: 3515357.273 | AI22: 2047010.909 | AJ22: -4231090.909 | AK22: 3217655.455 | AL22: 5794748.182 | AN22: 2006436.364 | AO22: 1292728.182 | AP22: 44654.54545 | AQ22: 8329500 | AR22: -5046828.182 | AS22: 1324685.455 | AT22: 19692830
B23: 法人税等 | C23: =SUMIF($AG$4:$AS$4,$D$4,AG23:AR23) -> 0 | D23: 0 | E23: ='No6'!E23 -> 0 | F23: 0 | G23: 0 | I23: 145.4545455 | J23: 0 | K23: ='No6'!K23 -> 160 | L23: 0 | M23: 14.54545455 | N23: 110 | Q23: 法人税等 | R23: ='No1'!B279 -> 0 | S23: ='No1'!C279 -> 160 | T23: ='No1'!D279 -> 0 | U23: ='No1'!E279 -> 0 | V23: ='No1'!F279 -> 233 | W23: ='No1'!G279 -> 1230 | X23: ='No1'!H279 -> 1623 | Y23: ='No1'!I279 -> 0 | Z23: ='No1'!J279 -> 3400000 | AA23: ='No1'!K279 -> 0 | AB23: ='No1'!L279 -> 0 | AC23: ='No1'!M279 -> 20 | AD23: ='No1'!N279 -> 1000 | AF23: 法人税等 | AG23: 0 | AH23: 145.4545455 | AI23: 0 | AJ23: 0 | AK23: 211.8181818 | AL23: 1118.181818 | AN23: 0 | AO23: 3090909.091 | AP23: 0 | AQ23: 0 | AR23: 18.18181818 | AS23: 909.0909091 | AT23: 3093311.818
B24: 当期利益 | C24: =SUMIF($AG$4:$AS$4,$D$4,AG24:AR24) -> -4231090.909 | D24: -18.07 | E24: ='No6'!E24 -> -4654200 | F24: -18.07 | G24: -423109.0909 | H24: 110 | I24: 2729104.545 | J24: 2.85 | K24: ='No6'!K24 -> 3002015 | L24: 2.85 | M24: 272910.4545 | N24: 110 | Q24: 当期利益 | R24: ='No1'!B282 -> 1537770 | S24: ='No1'!C282 -> 3866733 | T24: ='No1'!D282 -> 2251712 | U24: ='No1'!E282 -> -4654200 | V24: ='No1'!F282 -> 3539188 | W24: ='No1'!G282 -> 6372993 | X24: ='No1'!H282 -> 12914196 | Y24: ='No1'!I282 -> 2207080 | Z24: ='No1'!J282 -> -1977999 | AA24: ='No1'!K282 -> 49120 | AB24: ='No1'!L282 -> 9162450 | AC24: ='No1'!M282 -> -5551531 | AD24: ='No1'!N282 -> 1456154 | AF24: 当期利益 | AG24: 1397972.727 | AH24: 3515211.818 | AI24: 2047010.909 | AJ24: -4231090.909 | AK24: 3217443.636 | AL24: 5793630 | AN24: 2006436.364 | AO24: -1798180.909 | AP24: 44654.54545 | AQ24: 8329500 | AR24: -5046846.364 | AS24: 1323776.364 | AT24: 16599518.18
AD25: =SUM(R25:AC25) -> 0 | AS25: 0 | AT25: 0
AD26: 0 | AS26: 0 | AT26: 0
AD27: 0 | AS27: 0 | AT27: 0
F28: 販売費一般管理費明細書 | AD28: 0 | AS28: 0 | AT28: 0
AD29: 0 | AS29: 0 | AT29: 0
G30: =G3 -> 7 | H30: 月末現在 | AD30: 0 | AS30: 0 | AT30: 0
B31: 勘定科目 | C31: 当月 | I31: 累計 | Q31: 勘定科目 | R31: 当期 | AD31: 0 | AF31: 勘定科目 | AG31: 当期 | AS31: 0 | AT31: 0
C32: 前年 | E32: 当期 | G32: 増減 | H32: 前年比 | I32: 前年 | K32: 当期 | M32: 増減 | N32: 前年比 | R32: 4月度 | S32: 5月度 | T32: 6月度 | U32: 7月度 | V32: 8月度 | W32: 9月度 | Y32: 10月度 | Z32: 11月度 | AA32: 12月度 | AB32: 1月度 | AC32: 2月度 | AD32: 3月度 | AG32: 4月度 | AH32: 5月度 | AI32: 6月度 | AJ32: 7月度 | AK32: 8月度 | AL32: 9月度 | AN32: 10月度 | AO32: 11月度 | AP32: 12月度 | AQ32: 1月度 | AR32: 2月度 | AS32: 3月度
C33: 金額 | D33: % | E33: 金額 | F33: % | I33: 金額 | J33: % | K33: 金額 | L33: % | S33: =IF($I$4>=2,$I$4,0) -> 4 | T33: =IF($I$4>=3,$I$4,0) -> 4 | U33: =IF($I$4>=4,$I$4,0) -> 4 | V33: =IF($I$4>=5,$I$4,0) -> 0 | W33: =IF($I$4>=6,$I$4,0) -> 0 | X33: =IF($I$4>=7,$I$4,0) -> 0 | Y33: =IF($I$4>=8,$I$4,0) -> 0 | Z33: =IF($I$4>=9,$I$4,0) -> 0 | AA33: =IF($I$4>=10,$I$4,0) -> 0 | AB33: =IF($I$4>=11,$I$4,0) -> 0 | AC33: =IF($I$4>=12,$I$4,0) -> 0 | AD33: 12 | AH33: 4 | AI33: 4 | AJ33: 4 | AK33: 0 | AL33: 0 | AN33: 0 | AO33: 0 | AP33: 0 | AQ33: 0 | AR33: 0 | AS33: 12 | AT33: 合計
B34: 役員報酬 | C34: =SUMIF($AG$4:$AS$4,$D$4,AG34:AR34) -> 727272.7273 | D34: =ROUND(C34/$C$8*100,2) -> 3.11 | E34: ='No6'!E34 -> 800000 | F34: =ROUND(E34/$E$8*100,2) -> 3.11 | G34: =E34-C34 -> 72727.27273 | H34: =IF(AND(C34=0,E34=0),"",ROUND(E34/C34*100,1)) -> 110 | I34: =SUMIF($AG$3:$AR$3,$I$4,AG34:AS34) -> 2909090.909 | J34: =ROUND(I34/I$8*100,2) -> 3.04 | K34: =SUMIF($R$3:$AC$3,$I$4,R34:AC34) -> 3200000 | L34: =ROUND(K34/K$8*100,2) -> 3.04 | M34: =K34-I34 -> 290909.0909 | N34: =IF(OR(I34=0,K34=0),"",ROUND(K34/I34*100,0)) -> 110 | Q34: 役員報酬 | R34: ='No1'!B203 -> 800000 | S34: ='No1'!C203 -> 800000 | T34: ='No1'!D203 -> 800000 | U34: ='No1'!E203 -> 800000 | V34: ='No1'!F203 -> 800000 | W34: ='No1'!G203 -> 800000 | X34: ='No1'!H203 -> 4800000 | Y34: ='No1'!I203 -> 800000 | Z34: ='No1'!J203 -> 800000 | AA34: ='No1'!K203 -> 800000 | AB34: ='No1'!L203 -> 800000 | AC34: ='No1'!M203 -> 800000 | AD34: ='No1'!N203 -> 800000 | AF34: 役員報酬 | AG34: 727272.7273 | AH34: 727272.7273 | AI34: 727272.7273 | AJ34: 727272.7273 | AK34: 727272.7273 | AL34: 727272.7273 | AN34: 727272.7273 | AO34: 727272.7273 | AP34: 727272.7273 | AQ34: 727272.7273 | AR34: 727272.7273 | AS34: 727272.7273 | AT34: 8727272.727
B35: 役員賞与 | C35: 0 | D35: 0 | E35: ='No6'!E35 -> 0 | F35: 0 | G35: =E35-C35 -> 0 | H35: =IF(OR(C35=0,E35=0),"",ROUND(E35/C35*100,0)) ->  | I35: 0 | J35: 0 | K35: 0 | L35: 0 | M35: =K35-I35 -> 0 | Q35: 役員賞与 | R35: ='No1'!B204 -> 0 | S35: ='No1'!C204 -> 0 | T35: ='No1'!D204 -> 0 | U35: ='No1'!E204 -> 0 | V35: ='No1'!F204 -> 0 | W35: ='No1'!G204 -> 0 | X35: ='No1'!H204 -> 0 | Y35: ='No1'!I204 -> 0 | Z35: ='No1'!J204 -> 0 | AA35: ='No1'!K204 -> 0 | AB35: ='No1'!L204 -> 0 | AC35: ='No1'!M204 -> 0 | AD35: ='No1'!N204 -> 0 | AF35: 役員賞与 | AG35: 0 | AH35: 0 | AI35: 0 | AJ35: 0 | AK35: 0 | AL35: 0 | AN35: 0 | AO35: 0 | AP35: 0 | AQ35: 0 | AR35: 0 | AS35: 0 | AT35: 0
B36: 給料手当 | C36: 978727.2727 | D36: 4.18 | E36: ='No6'!E36 -> 1076600 | F36: 4.18 | G36: 97872.72727 | H36: =IF(OR(C36=0,E36=0),"",ROUND(E36/C36*100,0)) -> 110 | I36: 3857090.909 | J36: 4.03 | K36: 4242800 | L36: 4.03 | M36: 385709.0909 | N36: 110 | Q36: 給料手当 | R36: ='No1'!B205 -> 1010800 | S36: ='No1'!C205 -> 1078800 | T36: ='No1'!D205 -> 1076600 | U36: ='No1'!E205 -> 1076600 | V36: ='No1'!F205 -> 1067100 | W36: ='No1'!G205 -> 1056600 | X36: ='No1'!H205 -> 6366500 | Y36: ='No1'!I205 -> 1082000 | Z36: ='No1'!J205 -> 1086400 | AA36: ='No1'!K205 -> 1079300 | AB36: ='No1'!L205 -> 1089300 | AC36: ='No1'!M205 -> 1064000 | AD36: ='No1'!N205 -> 1096000 | AF36: 給料手当 | AG36: 918909.0909 | AH36: 980727.2727 | AI36: 978727.2727 | AJ36: 978727.2727 | AK36: 970090.9091 | AL36: 960545.4545 | AN36: 983636.3636 | AO36: 987636.3636 | AP36: 981181.8182 | AQ36: 990272.7273 | AR36: 967272.7273 | AS36: 996363.6364 | AT36: 11694090.91
B37: 雑給 | C37: 0 | D37: 0 | E37: ='No6'!E37 -> 0 | F37: 0 | G37: 0 | I37: 0 | J37: 0 | K37: 0 | L37: 0 | M37: 0 | Q37: 雑給 | R37: ='No1'!B206 -> 0 | S37: ='No1'!C206 -> 0 | T37: ='No1'!D206 -> 0 | U37: ='No1'!E206 -> 0 | V37: ='No1'!F206 -> 0 | W37: ='No1'!G206 -> 0 | X37: ='No1'!H206 -> 0 | Y37: ='No1'!I206 -> 0 | Z37: ='No1'!J206 -> 0 | AA37: ='No1'!K206 -> 0 | AB37: ='No1'!L206 -> 0 | AC37: ='No1'!M206 -> 0 | AD37: ='No1'!N206 -> 0 | AF37: 雑給 | AG37: 0 | AH37: 0 | AI37: 0 | AJ37: 0 | AK37: 0 | AL37: 0 | AN37: 0 | AO37: 0 | AP37: 0 | AQ37: 0 | AR37: 0 | AS37: 0 | AT37: 0
B38: 賞与 | C38: 2950000 | D38: 12.6 | E38: ='No6'!E38 -> 3245000 | F38: 12.6 | G38: 295000 | H38: 110 | I38: 2950000 | J38: 3.08 | K38: 3245000 | L38: 3.08 | M38: 295000 | N38: 110 | Q38: 賞与 | R38: ='No1'!B207 -> 0 | S38: ='No1'!C207 -> 0 | T38: ='No1'!D207 -> 0 | U38: ='No1'!E207 -> 3245000 | V38: ='No1'!F207 -> 0 | W38: ='No1'!G207 -> 0 | X38: ='No1'!H207 -> 3245000 | Y38: ='No1'!I207 -> 0 | Z38: ='No1'!J207 -> 0 | AA38: ='No1'!K207 -> 4210000 | AB38: ='No1'!L207 -> 0 | AC38: ='No1'!M207 -> 0 | AD38: ='No1'!N207 -> 0 | AF38: 賞与 | AG38: 0 | AH38: 0 | AI38: 0 | AJ38: 2950000 | AK38: 0 | AL38: 0 | AN38: 0 | AO38: 0 | AP38: 3827272.727 | AQ38: 0 | AR38: 0 | AS38: 0 | AT38: 6777272.727
B39: 退職金 | C39: 0 | D39: 0 | E39: ='No6'!E39 -> 0 | F39: 0 | G39: 0 | I39: 0 | J39: 0 | K39: 0 | L39: 0 | M39: 0 | Q39: 退職金 | R39: ='No1'!B208 -> 0 | S39: ='No1'!C208 -> 0 | T39: ='No1'!D208 -> 0 | U39: ='No1'!E208 -> 0 | V39: ='No1'!F208 -> 0 | W39: ='No1'!G208 -> 0 | X39: ='No1'!H208 -> 0 | Y39: ='No1'!I208 -> 0 | Z39: ='No1'!J208 -> 0 | AA39: ='No1'!K208 -> 0 | AB39: ='No1'!L208 -> 0 | AC39: ='No1'!M208 -> 0 | AD39: ='No1'!N208 -> 0 | AF39: 退職金 | AG39: 0 | AH39: 0 | AI39: 0 | AJ39: 0 | AK39: 0 | AL39: 0 | AN39: 0 | AO39: 0 | AP39: 0 | AQ39: 0 | AR39: 0 | AS39: 0 | AT39: 0
B40: 法定福利費 | C40: 181424.5455 | D40: 0.77 | E40: ='No6'!E40 -> 199567 | F40: 0.77 | G40: 18142.45455 | H40: 110 | I40: 710069.0909 | J40: 0.74 | K40: 781076 | L40: 0.74 | M40: 71006.90909 | N40: 110 | Q40: 法定福利費 | R40: ='No1'!B209 -> 0 | S40: ='No1'!C209 -> 381942 | T40: ='No1'!D209 -> 199567 | U40: ='No1'!E209 -> 199567 | V40: ='No1'!F209 -> 229927 | W40: ='No1'!G209 -> 199567 | X40: ='No1'!H209 -> 1210570 | Y40: ='No1'!I209 -> 199567 | Z40: ='No1'!J209 -> 199567 | AA40: ='No1'!K209 -> 199567 | AB40: ='No1'!L209 -> 236047 | AC40: ='No1'!M209 -> 199567 | AD40: ='No1'!N209 -> 199567 | AF40: 法定福利費 | AG40: 0 | AH40: 347220 | AI40: 181424.5455 | AJ40: 181424.5455 | AK40: 209024.5455 | AL40: 181424.5455 | AN40: 181424.5455 | AO40: 181424.5455 | AP40: 181424.5455 | AQ40: 214588.1818 | AR40: 181424.5455 | AS40: 181424.5455 | AT40: 2222229.091
B41: 福利厚生費 | C41: 0 | D41: 0 | E41: ='No6'!E41 -> 0 | F41: 0 | G41: 0 | I41: 15579.09091 | J41: 0.02 | K41: 17137 | L41: 0.02 | M41: 1557.909091 | N41: 110 | Q41: 福利厚生費 | R41: ='No1'!B210 -> 4000 | S41: ='No1'!C210 -> 2363 | T41: ='No1'!D210 -> 10774 | U41: ='No1'!E210 -> 0 | V41: ='No1'!F210 -> 114219 | W41: ='No1'!G210 -> 5292 | X41: ='No1'!H210 -> 136648 | Y41: ='No1'!I210 -> 7871 | Z41: ='No1'!J210 -> 1830 | AA41: ='No1'!K210 -> 43620 | AB41: ='No1'!L210 -> 103239 | AC41: ='No1'!M210 -> 0 | AD41: ='No1'!N210 -> 4997 | AF41: 福利厚生費 | AG41: 3636.363636 | AH41: 2148.181818 | AI41: 9794.545455 | AJ41: 0 | AK41: 103835.4545 | AL41: 4810.909091 | AN41: 7155.454545 | AO41: 1663.636364 | AP41: 39654.54545 | AQ41: 93853.63636 | AR41: 0 | AS41: 4542.727273 | AT41: 271095.4545
B42: 退職給付繰入額 | C42: 0 | D42: 0 | E42: ='No6'!E42 -> 0 | F42: 0 | G42: 0 | I42: 0 | J42: 0 | K42: 0 | L42: 0 | M42: 0 | Q42: 退職給付繰入額 | R42: ='No1'!B211 -> 0 | S42: ='No1'!C211 -> 0 | T42: ='No1'!D211 -> 0 | U42: ='No1'!E211 -> 0 | V42: ='No1'!F211 -> 0 | W42: ='No1'!G211 -> 0 | X42: ='No1'!H211 -> 0 | Y42: ='No1'!I211 -> 0 | Z42: ='No1'!J211 -> 0 | AA42: ='No1'!K211 -> 0 | AB42: ='No1'!L211 -> 0 | AC42: ='No1'!M211 -> 0 | AD42: ='No1'!N211 -> 0 | AF42: 退職給付繰入額 | AG42: 0 | AH42: 0 | AI42: 0 | AJ42: 0 | AK42: 0 | AL42: 0 | AN42: 0 | AO42: 0 | AP42: 0 | AQ42: 0 | AR42: 0 | AS42: 0 | AT42: 0
B43: 採用教育費 | C43: 0 | D43: 0 | E43: ='No6'!E43 -> 0 | F43: 0 | G43: 0 | I43: 0 | J43: 0 | K43: 0 | L43: 0 | M43: 0 | Q43: 採用教育費 | R43: ='No1'!B212 -> 0 | S43: ='No1'!C212 -> 0 | T43: ='No1'!D212 -> 0 | U43: ='No1'!E212 -> 0 | V43: ='No1'!F212 -> 0 | W43: ='No1'!G212 -> 0 | X43: ='No1'!H212 -> 0 | Y43: ='No1'!I212 -> 0 | Z43: ='No1'!J212 -> 0 | AA43: ='No1'!K212 -> 0 | AB43: ='No1'!L212 -> 0 | AC43: ='No1'!M212 -> 800000 | AD43: ='No1'!N212 -> 0 | AF43: 採用教育費 | AG43: 0 | AH43: 0 | AI43: 0 | AJ43: 0 | AK43: 0 | AL43: 0 | AN43: 0 | AO43: 0 | AP43: 0 | AQ43: 0 | AR43: 727272.7273 | AS43: 0 | AT43: 727272.7273
B44: 人件費計 | C44: 4837424.545 | D44: 20.66 | E44: ='No6'!E44 -> 5321167 | F44: 20.66 | G44: =E44-C44 -> 483742.4545 | H44: =IF(OR(C44=0,E44=0),"",ROUND(E44/C44*100,0)) -> 110 | I44: 10441830 | J44: 10.92 | K44: 11486013 | L44: 10.92 | M44: 1044183 | N44: 110 | Q44: 人件費計 | R44: =SUM(R34:R43) -> 1814800 | S44: =SUM(S34:S43) -> 2263105 | T44: 2086941 | U44: 5321167 | V44: 2211246 | W44: 2061459 | X44: 15758718 | Y44: 2089438 | Z44: 2087797 | AA44: 6332487 | AB44: 2228586 | AC44: 2863567 | AD44: 2100564 | AF44: 人件費計 | AG44: 1649818.182 | AH44: 2057368.182 | AI44: 1897219.091 | AJ44: 4837424.545 | AK44: 2010223.636 | AL44: 1874053.636 | AN44: 1899489.091 | AO44: 1897997.273 | AP44: 5756806.364 | AQ44: 2025987.273 | AR44: 2603242.727 | AS44: 1909603.636 | AT44: 30419233.64
B45: 外注費 | C45: 0 | D45: 0 | E45: ='No6'!E45 -> 0 | F45: 0 | G45: 0 | I45: 0 | J45: 0 | K45: 0 | L45: 0 | M45: 0 | Q45: 外注費 | R45: ='No1'!B213 -> 0 | S45: ='No1'!C213 -> 0 | T45: ='No1'!D213 -> 0 | U45: ='No1'!E213 -> 0 | V45: ='No1'!F213 -> 0 | W45: ='No1'!G213 -> 0 | X45: ='No1'!H213 -> 0 | Y45: ='No1'!I213 -> 0 | Z45: ='No1'!J213 -> 0 | AA45: ='No1'!K213 -> 0 | AB45: ='No1'!L213 -> 0 | AC45: ='No1'!M213 -> 0 | AD45: ='No1'!N213 -> 0 | AF45: 外注費 | AG45: 0 | AH45: 0 | AI45: 0 | AJ45: 0 | AK45: 0 | AL45: 0 | AN45: 0 | AO45: 0 | AP45: 0 | AQ45: 0 | AR45: 0 | AS45: 0 | AT45: 0
B46: 荷造運賃 | C46: 347186.3636 | D46: 1.48 | E46: ='No6'!E46 -> 381905 | F46: 1.48 | G46: 34718.63636 | H46: 110 | I46: 1302599.091 | J46: 1.36 | K46: 1432859 | L46: 1.36 | M46: 130259.9091 | N46: 110 | Q46: 荷造運賃 | R46: ='No1'!B214 -> 340953 | S46: ='No1'!C214 -> 339048 | T46: ='No1'!D214 -> 370953 | U46: ='No1'!E214 -> 381905 | V46: ='No1'!F214 -> 400953 | W46: ='No1'!G214 -> 496667 | X46: ='No1'!H214 -> 2330479 | Y46: ='No1'!I214 -> 600763 | Z46: ='No1'!J214 -> 256096 | AA46: ='No1'!K214 -> 340953 | AB46: ='No1'!L214 -> 360000 | AC46: ='No1'!M214 -> 379524 | AD46: ='No1'!N214 -> 347810 | AF46: 荷造運賃 | AG46: 309957.2727 | AH46: 308225.4545 | AI46: 337230 | AJ46: 347186.3636 | AK46: 364502.7273 | AL46: 451515.4545 | AN46: 546148.1818 | AO46: 232814.5455 | AP46: 309957.2727 | AQ46: 327272.7273 | AR46: 345021.8182 | AS46: 316190.9091 | AT46: 4196022.727
B47: 広告宣伝費 | C47: 0 | D47: 0 | E47: ='No6'!E47 -> 0 | F47: 0 | G47: 0 | I47: 1211255.455 | J47: 1.27 | K47: 1332381 | L47: 1.27 | M47: 121125.5455 | N47: 110 | Q47: 広告宣伝費 | R47: ='No1'!B215 -> 0 | S47: ='No1'!C215 -> 0 | T47: ='No1'!D215 -> 1332381 | U47: ='No1'!E215 -> 0 | V47: ='No1'!F215 -> 0 | W47: ='No1'!G215 -> 0 | X47: ='No1'!H215 -> 1332381 | Y47: ='No1'!I215 -> 2857143 | Z47: ='No1'!J215 -> 0 | AA47: ='No1'!K215 -> 0 | AB47: ='No1'!L215 -> 450000 | AC47: ='No1'!M215 -> 0 | AD47: ='No1'!N215 -> 400000 | AF47: 広告宣伝費 | AG47: 0 | AH47: 0 | AI47: 1211255.455 | AJ47: 0 | AK47: 0 | AL47: 0 | AN47: 2597402.727 | AO47: 0 | AP47: 0 | AQ47: 409090.9091 | AR47: 0 | AS47: 363636.3636 | AT47: 4581385.455
B48: 交際費 | C48: 41559.09091 | D48: 0.18 | E48: ='No6'!E48 -> 45715 | G48: 4155.909091 | I48: 274183.6364 | J48: 0.29 | K48: 301602 | N48: 110 | Q48: 交際費 | R48: ='No1'!B216 -> 72648 | S48: ='No1'!C216 -> 95239 | T48: ='No1'!D216 -> 88000 | U48: ='No1'!E216 -> 45715 | V48: ='No1'!F216 -> 52381 | W48: ='No1'!G216 -> 0 | X48: ='No1'!H216 -> 353983 | Y48: ='No1'!I216 -> 158000 | Z48: ='No1'!J216 -> 260001 | AA48: ='No1'!K216 -> 44286 | AB48: ='No1'!L216 -> 102381 | AC48: ='No1'!M216 -> 41620 | AD48: ='No1'!N216 -> 198000 | AF48: 交際費 | AG48: 66043.63636 | AH48: 86580.90909 | AI48: 80000 | AJ48: 41559.09091 | AK48: 47619.09091 | AL48: 0 | AN48: 143636.3636 | AO48: 236364.5455 | AP48: 40260 | AQ48: 93073.63636 | AR48: 37836.36364 | AS48: 180000 | AT48: 1052973.636
B49: 会議費 | C49: 0 | D49: 0 | E49: ='No6'!E49 -> 0 | F49: =ROUND(E49/$E$8*100,2) -> 0 | G49: 0 | I49: 0 | J49: 0 | K49: 0 | L49: =ROUND(K49/K$8*100,2) -> 0 | M49: =K49-I49 -> 0 | Q49: 会議費 | R49: ='No1'!B217 -> 0 | S49: ='No1'!C217 -> 0 | T49: ='No1'!D217 -> 0 | U49: ='No1'!E217 -> 0 | V49: ='No1'!F217 -> 0 | W49: ='No1'!G217 -> 0 | X49: ='No1'!H217 -> 0 | Y49: ='No1'!I217 -> 0 | Z49: ='No1'!J217 -> 0 | AA49: ='No1'!K217 -> 0 | AB49: ='No1'!L217 -> 0 | AC49: ='No1'!M217 -> 0 | AD49: ='No1'!N217 -> 0 | AF49: 会議費 | AG49: 0 | AH49: 0 | AI49: 0 | AJ49: 0 | AK49: 0 | AL49: 0 | AN49: 0 | AO49: 0 | AP49: 0 | AQ49: 0 | AR49: 0 | AS49: 0 | AT49: 0
B50: 旅費交通費 | C50: 120227.2727 | D50: 0.51 | E50: ='No6'!E50 -> 132250 | F50: 0.51 | G50: 12022.72727 | H50: 110 | I50: 474847.2727 | J50: 0.5 | K50: 522332 | L50: 0.5 | M50: 47484.72727 | N50: 110 | Q50: 旅費交通費 | R50: ='No1'!B218 -> 126135 | S50: ='No1'!C218 -> 132250 | T50: ='No1'!D218 -> 131697 | U50: ='No1'!E218 -> 132250 | V50: ='No1'!F218 -> 290802 | W50: ='No1'!G218 -> 293656 | X50: ='No1'!H218 -> 1106790 | Y50: ='No1'!I218 -> 134307 | Z50: ='No1'!J218 -> 132802 | AA50: ='No1'!K218 -> 131697 | AB50: ='No1'!L218 -> 132802 | AC50: ='No1'!M218 -> 132802 | AD50: ='No1'!N218 -> 131697 | AF50: 旅費交通費 | AG50: 114668.1818 | AH50: 120227.2727 | AI50: 119724.5455 | AJ50: 120227.2727 | AK50: 264365.4545 | AL50: 266960 | AN50: 122097.2727 | AO50: 120729.0909 | AP50: 119724.5455 | AQ50: 120729.0909 | AR50: 120729.0909 | AS50: 119724.5455 | AT50: 1729906.364
B51: 通信費 | C51: 115206.3636 | D51: 0.49 | E51: ='No6'!E51 -> 126727 | F51: 0.49 | G51: 11520.63636 | H51: 110 | I51: 447042.7273 | J51: 0.47 | K51: 491747 | L51: 0.47 | M51: 44704.27273 | N51: 110 | Q51: 通信費 | R51: ='No1'!B219 -> 40411 | S51: ='No1'!C219 -> 151942 | T51: ='No1'!D219 -> 172667 | U51: ='No1'!E219 -> 126727 | V51: ='No1'!F219 -> 46421 | W51: ='No1'!G219 -> 153145 | X51: ='No1'!H219 -> 691313 | Y51: ='No1'!I219 -> 102576 | Z51: ='No1'!J219 -> 84307 | AA51: ='No1'!K219 -> 157177 | AB51: ='No1'!L219 -> 137864 | AC51: ='No1'!M219 -> 126429 | AD51: ='No1'!N219 -> 163418 | AF51: 通信費 | AG51: 36737.27273 | AH51: 138129.0909 | AI51: 156970 | AJ51: 115206.3636 | AK51: 42200.90909 | AL51: 139222.7273 | AN51: 93250.90909 | AO51: 76642.72727 | AP51: 142888.1818 | AQ51: 125330.9091 | AR51: 114935.4545 | AS51: 148561.8182 | AT51: 1330076.364
B52: 販売手数料 | C52: 0 | D52: 0 | E52: ='No6'!E52 -> 0 | F52: 0 | G52: 0 | I52: 0 | J52: 0 | K52: 0 | L52: 0 | M52: 0 | Q52: 販売手数料 | R52: ='No1'!B220 -> 0 | S52: ='No1'!C220 -> 0 | T52: ='No1'!D220 -> 0 | U52: ='No1'!E220 -> 0 | V52: ='No1'!F220 -> 0 | W52: ='No1'!G220 -> 0 | X52: ='No1'!H220 -> 0 | Y52: ='No1'!I220 -> 0 | Z52: ='No1'!J220 -> 0 | AA52: ='No1'!K220 -> 0 | AB52: ='No1'!L220 -> 0 | AC52: ='No1'!M220 -> 0 | AD52: ='No1'!N220 -> 0 | AF52: 販売手数料 | AG52: 0 | AH52: 0 | AI52: 0 | AJ52: 0 | AK52: 0 | AL52: 0 | AN52: 0 | AO52: 0 | AP52: 0 | AQ52: 0 | AR52: 0 | AS52: 0 | AT52: 0
B53: 販売促進費 | C53: 0 | D53: 0 | E53: ='No6'!E53 -> 0 | F53: 0 | G53: 0 | I53: 0 | J53: 0 | K53: 0 | L53: 0 | M53: 0 | Q53: 販売促進費 | R53: ='No1'!B221 -> 0 | S53: ='No1'!C221 -> 0 | T53: ='No1'!D221 -> 0 | U53: ='No1'!E221 -> 0 | V53: ='No1'!F221 -> 0 | W53: ='No1'!G221 -> 0 | X53: ='No1'!H221 -> 0 | Y53: ='No1'!I221 -> 0 | Z53: ='No1'!J221 -> 0 | AA53: ='No1'!K221 -> 0 | AB53: ='No1'!L221 -> 0 | AC53: ='No1'!M221 -> 0 | AD53: ='No1'!N221 -> 0 | AF53: 販売促進費 | AG53: 0 | AH53: 0 | AI53: 0 | AJ53: 0 | AK53: 0 | AL53: 0 | AN53: 0 | AO53: 0 | AP53: 0 | AQ53: 0 | AR53: 0 | AS53: 0 | AT53: 0
B54: 消耗品費 | C54: 7804.545455 | D54: 0.03 | E54: ='No6'!E54 -> 8585 | F54: 0.03 | G54: 780.4545455 | H54: 110 | I54: 117120 | J54: 0.12 | K54: 128832 | L54: 0.12 | M54: 11712 | N54: 110 | Q54: 消耗品費 | R54: ='No1'!B222 -> 44572 | S54: ='No1'!C222 -> 0 | T54: ='No1'!D222 -> 75675 | U54: ='No1'!E222 -> 8585 | V54: ='No1'!F222 -> 0 | W54: ='No1'!G222 -> 4289 | X54: ='No1'!H222 -> 133121 | Y54: ='No1'!I222 -> 8000 | Z54: ='No1'!J222 -> 7235 | AA54: ='No1'!K222 -> 46489 | AB54: ='No1'!L222 -> 1072 | AC54: ='No1'!M222 -> 2133 | AD54: ='No1'!N222 -> 0 | AF54: 消耗品費 | AG54: 40520 | AH54: 0 | AI54: 68795.45455 | AJ54: 7804.545455 | AK54: 0 | AL54: 3899.090909 | AN54: 7272.727273 | AO54: 6577.272727 | AP54: 42262.72727 | AQ54: 974.5454545 | AR54: 1939.090909 | AS54: 0 | AT54: 180045.4545
B55: 事務用品費 | C55: 10476.36364 | D55: 0.04 | E55: ='No6'!E55 -> 11524 | F55: 0.04 | G55: 1047.636364 | H55: 110 | I55: 25325.45455 | J55: 0.03 | K55: 27858 | L55: 0.03 | M55: 2532.545455 | N55: 110 | Q55: 事務用品費 | R55: ='No1'!B223 -> 6334 | S55: ='No1'!C223 -> 0 | T55: ='No1'!D223 -> 10000 | U55: ='No1'!E223 -> 11524 | V55: ='No1'!F223 -> 14300 | W55: ='No1'!G223 -> 32000 | X55: ='No1'!H223 -> 74158 | Y55: ='No1'!I223 -> 9798 | Z55: ='No1'!J223 -> 0 | AA55: ='No1'!K223 -> 30000 | AB55: ='No1'!L223 -> 3048 | AC55: ='No1'!M223 -> 36572 | AD55: ='No1'!N223 -> 7172 | AF55: 事務用品費 | AG55: 5758.181818 | AH55: 0 | AI55: 9090.909091 | AJ55: 10476.36364 | AK55: 13000 | AL55: 29090.90909 | AN55: 8907.272727 | AO55: 0 | AP55: 27272.72727 | AQ55: 2770.909091 | AR55: 33247.27273 | AS55: 6520 | AT55: 146134.5455
B56: 修繕費 | C56: 44156.36364 | D56: 0.19 | E56: ='No6'!E56 -> 48572 | F56: 0.19 | G56: 4415.636364 | H56: 110 | I56: 117750 | J56: 0.12 | K56: 129525 | L56: 0.12 | M56: 11775 | N56: 110 | Q56: 修繕費 | R56: ='No1'!B224 -> 80953 | S56: ='No1'!C224 -> 0 | T56: ='No1'!D224 -> 0 | U56: ='No1'!E224 -> 48572 | V56: ='No1'!F224 -> 0 | W56: ='No1'!G224 -> 0 | X56: ='No1'!H224 -> 129525 | Y56: ='No1'!I224 -> 0 | Z56: ='No1'!J224 -> 50477 | AA56: ='No1'!K224 -> 14286 | AB56: ='No1'!L224 -> 0 | AC56: ='No1'!M224 -> 20520 | AD56: ='No1'!N224 -> 0 | AF56: 修繕費 | AG56: 73593.63636 | AH56: 0 | AI56: 0 | AJ56: 44156.36364 | AK56: 0 | AL56: 0 | AN56: 0 | AO56: 45888.18182 | AP56: 12987.27273 | AQ56: 0 | AR56: 18654.54545 | AS56: 0 | AT56: 195280
B57: 水道光熱費 | C57: 70549.09091 | D57: 0.3 | E57: ='No6'!E57 -> 77604 | F57: 0.3 | G57: 7054.909091 | H57: 110 | I57: 321910.9091 | J57: 0.34 | K57: 354102 | L57: 0.34 | M57: 32191.09091 | N57: 110 | Q57: 水道光熱費 | R57: ='No1'!B225 -> 73379 | S57: ='No1'!C225 -> 81739 | T57: ='No1'!D225 -> 121380 | U57: ='No1'!E225 -> 77604 | V57: ='No1'!F225 -> 143437 | W57: ='No1'!G225 -> 78525 | X57: ='No1'!H225 -> 576064 | Y57: ='No1'!I225 -> 135461 | Z57: ='No1'!J225 -> 96664 | AA57: ='No1'!K225 -> 146957 | AB57: ='No1'!L225 -> 82477 | AC57: ='No1'!M225 -> 72635 | AD57: ='No1'!N225 -> 73913 | AF57: 水道光熱費 | AG57: 66708.18182 | AH57: 74308.18182 | AI57: 110345.4545 | AJ57: 70549.09091 | AK57: 130397.2727 | AL57: 71386.36364 | AN57: 123146.3636 | AO57: 87876.36364 | AP57: 133597.2727 | AQ57: 74979.09091 | AR57: 66031.81818 | AS57: 67193.63636 | AT57: 1076519.091
B58: 新聞図書費 | C58: 0 | D58: 0 | E58: ='No6'!E58 -> 0 | F58: 0 | G58: 0 | I58: 0 | J58: 0 | K58: 0 | L58: 0 | M58: 0 | Q58: 新聞図書費 | R58: ='No1'!B226 -> 0 | S58: ='No1'!C226 -> 0 | T58: ='No1'!D226 -> 0 | U58: ='No1'!E226 -> 0 | V58: ='No1'!F226 -> 0 | W58: ='No1'!G226 -> 0 | X58: ='No1'!H226 -> 0 | Y58: ='No1'!I226 -> 0 | Z58: ='No1'!J226 -> 0 | AA58: ='No1'!K226 -> 0 | AB58: ='No1'!L226 -> 0 | AC58: ='No1'!M226 -> 0 | AD58: ='No1'!N226 -> 0 | AF58: 新聞図書費 | AG58: 0 | AH58: 0 | AI58: 0 | AJ58: 0 | AK58: 0 | AL58: 0 | AN58: 0 | AO58: 0 | AP58: 0 | AQ58: 0 | AR58: 0 | AS58: 0 | AT58: 0
B59: 諸会費 | C59: 0 | D59: 0 | E59: ='No6'!E59 -> 0 | F59: 0 | G59: 0 | I59: 0 | J59: 0 | K59: 0 | L59: 0 | M59: 0 | Q59: 諸会費 | R59: ='No1'!B227 -> 0 | S59: ='No1'!C227 -> 0 | T59: ='No1'!D227 -> 0 | U59: ='No1'!E227 -> 0 | V59: ='No1'!F227 -> 0 | W59: ='No1'!G227 -> 0 | X59: ='No1'!H227 -> 0 | Y59: ='No1'!I227 -> 0 | Z59: ='No1'!J227 -> 0 | AA59: ='No1'!K227 -> 0 | AB59: ='No1'!L227 -> 0 | AC59: ='No1'!M227 -> 0 | AD59: ='No1'!N227 -> 0 | AF59: 諸会費 | AG59: 0 | AH59: 0 | AI59: 0 | AJ59: 0 | AK59: 0 | AL59: 0 | AN59: 0 | AO59: 0 | AP59: 0 | AQ59: 0 | AR59: 0 | AS59: 0 | AT59: 0
B60: 支払手数料 | C60: 45109.09091 | D60: 0.19 | E60: ='No6'!E60 -> 49620 | F60: 0.19 | G60: 4510.909091 | H60: 110 | I60: 208163.6364 | J60: 0.22 | K60: 228980 | L60: 0.22 | M60: 20816.36364 | N60: 110 | Q60: 支払手数料 | R60: ='No1'!B228 -> 80120 | S60: ='No1'!C228 -> 49620 | T60: ='No1'!D228 -> 49620 | U60: ='No1'!E228 -> 49620 | V60: ='No1'!F228 -> 49620 | W60: ='No1'!G228 -> 49620 | X60: ='No1'!H228 -> 328220 | Y60: ='No1'!I228 -> 49620 | Z60: ='No1'!J228 -> 57420 | AA60: ='No1'!K228 -> 57520 | AB60: ='No1'!L228 -> 51220 | AC60: ='No1'!M228 -> 49620 | AD60: ='No1'!N228 -> 49620 | AF60: 支払手数料 | AG60: 72836.36364 | AH60: 45109.09091 | AI60: 45109.09091 | AJ60: 45109.09091 | AK60: 45109.09091 | AL60: 45109.09091 | AN60: 45109.09091 | AO60: 52200 | AP60: 52290.90909 | AQ60: 46563.63636 | AR60: 45109.09091 | AS60: 45109.09091 | AT60: 584763.6364
B61: 車両費 | C61: 69135.45455 | D61: 0.3 | E61: ='No6'!E61 -> 76049 | F61: 0.3 | G61: 6913.545455 | H61: 110 | I61: 304839.0909 | J61: 0.32 | K61: 335323 | L61: 0.32 | M61: 30483.90909 | N61: 110 | Q61: 車両費 | R61: ='No1'!B229 -> 83765 | S61: ='No1'!C229 -> 87402 | T61: ='No1'!D229 -> 88107 | U61: ='No1'!E229 -> 76049 | V61: ='No1'!F229 -> 243297 | W61: ='No1'!G229 -> 98974 | X61: ='No1'!H229 -> 677594 | Y61: ='No1'!I229 -> 93110 | Z61: ='No1'!J229 -> 96355 | AA61: ='No1'!K229 -> 99851 | AB61: ='No1'!L229 -> 85297 | AC61: ='No1'!M229 -> 93833 | AD61: ='No1'!N229 -> 86537 | AF61: 車両費 | AG61: 76150 | AH61: 79456.36364 | AI61: 80097.27273 | AJ61: 69135.45455 | AK61: 221179.0909 | AL61: 89976.36364 | AN61: 84645.45455 | AO61: 87595.45455 | AP61: 90773.63636 | AQ61: 77542.72727 | AR61: 85302.72727 | AS61: 78670 | AT61: 1120524.545
B62: 地代家賃 | C62: 223377.2727 | D62: 0.95 | E62: ='No6'!E62 -> 245715 | F62: 0.95 | G62: 22337.72727 | H62: 110 | I62: 1384418.182 | J62: 1.45 | K62: 1522860 | L62: 1.45 | M62: 138441.8182 | N62: 110 | Q62: 地代家賃 | R62: ='No1'!B230 -> 425715 | S62: ='No1'!C230 -> 425715 | T62: ='No1'!D230 -> 425715 | U62: ='No1'!E230 -> 245715 | V62: ='No1'!F230 -> 605715 | W62: ='No1'!G230 -> 425715 | X62: ='No1'!H230 -> 2554290 | Y62: ='No1'!I230 -> 425715 | Z62: ='No1'!J230 -> 425715 | AA62: ='No1'!K230 -> 440000 | AB62: ='No1'!L230 -> 440000 | AC62: ='No1'!M230 -> 440000 | AD62: ='No1'!N230 -> 440000 | AF62: 地代家賃 | AG62: 387013.6364 | AH62: 387013.6364 | AI62: 387013.6364 | AJ62: 223377.2727 | AK62: 550650 | AL62: 387013.6364 | AN62: 387013.6364 | AO62: 387013.6364 | AP62: 400000 | AQ62: 400000 | AR62: 400000 | AS62: 400000 | AT62: 4696109.091
B63: 賃借料 | C63: =SUMIF($AG$4:$AS$4,$D$4,AG63:AR63) -> 0 | D63: 0 | E63: ='No6'!E63 -> 0 | F63: 0 | G63: 0 | I63: 0 | J63: 0 | K63: 0 | L63: 0 | M63: 0 | Q63: 賃借料 | R63: ='No1'!B231 -> 0 | S63: ='No1'!C231 -> 0 | T63: ='No1'!D231 -> 0 | U63: ='No1'!E231 -> 0 | V63: ='No1'!F231 -> 0 | W63: ='No1'!G231 -> 0 | X63: ='No1'!H231 -> 0 | Y63: ='No1'!I231 -> 0 | Z63: ='No1'!J231 -> 0 | AA63: ='No1'!K231 -> 0 | AB63: ='No1'!L231 -> 0 | AC63: ='No1'!M231 -> 0 | AD63: ='No1'!N231 -> 0 | AF63: 賃借料 | AG63: 0 | AH63: 0 | AI63: 0 | AJ63: 0 | AK63: 0 | AL63: 0 | AN63: 0 | AO63: 0 | AP63: 0 | AQ63: 0 | AR63: 0 | AS63: 0 | AT63: 0
B64: リース料 | C64: 15195.45455 | D64: 0.06 | E64: ='No6'!E64 -> 16715 | F64: 0.06 | G64: 1519.545455 | H64: 110 | I64: 60781.81818 | J64: 0.06 | K64: 66860 | L64: 0.06 | M64: 6078.181818 | N64: 110 | Q64: リース料 | R64: ='No1'!B232 -> 16715 | S64: ='No1'!C232 -> 16715 | T64: ='No1'!D232 -> 16715 | U64: ='No1'!E232 -> 16715 | V64: ='No1'!F232 -> 16715 | W64: ='No1'!G232 -> 16715 | X64: ='No1'!H232 -> 100290 | Y64: ='No1'!I232 -> 16715 | Z64: ='No1'!J232 -> 16715 | AA64: ='No1'!K232 -> 16715 | AB64: ='No1'!L232 -> 16715 | AC64: ='No1'!M232 -> 16715 | AD64: ='No1'!N232 -> 16715 | AF64: リース料 | AG64: 15195.45455 | AH64: 15195.45455 | AI64: 15195.45455 | AJ64: 15195.45455 | AK64: 15195.45455 | AL64: 15195.45455 | AN64: 15195.45455 | AO64: 15195.45455 | AP64: 15195.45455 | AQ64: 15195.45455 | AR64: 15195.45455 | AS64: 15195.45455 | AT64: 182345.4545
B65: 保険料 | C65: 41818.18182 | D65: 0.18 | E65: ='No6'!E65 -> 46000 | F65: 0.18 | G65: 4181.818182 | H65: 110 | I65: 167272.7273 | J65: 0.17 | K65: 184000 | L65: 0.17 | M65: 16727.27273 | N65: 110 | Q65: 保険料 | R65: ='No1'!B233 -> 46000 | S65: ='No1'!C233 -> 46000 | T65: ='No1'!D233 -> 46000 | U65: ='No1'!E233 -> 46000 | V65: ='No1'!F233 -> 46000 | W65: ='No1'!G233 -> 46000 | X65: ='No1'!H233 -> 276000 | Y65: ='No1'!I233 -> 46000 | Z65: ='No1'!J233 -> 46000 | AA65: ='No1'!K233 -> 23000 | AB65: ='No1'!L233 -> 74258 | AC65: ='No1'!M233 -> 23000 | AD65: ='No1'!N233 -> 23000 | AF65: 保険料 | AG65: 41818.18182 | AH65: 41818.18182 | AI65: 41818.18182 | AJ65: 41818.18182 | AK65: 41818.18182 | AL65: 41818.18182 | AN65: 41818.18182 | AO65: 41818.18182 | AP65: 20909.09091 | AQ65: 67507.27273 | AR65: 20909.09091 | AS65: 20909.09091 | AT65: 464780
B66: 租税公課 | C66: 4545.454545 | D66: 0.02 | E66: ='No6'!E66 -> 5000 | F66: 0.02 | G66: 454.5454545 | H66: 110 | I66: 154909.0909 | J66: 0.16 | K66: 170400 | L66: 0.16 | M66: 15490.90909 | N66: 110 | Q66: 租税公課 | R66: ='No1'!B234 -> 135400 | S66: ='No1'!C234 -> 25000 | T66: ='No1'!D234 -> 5000 | U66: ='No1'!E234 -> 5000 | V66: ='No1'!F234 -> 0 | W66: ='No1'!G234 -> 8000 | X66: ='No1'!H234 -> 178400 | Y66: ='No1'!I234 -> 0 | Z66: ='No1'!J234 -> 0 | AA66: ='No1'!K234 -> 0 | AB66: ='No1'!L234 -> 40000 | AC66: ='No1'!M234 -> 0 | AD66: ='No1'!N234 -> 0 | AF66: 租税公課 | AG66: 123090.9091 | AH66: 22727.27273 | AI66: 4545.454545 | AJ66: 4545.454545 | AK66: 0 | AL66: 7272.727273 | AN66: 0 | AO66: 0 | AP66: 0 | AQ66: 36363.63636 | AR66: 0 | AS66: 0 | AT66: 198545.4545
B67: 支払報酬料 | C67: 0 | D67: 0 | E67: ='No6'!E67 -> 0 | F67: 0 | G67: 0 | I67: 0 | J67: 0 | K67: 0 | L67: 0 | M67: 0 | Q67: 支払報酬料 | R67: ='No1'!B235 -> 0 | S67: ='No1'!C235 -> 0 | T67: ='No1'!D235 -> 0 | U67: ='No1'!E235 -> 0 | V67: ='No1'!F235 -> 0 | W67: ='No1'!G235 -> 0 | X67: ='No1'!H235 -> 0 | Y67: ='No1'!I235 -> 0 | Z67: ='No1'!J235 -> 0 | AA67: ='No1'!K235 -> 0 | AB67: ='No1'!L235 -> 0 | AC67: ='No1'!M235 -> 0 | AD67: ='No1'!N235 -> 0 | AF67: 支払報酬料 | AG67: 0 | AH67: 0 | AI67: 0 | AJ67: 0 | AK67: 0 | AL67: 0 | AN67: 0 | AO67: 0 | AP67: 0 | AQ67: 0 | AR67: 0 | AS67: 0 | AT67: 0
B68: 寄付金 | C68: 0 | D68: 0 | E68: ='No6'!E68 -> 0 | F68: 0 | G68: 0 | I68: 0 | J68: 0 | K68: 0 | L68: 0 | M68: 0 | Q68: 寄付金 | R68: ='No1'!B236 -> 0 | S68: ='No1'!C236 -> 0 | T68: ='No1'!D236 -> 0 | U68: ='No1'!E236 -> 0 | V68: ='No1'!F236 -> 0 | W68: ='No1'!G236 -> 0 | X68: ='No1'!H236 -> 0 | Y68: ='No1'!I236 -> 0 | Z68: ='No1'!J236 -> 0 | AA68: ='No1'!K236 -> 0 | AB68: ='No1'!L236 -> 0 | AC68: ='No1'!M236 -> 0 | AD68: ='No1'!N236 -> 0 | AF68: 寄付金 | AG68: 0 | AH68: 0 | AI68: 0 | AJ68: 0 | AK68: 0 | AL68: 0 | AN68: 0 | AO68: 0 | AP68: 0 | AQ68: 0 | AR68: 0 | AS68: 0 | AT68: 0
B69: 研究開発費 | C69: 0 | D69: 0 | E69: ='No6'!E69 -> 0 | F69: 0 | G69: 0 | I69: 0 | J69: 0 | K69: 0 | L69: 0 | M69: 0 | Q69: 研究開発費 | R69: ='No1'!B237 -> 0 | S69: ='No1'!C237 -> 0 | T69: ='No1'!D237 -> 0 | U69: ='No1'!E237 -> 0 | V69: ='No1'!F237 -> 0 | W69: ='No1'!G237 -> 0 | X69: ='No1'!H237 -> 0 | Y69: ='No1'!I237 -> 0 | Z69: ='No1'!J237 -> 0 | AA69: ='No1'!K237 -> 0 | AB69: ='No1'!L237 -> 0 | AC69: ='No1'!M237 -> 0 | AD69: ='No1'!N237 -> 0 | AF69: 研究開発費 | AG69: 0 | AH69: 0 | AI69: 0 | AJ69: 0 | AK69: 0 | AL69: 0 | AN69: 0 | AO69: 0 | AP69: 0 | AQ69: 0 | AR69: 0 | AS69: 0 | AT69: 0
B70: 減価償却費 | C70: 0 | D70: 0 | E70: ='No6'!E70 -> 0 | F70: 0 | G70: 0 | I70: 0 | J70: 0 | K70: 0 | L70: 0 | M70: 0 | Q70: 減価償却費 | R70: ='No1'!B238 -> 0 | S70: ='No1'!C238 -> 0 | T70: ='No1'!D238 -> 0 | U70: ='No1'!E238 -> 0 | V70: ='No1'!F238 -> 0 | W70: ='No1'!G238 -> 0 | X70: ='No1'!H238 -> 0 | Y70: ='No1'!I238 -> 0 | Z70: ='No1'!J238 -> 0 | AA70: ='No1'!K238 -> 0 | AB70: ='No1'!L238 -> 0 | AC70: ='No1'!M238 -> 0 | AD70: ='No1'!N238 -> 0 | AF70: 減価償却費 | AG70: 0 | AH70: 0 | AI70: 0 | AJ70: 0 | AK70: 0 | AL70: 0 | AN70: 0 | AO70: 0 | AP70: 0 | AQ70: 0 | AR70: 0 | AS70: 0 | AT70: 0
B71: 長期前払費用償却 | C71: 0 | D71: 0 | E71: ='No6'!E71 -> 0 | F71: 0 | G71: 0 | I71: 0 | J71: 0 | K71: 0 | L71: 0 | M71: 0 | Q71: 長期前払費用償却 | R71: ='No1'!B239 -> 0 | S71: ='No1'!C239 -> 0 | T71: ='No1'!D239 -> 0 | U71: ='No1'!E239 -> 0 | V71: ='No1'!F239 -> 0 | W71: ='No1'!G239 -> 0 | X71: ='No1'!H239 -> 0 | Y71: ='No1'!I239 -> 0 | Z71: ='No1'!J239 -> 0 | AA71: ='No1'!K239 -> 0 | AB71: ='No1'!L239 -> 0 | AC71: ='No1'!M239 -> 0 | AD71: ='No1'!N239 -> 0 | AF71: 長期前払費用償却 | AG71: 0 | AH71: 0 | AI71: 0 | AJ71: 0 | AK71: 0 | AL71: 0 | AN71: 0 | AO71: 0 | AP71: 0 | AQ71: 0 | AR71: 0 | AS71: 0 | AT71: 0
B72: 繰延資産償却(販) | C72: 0 | D72: 0 | E72: ='No6'!E72 -> 0 | F72: 0 | G72: 0 | I72: 0 | J72: 0 | K72: 0 | L72: 0 | M72: 0 | Q72: 繰延資産償却(販) | R72: ='No1'!B240 -> 0 | S72: ='No1'!C240 -> 0 | T72: ='No1'!D240 -> 0 | U72: ='No1'!E240 -> 0 | V72: ='No1'!F240 -> 0 | W72: ='No1'!G240 -> 0 | X72: ='No1'!H240 -> 0 | Y72: ='No1'!I240 -> 0 | Z72: ='No1'!J240 -> 0 | AA72: ='No1'!K240 -> 0 | AB72: ='No1'!L240 -> 0 | AC72: ='No1'!M240 -> 0 | AD72: ='No1'!N240 -> 0 | AF72: 繰延資産償却(販) | AG72: 0 | AH72: 0 | AI72: 0 | AJ72: 0 | AK72: 0 | AL72: 0 | AN72: 0 | AO72: 0 | AP72: 0 | AQ72: 0 | AR72: 0 | AS72: 0 | AT72: 0
B73: 貸倒損失(販) | C73: 0 | D73: 0 | E73: ='No6'!E73 -> 0 | F73: 0 | G73: 0 | I73: 0 | J73: 0 | K73: 0 | L73: 0 | M73: 0 | Q73: 貸倒損失(販) | R73: ='No1'!B241 -> 0 | S73: ='No1'!C241 -> 0 | T73: ='No1'!D241 -> 0 | U73: ='No1'!E241 -> 0 | V73: ='No1'!F241 -> 0 | W73: ='No1'!G241 -> 0 | X73: ='No1'!H241 -> 0 | Y73: ='No1'!I241 -> 0 | Z73: ='No1'!J241 -> 0 | AA73: ='No1'!K241 -> 0 | AB73: ='No1'!L241 -> 0 | AC73: ='No1'!M241 -> 0 | AD73: ='No1'!N241 -> 0 | AF73: 貸倒損失(販) | AG73: 0 | AH73: 0 | AI73: 0 | AJ73: 0 | AK73: 0 | AL73: 0 | AN73: 0 | AO73: 0 | AP73: 0 | AQ73: 0 | AR73: 0 | AS73: 0 | AT73: =SUM(AG73:AS73) -> 0
B74: 貸倒繰入額(販) | C74: =SUMIF($AG$4:$AS$4,$D$4,AG74:AR74) -> 0 | D74: 0 | E74: ='No6'!E74 -> 0 | F74: 0 | G74: 0 | I74: 0 | J74: 0 | K74: 0 | L74: 0 | M74: 0 | Q74: 貸倒繰入額(販) | R74: ='No1'!B242 -> 0 | S74: ='No1'!C242 -> 0 | T74: ='No1'!D242 -> 0 | U74: ='No1'!E242 -> 0 | V74: ='No1'!F242 -> 0 | W74: ='No1'!G242 -> 0 | X74: ='No1'!H242 -> 0 | Y74: ='No1'!I242 -> 0 | Z74: ='No1'!J242 -> 0 | AA74: ='No1'!K242 -> 0 | AB74: ='No1'!L242 -> 0 | AC74: ='No1'!M242 -> 0 | AD74: ='No1'!N242 -> 0 | AF74: 貸倒繰入額(販) | AG74: 0 | AH74: 0 | AI74: 0 | AJ74: 0 | AK74: 0 | AL74: 0 | AN74: 0 | AO74: 0 | AP74: 0 | AQ74: 0 | AR74: 0 | AS74: 0 | AT74: 0
B75: 雑費 | E75: ='No6'!E75 -> 0 | I75: 0 | Q75: 雑費 | AF75: 雑費 | AG75: 0 | AH75: 0 | AI75: 0 | AJ75: 0 | AK75: 0 | AL75: 0 | AN75: 0 | AO75: 0 | AP75: 0 | AQ75: 0 | AR75: 0 | AS75: 0 | AT75: 0
B76: 管理費計 | C76: =SUMIF($AG$4:$AS$4,$D$4,AG76:AR76) -> 1156346.364 | D76: =ROUND(C76/$C$8*100,2) -> 4.94 | E76: ='No6'!E76 -> 1271981 | F76: =ROUND(E76/$E$8*100,2) -> 4.94 | I76: 6572419.091 | J76: =ROUND(I76/I$8*100,2) -> 6.87 | K76: ='No6'!K76 -> 7229661 | L76: =ROUND(K76/K$8*100,2) -> 6.87 | M76: =SUM(M45:M71) -> 629823.5455 | N76: =IF(AND(I76=0,K76=0),"",ROUND(K76/I76*100,1)) -> 110 | Q76: 管理費計 | R76: =SUM(R45:R71) -> 1573100 | S76: =SUM(S45:S71) -> 1450670 | T76: 2933910 | U76: 1271981 | V76: 1909641 | W76: 1703306 | X76: 10842608 | Y76: 4637208 | Z76: 1529787 | AA76: 1548931 | AB76: 1977134 | AC76: 1435403 | AD76: 1937882 | AF76: 管理費計 | AG76: 1430090.909 | AH76: 1318790.909 | AI76: 2667190.909 | AJ76: 1156346.364 | AK76: 1736037.273 | AL76: 1548460 | AN76: 4215643.636 | AO76: 1390715.455 | AP76: 1408119.091 | AQ76: 1797394.545 | AR76: 1304911.818 | AS76: 1761710.909 | AT76: 21735411.82
B77: 販売管理費計 | C77: =SUMIF($AG$4:$AS$4,$D$4,AG77:AR77) -> 5993770.909 | D77: =ROUND(C77/$C$8*100,2) -> 25.6 | E77: ='No6'!E77 -> 6593148 | F77: =ROUND(E77/$E$8*100,2) -> 25.6 | I77: 17014249.09 | J77: =ROUND(I77/I$8*100,2) -> 17.79 | K77: ='No6'!K77 -> 18715674 | L77: =ROUND(K77/K$8*100,2) -> 17.79 | M77: =K77-I77 -> 1701424.909 | N77: =IF(AND(I77=0,K77=0),"",ROUND(K77/I77*100,1)) -> 110 | Q77: 販売管理費計 | R77: ='No1'!B244 -> 3387900 | S77: ='No1'!C244 -> 3713775 | T77: ='No1'!D244 -> 5020851 | U77: ='No1'!E244 -> 6593148 | V77: ='No1'!F244 -> 4120887 | W77: ='No1'!G244 -> 3764765 | X77: ='No1'!H244 -> 26601326 | Y77: ='No1'!I244 -> 6726646 | Z77: ='No1'!J244 -> 3617584 | AA77: ='No1'!K244 -> 7881418 | AB77: ='No1'!L244 -> 4205720 | AC77: ='No1'!M244 -> 4298970 | AD77: ='No1'!N244 -> 4038446 | AF77: 販売管理費計 | AG77: 3079909.091 | AH77: 3376159.091 | AI77: 4564410 | AJ77: 5993770.909 | AK77: 3746260.909 | AL77: 3422513.636 | AN77: 6115132.727 | AO77: 3288712.727 | AP77: 7164925.455 | AQ77: 3823381.818 | AR77: 3908154.545 | AS77: 3671314.545 | AT77: 52154645.45
AD78: =SUM(R78:AC78) -> 0 | AG78: =R78/1.1 -> 0 | AH78: 0 | AI78: 0 | AJ78: 0 | AK78: 0 | AL78: 0 | AN78: =Y78/1.1 -> 0 | AO78: 0 | AS78: 0 | AT78: 0
F79: 製造原価報告書 | AD79: 0 | AG79: 0 | AH79: 0 | AI79: 0 | AJ79: 0 | AK79: 0 | AL79: 0 | AN79: 0 | AO79: 0 | AS79: 0 | AT79: 0
AD80: 0 | AG80: 0 | AH80: 0 | AI80: 0 | AJ80: 0 | AK80: 0 | AL80: 0 | AN80: 0 | AO80: 0 | AS80: 0 | AT80: 0
G81: =G3 -> 7 | H81: 月末現在 | AD81: 0 | AG81: 0 | AH81: 0 | AI81: 0 | AJ81: 0 | AK81: 0 | AL81: 0 | AN81: 0 | AO81: 0 | AS81: 0 | AT81: 0
B82: 勘定科目 | C82: 当月 | I82: 累計 | Q82: 勘定科目 | AD82: 0 | AF82: 勘定科目 | AG82: 0 | AH82: 0 | AI82: 0 | AJ82: 0 | AK82: 0 | AL82: 0 | AN82: 0 | AO82: 0 | AS82: 0 | AT82: 0
C83: 前年 | E83: 当期 | G83: 増減 | H83: 前年比 | I83: 前年 | K83: 当期 | M83: 増減 | N83: 前年比 | AD83: 0 | AG83: 0 | AH83: 0 | AI83: 0 | AJ83: 0 | AK83: 0 | AL83: 0 | AN83: 0 | AO83: 0 | AS83: 0 | AT83: 0
C84: 金額 | D84: % | E84: 金額 | F84: % | I84: 金額 | J84: % | K84: 金額 | L84: % | R84: 4月度 | S84: 5月度 | T84: 6月度 | U84: 7月度 | V84: 8月度 | W84: 9月度 | Y84: 10月度 | Z84: 11月度 | AA84: 12月度 | AB84: 1月度 | AC84: 2月度 | AD84: 3月度 | AG84: 4月度 | AH84: 5月度 | AI84: 6月度 | AJ84: 7月度 | AK84: 8月度 | AL84: 9月度 | AN84: 10月度 | AO84: 11月度 | AP84: 12月度 | AQ84: 1月度 | AR84: 2月度 | AS84: 3月度 | AT84: 合計
B85: 材料費合計 | C85: =SUMIF($AG$4:$AS$4,$D$4,AG85:AR85) -> 2930997.273 | D85: =ROUND(C85/$C$8*100,2) -> 12.52 | E85: ='No6'!E85 -> 3224097 | F85: =ROUND(E85/$E$8*100,2) -> 12.52 | G85: =E85-C85 -> 293099.7273 | H85: =IF(AND(C85=0,E85=0),"",ROUND(E85/C85*100,1)) -> 110 | I85: =SUMIF($AG$3:$AR$3,$I$4,AG85:AS85) -> 7966497.273 | J85: =ROUND(I85/I$8*100,2) -> 8.33 | K85: ='No6'!K85 -> 8763147 | L85: =ROUND(K85/K$8*100,2) -> 8.33 | M85: =K85-I85 -> 796649.7273 | N85: =IF(AND(I85=0,K85=0),"",ROUND(K85/I85*100,1)) -> 110 | Q85: 材料費合計 | R85: ='No1'!B317 -> 1516191 | S85: ='No1'!C317 -> 2204763 | T85: ='No1'!D317 -> 1818096 | U85: ='No1'!E317 -> 3224097 | V85: ='No1'!F317 -> 2185715 | W85: ='No1'!G317 -> 5796667 | X85: ='No1'!H317 -> 16745529 | Y85: ='No1'!I317 -> 3039048 | Z85: ='No1'!J317 -> 4083811 | AA85: ='No1'!K317 -> 270477 | AB85: ='No1'!L317 -> 292858 | AC85: ='No1'!M317 -> 278096 | AD85: ='No1'!N317 -> 299048 | AF85: 材料費合計 | AG85: 1378355.455 | AH85: 2004330 | AI85: 1652814.545 | AJ85: 2930997.273 | AK85: 1987013.636 | AL85: 5269697.273 | AN85: 2762770.909 | AO85: 3712555.455 | AP85: 245888.1818 | AQ85: 266234.5455 | AR85: 252814.5455 | AS85: 271861.8182 | AT85: 21698534.55
B86: [労務費] | C86: 0 | D86: 0 | E86: ='No6'!E86 -> 0 | F86: 0 | G86: 0 | I86: 0 | J86: 0 | K86: ='No6'!K86 -> 0 | L86: 0 | M86: 0 | Q86: [労務費] | R86: ='No1'!B318 -> 0 | S86: ='No1'!C318 -> 0 | T86: ='No1'!D318 -> 0 | U86: ='No1'!E318 -> 0 | V86: ='No1'!F318 -> 0 | W86: ='No1'!G318 -> 0 | X86: ='No1'!H318 -> 0 | Y86: ='No1'!I318 -> 0 | Z86: ='No1'!J318 -> 0 | AA86: ='No1'!K318 -> 0 | AB86: ='No1'!L318 -> 0 | AC86: ='No1'!M318 -> 0 | AD86: ='No1'!N318 -> 0 | AF86: [労務費] | AG86: 0 | AH86: 0 | AI86: 0 | AJ86: 0 | AK86: 0 | AL86: 0 | AN86: 0 | AO86: 0 | AP86: 0 | AQ86: 0 | AR86: 0 | AS86: 0 | AT86: 702555.4545
B87: [製]役員報酬 | C87: 0 | D87: 0 | E87: ='No6'!E87 -> 0 | F87: 0 | G87: 0 | I87: 0 | J87: 0 | K87: ='No6'!K87 -> 0 | L87: 0 | M87: 0 | Q87: [製]役員報酬 | R87: ='No1'!B319 -> 0 | S87: ='No1'!C319 -> 0 | T87: ='No1'!D319 -> 0 | U87: ='No1'!E319 -> 0 | V87: ='No1'!F319 -> 0 | W87: ='No1'!G319 -> 0 | X87: ='No1'!H319 -> 0 | Y87: ='No1'!I319 -> 0 | Z87: ='No1'!J319 -> 0 | AA87: ='No1'!K319 -> 0 | AB87: ='No1'!L319 -> 0 | AC87: ='No1'!M319 -> 0 | AD87: ='No1'!N319 -> 0 | AF87: [製]役員報酬 | AG87: 0 | AH87: 0 | AI87: 0 | AJ87: 0 | AK87: 0 | AL87: 0 | AN87: 0 | AO87: 0 | AP87: 0 | AQ87: 0 | AR87: 0 | AS87: 0 | AT87: 0
B88: [製]給料手当 | C88: 243272.7273 | D88: 1.04 | E88: ='No6'!E88 -> 267600 | F88: 1.04 | G88: 24327.27273 | H88: 110 | I88: 973090.9091 | J88: 1.02 | K88: ='No6'!K88 -> 1070400 | L88: 1.02 | M88: 97309.09091 | N88: 110 | Q88: [製]給料手当 | R88: ='No1'!B320 -> 267600 | S88: ='No1'!C320 -> 267600 | T88: ='No1'!D320 -> 267600 | U88: ='No1'!E320 -> 267600 | V88: ='No1'!F320 -> 267600 | W88: ='No1'!G320 -> 267600 | X88: ='No1'!H320 -> 1605600 | Y88: ='No1'!I320 -> 267600 | Z88: ='No1'!J320 -> 267600 | AA88: ='No1'!K320 -> 267600 | AB88: ='No1'!L320 -> 267600 | AC88: ='No1'!M320 -> 267600 | AD88: ='No1'!N320 -> 267600 | AF88: [製]給料手当 | AG88: 243272.7273 | AH88: 243272.7273 | AI88: 243272.7273 | AJ88: 243272.7273 | AK88: 243272.7273 | AL88: 243272.7273 | AN88: 243272.7273 | AO88: 243272.7273 | AP88: 243272.7273 | AQ88: 243272.7273 | AR88: 243272.7273 | AS88: 243272.7273 | AT88: 1946181.818
B89: [製]雑給 | C89: 0 | D89: 0 | E89: ='No6'!E89 -> 0 | F89: 0 | G89: 0 | I89: 0 | J89: 0 | K89: ='No6'!K89 -> 0 | L89: 0 | M89: 0 | Q89: [製]雑給 | R89: ='No1'!B321 -> 0 | S89: ='No1'!C321 -> 0 | T89: ='No1'!D321 -> 0 | U89: ='No1'!E321 -> 0 | V89: ='No1'!F321 -> 0 | W89: ='No1'!G321 -> 0 | X89: ='No1'!H321 -> 0 | Y89: ='No1'!I321 -> 0 | Z89: ='No1'!J321 -> 0 | AA89: ='No1'!K321 -> 0 | AB89: ='No1'!L321 -> 0 | AC89: ='No1'!M321 -> 0 | AD89: ='No1'!N321 -> 0 | AF89: [製]雑給 | AG89: 0 | AH89: 0 | AI89: 0 | AJ89: 0 | AK89: 0 | AL89: 0 | AN89: 0 | AO89: 0 | AP89: 0 | AQ89: 0 | AR89: 0 | AS89: 0 | AT89: 0
B90: [製]賞与 | C90: 590909.0909 | D90: 2.52 | E90: ='No6'!E90 -> 650000 | F90: 2.52 | G90: 59090.90909 | H90: 110 | I90: 590909.0909 | J90: 0.62 | K90: ='No6'!K90 -> 650000 | L90: 0.62 | M90: 59090.90909 | N90: 110 | Q90: [製]賞与 | R90: ='No1'!B322 -> 0 | S90: ='No1'!C322 -> 0 | T90: ='No1'!D322 -> 0 | U90: ='No1'!E322 -> 650000 | V90: ='No1'!F322 -> 0 | W90: ='No1'!G322 -> 0 | X90: ='No1'!H322 -> 650000 | Y90: ='No1'!I322 -> 0 | Z90: ='No1'!J322 -> 0 | AA90: ='No1'!K322 -> 700000 | AB90: ='No1'!L322 -> 0 | AC90: ='No1'!M322 -> 0 | AD90: ='No1'!N322 -> 0 | AF90: [製]賞与 | AG90: 0 | AH90: 0 | AI90: 0 | AJ90: 590909.0909 | AK90: 0 | AL90: 0 | AN90: 0 | AO90: 0 | AP90: 636363.6364 | AQ90: 0 | AR90: 0 | AS90: 0 | AT90: 989178.1818
B91: [製]退職金 | C91: 0 | D91: 0 | E91: ='No6'!E91 -> 0 | F91: 0 | G91: 0 | I91: 0 | J91: 0 | K91: ='No6'!K91 -> 0 | L91: 0 | M91: 0 | Q91: [製]退職金 | R91: ='No1'!B323 -> 0 | S91: ='No1'!C323 -> 0 | T91: ='No1'!D323 -> 0 | U91: ='No1'!E323 -> 0 | V91: ='No1'!F323 -> 0 | W91: ='No1'!G323 -> 0 | X91: ='No1'!H323 -> 0 | Y91: ='No1'!I323 -> 0 | Z91: ='No1'!J323 -> 0 | AA91: ='No1'!K323 -> 0 | AB91: ='No1'!L323 -> 0 | AC91: ='No1'!M323 -> 0 | AD91: ='No1'!N323 -> 0 | AF91: [製]退職金 | AG91: 0 | AH91: 0 | AI91: 0 | AJ91: 0 | AK91: 0 | AL91: 0 | AN91: 0 | AO91: 0 | AP91: 0 | AQ91: 0 | AR91: 0 | AS91: 0 | AT91: 154545.4545
B92: [製]法定福利費 | C92: 39950 | D92: 0.17 | E92: ='No6'!E92 -> 43945 | F92: 0.17 | G92: 3995 | H92: 110 | I92: 159800 | J92: 0.17 | K92: ='No6'!K92 -> 175780 | L92: 0.17 | M92: 15980 | N92: 110 | Q92: [製]法定福利費 | R92: ='No1'!B324 -> 0 | S92: ='No1'!C324 -> 87890 | T92: ='No1'!D324 -> 43945 | U92: ='No1'!E324 -> 43945 | V92: ='No1'!F324 -> 49145 | W92: ='No1'!G324 -> 43945 | X92: ='No1'!H324 -> 268870 | Y92: ='No1'!I324 -> 43945 | Z92: ='No1'!J324 -> 43945 | AA92: ='No1'!K324 -> 43945 | AB92: ='No1'!L324 -> 49545 | AC92: ='No1'!M324 -> 43945 | AD92: ='No1'!N324 -> 43945 | AF92: [製]法定福利費 | AG92: 0 | AH92: 79900 | AI92: 39950 | AJ92: 39950 | AK92: 44677.27273 | AL92: 39950 | AN92: 39950 | AO92: 39950 | AP92: 39950 | AQ92: 45040.90909 | AR92: 39950 | AS92: 39950 | AT92: 324327.2727
B93: [製]福利厚生費 | C93: 14581.81818 | D93: 0.06 | E93: ='No6'!E93 -> 16040 | F93: 0.06 | G93: 1458.181818 | H93: 110 | I93: 18316.36364 | J93: 0.02 | K93: ='No6'!K93 -> 20148 | L93: 0.02 | M93: 1831.636364 | N93: 110 | Q93: [製]福利厚生費 | R93: ='No1'!B325 -> 0 | S93: ='No1'!C325 -> 2544 | T93: ='No1'!D325 -> 1564 | U93: ='No1'!E325 -> 16040 | V93: ='No1'!F325 -> 0 | W93: ='No1'!G325 -> 762 | X93: ='No1'!H325 -> 20910 | Y93: ='No1'!I325 -> 0 | Z93: ='No1'!J325 -> 0 | AA93: ='No1'!K325 -> 11183 | AB93: ='No1'!L325 -> 0 | AC93: ='No1'!M325 -> 6499 | AD93: ='No1'!N325 -> 5548 | AF93: [製]福利厚生費 | AG93: 0 | AH93: 2312.727273 | AI93: 1421.818182 | AJ93: 14581.81818 | AK93: 0 | AL93: 692.7272727 | AN93: 0 | AO93: 0 | AP93: 10166.36364 | AQ93: 0 | AR93: 5908.181818 | AS93: 5043.636364 | AT93: 19009.09091
B94: [製]退職繰入額 | C94: 0 | D94: 0 | E94: ='No6'!E94 -> 0 | F94: 0 | G94: 0 | I94: 0 | J94: 0 | K94: ='No6'!K94 -> 0 | L94: 0 | M94: 0 | Q94: [製]退職繰入額 | R94: ='No1'!B326 -> 0 | S94: ='No1'!C326 -> 0 | T94: ='No1'!D326 -> 0 | U94: ='No1'!E326 -> 0 | V94: ='No1'!F326 -> 0 | W94: ='No1'!G326 -> 0 | X94: ='No1'!H326 -> 0 | Y94: ='No1'!I326 -> 0 | Z94: ='No1'!J326 -> 0 | AA94: ='No1'!K326 -> 0 | AB94: ='No1'!L326 -> 0 | AC94: ='No1'!M326 -> 0 | AD94: ='No1'!N326 -> 0 | AF94: [製]退職繰入額 | AG94: 0 | AH94: 0 | AI94: 0 | AJ94: 0 | AK94: 0 | AL94: 0 | AN94: 0 | AO94: 0 | AP94: 0 | AQ94: 0 | AR94: 0 | AS94: 0 | AT94: 0
B95: 労務費合計 | C95: 888713.6364 | D95: 3.8 | E95: ='No6'!E95 -> 977585 | F95: 3.8 | G95: 88871.36364 | H95: 110 | I95: 1742116.364 | J95: 1.82 | K95: ='No6'!K95 -> 1916328 | L95: 1.82 | M95: 174211.6364 | N95: 110 | Q95: 労務費合計 | R95: ='No1'!B327 -> 267600 | S95: ='No1'!C327 -> 358034 | T95: ='No1'!D327 -> 313109 | U95: ='No1'!E327 -> 977585 | V95: ='No1'!F327 -> 316745 | W95: ='No1'!G327 -> 312307 | X95: ='No1'!H327 -> 2545380 | Y95: ='No1'!I327 -> 311545 | Z95: ='No1'!J327 -> 311545 | AA95: ='No1'!K327 -> 1022728 | AB95: ='No1'!L327 -> 317145 | AC95: ='No1'!M327 -> 318044 | AD95: ='No1'!N327 -> 317093 | AF95: 労務費合計 | AG95: 243272.7273 | AH95: 325485.4545 | AI95: 284644.5455 | AJ95: 888713.6364 | AK95: 287950 | AL95: 283915.4545 | AN95: 283222.7273 | AO95: 283222.7273 | AP95: 929752.7273 | AQ95: 288313.6364 | AR95: 289130.9091 | AS95: 288266.3636 | AT95: 2880427.273
B96: [製造経費] | C96: 0 | D96: 0 | E96: ='No6'!E96 -> 0 | F96: 0 | G96: 0 | I96: 0 | J96: 0 | K96: ='No6'!K96 -> 0 | L96: 0 | M96: 0 | Q96: [製造経費] | R96: ='No1'!B328 -> 0 | S96: ='No1'!C328 -> 0 | T96: ='No1'!D328 -> 0 | U96: ='No1'!E328 -> 0 | V96: ='No1'!F328 -> 0 | W96: ='No1'!G328 -> 0 | X96: ='No1'!H328 -> 0 | Y96: ='No1'!I328 -> 0 | Z96: ='No1'!J328 -> 0 | AA96: ='No1'!K328 -> 0 | AB96: ='No1'!L328 -> 0 | AC96: ='No1'!M328 -> 0 | AD96: ='No1'!N328 -> 0 | AF96: [製造経費] | AG96: 0 | AH96: 0 | AI96: 0 | AJ96: 0 | AK96: 0 | AL96: 0 | AN96: 0 | AO96: 0 | AP96: 0 | AQ96: 0 | AR96: 0 | AS96: 0 | AT96: 0
B97: [製]外注加工費 | C97: 154112.7273 | D97: 0.66 | E97: ='No6'!E97 -> 169524 | F97: 0.66 | G97: 15411.27273 | H97: 110 | I97: 617317.2727 | J97: 0.65 | K97: ='No6'!K97 -> 679049 | L97: 0.65 | M97: 61731.72727 | N97: 110 | Q97: [製]外注加工費 | R97: ='No1'!B329 -> 171429 | S97: ='No1'!C329 -> 176191 | T97: ='No1'!D329 -> 161905 | U97: ='No1'!E329 -> 169524 | V97: ='No1'!F329 -> 180953 | W97: ='No1'!G329 -> 843810 | X97: ='No1'!H329 -> 1703812 | Y97: ='No1'!I329 -> 1142858 | Z97: ='No1'!J329 -> 1138096 | AA97: ='No1'!K329 -> 188572 | AB97: ='No1'!L329 -> 176191 | AC97: ='No1'!M329 -> 190000 | AD97: ='No1'!N329 -> 188572 | AF97: [製]外注加工費 | AG97: 155844.5455 | AH97: 160173.6364 | AI97: 147186.3636 | AJ97: 154112.7273 | AK97: 164502.7273 | AL97: 767100 | AN97: 1038961.818 | AO97: 1034632.727 | AP97: 171429.0909 | AQ97: 160173.6364 | AR97: 172727.2727 | AS97: 171429.0909 | AT97: 3622514.545
B98: [製]動力費 | C98: 0 | D98: 0 | E98: ='No6'!E98 -> 0 | F98: 0 | G98: 0 | I98: 0 | J98: 0 | K98: ='No6'!K98 -> 0 | L98: 0 | M98: 0 | Q98: [製]動力費 | R98: ='No1'!B330 -> 0 | S98: ='No1'!C330 -> 0 | T98: ='No1'!D330 -> 0 | U98: ='No1'!E330 -> 0 | V98: ='No1'!F330 -> 0 | W98: ='No1'!G330 -> 0 | X98: ='No1'!H330 -> 0 | Y98: ='No1'!I330 -> 0 | Z98: ='No1'!J330 -> 0 | AA98: ='No1'!K330 -> 0 | AB98: ='No1'!L330 -> 0 | AC98: ='No1'!M330 -> 0 | AD98: ='No1'!N330 -> 0 | AF98: [製]動力費 | AG98: 0 | AH98: 0 | AI98: 0 | AJ98: 0 | AK98: 0 | AL98: 0 | AN98: 0 | AO98: 0 | AP98: 0 | AQ98: 0 | AR98: 0 | AS98: 0 | AT98: 0
B99: [製]荷造運賃 | C99: 0 | D99: 0 | E99: ='No6'!E99 -> 0 | F99: 0 | G99: 0 | I99: 0 | J99: 0 | K99: ='No6'!K99 -> 0 | L99: 0 | M99: 0 | Q99: [製]荷造運賃 | R99: ='No1'!B331 -> 0 | S99: ='No1'!C331 -> 0 | T99: ='No1'!D331 -> 0 | U99: ='No1'!E331 -> 0 | V99: ='No1'!F331 -> 0 | W99: ='No1'!G331 -> 0 | X99: ='No1'!H331 -> 0 | Y99: ='No1'!I331 -> 0 | Z99: ='No1'!J331 -> 0 | AA99: ='No1'!K331 -> 0 | AB99: ='No1'!L331 -> 0 | AC99: ='No1'!M331 -> 0 | AD99: ='No1'!N331 -> 0 | AF99: [製]荷造運賃 | AG99: 0 | AH99: 0 | AI99: 0 | AJ99: 0 | AK99: 0 | AL99: 0 | AN99: 0 | AO99: 0 | AP99: 0 | AQ99: 0 | AR99: 0 | AS99: 0 | AT99: 0
B100: [製]会議費 | C100: 0 | D100: 0 | E100: ='No6'!E100 -> 0 | F100: 0 | G100: 0 | I100: 0 | J100: 0 | K100: ='No6'!K100 -> 0 | L100: 0 | M100: 0 | Q100: [製]会議費 | R100: ='No1'!B332 -> 0 | S100: ='No1'!C332 -> 0 | T100: ='No1'!D332 -> 0 | U100: ='No1'!E332 -> 0 | V100: ='No1'!F332 -> 0 | W100: ='No1'!G332 -> 0 | X100: ='No1'!H332 -> 0 | Y100: ='No1'!I332 -> 0 | Z100: ='No1'!J332 -> 0 | AA100: ='No1'!K332 -> 0 | AB100: ='No1'!L332 -> 0 | AC100: ='No1'!M332 -> 0 | AD100: ='No1'!N332 -> 0 | AF100: [製]会議費 | AG100: 0 | AH100: 0 | AI100: 0 | AJ100: 0 | AK100: 0 | AL100: 0 | AN100: 0 | AO100: 0 | AP100: 0 | AQ100: 0 | AR100: 0 | AS100: 0 | AT100: 0
B101: [製]旅費交通費 | C101: 6753.636364 | D101: 0.03 | E101: ='No6'!E101 -> 7429 | F101: 0.03 | G101: 675.3636364 | H101: 110 | I101: 27014.54545 | J101: 0.03 | K101: ='No6'!K101 -> 29716 | L101: 0.03 | M101: 2701.454545 | N101: 110 | Q101: [製]旅費交通費 | R101: ='No1'!B333 -> 7429 | S101: ='No1'!C333 -> 7429 | T101: ='No1'!D333 -> 7429 | U101: ='No1'!E333 -> 7429 | V101: ='No1'!F333 -> 7429 | W101: ='No1'!G333 -> 7429 | X101: ='No1'!H333 -> 44574 | Y101: ='No1'!I333 -> 7429 | Z101: ='No1'!J333 -> 7429 | AA101: ='No1'!K333 -> 7429 | AB101: ='No1'!L333 -> 7429 | AC101: ='No1'!M333 -> 7429 | AD101: ='No1'!N333 -> 7429 | AF101: [製]旅費交通費 | AG101: 6753.636364 | AH101: 6753.636364 | AI101: 6753.636364 | AJ101: 6753.636364 | AK101: 6753.636364 | AL101: 6753.636364 | AN101: 6753.636364 | AO101: 6753.636364 | AP101: 6753.636364 | AQ101: 6753.636364 | AR101: 6753.636364 | AS101: 6753.636364 | AT101: 2068353.636
B102: [製]通信費 | C102: 38284.54545 | D102: 0.16 | E102: ='No6'!E102 -> 42113 | F102: 0.16 | G102: 3828.454545 | H102: 110 | I102: 118464.5455 | J102: 0.12 | K102: ='No6'!K102 -> 130311 | L102: 0.12 | M102: 11846.45455 | N102: 110 | Q102: [製]通信費 | R102: ='No1'!B334 -> 34384 | S102: ='No1'!C334 -> 22397 | T102: ='No1'!D334 -> 31417 | U102: ='No1'!E334 -> 42113 | V102: ='No1'!F334 -> 32569 | W102: ='No1'!G334 -> 31417 | X102: ='No1'!H334 -> 194297 | Y102: ='No1'!I334 -> 43140 | Z102: ='No1'!J334 -> 32980 | AA102: ='No1'!K334 -> 3019 | AB102: ='No1'!L334 -> 5985 | AC102: ='No1'!M334 -> 5033 | AD102: ='No1'!N334 -> 5722 | AF102: [製]通信費 | AG102: 31258.18182 | AH102: 20360.90909 | AI102: 28560.90909 | AJ102: 38284.54545 | AK102: 29608.18182 | AL102: 28560.90909 | AN102: 39218.18182 | AO102: 29981.81818 | AP102: 2744.545455 | AQ102: 5440.909091 | AR102: 4575.454545 | AS102: 5201.818182 | AT102: 5092420.909
B103: [製]消耗品費 | C103: 44113.63636 | D103: 0.19 | E103: ='No6'!E103 -> 48525 | F103: 0.19 | G103: =E103-C103 -> 4411.363636 | H103: =IF(AND(C103=0,E103=0),"",ROUND(E103/C103*100,1)) -> 110 | I103: 124051.8182 | J103: 0.13 | K103: ='No6'!K103 -> 136457 | L103: 0.13 | M103: =K103-I103 -> 12405.18182 | N103: 110 | Q103: [製]消耗品費 | R103: ='No1'!B335 -> 32287 | S103: ='No1'!C335 -> 45173 | T103: ='No1'!D335 -> 10472 | U103: ='No1'!E335 -> 48525 | V103: ='No1'!F335 -> 11692 | W103: ='No1'!G335 -> 10525 | X103: ='No1'!H335 -> 158674 | Y103: ='No1'!I335 -> 43246 | Z103: ='No1'!J335 -> 7667 | AA103: ='No1'!K335 -> 2849 | AB103: ='No1'!L335 -> 36048 | AC103: ='No1'!M335 -> 2143 | AD103: ='No1'!N335 -> 1000 | AF103: [製]消耗品費 | AG103: 29351.81818 | AH103: 41066.36364 | AI103: 9520 | AJ103: 44113.63636 | AK103: 10629.09091 | AL103: 9568.181818 | AN103: 39314.54545 | AO103: 6970 | AP103: 2590 | AQ103: 32770.90909 | AR103: 1948.181818 | AS103: 909.0909091 | AT103: 190533.6364
